Workbook

Sheet Visualisateur
P2: TABLEAU DE COMMANDES
E3: RÉSULTATS PAR EXPOSITIONS
E4: 53° Mondial C.O.M. Bad-Salzuflen 2005 (D)
A7: ='Base de données'!B1 -> DATE | B7: ='Base de données'!C1 -> ANNEE | C7: ='Base de données'!D1 -> TYPE | D7: ='Base de données'!E1 -> CLASSE | E7: ='Base de données'!F1 -> CAGE | F7: ='Base de données'!G1 -> EXPOSANT | G7: ='Base de données'!H1 -> Nr | H7: ='Base de données'!I1 -> BAGUE | I7: ='Base de données'!J1 -> PAYS | J7: ='Base de données'!K1 -> SERIE | K7: ='Base de données'!L1 -> PTS | L7: ='Base de données'!M1 -> H | M7: ='Base de données'!N1 -> TOT | N7: ='Base de données'!O1 -> PRIX
A8: ='Base de données'!B1 -> DATE | B8: ='Base de données'!C1 -> ANNEE | C8: ='Base de données'!D1 -> TYPE | D8: ='Base de données'!E1 -> CLASSE | E8: ='Base de données'!F1 -> CAGE | F8: ='Base de données'!G1 -> EXPOSANT | G8: ='Base de données'!H1 -> Nr | H8: ='Base de données'!I1 -> BAGUE | I8: ='Base de données'!J1 -> PAYS | J8: ='Base de données'!K1 -> SERIE | K8: ='Base de données'!L1 -> PTS | N8: ='Base de données'!O1 -> PRIX
A9: =IF($AB$9='Base de données'!$A2,LOOKUP($AB$9,'Base de données'!$A2,'Base de données'!$B2)," ") ->  | B9: =IF($AB$9='Base de données'!$A2,LOOKUP($AB$9,'Base de données'!$A2,'Base de données'!$C2)," ") ->  | C9: =IF($AB$9='Base de données'!$A2,LOOKUP($AB$9,'Base de données'!$A2,'Base de données'!$D2)," ") ->  | D9: =IF($AB$9='Base de données'!$A2,LOOKUP($AB$9,'Base de données'!$A2,'Base de données'!$E2)," ") ->  | E9: =IF($AB$9='Base de données'!$A2,LOOKUP($AB$9,'Base de données'!$A2,'Base de données'!$F2)," ") ->  | F9: =IF($AB$9='Base de données'!$A2,LOOKUP($AB$9,'Base de données'!$A2,'Base de données'!$G2)," ") ->  | G9: =IF($AB$9='Base de données'!$A2,LOOKUP($AB$9,'Base de données'!$A2,'Base de données'!$H2)," ") ->  | H9: =IF($AB$9='Base de données'!$A2,LOOKUP($AB$9,'Base de données'!$A2,'Base de données'!$I2)," ") ->  | I9: =IF($AB$9='Base de données'!$A2,LOOKUP($AB$9,'Base de données'!$A2,'Base de données'!$J2)," ") ->  | J9: =IF($AB$9='Base de données'!$A2,LOOKUP($AB$9,'Base de données'!$A2,'Base de données'!$K2)," ") ->  | K9: =IF($AB$9='Base de données'!$A2,LOOKUP($AB$9,'Base de données'!$A2,'Base de données'!$L2)," ") ->  | L9: =IF($AB$9='Base de données'!$A2,LOOKUP($AB$9,'Base de données'!$A2,'Base de données'!$M2)," ") ->  | M9: =IF($AB$9='Base de données'!$A2,LOOKUP($AB$9,'Base de données'!$A2,'Base de données'!$N2)," ") ->  | N9: =IF($AB$9='Base de données'!$A2,LOOKUP($AB$9,'Base de données'!$A2,'Base de données'!$O2)," ") ->  | W9: REPORT DATA Page "Résultats" | X9: TEST | Z9: FINAL POUR LISTE DEROULANTE SELECTION EXPO | AB9: =E4 -> 53° Mondial C.O.M. Bad-Salzuflen 2005 (D)
A10: =IF($AB$9='Base de données'!$A3,LOOKUP($AB$9,'Base de données'!$A3,'Base de données'!$B3)," ") ->  | B10: =IF($AB$9='Base de données'!$A3,LOOKUP($AB$9,'Base de données'!$A3,'Base de données'!$C3)," ") ->  | C10: =IF($AB$9='Base de données'!$A3,LOOKUP($AB$9,'Base de données'!$A3,'Base de données'!$D3)," ") ->  | D10: =IF($AB$9='Base de données'!$A3,LOOKUP($AB$9,'Base de données'!$A3,'Base de données'!$E3)," ") ->  | E10: =IF($AB$9='Base de données'!$A3,LOOKUP($AB$9,'Base de données'!$A3,'Base de données'!$F3)," ") ->  | F10: =IF($AB$9='Base de données'!$A3,LOOKUP($AB$9,'Base de données'!$A3,'Base de données'!$G3)," ") ->  | G10: =IF($AB$9='Base de données'!$A3,LOOKUP($AB$9,'Base de données'!$A3,'Base de données'!$H3)," ") ->  | H10: =IF($AB$9='Base de données'!$A3,LOOKUP($AB$9,'Base de données'!$A3,'Base de données'!$I3)," ") ->  | I10: =IF($AB$9='Base de données'!$A3,LOOKUP($AB$9,'Base de données'!$A3,'Base de données'!$J3)," ") ->  | J10: =IF($AB$9='Base de données'!$A3,LOOKUP($AB$9,'Base de données'!$A3,'Base de données'!$K3)," ") ->  | K10: =IF($AB$9='Base de données'!$A3,LOOKUP($AB$9,'Base de données'!$A3,'Base de données'!$L3)," ") ->  | L10: =IF($AB$9='Base de données'!$A3,LOOKUP($AB$9,'Base de données'!$A3,'Base de données'!$M3)," ") ->  | M10: =IF($AB$9='Base de données'!$A3,LOOKUP($AB$9,'Base de données'!$A3,'Base de données'!$N3)," ") ->  | N10: =IF($AB$9='Base de données'!$A3,LOOKUP($AB$9,'Base de données'!$A3,'Base de données'!$O3)," ") ->  | W10: ='Base de données'!AE3 -> Championnat de Belgique B.P.C. Limbourg 2007 (B) | X10: =IF($W10=Visualisateur!$U$60,'Base de données'!$U$63,'Base de données'!$U$64) -> OK | Z10: =IF($X10=$AB$14,$W10," ") -> Championnat de Belgique B.P.C. Limbourg 2007 (B)
A11: =IF($AB$9='Base de données'!$A4,LOOKUP($AB$9,'Base de données'!$A4,'Base de données'!$B4)," ") ->  | B11: =IF($AB$9='Base de données'!$A4,LOOKUP($AB$9,'Base de données'!$A4,'Base de données'!$C4)," ") ->  | C11: =IF($AB$9='Base de données'!$A4,LOOKUP($AB$9,'Base de données'!$A4,'Base de données'!$D4)," ") ->  | D11: =IF($AB$9='Base de données'!$A4,LOOKUP($AB$9,'Base de données'!$A4,'Base de données'!$E4)," ") ->  | E11: =IF($AB$9='Base de données'!$A4,LOOKUP($AB$9,'Base de données'!$A4,'Base de données'!$F4)," ") ->  | F11: =IF($AB$9='Base de données'!$A4,LOOKUP($AB$9,'Base de données'!$A4,'Base de données'!$G4)," ") ->  | G11: =IF($AB$9='Base de données'!$A4,LOOKUP($AB$9,'Base de données'!$A4,'Base de données'!$H4)," ") ->  | H11: =IF($AB$9='Base de données'!$A4,LOOKUP($AB$9,'Base de données'!$A4,'Base de données'!$I4)," ") ->  | I11: =IF($AB$9='Base de données'!$A4,LOOKUP($AB$9,'Base de données'!$A4,'Base de données'!$J4)," ") ->  | J11: =IF($AB$9='Base de données'!$A4,LOOKUP($AB$9,'Base de données'!$A4,'Base de données'!$K4)," ") ->  | K11: =IF($AB$9='Base de données'!$A4,LOOKUP($AB$9,'Base de données'!$A4,'Base de données'!$L4)," ") ->  | L11: =IF($AB$9='Base de données'!$A4,LOOKUP($AB$9,'Base de données'!$A4,'Base de données'!$M4)," ") ->  | M11: =IF($AB$9='Base de données'!$A4,LOOKUP($AB$9,'Base de données'!$A4,'Base de données'!$N4)," ") ->  | N11: =IF($AB$9='Base de données'!$A4,LOOKUP($AB$9,'Base de données'!$A4,'Base de données'!$O4)," ") ->  | W11: ='Base de données'!AE4 -> 44° Exposition B.P.C. Liège 2007 Alleur (B) | X11: =IF($W11=Visualisateur!$U$60,'Base de données'!$U$63,'Base de données'!$U$64) -> OK | Z11: =IF($X11=$AB$14,$W11," ") -> 44° Exposition B.P.C. Liège 2007 Alleur (B) | AB11: ='Base de données'!U4 -> STAM
A12: =IF($AB$9='Base de données'!$A5,LOOKUP($AB$9,'Base de données'!$A5,'Base de données'!$B5)," ") ->  | B12: =IF($AB$9='Base de données'!$A5,LOOKUP($AB$9,'Base de données'!$A5,'Base de données'!$C5)," ") ->  | C12: =IF($AB$9='Base de données'!$A5,LOOKUP($AB$9,'Base de données'!$A5,'Base de données'!$D5)," ") ->  | D12: =IF($AB$9='Base de données'!$A5,LOOKUP($AB$9,'Base de données'!$A5,'Base de données'!$E5)," ") ->  | E12: =IF($AB$9='Base de données'!$A5,LOOKUP($AB$9,'Base de données'!$A5,'Base de données'!$F5)," ") ->  | F12: =IF($AB$9='Base de données'!$A5,LOOKUP($AB$9,'Base de données'!$A5,'Base de données'!$G5)," ") ->  | G12: =IF($AB$9='Base de données'!$A5,LOOKUP($AB$9,'Base de données'!$A5,'Base de données'!$H5)," ") ->  | H12: =IF($AB$9='Base de données'!$A5,LOOKUP($AB$9,'Base de données'!$A5,'Base de données'!$I5)," ") ->  | I12: =IF($AB$9='Base de données'!$A5,LOOKUP($AB$9,'Base de données'!$A5,'Base de données'!$J5)," ") ->  | J12: =IF($AB$9='Base de données'!$A5,LOOKUP($AB$9,'Base de données'!$A5,'Base de données'!$K5)," ") ->  | K12: =IF($AB$9='Base de données'!$A5,LOOKUP($AB$9,'Base de données'!$A5,'Base de données'!$L5)," ") ->  | L12: =IF($AB$9='Base de données'!$A5,LOOKUP($AB$9,'Base de données'!$A5,'Base de données'!$M5)," ") ->  | M12: =IF($AB$9='Base de données'!$A5,LOOKUP($AB$9,'Base de données'!$A5,'Base de données'!$N5)," ") ->  | N12: =IF($AB$9='Base de données'!$A5,LOOKUP($AB$9,'Base de données'!$A5,'Base de données'!$O5)," ") ->  | W12: ='Base de données'!AE5 -> 53° Mondial C.O.M. Bad-Salzuflen 2005 (D) | X12: =IF($W12=Visualisateur!$U$60,'Base de données'!$U$63,'Base de données'!$U$64) -> OK | Z12: =IF($X12=$AB$14,$W12," ") -> 53° Mondial C.O.M. Bad-Salzuflen 2005 (D) | AB12: ='Base de données'!U67 -> -
A13: =IF($AB$9='Base de données'!$A6,LOOKUP($AB$9,'Base de données'!$A6,'Base de données'!$B6)," ") ->  | B13: =IF($AB$9='Base de données'!$A6,LOOKUP($AB$9,'Base de données'!$A6,'Base de données'!$C6)," ") ->  | C13: =IF($AB$9='Base de données'!$A6,LOOKUP($AB$9,'Base de données'!$A6,'Base de données'!$D6)," ") ->  | D13: =IF($AB$9='Base de données'!$A6,LOOKUP($AB$9,'Base de données'!$A6,'Base de données'!$E6)," ") ->  | E13: =IF($AB$9='Base de données'!$A6,LOOKUP($AB$9,'Base de données'!$A6,'Base de données'!$F6)," ") ->  | F13: =IF($AB$9='Base de données'!$A6,LOOKUP($AB$9,'Base de données'!$A6,'Base de données'!$G6)," ") ->  | G13: =IF($AB$9='Base de données'!$A6,LOOKUP($AB$9,'Base de données'!$A6,'Base de données'!$H6)," ") ->  | H13: =IF($AB$9='Base de données'!$A6,LOOKUP($AB$9,'Base de données'!$A6,'Base de données'!$I6)," ") ->  | I13: =IF($AB$9='Base de données'!$A6,LOOKUP($AB$9,'Base de données'!$A6,'Base de données'!$J6)," ") ->  | J13: =IF($AB$9='Base de données'!$A6,LOOKUP($AB$9,'Base de données'!$A6,'Base de données'!$K6)," ") ->  | K13: =IF($AB$9='Base de données'!$A6,LOOKUP($AB$9,'Base de données'!$A6,'Base de données'!$L6)," ") ->  | L13: =IF($AB$9='Base de données'!$A6,LOOKUP($AB$9,'Base de données'!$A6,'Base de données'!$M6)," ") ->  | M13: =IF($AB$9='Base de données'!$A6,LOOKUP($AB$9,'Base de données'!$A6,'Base de données'!$N6)," ") ->  | N13: =IF($AB$9='Base de données'!$A6,LOOKUP($AB$9,'Base de données'!$A6,'Base de données'!$O6)," ") ->  | W13: ='Base de données'!AE6 -> 43° Exposition B.P.C. Liège 2006 Alleur (B) | X13: =IF($W13=Visualisateur!$U$60,'Base de données'!$U$63,'Base de données'!$U$64) -> OK | Z13: 43° Exposition B.P.C. Liège 2006 Alleur (B) | AB13: =" " -> 
A14: =IF($AB$9='Base de données'!$A7,LOOKUP($AB$9,'Base de données'!$A7,'Base de données'!$B7)," ") ->  | B14: =IF($AB$9='Base de données'!$A7,LOOKUP($AB$9,'Base de données'!$A7,'Base de données'!$C7)," ") ->  | C14: =IF($AB$9='Base de données'!$A7,LOOKUP($AB$9,'Base de données'!$A7,'Base de données'!$D7)," ") ->  | D14: =IF($AB$9='Base de données'!$A7,LOOKUP($AB$9,'Base de données'!$A7,'Base de données'!$E7)," ") ->  | E14: =IF($AB$9='Base de données'!$A7,LOOKUP($AB$9,'Base de données'!$A7,'Base de données'!$F7)," ") ->  | F14: =IF($AB$9='Base de données'!$A7,LOOKUP($AB$9,'Base de données'!$A7,'Base de données'!$G7)," ") ->  | G14: =IF($AB$9='Base de données'!$A7,LOOKUP($AB$9,'Base de données'!$A7,'Base de données'!$H7)," ") ->  | H14: =IF($AB$9='Base de données'!$A7,LOOKUP($AB$9,'Base de données'!$A7,'Base de données'!$I7)," ") ->  | I14: =IF($AB$9='Base de données'!$A7,LOOKUP($AB$9,'Base de données'!$A7,'Base de données'!$J7)," ") ->  | J14: =IF($AB$9='Base de données'!$A7,LOOKUP($AB$9,'Base de données'!$A7,'Base de données'!$K7)," ") ->  | K14: =IF($AB$9='Base de données'!$A7,LOOKUP($AB$9,'Base de données'!$A7,'Base de données'!$L7)," ") ->  | L14: =IF($AB$9='Base de données'!$A7,LOOKUP($AB$9,'Base de données'!$A7,'Base de données'!$M7)," ") ->  | M14: =IF($AB$9='Base de données'!$A7,LOOKUP($AB$9,'Base de données'!$A7,'Base de données'!$N7)," ") ->  | N14: =IF($AB$9='Base de données'!$A7,LOOKUP($AB$9,'Base de données'!$A7,'Base de données'!$O7)," ") ->  | W14: ='Base de données'!AE7 -> 67° Exposition S.O.R. 2006 Reggio Emilia (I) | X14: =IF($W14=Visualisateur!$U$60,'Base de données'!$U$63,'Base de données'!$U$64) -> OK | Z14: 67° Exposition S.O.R. 2006 Reggio Emilia (I) | AB14: OK
A15: =IF($AB$9='Base de données'!$A8,LOOKUP($AB$9,'Base de données'!$A8,'Base de données'!$B8)," ") ->  | B15: =IF($AB$9='Base de données'!$A8,LOOKUP($AB$9,'Base de données'!$A8,'Base de données'!$C8)," ") ->  | C15: =IF($AB$9='Base de données'!$A8,LOOKUP($AB$9,'Base de données'!$A8,'Base de données'!$D8)," ") ->  | D15: =IF($AB$9='Base de données'!$A8,LOOKUP($AB$9,'Base de données'!$A8,'Base de données'!$E8)," ") ->  | E15: =IF($AB$9='Base de données'!$A8,LOOKUP($AB$9,'Base de données'!$A8,'Base de données'!$F8)," ") ->  | F15: =IF($AB$9='Base de données'!$A8,LOOKUP($AB$9,'Base de données'!$A8,'Base de données'!$G8)," ") ->  | G15: =IF($AB$9='Base de données'!$A8,LOOKUP($AB$9,'Base de données'!$A8,'Base de données'!$H8)," ") ->  | H15: =IF($AB$9='Base de données'!$A8,LOOKUP($AB$9,'Base de données'!$A8,'Base de données'!$I8)," ") ->  | I15: =IF($AB$9='Base de données'!$A8,LOOKUP($AB$9,'Base de données'!$A8,'Base de données'!$J8)," ") ->  | J15: =IF($AB$9='Base de données'!$A8,LOOKUP($AB$9,'Base de données'!$A8,'Base de données'!$K8)," ") ->  | K15: =IF($AB$9='Base de données'!$A8,LOOKUP($AB$9,'Base de données'!$A8,'Base de données'!$L8)," ") ->  | L15: =IF($AB$9='Base de données'!$A8,LOOKUP($AB$9,'Base de données'!$A8,'Base de données'!$M8)," ") ->  | M15: =IF($AB$9='Base de données'!$A8,LOOKUP($AB$9,'Base de données'!$A8,'Base de données'!$N8)," ") ->  | N15: =IF($AB$9='Base de données'!$A8,LOOKUP($AB$9,'Base de données'!$A8,'Base de données'!$O8)," ") ->  | W15: ='Base de données'!AE8 -> 14° Championnat de France F.F.O. 2006 Savigny (F) | X15: =IF($W15=Visualisateur!$U$60,'Base de données'!$U$63,'Base de données'!$U$64) -> OK | Z15: 14° Championnat de France F.F.O. 2006 Savigny (F) | AB15: NUL
A16: =IF($AB$9='Base de données'!$A9,LOOKUP($AB$9,'Base de données'!$A9,'Base de données'!$B9)," ") ->  | B16: =IF($AB$9='Base de données'!$A9,LOOKUP($AB$9,'Base de données'!$A9,'Base de données'!$C9)," ") ->  | C16: =IF($AB$9='Base de données'!$A9,LOOKUP($AB$9,'Base de données'!$A9,'Base de données'!$D9)," ") ->  | D16: =IF($AB$9='Base de données'!$A9,LOOKUP($AB$9,'Base de données'!$A9,'Base de données'!$E9)," ") ->  | E16: =IF($AB$9='Base de données'!$A9,LOOKUP($AB$9,'Base de données'!$A9,'Base de données'!$F9)," ") ->  | F16: =IF($AB$9='Base de données'!$A9,LOOKUP($AB$9,'Base de données'!$A9,'Base de données'!$G9)," ") ->  | G16: =IF($AB$9='Base de données'!$A9,LOOKUP($AB$9,'Base de données'!$A9,'Base de données'!$H9)," ") ->  | H16: =IF($AB$9='Base de données'!$A9,LOOKUP($AB$9,'Base de données'!$A9,'Base de données'!$I9)," ") ->  | I16: =IF($AB$9='Base de données'!$A9,LOOKUP($AB$9,'Base de données'!$A9,'Base de données'!$J9)," ") ->  | J16: =IF($AB$9='Base de données'!$A9,LOOKUP($AB$9,'Base de données'!$A9,'Base de données'!$K9)," ") ->  | K16: =IF($AB$9='Base de données'!$A9,LOOKUP($AB$9,'Base de données'!$A9,'Base de données'!$L9)," ") ->  | L16: =IF($AB$9='Base de données'!$A9,LOOKUP($AB$9,'Base de données'!$A9,'Base de données'!$M9)," ") ->  | M16: =IF($AB$9='Base de données'!$A9,LOOKUP($AB$9,'Base de données'!$A9,'Base de données'!$N9)," ") ->  | N16: =IF($AB$9='Base de données'!$A9,LOOKUP($AB$9,'Base de données'!$A9,'Base de données'!$O9)," ") ->  | W16: ='Base de données'!AE9 -> 40° Exposition B.P.C. Liège 2002 Alleur (B) | X16: =IF($W16=Visualisateur!$U$60,'Base de données'!$U$63,'Base de données'!$U$64) -> OK | Z16: 40° Exposition B.P.C. Liège 2002 Alleur (B)
A17: =IF($AB$9='Base de données'!$A10,LOOKUP($AB$9,'Base de données'!$A10,'Base de données'!$B10)," ") ->  | B17: =IF($AB$9='Base de données'!$A10,LOOKUP($AB$9,'Base de données'!$A10,'Base de données'!$C10)," ") ->  | C17: =IF($AB$9='Base de données'!$A10,LOOKUP($AB$9,'Base de données'!$A10,'Base de données'!$D10)," ") ->  | D17: =IF($AB$9='Base de données'!$A10,LOOKUP($AB$9,'Base de données'!$A10,'Base de données'!$E10)," ") ->  | E17: =IF($AB$9='Base de données'!$A10,LOOKUP($AB$9,'Base de données'!$A10,'Base de données'!$F10)," ") ->  | F17: =IF($AB$9='Base de données'!$A10,LOOKUP($AB$9,'Base de données'!$A10,'Base de données'!$G10)," ") ->  | G17: =IF($AB$9='Base de données'!$A10,LOOKUP($AB$9,'Base de données'!$A10,'Base de données'!$H10)," ") ->  | H17: =IF($AB$9='Base de données'!$A10,LOOKUP($AB$9,'Base de données'!$A10,'Base de données'!$I10)," ") ->  | I17: =IF($AB$9='Base de données'!$A10,LOOKUP($AB$9,'Base de données'!$A10,'Base de données'!$J10)," ") ->  | J17: =IF($AB$9='Base de données'!$A10,LOOKUP($AB$9,'Base de données'!$A10,'Base de données'!$K10)," ") ->  | K17: =IF($AB$9='Base de données'!$A10,LOOKUP($AB$9,'Base de données'!$A10,'Base de données'!$L10)," ") ->  | L17: =IF($AB$9='Base de données'!$A10,LOOKUP($AB$9,'Base de données'!$A10,'Base de données'!$M10)," ") ->  | M17: =IF($AB$9='Base de données'!$A10,LOOKUP($AB$9,'Base de données'!$A10,'Base de données'!$N10)," ") ->  | N17: =IF($AB$9='Base de données'!$A10,LOOKUP($AB$9,'Base de données'!$A10,'Base de données'!$O10)," ") ->  | W17: ='Base de données'!AE10 -> 1° Championnat Intern. C.O.M. Atl. 2006 Barcelos (P) | X17: =IF($W17=Visualisateur!$U$60,'Base de données'!$U$63,'Base de données'!$U$64) -> OK | Z17: 1° Championnat Intern. C.O.M. Atl. 2006 Barcelos (P)
A18: =IF($AB$9='Base de données'!$A11,LOOKUP($AB$9,'Base de données'!$A11,'Base de données'!$B11)," ") ->  | B18: =IF($AB$9='Base de données'!$A11,LOOKUP($AB$9,'Base de données'!$A11,'Base de données'!$C11)," ") ->  | C18: =IF($AB$9='Base de données'!$A11,LOOKUP($AB$9,'Base de données'!$A11,'Base de données'!$D11)," ") ->  | D18: =IF($AB$9='Base de données'!$A11,LOOKUP($AB$9,'Base de données'!$A11,'Base de données'!$E11)," ") ->  | E18: =IF($AB$9='Base de données'!$A11,LOOKUP($AB$9,'Base de données'!$A11,'Base de données'!$F11)," ") ->  | F18: =IF($AB$9='Base de données'!$A11,LOOKUP($AB$9,'Base de données'!$A11,'Base de données'!$G11)," ") ->  | G18: =IF($AB$9='Base de données'!$A11,LOOKUP($AB$9,'Base de données'!$A11,'Base de données'!$H11)," ") ->  | H18: =IF($AB$9='Base de données'!$A11,LOOKUP($AB$9,'Base de données'!$A11,'Base de données'!$I11)," ") ->  | I18: =IF($AB$9='Base de données'!$A11,LOOKUP($AB$9,'Base de données'!$A11,'Base de données'!$J11)," ") ->  | J18: =IF($AB$9='Base de données'!$A11,LOOKUP($AB$9,'Base de données'!$A11,'Base de données'!$K11)," ") ->  | K18: =IF($AB$9='Base de données'!$A11,LOOKUP($AB$9,'Base de données'!$A11,'Base de données'!$L11)," ") ->  | L18: =IF($AB$9='Base de données'!$A11,LOOKUP($AB$9,'Base de données'!$A11,'Base de données'!$M11)," ") ->  | M18: =IF($AB$9='Base de données'!$A11,LOOKUP($AB$9,'Base de données'!$A11,'Base de données'!$N11)," ") ->  | N18: =IF($AB$9='Base de données'!$A11,LOOKUP($AB$9,'Base de données'!$A11,'Base de données'!$O11)," ") ->  | W18: ='Base de données'!AE11 -> 51° Mondial C.O.M. Amiens 2003 (D) | X18: =IF($W18=Visualisateur!$U$60,'Base de données'!$U$63,'Base de données'!$U$64) -> OK | Z18: 51° Mondial C.O.M. Amiens 2003 (D)
A19: =IF($AB$9='Base de données'!$A12,LOOKUP($AB$9,'Base de données'!$A12,'Base de données'!$B12)," ") ->  | B19: =IF($AB$9='Base de données'!$A12,LOOKUP($AB$9,'Base de données'!$A12,'Base de données'!$C12)," ") ->  | C19: =IF($AB$9='Base de données'!$A12,LOOKUP($AB$9,'Base de données'!$A12,'Base de données'!$D12)," ") ->  | D19: =IF($AB$9='Base de données'!$A12,LOOKUP($AB$9,'Base de données'!$A12,'Base de données'!$E12)," ") ->  | E19: =IF($AB$9='Base de données'!$A12,LOOKUP($AB$9,'Base de données'!$A12,'Base de données'!$F12)," ") ->  | F19: =IF($AB$9='Base de données'!$A12,LOOKUP($AB$9,'Base de données'!$A12,'Base de données'!$G12)," ") ->  | G19: =IF($AB$9='Base de données'!$A12,LOOKUP($AB$9,'Base de données'!$A12,'Base de données'!$H12)," ") ->  | H19: =IF($AB$9='Base de données'!$A12,LOOKUP($AB$9,'Base de données'!$A12,'Base de données'!$I12)," ") ->  | I19: =IF($AB$9='Base de données'!$A12,LOOKUP($AB$9,'Base de données'!$A12,'Base de données'!$J12)," ") ->  | J19: =IF($AB$9='Base de données'!$A12,LOOKUP($AB$9,'Base de données'!$A12,'Base de données'!$K12)," ") ->  | K19: =IF($AB$9='Base de données'!$A12,LOOKUP($AB$9,'Base de données'!$A12,'Base de données'!$L12)," ") ->  | L19: =IF($AB$9='Base de données'!$A12,LOOKUP($AB$9,'Base de données'!$A12,'Base de données'!$M12)," ") ->  | M19: =IF($AB$9='Base de données'!$A12,LOOKUP($AB$9,'Base de données'!$A12,'Base de données'!$N12)," ") ->  | N19: =IF($AB$9='Base de données'!$A12,LOOKUP($AB$9,'Base de données'!$A12,'Base de données'!$O12)," ") ->  | W19: ='Base de données'!AE12 -> 25° Champ. d'Europe Entente-EE Leipzig 2006 (D) | X19: =IF($W19=Visualisateur!$U$60,'Base de données'!$U$63,'Base de données'!$U$64) -> OK | Z19: 25° Champ. d'Europe Entente-EE Leipzig 2006 (D)
A20: =IF($AB$9='Base de données'!$A13,LOOKUP($AB$9,'Base de données'!$A13,'Base de données'!$B13)," ") ->  | B20: =IF($AB$9='Base de données'!$A13,LOOKUP($AB$9,'Base de données'!$A13,'Base de données'!$C13)," ") ->  | C20: =IF($AB$9='Base de données'!$A13,LOOKUP($AB$9,'Base de données'!$A13,'Base de données'!$D13)," ") ->  | D20: =IF($AB$9='Base de données'!$A13,LOOKUP($AB$9,'Base de données'!$A13,'Base de données'!$E13)," ") ->  | E20: =IF($AB$9='Base de données'!$A13,LOOKUP($AB$9,'Base de données'!$A13,'Base de données'!$F13)," ") ->  | F20: =IF($AB$9='Base de données'!$A13,LOOKUP($AB$9,'Base de données'!$A13,'Base de données'!$G13)," ") ->  | G20: =IF($AB$9='Base de données'!$A13,LOOKUP($AB$9,'Base de données'!$A13,'Base de données'!$H13)," ") ->  | H20: =IF($AB$9='Base de données'!$A13,LOOKUP($AB$9,'Base de données'!$A13,'Base de données'!$I13)," ") ->  | I20: =IF($AB$9='Base de données'!$A13,LOOKUP($AB$9,'Base de données'!$A13,'Base de données'!$J13)," ") ->  | J20: =IF($AB$9='Base de données'!$A13,LOOKUP($AB$9,'Base de données'!$A13,'Base de données'!$K13)," ") ->  | K20: =IF($AB$9='Base de données'!$A13,LOOKUP($AB$9,'Base de données'!$A13,'Base de données'!$L13)," ") ->  | L20: =IF($AB$9='Base de données'!$A13,LOOKUP($AB$9,'Base de données'!$A13,'Base de données'!$M13)," ") ->  | M20: =IF($AB$9='Base de données'!$A13,LOOKUP($AB$9,'Base de données'!$A13,'Base de données'!$N13)," ") ->  | N20: =IF($AB$9='Base de données'!$A13,LOOKUP($AB$9,'Base de données'!$A13,'Base de données'!$O13)," ") ->  | W20: ='Base de données'!AE13 -> 33° Championnat National ANPV 2004 (NL) | X20: =IF($W20=Visualisateur!$U$60,'Base de données'!$U$63,'Base de données'!$U$64) -> OK | Z20: 33° Championnat National ANPV 2004 (NL)
A21: =IF($AB$9='Base de données'!$A14,LOOKUP($AB$9,'Base de données'!$A14,'Base de données'!$B14)," ") ->  | B21: =IF($AB$9='Base de données'!$A14,LOOKUP($AB$9,'Base de données'!$A14,'Base de données'!$C14)," ") ->  | C21: =IF($AB$9='Base de données'!$A14,LOOKUP($AB$9,'Base de données'!$A14,'Base de données'!$D14)," ") ->  | D21: =IF($AB$9='Base de données'!$A14,LOOKUP($AB$9,'Base de données'!$A14,'Base de données'!$E14)," ") ->  | E21: =IF($AB$9='Base de données'!$A14,LOOKUP($AB$9,'Base de données'!$A14,'Base de données'!$F14)," ") ->  | F21: =IF($AB$9='Base de données'!$A14,LOOKUP($AB$9,'Base de données'!$A14,'Base de données'!$G14)," ") ->  | G21: =IF($AB$9='Base de données'!$A14,LOOKUP($AB$9,'Base de données'!$A14,'Base de données'!$H14)," ") ->  | H21: =IF($AB$9='Base de données'!$A14,LOOKUP($AB$9,'Base de données'!$A14,'Base de données'!$I14)," ") ->  | I21: =IF($AB$9='Base de données'!$A14,LOOKUP($AB$9,'Base de données'!$A14,'Base de données'!$J14)," ") ->  | J21: =IF($AB$9='Base de données'!$A14,LOOKUP($AB$9,'Base de données'!$A14,'Base de données'!$K14)," ") ->  | K21: =IF($AB$9='Base de données'!$A14,LOOKUP($AB$9,'Base de données'!$A14,'Base de données'!$L14)," ") ->  | L21: =IF($AB$9='Base de données'!$A14,LOOKUP($AB$9,'Base de données'!$A14,'Base de données'!$M14)," ") ->  | M21: =IF($AB$9='Base de données'!$A14,LOOKUP($AB$9,'Base de données'!$A14,'Base de données'!$N14)," ") ->  | N21: =IF($AB$9='Base de données'!$A14,LOOKUP($AB$9,'Base de données'!$A14,'Base de données'!$O14)," ") ->  | W21: ='Base de données'!AE14 -> 33° Champ. de Suisse Indiv. PARUS Yverdon 2006 (CH) | X21: =IF($W21=Visualisateur!$U$60,'Base de données'!$U$63,'Base de données'!$U$64) -> OK | Z21: 33° Champ. de Suisse Indiv. PARUS Yverdon 2006 (CH)
A22: =IF($AB$9='Base de données'!$A15,LOOKUP($AB$9,'Base de données'!$A15,'Base de données'!$B15)," ") ->  | B22: =IF($AB$9='Base de données'!$A15,LOOKUP($AB$9,'Base de données'!$A15,'Base de données'!$C15)," ") ->  | C22: =IF($AB$9='Base de données'!$A15,LOOKUP($AB$9,'Base de données'!$A15,'Base de données'!$D15)," ") ->  | D22: =IF($AB$9='Base de données'!$A15,LOOKUP($AB$9,'Base de données'!$A15,'Base de données'!$E15)," ") ->  | E22: =IF($AB$9='Base de données'!$A15,LOOKUP($AB$9,'Base de données'!$A15,'Base de données'!$F15)," ") ->  | F22: =IF($AB$9='Base de données'!$A15,LOOKUP($AB$9,'Base de données'!$A15,'Base de données'!$G15)," ") ->  | G22: =IF($AB$9='Base de données'!$A15,LOOKUP($AB$9,'Base de données'!$A15,'Base de données'!$H15)," ") ->  | H22: =IF($AB$9='Base de données'!$A15,LOOKUP($AB$9,'Base de données'!$A15,'Base de données'!$I15)," ") ->  | I22: =IF($AB$9='Base de données'!$A15,LOOKUP($AB$9,'Base de données'!$A15,'Base de données'!$J15)," ") ->  | J22: =IF($AB$9='Base de données'!$A15,LOOKUP($AB$9,'Base de données'!$A15,'Base de données'!$K15)," ") ->  | K22: =IF($AB$9='Base de données'!$A15,LOOKUP($AB$9,'Base de données'!$A15,'Base de données'!$L15)," ") ->  | L22: =IF($AB$9='Base de données'!$A15,LOOKUP($AB$9,'Base de données'!$A15,'Base de données'!$M15)," ") ->  | M22: =IF($AB$9='Base de données'!$A15,LOOKUP($AB$9,'Base de données'!$A15,'Base de données'!$N15)," ") ->  | N22: =IF($AB$9='Base de données'!$A15,LOOKUP($AB$9,'Base de données'!$A15,'Base de données'!$O15)," ") ->  | W22: ='Base de données'!AE15 -> 34° Champ. de Suisse Indi. PARUS Fribourg 2007 (CH) | X22: =IF($W22=Visualisateur!$U$60,'Base de données'!$U$63,'Base de données'!$U$64) -> OK | Z22: 34° Champ. de Suisse Indi. PARUS Fribourg 2007 (CH)
A23: =IF($AB$9='Base de données'!$A16,LOOKUP($AB$9,'Base de données'!$A16,'Base de données'!$B16)," ") ->  | B23: =IF($AB$9='Base de données'!$A16,LOOKUP($AB$9,'Base de données'!$A16,'Base de données'!$C16)," ") ->  | C23: =IF($AB$9='Base de données'!$A16,LOOKUP($AB$9,'Base de données'!$A16,'Base de données'!$D16)," ") ->  | D23: =IF($AB$9='Base de données'!$A16,LOOKUP($AB$9,'Base de données'!$A16,'Base de données'!$E16)," ") ->  | E23: =IF($AB$9='Base de données'!$A16,LOOKUP($AB$9,'Base de données'!$A16,'Base de données'!$F16)," ") ->  | F23: =IF($AB$9='Base de données'!$A16,LOOKUP($AB$9,'Base de données'!$A16,'Base de données'!$G16)," ") ->  | G23: =IF($AB$9='Base de données'!$A16,LOOKUP($AB$9,'Base de données'!$A16,'Base de données'!$H16)," ") ->  | H23: =IF($AB$9='Base de données'!$A16,LOOKUP($AB$9,'Base de données'!$A16,'Base de données'!$I16)," ") ->  | I23: =IF($AB$9='Base de données'!$A16,LOOKUP($AB$9,'Base de données'!$A16,'Base de données'!$J16)," ") ->  | J23: =IF($AB$9='Base de données'!$A16,LOOKUP($AB$9,'Base de données'!$A16,'Base de données'!$K16)," ") ->  | K23: =IF($AB$9='Base de données'!$A16,LOOKUP($AB$9,'Base de données'!$A16,'Base de données'!$L16)," ") ->  | L23: =IF($AB$9='Base de données'!$A16,LOOKUP($AB$9,'Base de données'!$A16,'Base de données'!$M16)," ") ->  | M23: =IF($AB$9='Base de données'!$A16,LOOKUP($AB$9,'Base de données'!$A16,'Base de données'!$N16)," ") ->  | N23: =IF($AB$9='Base de données'!$A16,LOOKUP($AB$9,'Base de données'!$A16,'Base de données'!$O16)," ") ->  | W23: ='Base de données'!AE16 -> 34° Championnat de Hollande ANPV 2005 (NL) | X23: =IF($W23=Visualisateur!$U$60,'Base de données'!$U$63,'Base de données'!$U$64) -> OK | Z23: 34° Championnat de Hollande ANPV 2005 (NL)
A24: =IF($AB$9='Base de données'!$A17,LOOKUP($AB$9,'Base de données'!$A17,'Base de données'!$B17)," ") ->  | B24: =IF($AB$9='Base de données'!$A17,LOOKUP($AB$9,'Base de données'!$A17,'Base de données'!$C17)," ") ->  | C24: =IF($AB$9='Base de données'!$A17,LOOKUP($AB$9,'Base de données'!$A17,'Base de données'!$D17)," ") ->  | D24: =IF($AB$9='Base de données'!$A17,LOOKUP($AB$9,'Base de données'!$A17,'Base de données'!$E17)," ") ->  | E24: =IF($AB$9='Base de données'!$A17,LOOKUP($AB$9,'Base de données'!$A17,'Base de données'!$F17)," ") ->  | F24: =IF($AB$9='Base de données'!$A17,LOOKUP($AB$9,'Base de données'!$A17,'Base de données'!$G17)," ") ->  | G24: =IF($AB$9='Base de données'!$A17,LOOKUP($AB$9,'Base de données'!$A17,'Base de données'!$H17)," ") ->  | H24: =IF($AB$9='Base de données'!$A17,LOOKUP($AB$9,'Base de données'!$A17,'Base de données'!$I17)," ") ->  | I24: =IF($AB$9='Base de données'!$A17,LOOKUP($AB$9,'Base de données'!$A17,'Base de données'!$J17)," ") ->  | J24: =IF($AB$9='Base de données'!$A17,LOOKUP($AB$9,'Base de données'!$A17,'Base de données'!$K17)," ") ->  | K24: =IF($AB$9='Base de données'!$A17,LOOKUP($AB$9,'Base de données'!$A17,'Base de données'!$L17)," ") ->  | L24: =IF($AB$9='Base de données'!$A17,LOOKUP($AB$9,'Base de données'!$A17,'Base de données'!$M17)," ") ->  | M24: =IF($AB$9='Base de données'!$A17,LOOKUP($AB$9,'Base de données'!$A17,'Base de données'!$N17)," ") ->  | N24: =IF($AB$9='Base de données'!$A17,LOOKUP($AB$9,'Base de données'!$A17,'Base de données'!$O17)," ") ->  | W24: ='Base de données'!AE17 -> 35° Championnat de Hollande ANPV 2005 (NL) | X24: =IF($W24=Visualisateur!$U$60,'Base de données'!$U$63,'Base de données'!$U$64) -> OK | Z24: 35° Championnat de Hollande ANPV 2005 (NL)
A25: =IF($AB$9='Base de données'!$A18,LOOKUP($AB$9,'Base de données'!$A18,'Base de données'!$B18)," ") ->  | B25: =IF($AB$9='Base de données'!$A18,LOOKUP($AB$9,'Base de données'!$A18,'Base de données'!$C18)," ") ->  | C25: =IF($AB$9='Base de données'!$A18,LOOKUP($AB$9,'Base de données'!$A18,'Base de données'!$D18)," ") ->  | D25: =IF($AB$9='Base de données'!$A18,LOOKUP($AB$9,'Base de données'!$A18,'Base de données'!$E18)," ") ->  | E25: =IF($AB$9='Base de données'!$A18,LOOKUP($AB$9,'Base de données'!$A18,'Base de données'!$F18)," ") ->  | F25: =IF($AB$9='Base de données'!$A18,LOOKUP($AB$9,'Base de données'!$A18,'Base de données'!$G18)," ") ->  | G25: =IF($AB$9='Base de données'!$A18,LOOKUP($AB$9,'Base de données'!$A18,'Base de données'!$H18)," ") ->  | H25: =IF($AB$9='Base de données'!$A18,LOOKUP($AB$9,'Base de données'!$A18,'Base de données'!$I18)," ") ->  | I25: =IF($AB$9='Base de données'!$A18,LOOKUP($AB$9,'Base de données'!$A18,'Base de données'!$J18)," ") ->  | J25: =IF($AB$9='Base de données'!$A18,LOOKUP($AB$9,'Base de données'!$A18,'Base de données'!$K18)," ") ->  | K25: =IF($AB$9='Base de données'!$A18,LOOKUP($AB$9,'Base de données'!$A18,'Base de données'!$L18)," ") ->  | L25: =IF($AB$9='Base de données'!$A18,LOOKUP($AB$9,'Base de données'!$A18,'Base de données'!$M18)," ") ->  | M25: =IF($AB$9='Base de données'!$A18,LOOKUP($AB$9,'Base de données'!$A18,'Base de données'!$N18)," ") ->  | N25: =IF($AB$9='Base de données'!$A18,LOOKUP($AB$9,'Base de données'!$A18,'Base de données'!$O18)," ") ->  | W25: ='Base de données'!AE18 -> Championnat de France UOF St-Gilles C/V 2004 (F) | X25: =IF($W25=Visualisateur!$U$60,'Base de données'!$U$63,'Base de données'!$U$64) -> OK | Z25: Championnat de France UOF St-Gilles C/V 2004 (F)
A26: =IF($AB$9='Base de données'!$A19,LOOKUP($AB$9,'Base de données'!$A19,'Base de données'!$B19)," ") ->  | B26: =IF($AB$9='Base de données'!$A19,LOOKUP($AB$9,'Base de données'!$A19,'Base de données'!$C19)," ") ->  | C26: =IF($AB$9='Base de données'!$A19,LOOKUP($AB$9,'Base de données'!$A19,'Base de données'!$D19)," ") ->  | D26: =IF($AB$9='Base de données'!$A19,LOOKUP($AB$9,'Base de données'!$A19,'Base de données'!$E19)," ") ->  | E26: =IF($AB$9='Base de données'!$A19,LOOKUP($AB$9,'Base de données'!$A19,'Base de données'!$F19)," ") ->  | F26: =IF($AB$9='Base de données'!$A19,LOOKUP($AB$9,'Base de données'!$A19,'Base de données'!$G19)," ") ->  | G26: =IF($AB$9='Base de données'!$A19,LOOKUP($AB$9,'Base de données'!$A19,'Base de données'!$H19)," ") ->  | H26: =IF($AB$9='Base de données'!$A19,LOOKUP($AB$9,'Base de données'!$A19,'Base de données'!$I19)," ") ->  | I26: =IF($AB$9='Base de données'!$A19,LOOKUP($AB$9,'Base de données'!$A19,'Base de données'!$J19)," ") ->  | J26: =IF($AB$9='Base de données'!$A19,LOOKUP($AB$9,'Base de données'!$A19,'Base de données'!$K19)," ") ->  | K26: =IF($AB$9='Base de données'!$A19,LOOKUP($AB$9,'Base de données'!$A19,'Base de données'!$L19)," ") ->  | L26: =IF($AB$9='Base de données'!$A19,LOOKUP($AB$9,'Base de données'!$A19,'Base de données'!$M19)," ") ->  | M26: =IF($AB$9='Base de données'!$A19,LOOKUP($AB$9,'Base de données'!$A19,'Base de données'!$N19)," ") ->  | N26: =IF($AB$9='Base de données'!$A19,LOOKUP($AB$9,'Base de données'!$A19,'Base de données'!$O19)," ") ->  | W26: ='Base de données'!AE19 -> 32° Champ. de Suisse Indiv. PARUS Berne 2005 (CH) | X26: =IF($W26=Visualisateur!$U$60,'Base de données'!$U$63,'Base de données'!$U$64) -> OK | Z26: 32° Champ. de Suisse Indiv. PARUS Berne 2005 (CH)
A27: =IF($AB$9='Base de données'!$A20,LOOKUP($AB$9,'Base de données'!$A20,'Base de données'!$B20)," ") ->  | B27: =IF($AB$9='Base de données'!$A20,LOOKUP($AB$9,'Base de données'!$A20,'Base de données'!$C20)," ") ->  | C27: =IF($AB$9='Base de données'!$A20,LOOKUP($AB$9,'Base de données'!$A20,'Base de données'!$D20)," ") ->  | D27: =IF($AB$9='Base de données'!$A20,LOOKUP($AB$9,'Base de données'!$A20,'Base de données'!$E20)," ") ->  | E27: =IF($AB$9='Base de données'!$A20,LOOKUP($AB$9,'Base de données'!$A20,'Base de données'!$F20)," ") ->  | F27: =IF($AB$9='Base de données'!$A20,LOOKUP($AB$9,'Base de données'!$A20,'Base de données'!$G20)," ") ->  | G27: =IF($AB$9='Base de données'!$A20,LOOKUP($AB$9,'Base de données'!$A20,'Base de données'!$H20)," ") ->  | H27: =IF($AB$9='Base de données'!$A20,LOOKUP($AB$9,'Base de données'!$A20,'Base de données'!$I20)," ") ->  | I27: =IF($AB$9='Base de données'!$A20,LOOKUP($AB$9,'Base de données'!$A20,'Base de données'!$J20)," ") ->  | J27: =IF($AB$9='Base de données'!$A20,LOOKUP($AB$9,'Base de données'!$A20,'Base de données'!$K20)," ") ->  | K27: =IF($AB$9='Base de données'!$A20,LOOKUP($AB$9,'Base de données'!$A20,'Base de données'!$L20)," ") ->  | L27: =IF($AB$9='Base de données'!$A20,LOOKUP($AB$9,'Base de données'!$A20,'Base de données'!$M20)," ") ->  | M27: =IF($AB$9='Base de données'!$A20,LOOKUP($AB$9,'Base de données'!$A20,'Base de données'!$N20)," ") ->  | N27: =IF($AB$9='Base de données'!$A20,LOOKUP($AB$9,'Base de données'!$A20,'Base de données'!$O20)," ") ->  | W27: ='Base de données'!AE20 -> Championnat de France FFO Niort 2005 (F) | X27: =IF($W27=Visualisateur!$U$60,'Base de données'!$U$63,'Base de données'!$U$64) -> OK | Z27: Championnat de France FFO Niort 2005 (F)
A28: =IF($AB$9='Base de données'!$A21,LOOKUP($AB$9,'Base de données'!$A21,'Base de données'!$B21)," ") ->  | B28: =IF($AB$9='Base de données'!$A21,LOOKUP($AB$9,'Base de données'!$A21,'Base de données'!$C21)," ") ->  | C28: =IF($AB$9='Base de données'!$A21,LOOKUP($AB$9,'Base de données'!$A21,'Base de données'!$D21)," ") ->  | D28: =IF($AB$9='Base de données'!$A21,LOOKUP($AB$9,'Base de données'!$A21,'Base de données'!$E21)," ") ->  | E28: =IF($AB$9='Base de données'!$A21,LOOKUP($AB$9,'Base de données'!$A21,'Base de données'!$F21)," ") ->  | F28: =IF($AB$9='Base de données'!$A21,LOOKUP($AB$9,'Base de données'!$A21,'Base de données'!$G21)," ") ->  | G28: =IF($AB$9='Base de données'!$A21,LOOKUP($AB$9,'Base de données'!$A21,'Base de données'!$H21)," ") ->  | H28: =IF($AB$9='Base de données'!$A21,LOOKUP($AB$9,'Base de données'!$A21,'Base de données'!$I21)," ") ->  | I28: =IF($AB$9='Base de données'!$A21,LOOKUP($AB$9,'Base de données'!$A21,'Base de données'!$J21)," ") ->  | J28: =IF($AB$9='Base de données'!$A21,LOOKUP($AB$9,'Base de données'!$A21,'Base de données'!$K21)," ") ->  | K28: =IF($AB$9='Base de données'!$A21,LOOKUP($AB$9,'Base de données'!$A21,'Base de données'!$L21)," ") ->  | L28: =IF($AB$9='Base de données'!$A21,LOOKUP($AB$9,'Base de données'!$A21,'Base de données'!$M21)," ") ->  | M28: =IF($AB$9='Base de données'!$A21,LOOKUP($AB$9,'Base de données'!$A21,'Base de données'!$N21)," ") ->  | N28: =IF($AB$9='Base de données'!$A21,LOOKUP($AB$9,'Base de données'!$A21,'Base de données'!$O21)," ") ->  | W28: ='Base de données'!AE21 -> Championnat de France UOF Noyelles s/Lens 2006 (F) | X28: =IF($W28=Visualisateur!$U$60,'Base de données'!$U$63,'Base de données'!$U$64) -> OK | Z28: Championnat de France UOF Noyelles s/Lens 2006 (F)
A29: =IF($AB$9='Base de données'!$A22,LOOKUP($AB$9,'Base de données'!$A22,'Base de données'!$B22)," ") ->  | B29: =IF($AB$9='Base de données'!$A22,LOOKUP($AB$9,'Base de données'!$A22,'Base de données'!$C22)," ") ->  | C29: =IF($AB$9='Base de données'!$A22,LOOKUP($AB$9,'Base de données'!$A22,'Base de données'!$D22)," ") ->  | D29: =IF($AB$9='Base de données'!$A22,LOOKUP($AB$9,'Base de données'!$A22,'Base de données'!$E22)," ") ->  | E29: =IF($AB$9='Base de données'!$A22,LOOKUP($AB$9,'Base de données'!$A22,'Base de données'!$F22)," ") ->  | F29: =IF($AB$9='Base de données'!$A22,LOOKUP($AB$9,'Base de données'!$A22,'Base de données'!$G22)," ") ->  | G29: =IF($AB$9='Base de données'!$A22,LOOKUP($AB$9,'Base de données'!$A22,'Base de données'!$H22)," ") ->  | H29: =IF($AB$9='Base de données'!$A22,LOOKUP($AB$9,'Base de données'!$A22,'Base de données'!$I22)," ") ->  | I29: =IF($AB$9='Base de données'!$A22,LOOKUP($AB$9,'Base de données'!$A22,'Base de données'!$J22)," ") ->  | J29: =IF($AB$9='Base de données'!$A22,LOOKUP($AB$9,'Base de données'!$A22,'Base de données'!$K22)," ") ->  | K29: =IF($AB$9='Base de données'!$A22,LOOKUP($AB$9,'Base de données'!$A22,'Base de données'!$L22)," ") ->  | L29: =IF($AB$9='Base de données'!$A22,LOOKUP($AB$9,'Base de données'!$A22,'Base de données'!$M22)," ") ->  | M29: =IF($AB$9='Base de données'!$A22,LOOKUP($AB$9,'Base de données'!$A22,'Base de données'!$N22)," ") ->  | N29: =IF($AB$9='Base de données'!$A22,LOOKUP($AB$9,'Base de données'!$A22,'Base de données'!$O22)," ") ->  | W29: ='Base de données'!AE22 -> Championnat de Belgique AOB Ath 2006 (B) | X29: =IF($W29=Visualisateur!$U$60,'Base de données'!$U$63,'Base de données'!$U$64) -> OK | Z29: Championnat de Belgique AOB Ath 2006 (B)
A30: =IF($AB$9='Base de données'!$A23,LOOKUP($AB$9,'Base de données'!$A23,'Base de données'!$B23)," ") ->  | B30: =IF($AB$9='Base de données'!$A23,LOOKUP($AB$9,'Base de données'!$A23,'Base de données'!$C23)," ") ->  | C30: =IF($AB$9='Base de données'!$A23,LOOKUP($AB$9,'Base de données'!$A23,'Base de données'!$D23)," ") ->  | D30: =IF($AB$9='Base de données'!$A23,LOOKUP($AB$9,'Base de données'!$A23,'Base de données'!$E23)," ") ->  | E30: =IF($AB$9='Base de données'!$A23,LOOKUP($AB$9,'Base de données'!$A23,'Base de données'!$F23)," ") ->  | F30: =IF($AB$9='Base de données'!$A23,LOOKUP($AB$9,'Base de données'!$A23,'Base de données'!$G23)," ") ->  | G30: =IF($AB$9='Base de données'!$A23,LOOKUP($AB$9,'Base de données'!$A23,'Base de données'!$H23)," ") ->  | H30: =IF($AB$9='Base de données'!$A23,LOOKUP($AB$9,'Base de données'!$A23,'Base de données'!$I23)," ") ->  | I30: =IF($AB$9='Base de données'!$A23,LOOKUP($AB$9,'Base de données'!$A23,'Base de données'!$J23)," ") ->  | J30: =IF($AB$9='Base de données'!$A23,LOOKUP($AB$9,'Base de données'!$A23,'Base de données'!$K23)," ") ->  | K30: =IF($AB$9='Base de données'!$A23,LOOKUP($AB$9,'Base de données'!$A23,'Base de données'!$L23)," ") ->  | L30: =IF($AB$9='Base de données'!$A23,LOOKUP($AB$9,'Base de données'!$A23,'Base de données'!$M23)," ") ->  | M30: =IF($AB$9='Base de données'!$A23,LOOKUP($AB$9,'Base de données'!$A23,'Base de données'!$N23)," ") ->  | N30: =IF($AB$9='Base de données'!$A23,LOOKUP($AB$9,'Base de données'!$A23,'Base de données'!$O23)," ") ->  | W30: ='Base de données'!AE23 -> 42° Exposition B.P.C. Liège 2004 Alleur (B) | X30: =IF($W30=Visualisateur!$U$60,'Base de données'!$U$63,'Base de données'!$U$64) -> OK | Z30: 42° Exposition B.P.C. Liège 2004 Alleur (B)
A31: =IF($AB$9='Base de données'!$A24,LOOKUP($AB$9,'Base de données'!$A24,'Base de données'!$B24)," ") ->  | B31: =IF($AB$9='Base de données'!$A24,LOOKUP($AB$9,'Base de données'!$A24,'Base de données'!$C24)," ") ->  | C31: =IF($AB$9='Base de données'!$A24,LOOKUP($AB$9,'Base de données'!$A24,'Base de données'!$D24)," ") ->  | D31: =IF($AB$9='Base de données'!$A24,LOOKUP($AB$9,'Base de données'!$A24,'Base de données'!$E24)," ") ->  | E31: =IF($AB$9='Base de données'!$A24,LOOKUP($AB$9,'Base de données'!$A24,'Base de données'!$F24)," ") ->  | F31: =IF($AB$9='Base de données'!$A24,LOOKUP($AB$9,'Base de données'!$A24,'Base de données'!$G24)," ") ->  | G31: =IF($AB$9='Base de données'!$A24,LOOKUP($AB$9,'Base de données'!$A24,'Base de données'!$H24)," ") ->  | H31: =IF($AB$9='Base de données'!$A24,LOOKUP($AB$9,'Base de données'!$A24,'Base de données'!$I24)," ") ->  | I31: =IF($AB$9='Base de données'!$A24,LOOKUP($AB$9,'Base de données'!$A24,'Base de données'!$J24)," ") ->  | J31: =IF($AB$9='Base de données'!$A24,LOOKUP($AB$9,'Base de données'!$A24,'Base de données'!$K24)," ") ->  | K31: =IF($AB$9='Base de données'!$A24,LOOKUP($AB$9,'Base de données'!$A24,'Base de données'!$L24)," ") ->  | L31: =IF($AB$9='Base de données'!$A24,LOOKUP($AB$9,'Base de données'!$A24,'Base de données'!$M24)," ") ->  | M31: =IF($AB$9='Base de données'!$A24,LOOKUP($AB$9,'Base de données'!$A24,'Base de données'!$N24)," ") ->  | N31: =IF($AB$9='Base de données'!$A24,LOOKUP($AB$9,'Base de données'!$A24,'Base de données'!$O24)," ") ->  | W31: ='Base de données'!AE24 -> 52° Champ. du Brésil FOB 2003 Florianópolis (Br) | X31: =IF($W31=Visualisateur!$U$60,'Base de données'!$U$63,'Base de données'!$U$64) -> OK | Z31: 52° Champ. du Brésil FOB 2003 Florianópolis (Br)
A32: =IF($AB$9='Base de données'!$A25,LOOKUP($AB$9,'Base de données'!$A25,'Base de données'!$B25)," ") ->  | B32: =IF($AB$9='Base de données'!$A25,LOOKUP($AB$9,'Base de données'!$A25,'Base de données'!$C25)," ") ->  | C32: =IF($AB$9='Base de données'!$A25,LOOKUP($AB$9,'Base de données'!$A25,'Base de données'!$D25)," ") ->  | D32: =IF($AB$9='Base de données'!$A25,LOOKUP($AB$9,'Base de données'!$A25,'Base de données'!$E25)," ") ->  | E32: =IF($AB$9='Base de données'!$A25,LOOKUP($AB$9,'Base de données'!$A25,'Base de données'!$F25)," ") ->  | F32: =IF($AB$9='Base de données'!$A25,LOOKUP($AB$9,'Base de données'!$A25,'Base de données'!$G25)," ") ->  | G32: =IF($AB$9='Base de données'!$A25,LOOKUP($AB$9,'Base de données'!$A25,'Base de données'!$H25)," ") ->  | H32: =IF($AB$9='Base de données'!$A25,LOOKUP($AB$9,'Base de données'!$A25,'Base de données'!$I25)," ") ->  | I32: =IF($AB$9='Base de données'!$A25,LOOKUP($AB$9,'Base de données'!$A25,'Base de données'!$J25)," ") ->  | J32: =IF($AB$9='Base de données'!$A25,LOOKUP($AB$9,'Base de données'!$A25,'Base de données'!$K25)," ") ->  | K32: =IF($AB$9='Base de données'!$A25,LOOKUP($AB$9,'Base de données'!$A25,'Base de données'!$L25)," ") ->  | L32: =IF($AB$9='Base de données'!$A25,LOOKUP($AB$9,'Base de données'!$A25,'Base de données'!$M25)," ") ->  | M32: =IF($AB$9='Base de données'!$A25,LOOKUP($AB$9,'Base de données'!$A25,'Base de données'!$N25)," ") ->  | N32: =IF($AB$9='Base de données'!$A25,LOOKUP($AB$9,'Base de données'!$A25,'Base de données'!$O25)," ") ->  | W32: ='Base de données'!AE25 -> 53° Champ. du Brésil FOB 2004 Ribeirão Prêto (BR) | X32: =IF($W32=Visualisateur!$U$60,'Base de données'!$U$63,'Base de données'!$U$64) -> OK | Z32: 53° Champ. du Brésil FOB 2004 Ribeirão Prêto (BR)
A33: =IF($AB$9='Base de données'!$A26,LOOKUP($AB$9,'Base de données'!$A26,'Base de données'!$B26)," ") ->  | B33: =IF($AB$9='Base de données'!$A26,LOOKUP($AB$9,'Base de données'!$A26,'Base de données'!$C26)," ") ->  | C33: =IF($AB$9='Base de données'!$A26,LOOKUP($AB$9,'Base de données'!$A26,'Base de données'!$D26)," ") ->  | D33: =IF($AB$9='Base de données'!$A26,LOOKUP($AB$9,'Base de données'!$A26,'Base de données'!$E26)," ") ->  | E33: =IF($AB$9='Base de données'!$A26,LOOKUP($AB$9,'Base de données'!$A26,'Base de données'!$F26)," ") ->  | F33: =IF($AB$9='Base de données'!$A26,LOOKUP($AB$9,'Base de données'!$A26,'Base de données'!$G26)," ") ->  | G33: =IF($AB$9='Base de données'!$A26,LOOKUP($AB$9,'Base de données'!$A26,'Base de données'!$H26)," ") ->  | H33: =IF($AB$9='Base de données'!$A26,LOOKUP($AB$9,'Base de données'!$A26,'Base de données'!$I26)," ") ->  | I33: =IF($AB$9='Base de données'!$A26,LOOKUP($AB$9,'Base de données'!$A26,'Base de données'!$J26)," ") ->  | J33: =IF($AB$9='Base de données'!$A26,LOOKUP($AB$9,'Base de données'!$A26,'Base de données'!$K26)," ") ->  | K33: =IF($AB$9='Base de données'!$A26,LOOKUP($AB$9,'Base de données'!$A26,'Base de données'!$L26)," ") ->  | L33: =IF($AB$9='Base de données'!$A26,LOOKUP($AB$9,'Base de données'!$A26,'Base de données'!$M26)," ") ->  | M33: =IF($AB$9='Base de données'!$A26,LOOKUP($AB$9,'Base de données'!$A26,'Base de données'!$N26)," ") ->  | N33: =IF($AB$9='Base de données'!$A26,LOOKUP($AB$9,'Base de données'!$A26,'Base de données'!$O26)," ") ->  | W33: ='Base de données'!AE26 -> 54° Champ. du Brésil FOB 2005 Itatiba (BR) | X33: =IF($W33=Visualisateur!$U$60,'Base de données'!$U$63,'Base de données'!$U$64) -> OK | Z33: 54° Champ. du Brésil FOB 2005 Itatiba (BR)
A34: =IF($AB$9='Base de données'!$A27,LOOKUP($AB$9,'Base de données'!$A27,'Base de données'!$B27)," ") ->  | B34: =IF($AB$9='Base de données'!$A27,LOOKUP($AB$9,'Base de données'!$A27,'Base de données'!$C27)," ") ->  | C34: =IF($AB$9='Base de données'!$A27,LOOKUP($AB$9,'Base de données'!$A27,'Base de données'!$D27)," ") ->  | D34: =IF($AB$9='Base de données'!$A27,LOOKUP($AB$9,'Base de données'!$A27,'Base de données'!$E27)," ") ->  | E34: =IF($AB$9='Base de données'!$A27,LOOKUP($AB$9,'Base de données'!$A27,'Base de données'!$F27)," ") ->  | F34: =IF($AB$9='Base de données'!$A27,LOOKUP($AB$9,'Base de données'!$A27,'Base de données'!$G27)," ") ->  | G34: =IF($AB$9='Base de données'!$A27,LOOKUP($AB$9,'Base de données'!$A27,'Base de données'!$H27)," ") ->  | H34: =IF($AB$9='Base de données'!$A27,LOOKUP($AB$9,'Base de données'!$A27,'Base de données'!$I27)," ") ->  | I34: =IF($AB$9='Base de données'!$A27,LOOKUP($AB$9,'Base de données'!$A27,'Base de données'!$J27)," ") ->  | J34: =IF($AB$9='Base de données'!$A27,LOOKUP($AB$9,'Base de données'!$A27,'Base de données'!$K27)," ") ->  | K34: =IF($AB$9='Base de données'!$A27,LOOKUP($AB$9,'Base de données'!$A27,'Base de données'!$L27)," ") ->  | L34: =IF($AB$9='Base de données'!$A27,LOOKUP($AB$9,'Base de données'!$A27,'Base de données'!$M27)," ") ->  | M34: =IF($AB$9='Base de données'!$A27,LOOKUP($AB$9,'Base de données'!$A27,'Base de données'!$N27)," ") ->  | N34: =IF($AB$9='Base de données'!$A27,LOOKUP($AB$9,'Base de données'!$A27,'Base de données'!$O27)," ") ->  | W34: ='Base de données'!AE27 -> 55° Champ. du Brésil FOB 2006 (BR) | X34: =IF($W34=Visualisateur!$U$60,'Base de données'!$U$63,'Base de données'!$U$64) -> OK | Z34: 55° Champ. du Brésil FOB 2006 (BR)
A35: =IF($AB$9='Base de données'!$A28,LOOKUP($AB$9,'Base de données'!$A28,'Base de données'!$B28)," ") ->  | B35: =IF($AB$9='Base de données'!$A28,LOOKUP($AB$9,'Base de données'!$A28,'Base de données'!$C28)," ") ->  | C35: =IF($AB$9='Base de données'!$A28,LOOKUP($AB$9,'Base de données'!$A28,'Base de données'!$D28)," ") ->  | D35: =IF($AB$9='Base de données'!$A28,LOOKUP($AB$9,'Base de données'!$A28,'Base de données'!$E28)," ") ->  | E35: =IF($AB$9='Base de données'!$A28,LOOKUP($AB$9,'Base de données'!$A28,'Base de données'!$F28)," ") ->  | F35: =IF($AB$9='Base de données'!$A28,LOOKUP($AB$9,'Base de données'!$A28,'Base de données'!$G28)," ") ->  | G35: =IF($AB$9='Base de données'!$A28,LOOKUP($AB$9,'Base de données'!$A28,'Base de données'!$H28)," ") ->  | H35: =IF($AB$9='Base de données'!$A28,LOOKUP($AB$9,'Base de données'!$A28,'Base de données'!$I28)," ") ->  | I35: =IF($AB$9='Base de données'!$A28,LOOKUP($AB$9,'Base de données'!$A28,'Base de données'!$J28)," ") ->  | J35: =IF($AB$9='Base de données'!$A28,LOOKUP($AB$9,'Base de données'!$A28,'Base de données'!$K28)," ") ->  | K35: =IF($AB$9='Base de données'!$A28,LOOKUP($AB$9,'Base de données'!$A28,'Base de données'!$L28)," ") ->  | L35: =IF($AB$9='Base de données'!$A28,LOOKUP($AB$9,'Base de données'!$A28,'Base de données'!$M28)," ") ->  | M35: =IF($AB$9='Base de données'!$A28,LOOKUP($AB$9,'Base de données'!$A28,'Base de données'!$N28)," ") ->  | N35: =IF($AB$9='Base de données'!$A28,LOOKUP($AB$9,'Base de données'!$A28,'Base de données'!$O28)," ") ->  | W35: ='Base de données'!AE28 -> 59° Champ. d'Allemagne DKB 2006 Bayreuth (D) | X35: =IF($W35=Visualisateur!$U$60,'Base de données'!$U$63,'Base de données'!$U$64) -> OK | Z35: 59° Champ. d'Allemagne DKB 2006 Bayreuth (D)
A36: =IF($AB$9='Base de données'!$A29,LOOKUP($AB$9,'Base de données'!$A29,'Base de données'!$B29)," ") ->  | B36: =IF($AB$9='Base de données'!$A29,LOOKUP($AB$9,'Base de données'!$A29,'Base de données'!$C29)," ") ->  | C36: =IF($AB$9='Base de données'!$A29,LOOKUP($AB$9,'Base de données'!$A29,'Base de données'!$D29)," ") ->  | D36: =IF($AB$9='Base de données'!$A29,LOOKUP($AB$9,'Base de données'!$A29,'Base de données'!$E29)," ") ->  | E36: =IF($AB$9='Base de données'!$A29,LOOKUP($AB$9,'Base de données'!$A29,'Base de données'!$F29)," ") ->  | F36: =IF($AB$9='Base de données'!$A29,LOOKUP($AB$9,'Base de données'!$A29,'Base de données'!$G29)," ") ->  | G36: =IF($AB$9='Base de données'!$A29,LOOKUP($AB$9,'Base de données'!$A29,'Base de données'!$H29)," ") ->  | H36: =IF($AB$9='Base de données'!$A29,LOOKUP($AB$9,'Base de données'!$A29,'Base de données'!$I29)," ") ->  | I36: =IF($AB$9='Base de données'!$A29,LOOKUP($AB$9,'Base de données'!$A29,'Base de données'!$J29)," ") ->  | J36: =IF($AB$9='Base de données'!$A29,LOOKUP($AB$9,'Base de données'!$A29,'Base de données'!$K29)," ") ->  | K36: =IF($AB$9='Base de données'!$A29,LOOKUP($AB$9,'Base de données'!$A29,'Base de données'!$L29)," ") ->  | L36: =IF($AB$9='Base de données'!$A29,LOOKUP($AB$9,'Base de données'!$A29,'Base de données'!$M29)," ") ->  | M36: =IF($AB$9='Base de données'!$A29,LOOKUP($AB$9,'Base de données'!$A29,'Base de données'!$N29)," ") ->  | N36: =IF($AB$9='Base de données'!$A29,LOOKUP($AB$9,'Base de données'!$A29,'Base de données'!$O29)," ") ->  | W36: ='Base de données'!AE29 -> 94° Champ. de Suisse STAM PARUS 2003 Burgdorf (CH) | X36: =IF($W36=Visualisateur!$U$60,'Base de données'!$U$63,'Base de données'!$U$64) -> OK | Z36: 94° Champ. de Suisse STAM PARUS 2003 Burgdorf (CH)
A37: =IF($AB$9='Base de données'!$A30,LOOKUP($AB$9,'Base de données'!$A30,'Base de données'!$B30)," ") ->  | B37: =IF($AB$9='Base de données'!$A30,LOOKUP($AB$9,'Base de données'!$A30,'Base de données'!$C30)," ") ->  | C37: =IF($AB$9='Base de données'!$A30,LOOKUP($AB$9,'Base de données'!$A30,'Base de données'!$D30)," ") ->  | D37: =IF($AB$9='Base de données'!$A30,LOOKUP($AB$9,'Base de données'!$A30,'Base de données'!$E30)," ") ->  | E37: =IF($AB$9='Base de données'!$A30,LOOKUP($AB$9,'Base de données'!$A30,'Base de données'!$F30)," ") ->  | F37: =IF($AB$9='Base de données'!$A30,LOOKUP($AB$9,'Base de données'!$A30,'Base de données'!$G30)," ") ->  | G37: =IF($AB$9='Base de données'!$A30,LOOKUP($AB$9,'Base de données'!$A30,'Base de données'!$H30)," ") ->  | H37: =IF($AB$9='Base de données'!$A30,LOOKUP($AB$9,'Base de données'!$A30,'Base de données'!$I30)," ") ->  | I37: =IF($AB$9='Base de données'!$A30,LOOKUP($AB$9,'Base de données'!$A30,'Base de données'!$J30)," ") ->  | J37: =IF($AB$9='Base de données'!$A30,LOOKUP($AB$9,'Base de données'!$A30,'Base de données'!$K30)," ") ->  | K37: =IF($AB$9='Base de données'!$A30,LOOKUP($AB$9,'Base de données'!$A30,'Base de données'!$L30)," ") ->  | L37: =IF($AB$9='Base de données'!$A30,LOOKUP($AB$9,'Base de données'!$A30,'Base de données'!$M30)," ") ->  | M37: =IF($AB$9='Base de données'!$A30,LOOKUP($AB$9,'Base de données'!$A30,'Base de données'!$N30)," ") ->  | N37: =IF($AB$9='Base de données'!$A30,LOOKUP($AB$9,'Base de données'!$A30,'Base de données'!$O30)," ") ->  | W37: ='Base de données'!AE30 -> 95° Champ. de Suisse STAM PARUS 2004 Giubiasco (CH) | X37: =IF($W37=Visualisateur!$U$60,'Base de données'!$U$63,'Base de données'!$U$64) -> OK | Z37: 95° Champ. de Suisse STAM PARUS 2004 Giubiasco (CH)
A38: =IF($AB$9='Base de données'!$A31,LOOKUP($AB$9,'Base de données'!$A31,'Base de données'!$B31)," ") ->  | B38: =IF($AB$9='Base de données'!$A31,LOOKUP($AB$9,'Base de données'!$A31,'Base de données'!$C31)," ") ->  | C38: =IF($AB$9='Base de données'!$A31,LOOKUP($AB$9,'Base de données'!$A31,'Base de données'!$D31)," ") ->  | D38: =IF($AB$9='Base de données'!$A31,LOOKUP($AB$9,'Base de données'!$A31,'Base de données'!$E31)," ") ->  | E38: =IF($AB$9='Base de données'!$A31,LOOKUP($AB$9,'Base de données'!$A31,'Base de données'!$F31)," ") ->  | F38: =IF($AB$9='Base de données'!$A31,LOOKUP($AB$9,'Base de données'!$A31,'Base de données'!$G31)," ") ->  | G38: =IF($AB$9='Base de données'!$A31,LOOKUP($AB$9,'Base de données'!$A31,'Base de données'!$H31)," ") ->  | H38: =IF($AB$9='Base de données'!$A31,LOOKUP($AB$9,'Base de données'!$A31,'Base de données'!$I31)," ") ->  | I38: =IF($AB$9='Base de données'!$A31,LOOKUP($AB$9,'Base de données'!$A31,'Base de données'!$J31)," ") ->  | J38: =IF($AB$9='Base de données'!$A31,LOOKUP($AB$9,'Base de données'!$A31,'Base de données'!$K31)," ") ->  | K38: =IF($AB$9='Base de données'!$A31,LOOKUP($AB$9,'Base de données'!$A31,'Base de données'!$L31)," ") ->  | L38: =IF($AB$9='Base de données'!$A31,LOOKUP($AB$9,'Base de données'!$A31,'Base de données'!$M31)," ") ->  | M38: =IF($AB$9='Base de données'!$A31,LOOKUP($AB$9,'Base de données'!$A31,'Base de données'!$N31)," ") ->  | N38: =IF($AB$9='Base de données'!$A31,LOOKUP($AB$9,'Base de données'!$A31,'Base de données'!$O31)," ") ->  | W38: ='Base de données'!AE31 -> 96° Champ. de Suisse STAM PARUS 2005 Brig (CH) | X38: =IF($W38=Visualisateur!$U$60,'Base de données'!$U$63,'Base de données'!$U$64) -> OK | Z38: 96° Champ. de Suisse STAM PARUS 2005 Brig (CH)
A39: =IF($AB$9='Base de données'!$A32,LOOKUP($AB$9,'Base de données'!$A32,'Base de données'!$B32)," ") ->  | B39: =IF($AB$9='Base de données'!$A32,LOOKUP($AB$9,'Base de données'!$A32,'Base de données'!$C32)," ") ->  | C39: =IF($AB$9='Base de données'!$A32,LOOKUP($AB$9,'Base de données'!$A32,'Base de données'!$D32)," ") ->  | D39: =IF($AB$9='Base de données'!$A32,LOOKUP($AB$9,'Base de données'!$A32,'Base de données'!$E32)," ") ->  | E39: =IF($AB$9='Base de données'!$A32,LOOKUP($AB$9,'Base de données'!$A32,'Base de données'!$F32)," ") ->  | F39: =IF($AB$9='Base de données'!$A32,LOOKUP($AB$9,'Base de données'!$A32,'Base de données'!$G32)," ") ->  | G39: =IF($AB$9='Base de données'!$A32,LOOKUP($AB$9,'Base de données'!$A32,'Base de données'!$H32)," ") ->  | H39: =IF($AB$9='Base de données'!$A32,LOOKUP($AB$9,'Base de données'!$A32,'Base de données'!$I32)," ") ->  | I39: =IF($AB$9='Base de données'!$A32,LOOKUP($AB$9,'Base de données'!$A32,'Base de données'!$J32)," ") ->  | J39: =IF($AB$9='Base de données'!$A32,LOOKUP($AB$9,'Base de données'!$A32,'Base de données'!$K32)," ") ->  | K39: =IF($AB$9='Base de données'!$A32,LOOKUP($AB$9,'Base de données'!$A32,'Base de données'!$L32)," ") ->  | L39: =IF($AB$9='Base de données'!$A32,LOOKUP($AB$9,'Base de données'!$A32,'Base de données'!$M32)," ") ->  | M39: =IF($AB$9='Base de données'!$A32,LOOKUP($AB$9,'Base de données'!$A32,'Base de données'!$N32)," ") ->  | N39: =IF($AB$9='Base de données'!$A32,LOOKUP($AB$9,'Base de données'!$A32,'Base de données'!$O32)," ") ->  | W39: ='Base de données'!AE32 -> 97° Champ. de Suisse STAM PARUS 2006 Fribourg (CH) | X39: =IF($W39=Visualisateur!$U$60,'Base de données'!$U$63,'Base de données'!$U$64) -> OK | Z39: 97° Champ. de Suisse STAM PARUS 2006 Fribourg (CH)
A40: =IF($AB$9='Base de données'!$A33,LOOKUP($AB$9,'Base de données'!$A33,'Base de données'!$B33)," ") ->  | B40: =IF($AB$9='Base de données'!$A33,LOOKUP($AB$9,'Base de données'!$A33,'Base de données'!$C33)," ") ->  | C40: =IF($AB$9='Base de données'!$A33,LOOKUP($AB$9,'Base de données'!$A33,'Base de données'!$D33)," ") ->  | D40: =IF($AB$9='Base de données'!$A33,LOOKUP($AB$9,'Base de données'!$A33,'Base de données'!$E33)," ") ->  | E40: =IF($AB$9='Base de données'!$A33,LOOKUP($AB$9,'Base de données'!$A33,'Base de données'!$F33)," ") ->  | F40: =IF($AB$9='Base de données'!$A33,LOOKUP($AB$9,'Base de données'!$A33,'Base de données'!$G33)," ") ->  | G40: =IF($AB$9='Base de données'!$A33,LOOKUP($AB$9,'Base de données'!$A33,'Base de données'!$H33)," ") ->  | H40: =IF($AB$9='Base de données'!$A33,LOOKUP($AB$9,'Base de données'!$A33,'Base de données'!$I33)," ") ->  | I40: =IF($AB$9='Base de données'!$A33,LOOKUP($AB$9,'Base de données'!$A33,'Base de données'!$J33)," ") ->  | J40: =IF($AB$9='Base de données'!$A33,LOOKUP($AB$9,'Base de données'!$A33,'Base de données'!$K33)," ") ->  | K40: =IF($AB$9='Base de données'!$A33,LOOKUP($AB$9,'Base de données'!$A33,'Base de données'!$L33)," ") ->  | L40: =IF($AB$9='Base de données'!$A33,LOOKUP($AB$9,'Base de données'!$A33,'Base de données'!$M33)," ") ->  | M40: =IF($AB$9='Base de données'!$A33,LOOKUP($AB$9,'Base de données'!$A33,'Base de données'!$N33)," ") ->  | N40: =IF($AB$9='Base de données'!$A33,LOOKUP($AB$9,'Base de données'!$A33,'Base de données'!$O33)," ") ->  | W40: ='Base de données'!AE33 -> 98° Champ. de Suisse STAM PARUS 2007 Gerlafingen (CH) | X40: =IF($W40=Visualisateur!$U$60,'Base de données'!$U$63,'Base de données'!$U$64) -> OK | Z40: 98° Champ. de Suisse STAM PARUS 2007 Gerlafingen (CH)
A41: =IF($AB$9='Base de données'!$A34,LOOKUP($AB$9,'Base de données'!$A34,'Base de données'!$B34)," ") -> 26-30/01/05 | B41: =IF($AB$9='Base de données'!$A34,LOOKUP($AB$9,'Base de données'!$A34,'Base de données'!$C34)," ") -> 2005 | C41: =IF($AB$9='Base de données'!$A34,LOOKUP($AB$9,'Base de données'!$A34,'Base de données'!$D34)," ") -> D37 | D41: =IF($AB$9='Base de données'!$A34,LOOKUP($AB$9,'Base de données'!$A34,'Base de données'!$E34)," ") -> STAM | E41: =IF($AB$9='Base de données'!$A34,LOOKUP($AB$9,'Base de données'!$A34,'Base de données'!$F34)," ") -> 6344A | F41: =IF($AB$9='Base de données'!$A34,LOOKUP($AB$9,'Base de données'!$A34,'Base de données'!$G34)," ") -> DELFINI Arturo | G41: =IF($AB$9='Base de données'!$A34,LOOKUP($AB$9,'Base de données'!$A34,'Base de données'!$H34)," ") -> - | H41: =IF($AB$9='Base de données'!$A34,LOOKUP($AB$9,'Base de données'!$A34,'Base de données'!$I34)," ") -> 001 | I41: =IF($AB$9='Base de données'!$A34,LOOKUP($AB$9,'Base de données'!$A34,'Base de données'!$J34)," ") -> CH | J41: =IF($AB$9='Base de données'!$A34,LOOKUP($AB$9,'Base de données'!$A34,'Base de données'!$K34)," ") -> TOUS | K41: =IF($AB$9='Base de données'!$A34,LOOKUP($AB$9,'Base de données'!$A34,'Base de données'!$L34)," ") -> 91 | L41: =IF($AB$9='Base de données'!$A34,LOOKUP($AB$9,'Base de données'!$A34,'Base de données'!$M34)," ") -> 3 | M41: =IF($AB$9='Base de données'!$A34,LOOKUP($AB$9,'Base de données'!$A34,'Base de données'!$N34)," ") -> 367 | N41: =IF($AB$9='Base de données'!$A34,LOOKUP($AB$9,'Base de données'!$A34,'Base de données'!$O34)," ") -> BZ | W41: ='Base de données'!AE34 -> 52° Mondial C.O.M. Lausanne 2004 (CH) | X41: =IF($W41=Visualisateur!$U$60,'Base de données'!$U$63,'Base de données'!$U$64) -> OK | Z41: 52° Mondial C.O.M. Lausanne 2004 (CH)
A42: =IF($AB$9='Base de données'!$A35,LOOKUP($AB$9,'Base de données'!$A35,'Base de données'!$B35)," ") -> 26-30/01/05 | B42: =IF($AB$9='Base de données'!$A35,LOOKUP($AB$9,'Base de données'!$A35,'Base de données'!$C35)," ") -> 2005 | C42: =IF($AB$9='Base de données'!$A35,LOOKUP($AB$9,'Base de données'!$A35,'Base de données'!$D35)," ") -> D37 | D42: =IF($AB$9='Base de données'!$A35,LOOKUP($AB$9,'Base de données'!$A35,'Base de données'!$E35)," ") -> STAM | E42: =IF($AB$9='Base de données'!$A35,LOOKUP($AB$9,'Base de données'!$A35,'Base de données'!$F35)," ") -> 6344B | F42: =IF($AB$9='Base de données'!$A35,LOOKUP($AB$9,'Base de données'!$A35,'Base de données'!$G35)," ") -> DELFINI Arturo | G42: =IF($AB$9='Base de données'!$A35,LOOKUP($AB$9,'Base de données'!$A35,'Base de données'!$H35)," ") -> - | H42: =IF($AB$9='Base de données'!$A35,LOOKUP($AB$9,'Base de données'!$A35,'Base de données'!$I35)," ") -> 026 | I42: =IF($AB$9='Base de données'!$A35,LOOKUP($AB$9,'Base de données'!$A35,'Base de données'!$J35)," ") -> CH | J42: =IF($AB$9='Base de données'!$A35,LOOKUP($AB$9,'Base de données'!$A35,'Base de données'!$K35)," ") -> TOUS | K42: =IF($AB$9='Base de données'!$A35,LOOKUP($AB$9,'Base de données'!$A35,'Base de données'!$L35)," ") -> 89 | L42: =IF($AB$9='Base de données'!$A35,LOOKUP($AB$9,'Base de données'!$A35,'Base de données'!$M35)," ") -> 3 | M42: =IF($AB$9='Base de données'!$A35,LOOKUP($AB$9,'Base de données'!$A35,'Base de données'!$N35)," ") -> 367 | N42: =IF($AB$9='Base de données'!$A35,LOOKUP($AB$9,'Base de données'!$A35,'Base de données'!$O35)," ") -> BZ | W42: ='Base de données'!AE35 -> 15° Championnat de France F.F.O. Rouen 2007 (F) | X42: =IF($W42=Visualisateur!$U$60,'Base de données'!$U$63,'Base de données'!$U$64) -> OK | Z42: 15° Championnat de France F.F.O. Rouen 2007 (F)
A43: =IF($AB$9='Base de données'!$A36,LOOKUP($AB$9,'Base de données'!$A36,'Base de données'!$B36)," ") -> 26-30/01/05 | B43: =IF($AB$9='Base de données'!$A36,LOOKUP($AB$9,'Base de données'!$A36,'Base de données'!$C36)," ") -> 2005 | C43: =IF($AB$9='Base de données'!$A36,LOOKUP($AB$9,'Base de données'!$A36,'Base de données'!$D36)," ") -> D37 | D43: =IF($AB$9='Base de données'!$A36,LOOKUP($AB$9,'Base de données'!$A36,'Base de données'!$E36)," ") -> STAM | E43: =IF($AB$9='Base de données'!$A36,LOOKUP($AB$9,'Base de données'!$A36,'Base de données'!$F36)," ") -> 6344C | F43: =IF($AB$9='Base de données'!$A36,LOOKUP($AB$9,'Base de données'!$A36,'Base de données'!$G36)," ") -> DELFINI Arturo | G43: =IF($AB$9='Base de données'!$A36,LOOKUP($AB$9,'Base de données'!$A36,'Base de données'!$H36)," ") -> - | H43: =IF($AB$9='Base de données'!$A36,LOOKUP($AB$9,'Base de données'!$A36,'Base de données'!$I36)," ") -> 024 | I43: =IF($AB$9='Base de données'!$A36,LOOKUP($AB$9,'Base de données'!$A36,'Base de données'!$J36)," ") -> CH | J43: =IF($AB$9='Base de données'!$A36,LOOKUP($AB$9,'Base de données'!$A36,'Base de données'!$K36)," ") -> TOUS | K43: =IF($AB$9='Base de données'!$A36,LOOKUP($AB$9,'Base de données'!$A36,'Base de données'!$L36)," ") -> 92 | L43: =IF($AB$9='Base de données'!$A36,LOOKUP($AB$9,'Base de données'!$A36,'Base de données'!$M36)," ") -> 3 | M43: =IF($AB$9='Base de données'!$A36,LOOKUP($AB$9,'Base de données'!$A36,'Base de données'!$N36)," ") -> 367 | N43: =IF($AB$9='Base de données'!$A36,LOOKUP($AB$9,'Base de données'!$A36,'Base de données'!$O36)," ") -> BZ | W43: ='Base de données'!AE36 -> Championnat de Belgique AOB Ath 2007 (B) | X43: =IF($W43=Visualisateur!$U$60,'Base de données'!$U$63,'Base de données'!$U$64) -> OK | Z43: Championnat de Belgique AOB Ath 2007 (B)
A44: =IF($AB$9='Base de données'!$A37,LOOKUP($AB$9,'Base de données'!$A37,'Base de données'!$B37)," ") -> 26-30/01/05 | B44: =IF($AB$9='Base de données'!$A37,LOOKUP($AB$9,'Base de données'!$A37,'Base de données'!$C37)," ") -> 2005 | C44: =IF($AB$9='Base de données'!$A37,LOOKUP($AB$9,'Base de données'!$A37,'Base de données'!$D37)," ") -> D37 | D44: =IF($AB$9='Base de données'!$A37,LOOKUP($AB$9,'Base de données'!$A37,'Base de données'!$E37)," ") -> STAM | E44: =IF($AB$9='Base de données'!$A37,LOOKUP($AB$9,'Base de données'!$A37,'Base de données'!$F37)," ") -> 6344D | F44: =IF($AB$9='Base de données'!$A37,LOOKUP($AB$9,'Base de données'!$A37,'Base de données'!$G37)," ") -> DELFINI Arturo | G44: =IF($AB$9='Base de données'!$A37,LOOKUP($AB$9,'Base de données'!$A37,'Base de données'!$H37)," ") -> - | H44: =IF($AB$9='Base de données'!$A37,LOOKUP($AB$9,'Base de données'!$A37,'Base de données'!$I37)," ") -> 015 | I44: =IF($AB$9='Base de données'!$A37,LOOKUP($AB$9,'Base de données'!$A37,'Base de données'!$J37)," ") -> CH | J44: =IF($AB$9='Base de données'!$A37,LOOKUP($AB$9,'Base de données'!$A37,'Base de données'!$K37)," ") -> TOUS | K44: =IF($AB$9='Base de données'!$A37,LOOKUP($AB$9,'Base de données'!$A37,'Base de données'!$L37)," ") -> 92 | L44: =IF($AB$9='Base de données'!$A37,LOOKUP($AB$9,'Base de données'!$A37,'Base de données'!$M37)," ") -> 3 | M44: =IF($AB$9='Base de données'!$A37,LOOKUP($AB$9,'Base de données'!$A37,'Base de données'!$N37)," ") -> 367 | N44: =IF($AB$9='Base de données'!$A37,LOOKUP($AB$9,'Base de données'!$A37,'Base de données'!$O37)," ") -> BZ | W44: ='Base de données'!AE37 -> Championnat de France U.O.F. Amiens 2007 (F) | X44: =IF($W44=Visualisateur!$U$60,'Base de données'!$U$63,'Base de données'!$U$64) -> OK | Z44: Championnat de France U.O.F. Amiens 2007 (F)
A45: =IF($AB$9='Base de données'!$A38,LOOKUP($AB$9,'Base de données'!$A38,'Base de données'!$B38)," ") -> 26-30/01/05 | B45: =IF($AB$9='Base de données'!$A38,LOOKUP($AB$9,'Base de données'!$A38,'Base de données'!$C38)," ") -> 2005 | C45: =IF($AB$9='Base de données'!$A38,LOOKUP($AB$9,'Base de données'!$A38,'Base de données'!$D38)," ") -> D37 | D45: =IF($AB$9='Base de données'!$A38,LOOKUP($AB$9,'Base de données'!$A38,'Base de données'!$E38)," ") -> STAM | E45: =IF($AB$9='Base de données'!$A38,LOOKUP($AB$9,'Base de données'!$A38,'Base de données'!$F38)," ") -> 6345A | F45: =IF($AB$9='Base de données'!$A38,LOOKUP($AB$9,'Base de données'!$A38,'Base de données'!$G38)," ") -> GRIMM Roland | G45: =IF($AB$9='Base de données'!$A38,LOOKUP($AB$9,'Base de données'!$A38,'Base de données'!$H38)," ") -> - | H45: =IF($AB$9='Base de données'!$A38,LOOKUP($AB$9,'Base de données'!$A38,'Base de données'!$I38)," ") -> 039 | I45: =IF($AB$9='Base de données'!$A38,LOOKUP($AB$9,'Base de données'!$A38,'Base de données'!$J38)," ") -> D | J45: =IF($AB$9='Base de données'!$A38,LOOKUP($AB$9,'Base de données'!$A38,'Base de données'!$K38)," ") -> TOUS | K45: =IF($AB$9='Base de données'!$A38,LOOKUP($AB$9,'Base de données'!$A38,'Base de données'!$L38)," ") -> 88 | L45: =IF($AB$9='Base de données'!$A38,LOOKUP($AB$9,'Base de données'!$A38,'Base de données'!$M38)," ") -> 4 | M45: =IF($AB$9='Base de données'!$A38,LOOKUP($AB$9,'Base de données'!$A38,'Base de données'!$N38)," ") -> 356 | N45: =IF($AB$9='Base de données'!$A38,LOOKUP($AB$9,'Base de données'!$A38,'Base de données'!$O38)," ") -> - | W45: ='Base de données'!AE38 -> Exposition C.P.S.N. Spy 2007 (B) | X45: =IF($W45=Visualisateur!$U$60,'Base de données'!$U$63,'Base de données'!$U$64) -> OK | Z45: Exposition C.P.S.N. Spy 2007 (B)
A46: =IF($AB$9='Base de données'!$A39,LOOKUP($AB$9,'Base de données'!$A39,'Base de données'!$B39)," ") -> 26-30/01/05 | B46: =IF($AB$9='Base de données'!$A39,LOOKUP($AB$9,'Base de données'!$A39,'Base de données'!$C39)," ") -> 2005 | C46: =IF($AB$9='Base de données'!$A39,LOOKUP($AB$9,'Base de données'!$A39,'Base de données'!$D39)," ") -> D37 | D46: =IF($AB$9='Base de données'!$A39,LOOKUP($AB$9,'Base de données'!$A39,'Base de données'!$E39)," ") -> STAM | E46: =IF($AB$9='Base de données'!$A39,LOOKUP($AB$9,'Base de données'!$A39,'Base de données'!$F39)," ") -> 6345B | F46: =IF($AB$9='Base de données'!$A39,LOOKUP($AB$9,'Base de données'!$A39,'Base de données'!$G39)," ") -> GRIMM Roland | G46: =IF($AB$9='Base de données'!$A39,LOOKUP($AB$9,'Base de données'!$A39,'Base de données'!$H39)," ") -> - | H46: =IF($AB$9='Base de données'!$A39,LOOKUP($AB$9,'Base de données'!$A39,'Base de données'!$I39)," ") -> 015 | I46: =IF($AB$9='Base de données'!$A39,LOOKUP($AB$9,'Base de données'!$A39,'Base de données'!$J39)," ") -> D | J46: =IF($AB$9='Base de données'!$A39,LOOKUP($AB$9,'Base de données'!$A39,'Base de données'!$K39)," ") -> TOUS | K46: =IF($AB$9='Base de données'!$A39,LOOKUP($AB$9,'Base de données'!$A39,'Base de données'!$L39)," ") -> 88 | L46: =IF($AB$9='Base de données'!$A39,LOOKUP($AB$9,'Base de données'!$A39,'Base de données'!$M39)," ") -> 4 | M46: =IF($AB$9='Base de données'!$A39,LOOKUP($AB$9,'Base de données'!$A39,'Base de données'!$N39)," ") -> 356 | N46: =IF($AB$9='Base de données'!$A39,LOOKUP($AB$9,'Base de données'!$A39,'Base de données'!$O39)," ") -> - | W46: ='Base de données'!AE39 -> 44° Championnat d'Italie F.O.I. Pesaro 2007 (I) | X46: =IF($W46=Visualisateur!$U$60,'Base de données'!$U$63,'Base de données'!$U$64) -> OK | Z46: 44° Championnat d'Italie F.O.I. Pesaro 2007 (I)
A47: =IF($AB$9='Base de données'!$A40,LOOKUP($AB$9,'Base de données'!$A40,'Base de données'!$B40)," ") -> 26-30/01/05 | B47: =IF($AB$9='Base de données'!$A40,LOOKUP($AB$9,'Base de données'!$A40,'Base de données'!$C40)," ") -> 2005 | C47: =IF($AB$9='Base de données'!$A40,LOOKUP($AB$9,'Base de données'!$A40,'Base de données'!$D40)," ") -> D37 | D47: =IF($AB$9='Base de données'!$A40,LOOKUP($AB$9,'Base de données'!$A40,'Base de données'!$E40)," ") -> STAM | E47: =IF($AB$9='Base de données'!$A40,LOOKUP($AB$9,'Base de données'!$A40,'Base de données'!$F40)," ") -> 6345C | F47: =IF($AB$9='Base de données'!$A40,LOOKUP($AB$9,'Base de données'!$A40,'Base de données'!$G40)," ") -> GRIMM Roland | G47: =IF($AB$9='Base de données'!$A40,LOOKUP($AB$9,'Base de données'!$A40,'Base de données'!$H40)," ") -> - | H47: =IF($AB$9='Base de données'!$A40,LOOKUP($AB$9,'Base de données'!$A40,'Base de données'!$I40)," ") -> 003 | I47: =IF($AB$9='Base de données'!$A40,LOOKUP($AB$9,'Base de données'!$A40,'Base de données'!$J40)," ") -> D | J47: =IF($AB$9='Base de données'!$A40,LOOKUP($AB$9,'Base de données'!$A40,'Base de données'!$K40)," ") -> TOUS | K47: =IF($AB$9='Base de données'!$A40,LOOKUP($AB$9,'Base de données'!$A40,'Base de données'!$L40)," ") -> 89 | L47: =IF($AB$9='Base de données'!$A40,LOOKUP($AB$9,'Base de données'!$A40,'Base de données'!$M40)," ") -> 4 | M47: =IF($AB$9='Base de données'!$A40,LOOKUP($AB$9,'Base de données'!$A40,'Base de données'!$N40)," ") -> 356 | N47: =IF($AB$9='Base de données'!$A40,LOOKUP($AB$9,'Base de données'!$A40,'Base de données'!$O40)," ") -> - | W47: ='Base de données'!AE40 -> Exposition Como - Seveso 2007 (I) | X47: =IF($W47=Visualisateur!$U$60,'Base de données'!$U$63,'Base de données'!$U$64) -> OK | Z47: Exposition Como - Seveso 2007 (I)
A48: =IF($AB$9='Base de données'!$A41,LOOKUP($AB$9,'Base de données'!$A41,'Base de données'!$B41)," ") -> 26-30/01/05 | B48: =IF($AB$9='Base de données'!$A41,LOOKUP($AB$9,'Base de données'!$A41,'Base de données'!$C41)," ") -> 2005 | C48: =IF($AB$9='Base de données'!$A41,LOOKUP($AB$9,'Base de données'!$A41,'Base de données'!$D41)," ") -> D37 | D48: =IF($AB$9='Base de données'!$A41,LOOKUP($AB$9,'Base de données'!$A41,'Base de données'!$E41)," ") -> STAM | E48: =IF($AB$9='Base de données'!$A41,LOOKUP($AB$9,'Base de données'!$A41,'Base de données'!$F41)," ") -> 6345C | F48: =IF($AB$9='Base de données'!$A41,LOOKUP($AB$9,'Base de données'!$A41,'Base de données'!$G41)," ") -> GRIMM Roland | G48: =IF($AB$9='Base de données'!$A41,LOOKUP($AB$9,'Base de données'!$A41,'Base de données'!$H41)," ") -> - | H48: =IF($AB$9='Base de données'!$A41,LOOKUP($AB$9,'Base de données'!$A41,'Base de données'!$I41)," ") -> 002 | I48: =IF($AB$9='Base de données'!$A41,LOOKUP($AB$9,'Base de données'!$A41,'Base de données'!$J41)," ") -> D | J48: =IF($AB$9='Base de données'!$A41,LOOKUP($AB$9,'Base de données'!$A41,'Base de données'!$K41)," ") -> TOUS | K48: =IF($AB$9='Base de données'!$A41,LOOKUP($AB$9,'Base de données'!$A41,'Base de données'!$L41)," ") -> 87 | L48: =IF($AB$9='Base de données'!$A41,LOOKUP($AB$9,'Base de données'!$A41,'Base de données'!$M41)," ") -> 4 | M48: =IF($AB$9='Base de données'!$A41,LOOKUP($AB$9,'Base de données'!$A41,'Base de données'!$N41)," ") -> 356 | N48: =IF($AB$9='Base de données'!$A41,LOOKUP($AB$9,'Base de données'!$A41,'Base de données'!$O41)," ") -> - | W48: ='Base de données'!AE41 -> Exposition Bologna 2007 (I) | X48: =IF($W48=Visualisateur!$U$60,'Base de données'!$U$63,'Base de données'!$U$64) -> OK | Z48: Exposition Bologna 2007 (I)
A49: =IF($AB$9='Base de données'!$A42,LOOKUP($AB$9,'Base de données'!$A42,'Base de données'!$B42)," ") -> 26-30/01/05 | B49: =IF($AB$9='Base de données'!$A42,LOOKUP($AB$9,'Base de données'!$A42,'Base de données'!$C42)," ") -> 2005 | C49: =IF($AB$9='Base de données'!$A42,LOOKUP($AB$9,'Base de données'!$A42,'Base de données'!$D42)," ") -> D37 | D49: =IF($AB$9='Base de données'!$A42,LOOKUP($AB$9,'Base de données'!$A42,'Base de données'!$E42)," ") -> STAM | E49: =IF($AB$9='Base de données'!$A42,LOOKUP($AB$9,'Base de données'!$A42,'Base de données'!$F42)," ") -> 6346A | F49: =IF($AB$9='Base de données'!$A42,LOOKUP($AB$9,'Base de données'!$A42,'Base de données'!$G42)," ") -> GRIMM Roland | G49: =IF($AB$9='Base de données'!$A42,LOOKUP($AB$9,'Base de données'!$A42,'Base de données'!$H42)," ") -> - | H49: =IF($AB$9='Base de données'!$A42,LOOKUP($AB$9,'Base de données'!$A42,'Base de données'!$I42)," ") -> 019 | I49: =IF($AB$9='Base de données'!$A42,LOOKUP($AB$9,'Base de données'!$A42,'Base de données'!$J42)," ") -> D | J49: =IF($AB$9='Base de données'!$A42,LOOKUP($AB$9,'Base de données'!$A42,'Base de données'!$K42)," ") -> TOUS | K49: =IF($AB$9='Base de données'!$A42,LOOKUP($AB$9,'Base de données'!$A42,'Base de données'!$L42)," ") -> 92 | L49: =IF($AB$9='Base de données'!$A42,LOOKUP($AB$9,'Base de données'!$A42,'Base de données'!$M42)," ") -> 4 | M49: =IF($AB$9='Base de données'!$A42,LOOKUP($AB$9,'Base de données'!$A42,'Base de données'!$N42)," ") -> 369 | N49: =IF($AB$9='Base de données'!$A42,LOOKUP($AB$9,'Base de données'!$A42,'Base de données'!$O42)," ") -> OR | W49: ='Base de données'!AE42 -> Exposition Castano Primo 2007 (I) | X49: =IF($W49=Visualisateur!$U$60,'Base de données'!$U$63,'Base de données'!$U$64) -> OK | Z49: Exposition Castano Primo 2007 (I)
A50: =IF($AB$9='Base de données'!$A43,LOOKUP($AB$9,'Base de données'!$A43,'Base de données'!$B43)," ") -> 26-30/01/05 | B50: =IF($AB$9='Base de données'!$A43,LOOKUP($AB$9,'Base de données'!$A43,'Base de données'!$C43)," ") -> 2005 | C50: =IF($AB$9='Base de données'!$A43,LOOKUP($AB$9,'Base de données'!$A43,'Base de données'!$D43)," ") -> D37 | D50: =IF($AB$9='Base de données'!$A43,LOOKUP($AB$9,'Base de données'!$A43,'Base de données'!$E43)," ") -> STAM | E50: =IF($AB$9='Base de données'!$A43,LOOKUP($AB$9,'Base de données'!$A43,'Base de données'!$F43)," ") -> 6346B | F50: =IF($AB$9='Base de données'!$A43,LOOKUP($AB$9,'Base de données'!$A43,'Base de données'!$G43)," ") -> GRIMM Roland | G50: =IF($AB$9='Base de données'!$A43,LOOKUP($AB$9,'Base de données'!$A43,'Base de données'!$H43)," ") -> - | H50: =IF($AB$9='Base de données'!$A43,LOOKUP($AB$9,'Base de données'!$A43,'Base de données'!$I43)," ") -> 022 | I50: =IF($AB$9='Base de données'!$A43,LOOKUP($AB$9,'Base de données'!$A43,'Base de données'!$J43)," ") -> D | J50: =IF($AB$9='Base de données'!$A43,LOOKUP($AB$9,'Base de données'!$A43,'Base de données'!$K43)," ") -> TOUS | K50: =IF($AB$9='Base de données'!$A43,LOOKUP($AB$9,'Base de données'!$A43,'Base de données'!$L43)," ") -> 92 | L50: =IF($AB$9='Base de données'!$A43,LOOKUP($AB$9,'Base de données'!$A43,'Base de données'!$M43)," ") -> 4 | M50: =IF($AB$9='Base de données'!$A43,LOOKUP($AB$9,'Base de données'!$A43,'Base de données'!$N43)," ") -> 369 | N50: =IF($AB$9='Base de données'!$A43,LOOKUP($AB$9,'Base de données'!$A43,'Base de données'!$O43)," ") -> OR | W50: ='Base de données'!AE43 -> Exposition A.O.P. Piacenza 2007 (I) | X50: =IF($W50=Visualisateur!$U$60,'Base de données'!$U$63,'Base de données'!$U$64) -> OK | Z50: Exposition A.O.P. Piacenza 2007 (I)
A51: =IF($AB$9='Base de données'!$A44,LOOKUP($AB$9,'Base de données'!$A44,'Base de données'!$B44)," ") -> 26-30/01/05 | B51: =IF($AB$9='Base de données'!$A44,LOOKUP($AB$9,'Base de données'!$A44,'Base de données'!$C44)," ") -> 2005 | C51: =IF($AB$9='Base de données'!$A44,LOOKUP($AB$9,'Base de données'!$A44,'Base de données'!$D44)," ") -> D37 | D51: =IF($AB$9='Base de données'!$A44,LOOKUP($AB$9,'Base de données'!$A44,'Base de données'!$E44)," ") -> STAM | E51: =IF($AB$9='Base de données'!$A44,LOOKUP($AB$9,'Base de données'!$A44,'Base de données'!$F44)," ") -> 6346C | F51: =IF($AB$9='Base de données'!$A44,LOOKUP($AB$9,'Base de données'!$A44,'Base de données'!$G44)," ") -> GRIMM Roland | G51: =IF($AB$9='Base de données'!$A44,LOOKUP($AB$9,'Base de données'!$A44,'Base de données'!$H44)," ") -> - | H51: =IF($AB$9='Base de données'!$A44,LOOKUP($AB$9,'Base de données'!$A44,'Base de données'!$I44)," ") -> 024 | I51: =IF($AB$9='Base de données'!$A44,LOOKUP($AB$9,'Base de données'!$A44,'Base de données'!$J44)," ") -> D | J51: =IF($AB$9='Base de données'!$A44,LOOKUP($AB$9,'Base de données'!$A44,'Base de données'!$K44)," ") -> TOUS | K51: =IF($AB$9='Base de données'!$A44,LOOKUP($AB$9,'Base de données'!$A44,'Base de données'!$L44)," ") -> 90 | L51: =IF($AB$9='Base de données'!$A44,LOOKUP($AB$9,'Base de données'!$A44,'Base de données'!$M44)," ") -> 4 | M51: =IF($AB$9='Base de données'!$A44,LOOKUP($AB$9,'Base de données'!$A44,'Base de données'!$N44)," ") -> 369 | N51: =IF($AB$9='Base de données'!$A44,LOOKUP($AB$9,'Base de données'!$A44,'Base de données'!$O44)," ") -> OR | W51: ='Base de données'!AE44 -> Exposition Carpi-Correggio-Modena 2007 (I) | X51: =IF($W51=Visualisateur!$U$60,'Base de données'!$U$63,'Base de données'!$U$64) -> OK | Z51: Exposition Carpi-Correggio-Modena 2007 (I)
A52: =IF($AB$9='Base de données'!$A45,LOOKUP($AB$9,'Base de données'!$A45,'Base de données'!$B45)," ") -> 26-30/01/05 | B52: =IF($AB$9='Base de données'!$A45,LOOKUP($AB$9,'Base de données'!$A45,'Base de données'!$C45)," ") -> 2005 | C52: =IF($AB$9='Base de données'!$A45,LOOKUP($AB$9,'Base de données'!$A45,'Base de données'!$D45)," ") -> D37 | D52: =IF($AB$9='Base de données'!$A45,LOOKUP($AB$9,'Base de données'!$A45,'Base de données'!$E45)," ") -> STAM | E52: =IF($AB$9='Base de données'!$A45,LOOKUP($AB$9,'Base de données'!$A45,'Base de données'!$F45)," ") -> 6346C | F52: =IF($AB$9='Base de données'!$A45,LOOKUP($AB$9,'Base de données'!$A45,'Base de données'!$G45)," ") -> GRIMM Roland | G52: =IF($AB$9='Base de données'!$A45,LOOKUP($AB$9,'Base de données'!$A45,'Base de données'!$H45)," ") -> - | H52: =IF($AB$9='Base de données'!$A45,LOOKUP($AB$9,'Base de données'!$A45,'Base de données'!$I45)," ") -> 032 | I52: =IF($AB$9='Base de données'!$A45,LOOKUP($AB$9,'Base de données'!$A45,'Base de données'!$J45)," ") -> D | J52: =IF($AB$9='Base de données'!$A45,LOOKUP($AB$9,'Base de données'!$A45,'Base de données'!$K45)," ") -> TOUS | K52: =IF($AB$9='Base de données'!$A45,LOOKUP($AB$9,'Base de données'!$A45,'Base de données'!$L45)," ") -> 91 | L52: =IF($AB$9='Base de données'!$A45,LOOKUP($AB$9,'Base de données'!$A45,'Base de données'!$M45)," ") -> 4 | M52: =IF($AB$9='Base de données'!$A45,LOOKUP($AB$9,'Base de données'!$A45,'Base de données'!$N45)," ") -> 369 | N52: =IF($AB$9='Base de données'!$A45,LOOKUP($AB$9,'Base de données'!$A45,'Base de données'!$O45)," ") -> OR | W52: ='Base de données'!AE45 ->  | X52: =IF($W52=Visualisateur!$U$60,'Base de données'!$U$63,'Base de données'!$U$64) -> OK
A53: =IF($AB$9='Base de données'!$A46,LOOKUP($AB$9,'Base de données'!$A46,'Base de données'!$B46)," ") -> 26-30/01/05 | B53: =IF($AB$9='Base de données'!$A46,LOOKUP($AB$9,'Base de données'!$A46,'Base de données'!$C46)," ") -> 2005 | C53: =IF($AB$9='Base de données'!$A46,LOOKUP($AB$9,'Base de données'!$A46,'Base de données'!$D46)," ") -> D37 | D53: =IF($AB$9='Base de données'!$A46,LOOKUP($AB$9,'Base de données'!$A46,'Base de données'!$E46)," ") -> STAM | E53: =IF($AB$9='Base de données'!$A46,LOOKUP($AB$9,'Base de données'!$A46,'Base de données'!$F46)," ") -> 6347A | F53: =IF($AB$9='Base de données'!$A46,LOOKUP($AB$9,'Base de données'!$A46,'Base de données'!$G46)," ") -> IBI SERRANO Francisco | G53: =IF($AB$9='Base de données'!$A46,LOOKUP($AB$9,'Base de données'!$A46,'Base de données'!$H46)," ") -> - | H53: =IF($AB$9='Base de données'!$A46,LOOKUP($AB$9,'Base de données'!$A46,'Base de données'!$I46)," ") -> - | I53: =IF($AB$9='Base de données'!$A46,LOOKUP($AB$9,'Base de données'!$A46,'Base de données'!$J46)," ") -> E | J53: =IF($AB$9='Base de données'!$A46,LOOKUP($AB$9,'Base de données'!$A46,'Base de données'!$K46)," ") -> TOUS | K53: =IF($AB$9='Base de données'!$A46,LOOKUP($AB$9,'Base de données'!$A46,'Base de données'!$L46)," ") -> - | L53: =IF($AB$9='Base de données'!$A46,LOOKUP($AB$9,'Base de données'!$A46,'Base de données'!$M46)," ") -> - | M53: =IF($AB$9='Base de données'!$A46,LOOKUP($AB$9,'Base de données'!$A46,'Base de données'!$N46)," ") -> - | N53: =IF($AB$9='Base de données'!$A46,LOOKUP($AB$9,'Base de données'!$A46,'Base de données'!$O46)," ") -> ABS | W53: ='Base de données'!AE46 -> 0 | X53: =IF($W53=Visualisateur!$U$60,'Base de données'!$U$63,'Base de données'!$U$64) -> NUL
A54: =IF($AB$9='Base de données'!$A47,LOOKUP($AB$9,'Base de données'!$A47,'Base de données'!$B47)," ") -> 26-30/01/05 | B54: =IF($AB$9='Base de données'!$A47,LOOKUP($AB$9,'Base de données'!$A47,'Base de données'!$C47)," ") -> 2005 | C54: =IF($AB$9='Base de données'!$A47,LOOKUP($AB$9,'Base de données'!$A47,'Base de données'!$D47)," ") -> D37 | D54: =IF($AB$9='Base de données'!$A47,LOOKUP($AB$9,'Base de données'!$A47,'Base de données'!$E47)," ") -> STAM | E54: =IF($AB$9='Base de données'!$A47,LOOKUP($AB$9,'Base de données'!$A47,'Base de données'!$F47)," ") -> 6347B | F54: =IF($AB$9='Base de données'!$A47,LOOKUP($AB$9,'Base de données'!$A47,'Base de données'!$G47)," ") -> IBI SERRANO Francisco | G54: =IF($AB$9='Base de données'!$A47,LOOKUP($AB$9,'Base de données'!$A47,'Base de données'!$H47)," ") -> - | H54: =IF($AB$9='Base de données'!$A47,LOOKUP($AB$9,'Base de données'!$A47,'Base de données'!$I47)," ") -> - | I54: =IF($AB$9='Base de données'!$A47,LOOKUP($AB$9,'Base de données'!$A47,'Base de données'!$J47)," ") -> E | J54: =IF($AB$9='Base de données'!$A47,LOOKUP($AB$9,'Base de données'!$A47,'Base de données'!$K47)," ") -> TOUS | K54: =IF($AB$9='Base de données'!$A47,LOOKUP($AB$9,'Base de données'!$A47,'Base de données'!$L47)," ") -> - | L54: =IF($AB$9='Base de données'!$A47,LOOKUP($AB$9,'Base de données'!$A47,'Base de données'!$M47)," ") -> - | M54: =IF($AB$9='Base de données'!$A47,LOOKUP($AB$9,'Base de données'!$A47,'Base de données'!$N47)," ") -> - | N54: =IF($AB$9='Base de données'!$A47,LOOKUP($AB$9,'Base de données'!$A47,'Base de données'!$O47)," ") -> ABS | W54: ='Base de données'!AE47 -> 0 | X54: =IF($W54=Visualisateur!$U$60,'Base de données'!$U$63,'Base de données'!$U$64) -> NUL
A55: =IF($AB$9='Base de données'!$A48,LOOKUP($AB$9,'Base de données'!$A48,'Base de données'!$B48)," ") -> 26-30/01/05 | B55: =IF($AB$9='Base de données'!$A48,LOOKUP($AB$9,'Base de données'!$A48,'Base de données'!$C48)," ") -> 2005 | C55: =IF($AB$9='Base de données'!$A48,LOOKUP($AB$9,'Base de données'!$A48,'Base de données'!$D48)," ") -> D37 | D55: =IF($AB$9='Base de données'!$A48,LOOKUP($AB$9,'Base de données'!$A48,'Base de données'!$E48)," ") -> STAM | E55: =IF($AB$9='Base de données'!$A48,LOOKUP($AB$9,'Base de données'!$A48,'Base de données'!$F48)," ") -> 6347C | F55: =IF($AB$9='Base de données'!$A48,LOOKUP($AB$9,'Base de données'!$A48,'Base de données'!$G48)," ") -> IBI SERRANO Francisco | G55: =IF($AB$9='Base de données'!$A48,LOOKUP($AB$9,'Base de données'!$A48,'Base de données'!$H48)," ") -> - | H55: =IF($AB$9='Base de données'!$A48,LOOKUP($AB$9,'Base de données'!$A48,'Base de données'!$I48)," ") -> - | I55: =IF($AB$9='Base de données'!$A48,LOOKUP($AB$9,'Base de données'!$A48,'Base de données'!$J48)," ") -> E | J55: =IF($AB$9='Base de données'!$A48,LOOKUP($AB$9,'Base de données'!$A48,'Base de données'!$K48)," ") -> TOUS | K55: =IF($AB$9='Base de données'!$A48,LOOKUP($AB$9,'Base de données'!$A48,'Base de données'!$L48)," ") -> - | L55: =IF($AB$9='Base de données'!$A48,LOOKUP($AB$9,'Base de données'!$A48,'Base de données'!$M48)," ") -> - | M55: =IF($AB$9='Base de données'!$A48,LOOKUP($AB$9,'Base de données'!$A48,'Base de données'!$N48)," ") -> - | N55: =IF($AB$9='Base de données'!$A48,LOOKUP($AB$9,'Base de données'!$A48,'Base de données'!$O48)," ") -> ABS | W55: ='Base de données'!AE48 -> 0 | X55: =IF($W55=Visualisateur!$U$60,'Base de données'!$U$63,'Base de données'!$U$64) -> NUL
A56: =IF($AB$9='Base de données'!$A49,LOOKUP($AB$9,'Base de données'!$A49,'Base de données'!$B49)," ") -> 26-30/01/05 | B56: =IF($AB$9='Base de données'!$A49,LOOKUP($AB$9,'Base de données'!$A49,'Base de données'!$C49)," ") -> 2005 | C56: =IF($AB$9='Base de données'!$A49,LOOKUP($AB$9,'Base de données'!$A49,'Base de données'!$D49)," ") -> D37 | D56: =IF($AB$9='Base de données'!$A49,LOOKUP($AB$9,'Base de données'!$A49,'Base de données'!$E49)," ") -> STAM | E56: =IF($AB$9='Base de données'!$A49,LOOKUP($AB$9,'Base de données'!$A49,'Base de données'!$F49)," ") -> 6347D | F56: =IF($AB$9='Base de données'!$A49,LOOKUP($AB$9,'Base de données'!$A49,'Base de données'!$G49)," ") -> IBI SERRANO Francisco | G56: =IF($AB$9='Base de données'!$A49,LOOKUP($AB$9,'Base de données'!$A49,'Base de données'!$H49)," ") -> - | H56: =IF($AB$9='Base de données'!$A49,LOOKUP($AB$9,'Base de données'!$A49,'Base de données'!$I49)," ") -> - | I56: =IF($AB$9='Base de données'!$A49,LOOKUP($AB$9,'Base de données'!$A49,'Base de données'!$J49)," ") -> E | J56: =IF($AB$9='Base de données'!$A49,LOOKUP($AB$9,'Base de données'!$A49,'Base de données'!$K49)," ") -> TOUS | K56: =IF($AB$9='Base de données'!$A49,LOOKUP($AB$9,'Base de données'!$A49,'Base de données'!$L49)," ") -> - | L56: =IF($AB$9='Base de données'!$A49,LOOKUP($AB$9,'Base de données'!$A49,'Base de données'!$M49)," ") -> - | M56: =IF($AB$9='Base de données'!$A49,LOOKUP($AB$9,'Base de données'!$A49,'Base de données'!$N49)," ") -> - | N56: =IF($AB$9='Base de données'!$A49,LOOKUP($AB$9,'Base de données'!$A49,'Base de données'!$O49)," ") -> ABS | W56: ='Base de données'!AE49 -> 0 | X56: =IF($W56=Visualisateur!$U$60,'Base de données'!$U$63,'Base de données'!$U$64) -> NUL
A57: =IF($AB$9='Base de données'!$A50,LOOKUP($AB$9,'Base de données'!$A50,'Base de données'!$B50)," ") -> 26-30/01/05 | B57: =IF($AB$9='Base de données'!$A50,LOOKUP($AB$9,'Base de données'!$A50,'Base de données'!$C50)," ") -> 2005 | C57: =IF($AB$9='Base de données'!$A50,LOOKUP($AB$9,'Base de données'!$A50,'Base de données'!$D50)," ") -> D37 | D57: =IF($AB$9='Base de données'!$A50,LOOKUP($AB$9,'Base de données'!$A50,'Base de données'!$E50)," ") -> STAM | E57: =IF($AB$9='Base de données'!$A50,LOOKUP($AB$9,'Base de données'!$A50,'Base de données'!$F50)," ") -> 6348A | F57: =IF($AB$9='Base de données'!$A50,LOOKUP($AB$9,'Base de données'!$A50,'Base de données'!$G50)," ") -> IBI SERRANO Francisco | G57: =IF($AB$9='Base de données'!$A50,LOOKUP($AB$9,'Base de données'!$A50,'Base de données'!$H50)," ") -> - | H57: =IF($AB$9='Base de données'!$A50,LOOKUP($AB$9,'Base de données'!$A50,'Base de données'!$I50)," ") -> - | I57: =IF($AB$9='Base de données'!$A50,LOOKUP($AB$9,'Base de données'!$A50,'Base de données'!$J50)," ") -> E | J57: =IF($AB$9='Base de données'!$A50,LOOKUP($AB$9,'Base de données'!$A50,'Base de données'!$K50)," ") -> TOUS | K57: =IF($AB$9='Base de données'!$A50,LOOKUP($AB$9,'Base de données'!$A50,'Base de données'!$L50)," ") -> - | L57: =IF($AB$9='Base de données'!$A50,LOOKUP($AB$9,'Base de données'!$A50,'Base de données'!$M50)," ") -> - | M57: =IF($AB$9='Base de données'!$A50,LOOKUP($AB$9,'Base de données'!$A50,'Base de données'!$N50)," ") -> - | N57: =IF($AB$9='Base de données'!$A50,LOOKUP($AB$9,'Base de données'!$A50,'Base de données'!$O50)," ") -> ABS | W57: ='Base de données'!AE50 -> 0 | X57: =IF($W57=Visualisateur!$U$60,'Base de données'!$U$63,'Base de données'!$U$64) -> NUL
A58: =IF($AB$9='Base de données'!$A51,LOOKUP($AB$9,'Base de données'!$A51,'Base de données'!$B51)," ") -> 26-30/01/05 | B58: =IF($AB$9='Base de données'!$A51,LOOKUP($AB$9,'Base de données'!$A51,'Base de données'!$C51)," ") -> 2005 | C58: =IF($AB$9='Base de données'!$A51,LOOKUP($AB$9,'Base de données'!$A51,'Base de données'!$D51)," ") -> D37 | D58: =IF($AB$9='Base de données'!$A51,LOOKUP($AB$9,'Base de données'!$A51,'Base de données'!$E51)," ") -> STAM | E58: =IF($AB$9='Base de données'!$A51,LOOKUP($AB$9,'Base de données'!$A51,'Base de données'!$F51)," ") -> 6348B | F58: =IF($AB$9='Base de données'!$A51,LOOKUP($AB$9,'Base de données'!$A51,'Base de données'!$G51)," ") -> IBI SERRANO Francisco | G58: =IF($AB$9='Base de données'!$A51,LOOKUP($AB$9,'Base de données'!$A51,'Base de données'!$H51)," ") -> - | H58: =IF($AB$9='Base de données'!$A51,LOOKUP($AB$9,'Base de données'!$A51,'Base de données'!$I51)," ") -> - | I58: =IF($AB$9='Base de données'!$A51,LOOKUP($AB$9,'Base de données'!$A51,'Base de données'!$J51)," ") -> E | J58: =IF($AB$9='Base de données'!$A51,LOOKUP($AB$9,'Base de données'!$A51,'Base de données'!$K51)," ") -> TOUS | K58: =IF($AB$9='Base de données'!$A51,LOOKUP($AB$9,'Base de données'!$A51,'Base de données'!$L51)," ") -> - | L58: =IF($AB$9='Base de données'!$A51,LOOKUP($AB$9,'Base de données'!$A51,'Base de données'!$M51)," ") -> - | M58: =IF($AB$9='Base de données'!$A51,LOOKUP($AB$9,'Base de données'!$A51,'Base de données'!$N51)," ") -> - | N58: =IF($AB$9='Base de données'!$A51,LOOKUP($AB$9,'Base de données'!$A51,'Base de données'!$O51)," ") -> ABS | W58: ='Base de données'!AE51 -> 0 | X58: =IF($W58=Visualisateur!$U$60,'Base de données'!$U$63,'Base de données'!$U$64) -> NUL
A59: =IF($AB$9='Base de données'!$A52,LOOKUP($AB$9,'Base de données'!$A52,'Base de données'!$B52)," ") -> 26-30/01/05 | B59: =IF($AB$9='Base de données'!$A52,LOOKUP($AB$9,'Base de données'!$A52,'Base de données'!$C52)," ") -> 2005 | C59: =IF($AB$9='Base de données'!$A52,LOOKUP($AB$9,'Base de données'!$A52,'Base de données'!$D52)," ") -> D37 | D59: =IF($AB$9='Base de données'!$A52,LOOKUP($AB$9,'Base de données'!$A52,'Base de données'!$E52)," ") -> STAM | E59: =IF($AB$9='Base de données'!$A52,LOOKUP($AB$9,'Base de données'!$A52,'Base de données'!$F52)," ") -> 6348C | F59: =IF($AB$9='Base de données'!$A52,LOOKUP($AB$9,'Base de données'!$A52,'Base de données'!$G52)," ") -> IBI SERRANO Francisco | G59: =IF($AB$9='Base de données'!$A52,LOOKUP($AB$9,'Base de données'!$A52,'Base de données'!$H52)," ") -> - | H59: =IF($AB$9='Base de données'!$A52,LOOKUP($AB$9,'Base de données'!$A52,'Base de données'!$I52)," ") -> - | I59: =IF($AB$9='Base de données'!$A52,LOOKUP($AB$9,'Base de données'!$A52,'Base de données'!$J52)," ") -> E | J59: =IF($AB$9='Base de données'!$A52,LOOKUP($AB$9,'Base de données'!$A52,'Base de données'!$K52)," ") -> TOUS | K59: =IF($AB$9='Base de données'!$A52,LOOKUP($AB$9,'Base de données'!$A52,'Base de données'!$L52)," ") -> - | L59: =IF($AB$9='Base de données'!$A52,LOOKUP($AB$9,'Base de données'!$A52,'Base de données'!$M52)," ") -> - | M59: =IF($AB$9='Base de données'!$A52,LOOKUP($AB$9,'Base de données'!$A52,'Base de données'!$N52)," ") -> - | N59: =IF($AB$9='Base de données'!$A52,LOOKUP($AB$9,'Base de données'!$A52,'Base de données'!$O52)," ") -> ABS | W59: ='Base de données'!AE52 -> 0 | X59: =IF($W59=Visualisateur!$U$60,'Base de données'!$U$63,'Base de données'!$U$64) -> NUL
A60: =IF($AB$9='Base de données'!$A53,LOOKUP($AB$9,'Base de données'!$A53,'Base de données'!$B53)," ") -> 26-30/01/05 | B60: =IF($AB$9='Base de données'!$A53,LOOKUP($AB$9,'Base de données'!$A53,'Base de données'!$C53)," ") -> 2005 | C60: =IF($AB$9='Base de données'!$A53,LOOKUP($AB$9,'Base de données'!$A53,'Base de données'!$D53)," ") -> D37 | D60: =IF($AB$9='Base de données'!$A53,LOOKUP($AB$9,'Base de données'!$A53,'Base de données'!$E53)," ") -> STAM | E60: =IF($AB$9='Base de données'!$A53,LOOKUP($AB$9,'Base de données'!$A53,'Base de données'!$F53)," ") -> 6348D | F60: =IF($AB$9='Base de données'!$A53,LOOKUP($AB$9,'Base de données'!$A53,'Base de données'!$G53)," ") -> IBI SERRANO Francisco | G60: =IF($AB$9='Base de données'!$A53,LOOKUP($AB$9,'Base de données'!$A53,'Base de données'!$H53)," ") -> - | H60: =IF($AB$9='Base de données'!$A53,LOOKUP($AB$9,'Base de données'!$A53,'Base de données'!$I53)," ") -> - | I60: =IF($AB$9='Base de données'!$A53,LOOKUP($AB$9,'Base de données'!$A53,'Base de données'!$J53)," ") -> E | J60: =IF($AB$9='Base de données'!$A53,LOOKUP($AB$9,'Base de données'!$A53,'Base de données'!$K53)," ") -> TOUS | K60: =IF($AB$9='Base de données'!$A53,LOOKUP($AB$9,'Base de données'!$A53,'Base de données'!$L53)," ") -> - | L60: =IF($AB$9='Base de données'!$A53,LOOKUP($AB$9,'Base de données'!$A53,'Base de données'!$M53)," ") -> - | M60: =IF($AB$9='Base de données'!$A53,LOOKUP($AB$9,'Base de données'!$A53,'Base de données'!$N53)," ") -> - | N60: =IF($AB$9='Base de données'!$A53,LOOKUP($AB$9,'Base de données'!$A53,'Base de données'!$O53)," ") -> ABS | W60: ='Base de données'!AE53 -> 0 | X60: =IF($W60=Visualisateur!$U$60,'Base de données'!$U$63,'Base de données'!$U$64) -> NUL
A61: =IF($AB$9='Base de données'!$A54,LOOKUP($AB$9,'Base de données'!$A54,'Base de données'!$B54)," ") -> 26-30/01/05 | B61: =IF($AB$9='Base de données'!$A54,LOOKUP($AB$9,'Base de données'!$A54,'Base de données'!$C54)," ") -> 2005 | C61: =IF($AB$9='Base de données'!$A54,LOOKUP($AB$9,'Base de données'!$A54,'Base de données'!$D54)," ") -> D37 | D61: =IF($AB$9='Base de données'!$A54,LOOKUP($AB$9,'Base de données'!$A54,'Base de données'!$E54)," ") -> STAM | E61: =IF($AB$9='Base de données'!$A54,LOOKUP($AB$9,'Base de données'!$A54,'Base de données'!$F54)," ") -> 6349A | F61: =IF($AB$9='Base de données'!$A54,LOOKUP($AB$9,'Base de données'!$A54,'Base de données'!$G54)," ") -> KNOLL Peter | G61: =IF($AB$9='Base de données'!$A54,LOOKUP($AB$9,'Base de données'!$A54,'Base de données'!$H54)," ") -> - | H61: =IF($AB$9='Base de données'!$A54,LOOKUP($AB$9,'Base de données'!$A54,'Base de données'!$I54)," ") -> 008 | I61: =IF($AB$9='Base de données'!$A54,LOOKUP($AB$9,'Base de données'!$A54,'Base de données'!$J54)," ") -> D | J61: =IF($AB$9='Base de données'!$A54,LOOKUP($AB$9,'Base de données'!$A54,'Base de données'!$K54)," ") -> TOUS | K61: =IF($AB$9='Base de données'!$A54,LOOKUP($AB$9,'Base de données'!$A54,'Base de données'!$L54)," ") -> 90 | L61: =IF($AB$9='Base de données'!$A54,LOOKUP($AB$9,'Base de données'!$A54,'Base de données'!$M54)," ") -> 5 | M61: =IF($AB$9='Base de données'!$A54,LOOKUP($AB$9,'Base de données'!$A54,'Base de données'!$N54)," ") -> 364 | N61: =IF($AB$9='Base de données'!$A54,LOOKUP($AB$9,'Base de données'!$A54,'Base de données'!$O54)," ") -> - | W61: ='Base de données'!AE54 -> 0 | X61: =IF($W61=Visualisateur!$U$60,'Base de données'!$U$63,'Base de données'!$U$64) -> NUL
A62: =IF($AB$9='Base de données'!$A55,LOOKUP($AB$9,'Base de données'!$A55,'Base de données'!$B55)," ") -> 26-30/01/05 | B62: =IF($AB$9='Base de données'!$A55,LOOKUP($AB$9,'Base de données'!$A55,'Base de données'!$C55)," ") -> 2005 | C62: =IF($AB$9='Base de données'!$A55,LOOKUP($AB$9,'Base de données'!$A55,'Base de données'!$D55)," ") -> D37 | D62: =IF($AB$9='Base de données'!$A55,LOOKUP($AB$9,'Base de données'!$A55,'Base de données'!$E55)," ") -> STAM | E62: =IF($AB$9='Base de données'!$A55,LOOKUP($AB$9,'Base de données'!$A55,'Base de données'!$F55)," ") -> 6349B | F62: =IF($AB$9='Base de données'!$A55,LOOKUP($AB$9,'Base de données'!$A55,'Base de données'!$G55)," ") -> KNOLL Peter | G62: =IF($AB$9='Base de données'!$A55,LOOKUP($AB$9,'Base de données'!$A55,'Base de données'!$H55)," ") -> - | H62: =IF($AB$9='Base de données'!$A55,LOOKUP($AB$9,'Base de données'!$A55,'Base de données'!$I55)," ") -> 039 | I62: =IF($AB$9='Base de données'!$A55,LOOKUP($AB$9,'Base de données'!$A55,'Base de données'!$J55)," ") -> D | J62: =IF($AB$9='Base de données'!$A55,LOOKUP($AB$9,'Base de données'!$A55,'Base de données'!$K55)," ") -> TOUS | K62: =IF($AB$9='Base de données'!$A55,LOOKUP($AB$9,'Base de données'!$A55,'Base de données'!$L55)," ") -> 90 | L62: =IF($AB$9='Base de données'!$A55,LOOKUP($AB$9,'Base de données'!$A55,'Base de données'!$M55)," ") -> 5 | M62: =IF($AB$9='Base de données'!$A55,LOOKUP($AB$9,'Base de données'!$A55,'Base de données'!$N55)," ") -> 364 | N62: =IF($AB$9='Base de données'!$A55,LOOKUP($AB$9,'Base de données'!$A55,'Base de données'!$O55)," ") -> - | W62: ='Base de données'!AE55 -> 0 | X62: =IF($W62=Visualisateur!$U$60,'Base de données'!$U$63,'Base de données'!$U$64) -> NUL
A63: =IF($AB$9='Base de données'!$A56,LOOKUP($AB$9,'Base de données'!$A56,'Base de données'!$B56)," ") -> 26-30/01/05 | B63: =IF($AB$9='Base de données'!$A56,LOOKUP($AB$9,'Base de données'!$A56,'Base de données'!$C56)," ") -> 2005 | C63: =IF($AB$9='Base de données'!$A56,LOOKUP($AB$9,'Base de données'!$A56,'Base de données'!$D56)," ") -> D37 | D63: =IF($AB$9='Base de données'!$A56,LOOKUP($AB$9,'Base de données'!$A56,'Base de données'!$E56)," ") -> STAM | E63: =IF($AB$9='Base de données'!$A56,LOOKUP($AB$9,'Base de données'!$A56,'Base de données'!$F56)," ") -> 6349C | F63: =IF($AB$9='Base de données'!$A56,LOOKUP($AB$9,'Base de données'!$A56,'Base de données'!$G56)," ") -> KNOLL Peter | G63: =IF($AB$9='Base de données'!$A56,LOOKUP($AB$9,'Base de données'!$A56,'Base de données'!$H56)," ") -> - | H63: =IF($AB$9='Base de données'!$A56,LOOKUP($AB$9,'Base de données'!$A56,'Base de données'!$I56)," ") -> 033 | I63: =IF($AB$9='Base de données'!$A56,LOOKUP($AB$9,'Base de données'!$A56,'Base de données'!$J56)," ") -> D | J63: =IF($AB$9='Base de données'!$A56,LOOKUP($AB$9,'Base de données'!$A56,'Base de données'!$K56)," ") -> TOUS | K63: =IF($AB$9='Base de données'!$A56,LOOKUP($AB$9,'Base de données'!$A56,'Base de données'!$L56)," ") -> 90 | L63: =IF($AB$9='Base de données'!$A56,LOOKUP($AB$9,'Base de données'!$A56,'Base de données'!$M56)," ") -> 5 | M63: =IF($AB$9='Base de données'!$A56,LOOKUP($AB$9,'Base de données'!$A56,'Base de données'!$N56)," ") -> 364 | N63: =IF($AB$9='Base de données'!$A56,LOOKUP($AB$9,'Base de données'!$A56,'Base de données'!$O56)," ") -> - | W63: ='Base de données'!AE56 -> 0 | X63: =IF($W63=Visualisateur!$U$60,'Base de données'!$U$63,'Base de données'!$U$64) -> NUL
A64: =IF($AB$9='Base de données'!$A57,LOOKUP($AB$9,'Base de données'!$A57,'Base de données'!$B57)," ") -> 26-30/01/05 | B64: =IF($AB$9='Base de données'!$A57,LOOKUP($AB$9,'Base de données'!$A57,'Base de données'!$C57)," ") -> 2005 | C64: =IF($AB$9='Base de données'!$A57,LOOKUP($AB$9,'Base de données'!$A57,'Base de données'!$D57)," ") -> D37 | D64: =IF($AB$9='Base de données'!$A57,LOOKUP($AB$9,'Base de données'!$A57,'Base de données'!$E57)," ") -> STAM | E64: =IF($AB$9='Base de données'!$A57,LOOKUP($AB$9,'Base de données'!$A57,'Base de données'!$F57)," ") -> 6349D | F64: =IF($AB$9='Base de données'!$A57,LOOKUP($AB$9,'Base de données'!$A57,'Base de données'!$G57)," ") -> KNOLL Peter | G64: =IF($AB$9='Base de données'!$A57,LOOKUP($AB$9,'Base de données'!$A57,'Base de données'!$H57)," ") -> - | H64: =IF($AB$9='Base de données'!$A57,LOOKUP($AB$9,'Base de données'!$A57,'Base de données'!$I57)," ") -> 047 | I64: =IF($AB$9='Base de données'!$A57,LOOKUP($AB$9,'Base de données'!$A57,'Base de données'!$J57)," ") -> D | J64: =IF($AB$9='Base de données'!$A57,LOOKUP($AB$9,'Base de données'!$A57,'Base de données'!$K57)," ") -> TOUS | K64: =IF($AB$9='Base de données'!$A57,LOOKUP($AB$9,'Base de données'!$A57,'Base de données'!$L57)," ") -> 89 | L64: =IF($AB$9='Base de données'!$A57,LOOKUP($AB$9,'Base de données'!$A57,'Base de données'!$M57)," ") -> 5 | M64: =IF($AB$9='Base de données'!$A57,LOOKUP($AB$9,'Base de données'!$A57,'Base de données'!$N57)," ") -> 364 | N64: =IF($AB$9='Base de données'!$A57,LOOKUP($AB$9,'Base de données'!$A57,'Base de données'!$O57)," ") -> - | W64: ='Base de données'!AE57 -> 0 | X64: =IF($W64=Visualisateur!$U$60,'Base de données'!$U$63,'Base de données'!$U$64) -> NUL
A65: =IF($AB$9='Base de données'!$A58,LOOKUP($AB$9,'Base de données'!$A58,'Base de données'!$B58)," ") -> 26-30/01/05 | B65: =IF($AB$9='Base de données'!$A58,LOOKUP($AB$9,'Base de données'!$A58,'Base de données'!$C58)," ") -> 2005 | C65: =IF($AB$9='Base de données'!$A58,LOOKUP($AB$9,'Base de données'!$A58,'Base de données'!$D58)," ") -> D37 | D65: =IF($AB$9='Base de données'!$A58,LOOKUP($AB$9,'Base de données'!$A58,'Base de données'!$E58)," ") -> STAM | E65: =IF($AB$9='Base de données'!$A58,LOOKUP($AB$9,'Base de données'!$A58,'Base de données'!$F58)," ") -> 6350A | F65: =IF($AB$9='Base de données'!$A58,LOOKUP($AB$9,'Base de données'!$A58,'Base de données'!$G58)," ") -> KNOLL Peter | G65: =IF($AB$9='Base de données'!$A58,LOOKUP($AB$9,'Base de données'!$A58,'Base de données'!$H58)," ") -> - | H65: =IF($AB$9='Base de données'!$A58,LOOKUP($AB$9,'Base de données'!$A58,'Base de données'!$I58)," ") -> 003 | I65: =IF($AB$9='Base de données'!$A58,LOOKUP($AB$9,'Base de données'!$A58,'Base de données'!$J58)," ") -> D | J65: =IF($AB$9='Base de données'!$A58,LOOKUP($AB$9,'Base de données'!$A58,'Base de données'!$K58)," ") -> TOUS | K65: =IF($AB$9='Base de données'!$A58,LOOKUP($AB$9,'Base de données'!$A58,'Base de données'!$L58)," ") -> 90 | L65: =IF($AB$9='Base de données'!$A58,LOOKUP($AB$9,'Base de données'!$A58,'Base de données'!$M58)," ") -> 4 | M65: =IF($AB$9='Base de données'!$A58,LOOKUP($AB$9,'Base de données'!$A58,'Base de données'!$N58)," ") -> 365 | N65: =IF($AB$9='Base de données'!$A58,LOOKUP($AB$9,'Base de données'!$A58,'Base de données'!$O58)," ") -> - | W65: ='Base de données'!AE58 -> 0 | X65: =IF($W65=Visualisateur!$U$60,'Base de données'!$U$63,'Base de données'!$U$64) -> NUL
A66: =IF($AB$9='Base de données'!$A59,LOOKUP($AB$9,'Base de données'!$A59,'Base de données'!$B59)," ") -> 26-30/01/05 | B66: =IF($AB$9='Base de données'!$A59,LOOKUP($AB$9,'Base de données'!$A59,'Base de données'!$C59)," ") -> 2005 | C66: =IF($AB$9='Base de données'!$A59,LOOKUP($AB$9,'Base de données'!$A59,'Base de données'!$D59)," ") -> D37 | D66: =IF($AB$9='Base de données'!$A59,LOOKUP($AB$9,'Base de données'!$A59,'Base de données'!$E59)," ") -> STAM | E66: =IF($AB$9='Base de données'!$A59,LOOKUP($AB$9,'Base de données'!$A59,'Base de données'!$F59)," ") -> 6350B | F66: =IF($AB$9='Base de données'!$A59,LOOKUP($AB$9,'Base de données'!$A59,'Base de données'!$G59)," ") -> KNOLL Peter | G66: =IF($AB$9='Base de données'!$A59,LOOKUP($AB$9,'Base de données'!$A59,'Base de données'!$H59)," ") -> - | H66: =IF($AB$9='Base de données'!$A59,LOOKUP($AB$9,'Base de données'!$A59,'Base de données'!$I59)," ") -> 005 | I66: =IF($AB$9='Base de données'!$A59,LOOKUP($AB$9,'Base de données'!$A59,'Base de données'!$J59)," ") -> D | J66: =IF($AB$9='Base de données'!$A59,LOOKUP($AB$9,'Base de données'!$A59,'Base de données'!$K59)," ") -> TOUS | K66: =IF($AB$9='Base de données'!$A59,LOOKUP($AB$9,'Base de données'!$A59,'Base de données'!$L59)," ") -> 91 | L66: =IF($AB$9='Base de données'!$A59,LOOKUP($AB$9,'Base de données'!$A59,'Base de données'!$M59)," ") -> 4 | M66: =IF($AB$9='Base de données'!$A59,LOOKUP($AB$9,'Base de données'!$A59,'Base de données'!$N59)," ") -> 365 | N66: =IF($AB$9='Base de données'!$A59,LOOKUP($AB$9,'Base de données'!$A59,'Base de données'!$O59)," ") -> - | W66: ='Base de données'!AE59 -> 0 | X66: =IF($W66=Visualisateur!$U$60,'Base de données'!$U$63,'Base de données'!$U$64) -> NUL
A67: =IF($AB$9='Base de données'!$A60,LOOKUP($AB$9,'Base de données'!$A60,'Base de données'!$B60)," ") -> 26-30/01/05 | B67: =IF($AB$9='Base de données'!$A60,LOOKUP($AB$9,'Base de données'!$A60,'Base de données'!$C60)," ") -> 2005 | C67: =IF($AB$9='Base de données'!$A60,LOOKUP($AB$9,'Base de données'!$A60,'Base de données'!$D60)," ") -> D37 | D67: =IF($AB$9='Base de données'!$A60,LOOKUP($AB$9,'Base de données'!$A60,'Base de données'!$E60)," ") -> STAM | E67: =IF($AB$9='Base de données'!$A60,LOOKUP($AB$9,'Base de données'!$A60,'Base de données'!$F60)," ") -> 6350C | F67: =IF($AB$9='Base de données'!$A60,LOOKUP($AB$9,'Base de données'!$A60,'Base de données'!$G60)," ") -> KNOLL Peter | G67: =IF($AB$9='Base de données'!$A60,LOOKUP($AB$9,'Base de données'!$A60,'Base de données'!$H60)," ") -> - | H67: =IF($AB$9='Base de données'!$A60,LOOKUP($AB$9,'Base de données'!$A60,'Base de données'!$I60)," ") -> 016 | I67: =IF($AB$9='Base de données'!$A60,LOOKUP($AB$9,'Base de données'!$A60,'Base de données'!$J60)," ") -> D | J67: =IF($AB$9='Base de données'!$A60,LOOKUP($AB$9,'Base de données'!$A60,'Base de données'!$K60)," ") -> TOUS | K67: =IF($AB$9='Base de données'!$A60,LOOKUP($AB$9,'Base de données'!$A60,'Base de données'!$L60)," ") -> 91 | L67: =IF($AB$9='Base de données'!$A60,LOOKUP($AB$9,'Base de données'!$A60,'Base de données'!$M60)," ") -> 4 | M67: =IF($AB$9='Base de données'!$A60,LOOKUP($AB$9,'Base de données'!$A60,'Base de données'!$N60)," ") -> 365 | N67: =IF($AB$9='Base de données'!$A60,LOOKUP($AB$9,'Base de données'!$A60,'Base de données'!$O60)," ") -> - | W67: ='Base de données'!AE60 -> 0 | X67: =IF($W67=Visualisateur!$U$60,'Base de données'!$U$63,'Base de données'!$U$64) -> NUL
A68: =IF($AB$9='Base de données'!$A61,LOOKUP($AB$9,'Base de données'!$A61,'Base de données'!$B61)," ") -> 26-30/01/05 | B68: =IF($AB$9='Base de données'!$A61,LOOKUP($AB$9,'Base de données'!$A61,'Base de données'!$C61)," ") -> 2005 | C68: =IF($AB$9='Base de données'!$A61,LOOKUP($AB$9,'Base de données'!$A61,'Base de données'!$D61)," ") -> D37 | D68: =IF($AB$9='Base de données'!$A61,LOOKUP($AB$9,'Base de données'!$A61,'Base de données'!$E61)," ") -> STAM | E68: =IF($AB$9='Base de données'!$A61,LOOKUP($AB$9,'Base de données'!$A61,'Base de données'!$F61)," ") -> 6350D | F68: =IF($AB$9='Base de données'!$A61,LOOKUP($AB$9,'Base de données'!$A61,'Base de données'!$G61)," ") -> KNOLL Peter | G68: =IF($AB$9='Base de données'!$A61,LOOKUP($AB$9,'Base de données'!$A61,'Base de données'!$H61)," ") -> - | H68: =IF($AB$9='Base de données'!$A61,LOOKUP($AB$9,'Base de données'!$A61,'Base de données'!$I61)," ") -> 013 | I68: =IF($AB$9='Base de données'!$A61,LOOKUP($AB$9,'Base de données'!$A61,'Base de données'!$J61)," ") -> D | J68: =IF($AB$9='Base de données'!$A61,LOOKUP($AB$9,'Base de données'!$A61,'Base de données'!$K61)," ") -> TOUS | K68: =IF($AB$9='Base de données'!$A61,LOOKUP($AB$9,'Base de données'!$A61,'Base de données'!$L61)," ") -> 89 | L68: =IF($AB$9='Base de données'!$A61,LOOKUP($AB$9,'Base de données'!$A61,'Base de données'!$M61)," ") -> 4 | M68: =IF($AB$9='Base de données'!$A61,LOOKUP($AB$9,'Base de données'!$A61,'Base de données'!$N61)," ") -> 365 | N68: =IF($AB$9='Base de données'!$A61,LOOKUP($AB$9,'Base de données'!$A61,'Base de données'!$O61)," ") -> - | W68: ='Base de données'!AE61 -> 0 | X68: =IF($W68=Visualisateur!$U$60,'Base de données'!$U$63,'Base de données'!$U$64) -> NUL
A69: =IF($AB$9='Base de données'!$A62,LOOKUP($AB$9,'Base de données'!$A62,'Base de données'!$B62)," ") -> 26-30/01/05 | B69: =IF($AB$9='Base de données'!$A62,LOOKUP($AB$9,'Base de données'!$A62,'Base de données'!$C62)," ") -> 2005 | C69: =IF($AB$9='Base de données'!$A62,LOOKUP($AB$9,'Base de données'!$A62,'Base de données'!$D62)," ") -> D37 | D69: =IF($AB$9='Base de données'!$A62,LOOKUP($AB$9,'Base de données'!$A62,'Base de données'!$E62)," ") -> STAM | E69: =IF($AB$9='Base de données'!$A62,LOOKUP($AB$9,'Base de données'!$A62,'Base de données'!$F62)," ") -> 6351A | F69: =IF($AB$9='Base de données'!$A62,LOOKUP($AB$9,'Base de données'!$A62,'Base de données'!$G62)," ") -> KNOLL Peter | G69: =IF($AB$9='Base de données'!$A62,LOOKUP($AB$9,'Base de données'!$A62,'Base de données'!$H62)," ") -> - | H69: =IF($AB$9='Base de données'!$A62,LOOKUP($AB$9,'Base de données'!$A62,'Base de données'!$I62)," ") -> 014 | I69: =IF($AB$9='Base de données'!$A62,LOOKUP($AB$9,'Base de données'!$A62,'Base de données'!$J62)," ") -> D | J69: =IF($AB$9='Base de données'!$A62,LOOKUP($AB$9,'Base de données'!$A62,'Base de données'!$K62)," ") -> TOUS | K69: =IF($AB$9='Base de données'!$A62,LOOKUP($AB$9,'Base de données'!$A62,'Base de données'!$L62)," ") -> 88 | L69: =IF($AB$9='Base de données'!$A62,LOOKUP($AB$9,'Base de données'!$A62,'Base de données'!$M62)," ") -> 4 | M69: =IF($AB$9='Base de données'!$A62,LOOKUP($AB$9,'Base de données'!$A62,'Base de données'!$N62)," ") -> 361 | N69: =IF($AB$9='Base de données'!$A62,LOOKUP($AB$9,'Base de données'!$A62,'Base de données'!$O62)," ") -> - | W69: ='Base de données'!AE62 -> 0 | X69: =IF($W69=Visualisateur!$U$60,'Base de données'!$U$63,'Base de données'!$U$64) -> NUL
A70: =IF($AB$9='Base de données'!$A63,LOOKUP($AB$9,'Base de données'!$A63,'Base de données'!$B63)," ") -> 26-30/01/05 | B70: =IF($AB$9='Base de données'!$A63,LOOKUP($AB$9,'Base de données'!$A63,'Base de données'!$C63)," ") -> 2005 | C70: =IF($AB$9='Base de données'!$A63,LOOKUP($AB$9,'Base de données'!$A63,'Base de données'!$D63)," ") -> D37 | D70: =IF($AB$9='Base de données'!$A63,LOOKUP($AB$9,'Base de données'!$A63,'Base de données'!$E63)," ") -> STAM | E70: =IF($AB$9='Base de données'!$A63,LOOKUP($AB$9,'Base de données'!$A63,'Base de données'!$F63)," ") -> 6351B | F70: =IF($AB$9='Base de données'!$A63,LOOKUP($AB$9,'Base de données'!$A63,'Base de données'!$G63)," ") -> KNOLL Peter | G70: =IF($AB$9='Base de données'!$A63,LOOKUP($AB$9,'Base de données'!$A63,'Base de données'!$H63)," ") -> - | H70: =IF($AB$9='Base de données'!$A63,LOOKUP($AB$9,'Base de données'!$A63,'Base de données'!$I63)," ") -> 015 | I70: =IF($AB$9='Base de données'!$A63,LOOKUP($AB$9,'Base de données'!$A63,'Base de données'!$J63)," ") -> D | J70: =IF($AB$9='Base de données'!$A63,LOOKUP($AB$9,'Base de données'!$A63,'Base de données'!$K63)," ") -> TOUS | K70: =IF($AB$9='Base de données'!$A63,LOOKUP($AB$9,'Base de données'!$A63,'Base de données'!$L63)," ") -> 90 | L70: =IF($AB$9='Base de données'!$A63,LOOKUP($AB$9,'Base de données'!$A63,'Base de données'!$M63)," ") -> 4 | M70: =IF($AB$9='Base de données'!$A63,LOOKUP($AB$9,'Base de données'!$A63,'Base de données'!$N63)," ") -> 361 | N70: =IF($AB$9='Base de données'!$A63,LOOKUP($AB$9,'Base de données'!$A63,'Base de données'!$O63)," ") -> - | W70: ='Base de données'!AE63 -> 0 | X70: =IF($W70=Visualisateur!$U$60,'Base de données'!$U$63,'Base de données'!$U$64) -> NUL
A71: =IF($AB$9='Base de données'!$A64,LOOKUP($AB$9,'Base de données'!$A64,'Base de données'!$B64)," ") -> 26-30/01/05 | B71: =IF($AB$9='Base de données'!$A64,LOOKUP($AB$9,'Base de données'!$A64,'Base de données'!$C64)," ") -> 2005 | C71: =IF($AB$9='Base de données'!$A64,LOOKUP($AB$9,'Base de données'!$A64,'Base de données'!$D64)," ") -> D37 | D71: =IF($AB$9='Base de données'!$A64,LOOKUP($AB$9,'Base de données'!$A64,'Base de données'!$E64)," ") -> STAM | E71: =IF($AB$9='Base de données'!$A64,LOOKUP($AB$9,'Base de données'!$A64,'Base de données'!$F64)," ") -> 6351C | F71: =IF($AB$9='Base de données'!$A64,LOOKUP($AB$9,'Base de données'!$A64,'Base de données'!$G64)," ") -> KNOLL Peter | G71: =IF($AB$9='Base de données'!$A64,LOOKUP($AB$9,'Base de données'!$A64,'Base de données'!$H64)," ") -> - | H71: =IF($AB$9='Base de données'!$A64,LOOKUP($AB$9,'Base de données'!$A64,'Base de données'!$I64)," ") -> 004 | I71: =IF($AB$9='Base de données'!$A64,LOOKUP($AB$9,'Base de données'!$A64,'Base de données'!$J64)," ") -> D | J71: =IF($AB$9='Base de données'!$A64,LOOKUP($AB$9,'Base de données'!$A64,'Base de données'!$K64)," ") -> TOUS | K71: =IF($AB$9='Base de données'!$A64,LOOKUP($AB$9,'Base de données'!$A64,'Base de données'!$L64)," ") -> 90 | L71: =IF($AB$9='Base de données'!$A64,LOOKUP($AB$9,'Base de données'!$A64,'Base de données'!$M64)," ") -> 4 | M71: =IF($AB$9='Base de données'!$A64,LOOKUP($AB$9,'Base de données'!$A64,'Base de données'!$N64)," ") -> 361 | N71: =IF($AB$9='Base de données'!$A64,LOOKUP($AB$9,'Base de données'!$A64,'Base de données'!$O64)," ") -> - | W71: ='Base de données'!AE64 -> 0 | X71: =IF($W71=Visualisateur!$U$60,'Base de données'!$U$63,'Base de données'!$U$64) -> NUL
A72: =IF($AB$9='Base de données'!$A65,LOOKUP($AB$9,'Base de données'!$A65,'Base de données'!$B65)," ") -> 26-30/01/05 | B72: =IF($AB$9='Base de données'!$A65,LOOKUP($AB$9,'Base de données'!$A65,'Base de données'!$C65)," ") -> 2005 | C72: =IF($AB$9='Base de données'!$A65,LOOKUP($AB$9,'Base de données'!$A65,'Base de données'!$D65)," ") -> D37 | D72: =IF($AB$9='Base de données'!$A65,LOOKUP($AB$9,'Base de données'!$A65,'Base de données'!$E65)," ") -> STAM | E72: =IF($AB$9='Base de données'!$A65,LOOKUP($AB$9,'Base de données'!$A65,'Base de données'!$F65)," ") -> 6351D | F72: =IF($AB$9='Base de données'!$A65,LOOKUP($AB$9,'Base de données'!$A65,'Base de données'!$G65)," ") -> KNOLL Peter | G72: =IF($AB$9='Base de données'!$A65,LOOKUP($AB$9,'Base de données'!$A65,'Base de données'!$H65)," ") -> - | H72: =IF($AB$9='Base de données'!$A65,LOOKUP($AB$9,'Base de données'!$A65,'Base de données'!$I65)," ") -> 043 | I72: =IF($AB$9='Base de données'!$A65,LOOKUP($AB$9,'Base de données'!$A65,'Base de données'!$J65)," ") -> D | J72: =IF($AB$9='Base de données'!$A65,LOOKUP($AB$9,'Base de données'!$A65,'Base de données'!$K65)," ") -> TOUS | K72: =IF($AB$9='Base de données'!$A65,LOOKUP($AB$9,'Base de données'!$A65,'Base de données'!$L65)," ") -> 89 | L72: =IF($AB$9='Base de données'!$A65,LOOKUP($AB$9,'Base de données'!$A65,'Base de données'!$M65)," ") -> 4 | M72: =IF($AB$9='Base de données'!$A65,LOOKUP($AB$9,'Base de données'!$A65,'Base de données'!$N65)," ") -> 361 | N72: =IF($AB$9='Base de données'!$A65,LOOKUP($AB$9,'Base de données'!$A65,'Base de données'!$O65)," ") -> - | W72: ='Base de données'!AE65 -> 0 | X72: =IF($W72=Visualisateur!$U$60,'Base de données'!$U$63,'Base de données'!$U$64) -> NUL
A73: =IF($AB$9='Base de données'!$A66,LOOKUP($AB$9,'Base de données'!$A66,'Base de données'!$B66)," ") -> 26-30/01/05 | B73: =IF($AB$9='Base de données'!$A66,LOOKUP($AB$9,'Base de données'!$A66,'Base de données'!$C66)," ") -> 2005 | C73: =IF($AB$9='Base de données'!$A66,LOOKUP($AB$9,'Base de données'!$A66,'Base de données'!$D66)," ") -> D37 | D73: =IF($AB$9='Base de données'!$A66,LOOKUP($AB$9,'Base de données'!$A66,'Base de données'!$E66)," ") -> STAM | E73: =IF($AB$9='Base de données'!$A66,LOOKUP($AB$9,'Base de données'!$A66,'Base de données'!$F66)," ") -> 6352A | F73: =IF($AB$9='Base de données'!$A66,LOOKUP($AB$9,'Base de données'!$A66,'Base de données'!$G66)," ") -> KONERT Karl Heinz | G73: =IF($AB$9='Base de données'!$A66,LOOKUP($AB$9,'Base de données'!$A66,'Base de données'!$H66)," ") -> - | H73: =IF($AB$9='Base de données'!$A66,LOOKUP($AB$9,'Base de données'!$A66,'Base de données'!$I66)," ") -> 030 | I73: =IF($AB$9='Base de données'!$A66,LOOKUP($AB$9,'Base de données'!$A66,'Base de données'!$J66)," ") -> D | J73: =IF($AB$9='Base de données'!$A66,LOOKUP($AB$9,'Base de données'!$A66,'Base de données'!$K66)," ") -> TOUS | K73: =IF($AB$9='Base de données'!$A66,LOOKUP($AB$9,'Base de données'!$A66,'Base de données'!$L66)," ") -> 88 | L73: =IF($AB$9='Base de données'!$A66,LOOKUP($AB$9,'Base de données'!$A66,'Base de données'!$M66)," ") -> 4 | M73: =IF($AB$9='Base de données'!$A66,LOOKUP($AB$9,'Base de données'!$A66,'Base de données'!$N66)," ") -> 356 | N73: =IF($AB$9='Base de données'!$A66,LOOKUP($AB$9,'Base de données'!$A66,'Base de données'!$O66)," ") -> - | W73: ='Base de données'!AE66 -> 0 | X73: =IF($W73=Visualisateur!$U$60,'Base de données'!$U$63,'Base de données'!$U$64) -> NUL
A74: =IF($AB$9='Base de données'!$A67,LOOKUP($AB$9,'Base de données'!$A67,'Base de données'!$B67)," ") -> 26-30/01/05 | B74: =IF($AB$9='Base de données'!$A67,LOOKUP($AB$9,'Base de données'!$A67,'Base de données'!$C67)," ") -> 2005 | C74: =IF($AB$9='Base de données'!$A67,LOOKUP($AB$9,'Base de données'!$A67,'Base de données'!$D67)," ") -> D37 | D74: =IF($AB$9='Base de données'!$A67,LOOKUP($AB$9,'Base de données'!$A67,'Base de données'!$E67)," ") -> STAM | E74: =IF($AB$9='Base de données'!$A67,LOOKUP($AB$9,'Base de données'!$A67,'Base de données'!$F67)," ") -> 6352B | F74: =IF($AB$9='Base de données'!$A67,LOOKUP($AB$9,'Base de données'!$A67,'Base de données'!$G67)," ") -> KONERT Karl Heinz | G74: =IF($AB$9='Base de données'!$A67,LOOKUP($AB$9,'Base de données'!$A67,'Base de données'!$H67)," ") -> - | H74: =IF($AB$9='Base de données'!$A67,LOOKUP($AB$9,'Base de données'!$A67,'Base de données'!$I67)," ") -> 017 | I74: =IF($AB$9='Base de données'!$A67,LOOKUP($AB$9,'Base de données'!$A67,'Base de données'!$J67)," ") -> D | J74: =IF($AB$9='Base de données'!$A67,LOOKUP($AB$9,'Base de données'!$A67,'Base de données'!$K67)," ") -> TOUS | K74: =IF($AB$9='Base de données'!$A67,LOOKUP($AB$9,'Base de données'!$A67,'Base de données'!$L67)," ") -> 87 | L74: =IF($AB$9='Base de données'!$A67,LOOKUP($AB$9,'Base de données'!$A67,'Base de données'!$M67)," ") -> 4 | M74: =IF($AB$9='Base de données'!$A67,LOOKUP($AB$9,'Base de données'!$A67,'Base de données'!$N67)," ") -> 356 | N74: =IF($AB$9='Base de données'!$A67,LOOKUP($AB$9,'Base de données'!$A67,'Base de données'!$O67)," ") -> - | W74: ='Base de données'!AE67 -> 0 | X74: =IF($W74=Visualisateur!$U$60,'Base de données'!$U$63,'Base de données'!$U$64) -> NUL
A75: =IF($AB$9='Base de données'!$A68,LOOKUP($AB$9,'Base de données'!$A68,'Base de données'!$B68)," ") -> 26-30/01/05 | B75: =IF($AB$9='Base de données'!$A68,LOOKUP($AB$9,'Base de données'!$A68,'Base de données'!$C68)," ") -> 2005 | C75: =IF($AB$9='Base de données'!$A68,LOOKUP($AB$9,'Base de données'!$A68,'Base de données'!$D68)," ") -> D37 | D75: =IF($AB$9='Base de données'!$A68,LOOKUP($AB$9,'Base de données'!$A68,'Base de données'!$E68)," ") -> STAM | E75: =IF($AB$9='Base de données'!$A68,LOOKUP($AB$9,'Base de données'!$A68,'Base de données'!$F68)," ") -> 6352C | F75: =IF($AB$9='Base de données'!$A68,LOOKUP($AB$9,'Base de données'!$A68,'Base de données'!$G68)," ") -> KONERT Karl Heinz | G75: =IF($AB$9='Base de données'!$A68,LOOKUP($AB$9,'Base de données'!$A68,'Base de données'!$H68)," ") -> - | H75: =IF($AB$9='Base de données'!$A68,LOOKUP($AB$9,'Base de données'!$A68,'Base de données'!$I68)," ") -> 044 | I75: =IF($AB$9='Base de données'!$A68,LOOKUP($AB$9,'Base de données'!$A68,'Base de données'!$J68)," ") -> D | J75: =IF($AB$9='Base de données'!$A68,LOOKUP($AB$9,'Base de données'!$A68,'Base de données'!$K68)," ") -> TOUS | K75: =IF($AB$9='Base de données'!$A68,LOOKUP($AB$9,'Base de données'!$A68,'Base de données'!$L68)," ") -> 88 | L75: =IF($AB$9='Base de données'!$A68,LOOKUP($AB$9,'Base de données'!$A68,'Base de données'!$M68)," ") -> 4 | M75: =IF($AB$9='Base de données'!$A68,LOOKUP($AB$9,'Base de données'!$A68,'Base de données'!$N68)," ") -> 356 | N75: =IF($AB$9='Base de données'!$A68,LOOKUP($AB$9,'Base de données'!$A68,'Base de données'!$O68)," ") -> - | W75: ='Base de données'!AE68 -> 0 | X75: =IF($W75=Visualisateur!$U$60,'Base de données'!$U$63,'Base de données'!$U$64) -> NUL
A76: =IF($AB$9='Base de données'!$A69,LOOKUP($AB$9,'Base de données'!$A69,'Base de données'!$B69)," ") -> 26-30/01/05 | B76: =IF($AB$9='Base de données'!$A69,LOOKUP($AB$9,'Base de données'!$A69,'Base de données'!$C69)," ") -> 2005 | C76: =IF($AB$9='Base de données'!$A69,LOOKUP($AB$9,'Base de données'!$A69,'Base de données'!$D69)," ") -> D37 | D76: =IF($AB$9='Base de données'!$A69,LOOKUP($AB$9,'Base de données'!$A69,'Base de données'!$E69)," ") -> STAM | E76: =IF($AB$9='Base de données'!$A69,LOOKUP($AB$9,'Base de données'!$A69,'Base de données'!$F69)," ") -> 6352D | F76: =IF($AB$9='Base de données'!$A69,LOOKUP($AB$9,'Base de données'!$A69,'Base de données'!$G69)," ") -> KONERT Karl Heinz | G76: =IF($AB$9='Base de données'!$A69,LOOKUP($AB$9,'Base de données'!$A69,'Base de données'!$H69)," ") -> - | H76: =IF($AB$9='Base de données'!$A69,LOOKUP($AB$9,'Base de données'!$A69,'Base de données'!$I69)," ") -> 029 | I76: =IF($AB$9='Base de données'!$A69,LOOKUP($AB$9,'Base de données'!$A69,'Base de données'!$J69)," ") -> D | J76: =IF($AB$9='Base de données'!$A69,LOOKUP($AB$9,'Base de données'!$A69,'Base de données'!$K69)," ") -> TOUS | K76: =IF($AB$9='Base de données'!$A69,LOOKUP($AB$9,'Base de données'!$A69,'Base de données'!$L69)," ") -> 89 | L76: =IF($AB$9='Base de données'!$A69,LOOKUP($AB$9,'Base de données'!$A69,'Base de données'!$M69)," ") -> 4 | M76: =IF($AB$9='Base de données'!$A69,LOOKUP($AB$9,'Base de données'!$A69,'Base de données'!$N69)," ") -> 356 | N76: =IF($AB$9='Base de données'!$A69,LOOKUP($AB$9,'Base de données'!$A69,'Base de données'!$O69)," ") -> - | W76: ='Base de données'!AE69 -> 0 | X76: =IF($W76=Visualisateur!$U$60,'Base de données'!$U$63,'Base de données'!$U$64) -> NUL | Z76: =IF($X76=$AB$14,$W76," ") -> 
A77: =IF($AB$9='Base de données'!$A70,LOOKUP($AB$9,'Base de données'!$A70,'Base de données'!$B70)," ") -> 26-30/01/05 | B77: =IF($AB$9='Base de données'!$A70,LOOKUP($AB$9,'Base de données'!$A70,'Base de données'!$C70)," ") -> 2005 | C77: =IF($AB$9='Base de données'!$A70,LOOKUP($AB$9,'Base de données'!$A70,'Base de données'!$D70)," ") -> D37 | D77: =IF($AB$9='Base de données'!$A70,LOOKUP($AB$9,'Base de données'!$A70,'Base de données'!$E70)," ") -> STAM | E77: =IF($AB$9='Base de données'!$A70,LOOKUP($AB$9,'Base de données'!$A70,'Base de données'!$F70)," ") -> 6353A | F77: =IF($AB$9='Base de données'!$A70,LOOKUP($AB$9,'Base de données'!$A70,'Base de données'!$G70)," ") -> KONERT Karl Heinz | G77: =IF($AB$9='Base de données'!$A70,LOOKUP($AB$9,'Base de données'!$A70,'Base de données'!$H70)," ") -> - | H77: =IF($AB$9='Base de données'!$A70,LOOKUP($AB$9,'Base de données'!$A70,'Base de données'!$I70)," ") -> 034 | I77: =IF($AB$9='Base de données'!$A70,LOOKUP($AB$9,'Base de données'!$A70,'Base de données'!$J70)," ") -> D | J77: =IF($AB$9='Base de données'!$A70,LOOKUP($AB$9,'Base de données'!$A70,'Base de données'!$K70)," ") -> TOUS | K77: =IF($AB$9='Base de données'!$A70,LOOKUP($AB$9,'Base de données'!$A70,'Base de données'!$L70)," ") -> 90 | L77: =IF($AB$9='Base de données'!$A70,LOOKUP($AB$9,'Base de données'!$A70,'Base de données'!$M70)," ") -> 5 | M77: =IF($AB$9='Base de données'!$A70,LOOKUP($AB$9,'Base de données'!$A70,'Base de données'!$N70)," ") -> 364 | N77: =IF($AB$9='Base de données'!$A70,LOOKUP($AB$9,'Base de données'!$A70,'Base de données'!$O70)," ") -> - | W77: ='Base de données'!AE70 -> 0 | X77: =IF($W77=Visualisateur!$U$60,'Base de données'!$U$63,'Base de données'!$U$64) -> NUL
A78: =IF($AB$9='Base de données'!$A71,LOOKUP($AB$9,'Base de données'!$A71,'Base de données'!$B71)," ") -> 26-30/01/05 | B78: =IF($AB$9='Base de données'!$A71,LOOKUP($AB$9,'Base de données'!$A71,'Base de données'!$C71)," ") -> 2005 | C78: =IF($AB$9='Base de données'!$A71,LOOKUP($AB$9,'Base de données'!$A71,'Base de données'!$D71)," ") -> D37 | D78: =IF($AB$9='Base de données'!$A71,LOOKUP($AB$9,'Base de données'!$A71,'Base de données'!$E71)," ") -> STAM | E78: =IF($AB$9='Base de données'!$A71,LOOKUP($AB$9,'Base de données'!$A71,'Base de données'!$F71)," ") -> 6353B | F78: =IF($AB$9='Base de données'!$A71,LOOKUP($AB$9,'Base de données'!$A71,'Base de données'!$G71)," ") -> KONERT Karl Heinz | G78: =IF($AB$9='Base de données'!$A71,LOOKUP($AB$9,'Base de données'!$A71,'Base de données'!$H71)," ") -> - | H78: =IF($AB$9='Base de données'!$A71,LOOKUP($AB$9,'Base de données'!$A71,'Base de données'!$I71)," ") -> 040 | I78: =IF($AB$9='Base de données'!$A71,LOOKUP($AB$9,'Base de données'!$A71,'Base de données'!$J71)," ") -> D | J78: =IF($AB$9='Base de données'!$A71,LOOKUP($AB$9,'Base de données'!$A71,'Base de données'!$K71)," ") -> TOUS | K78: =IF($AB$9='Base de données'!$A71,LOOKUP($AB$9,'Base de données'!$A71,'Base de données'!$L71)," ") -> 90 | L78: =IF($AB$9='Base de données'!$A71,LOOKUP($AB$9,'Base de données'!$A71,'Base de données'!$M71)," ") -> 5 | M78: =IF($AB$9='Base de données'!$A71,LOOKUP($AB$9,'Base de données'!$A71,'Base de données'!$N71)," ") -> 364 | N78: =IF($AB$9='Base de données'!$A71,LOOKUP($AB$9,'Base de données'!$A71,'Base de données'!$O71)," ") -> - | W78: ='Base de données'!AE71 -> 0 | X78: =IF($W78=Visualisateur!$U$60,'Base de données'!$U$63,'Base de données'!$U$64) -> NUL
A79: =IF($AB$9='Base de données'!$A72,LOOKUP($AB$9,'Base de données'!$A72,'Base de données'!$B72)," ") -> 26-30/01/05 | B79: =IF($AB$9='Base de données'!$A72,LOOKUP($AB$9,'Base de données'!$A72,'Base de données'!$C72)," ") -> 2005 | C79: =IF($AB$9='Base de données'!$A72,LOOKUP($AB$9,'Base de données'!$A72,'Base de données'!$D72)," ") -> D37 | D79: =IF($AB$9='Base de données'!$A72,LOOKUP($AB$9,'Base de données'!$A72,'Base de données'!$E72)," ") -> STAM | E79: =IF($AB$9='Base de données'!$A72,LOOKUP($AB$9,'Base de données'!$A72,'Base de données'!$F72)," ") -> 6353C | F79: =IF($AB$9='Base de données'!$A72,LOOKUP($AB$9,'Base de données'!$A72,'Base de données'!$G72)," ") -> KONERT Karl Heinz | G79: =IF($AB$9='Base de données'!$A72,LOOKUP($AB$9,'Base de données'!$A72,'Base de données'!$H72)," ") -> - | H79: =IF($AB$9='Base de données'!$A72,LOOKUP($AB$9,'Base de données'!$A72,'Base de données'!$I72)," ") -> 037 | I79: =IF($AB$9='Base de données'!$A72,LOOKUP($AB$9,'Base de données'!$A72,'Base de données'!$J72)," ") -> D | J79: =IF($AB$9='Base de données'!$A72,LOOKUP($AB$9,'Base de données'!$A72,'Base de données'!$K72)," ") -> TOUS | K79: =IF($AB$9='Base de données'!$A72,LOOKUP($AB$9,'Base de données'!$A72,'Base de données'!$L72)," ") -> 89 | L79: =IF($AB$9='Base de données'!$A72,LOOKUP($AB$9,'Base de données'!$A72,'Base de données'!$M72)," ") -> 5 | M79: =IF($AB$9='Base de données'!$A72,LOOKUP($AB$9,'Base de données'!$A72,'Base de données'!$N72)," ") -> 364 | N79: =IF($AB$9='Base de données'!$A72,LOOKUP($AB$9,'Base de données'!$A72,'Base de données'!$O72)," ") -> - | W79: ='Base de données'!AE72 -> 0 | X79: =IF($W79=Visualisateur!$U$60,'Base de données'!$U$63,'Base de données'!$U$64) -> NUL
A80: =IF($AB$9='Base de données'!$A73,LOOKUP($AB$9,'Base de données'!$A73,'Base de données'!$B73)," ") -> 26-30/01/05 | B80: =IF($AB$9='Base de données'!$A73,LOOKUP($AB$9,'Base de données'!$A73,'Base de données'!$C73)," ") -> 2005 | C80: =IF($AB$9='Base de données'!$A73,LOOKUP($AB$9,'Base de données'!$A73,'Base de données'!$D73)," ") -> D37 | D80: =IF($AB$9='Base de données'!$A73,LOOKUP($AB$9,'Base de données'!$A73,'Base de données'!$E73)," ") -> STAM | E80: =IF($AB$9='Base de données'!$A73,LOOKUP($AB$9,'Base de données'!$A73,'Base de données'!$F73)," ") -> 6353D | F80: =IF($AB$9='Base de données'!$A73,LOOKUP($AB$9,'Base de données'!$A73,'Base de données'!$G73)," ") -> KONERT Karl Heinz | G80: =IF($AB$9='Base de données'!$A73,LOOKUP($AB$9,'Base de données'!$A73,'Base de données'!$H73)," ") -> - | H80: =IF($AB$9='Base de données'!$A73,LOOKUP($AB$9,'Base de données'!$A73,'Base de données'!$I73)," ") -> 026 | I80: =IF($AB$9='Base de données'!$A73,LOOKUP($AB$9,'Base de données'!$A73,'Base de données'!$J73)," ") -> D | J80: =IF($AB$9='Base de données'!$A73,LOOKUP($AB$9,'Base de données'!$A73,'Base de données'!$K73)," ") -> TOUS | K80: =IF($AB$9='Base de données'!$A73,LOOKUP($AB$9,'Base de données'!$A73,'Base de données'!$L73)," ") -> 90 | L80: =IF($AB$9='Base de données'!$A73,LOOKUP($AB$9,'Base de données'!$A73,'Base de données'!$M73)," ") -> 5 | M80: =IF($AB$9='Base de données'!$A73,LOOKUP($AB$9,'Base de données'!$A73,'Base de données'!$N73)," ") -> 364 | N80: =IF($AB$9='Base de données'!$A73,LOOKUP($AB$9,'Base de données'!$A73,'Base de données'!$O73)," ") -> - | W80: ='Base de données'!AE73 -> 0 | X80: =IF($W80=Visualisateur!$U$60,'Base de données'!$U$63,'Base de données'!$U$64) -> NUL
A81: =IF($AB$9='Base de données'!$A74,LOOKUP($AB$9,'Base de données'!$A74,'Base de données'!$B74)," ") -> 26-30/01/05 | B81: =IF($AB$9='Base de données'!$A74,LOOKUP($AB$9,'Base de données'!$A74,'Base de données'!$C74)," ") -> 2005 | C81: =IF($AB$9='Base de données'!$A74,LOOKUP($AB$9,'Base de données'!$A74,'Base de données'!$D74)," ") -> D37 | D81: =IF($AB$9='Base de données'!$A74,LOOKUP($AB$9,'Base de données'!$A74,'Base de données'!$E74)," ") -> STAM | E81: =IF($AB$9='Base de données'!$A74,LOOKUP($AB$9,'Base de données'!$A74,'Base de données'!$F74)," ") -> 6354A | F81: =IF($AB$9='Base de données'!$A74,LOOKUP($AB$9,'Base de données'!$A74,'Base de données'!$G74)," ") -> KREHER Willi | G81: =IF($AB$9='Base de données'!$A74,LOOKUP($AB$9,'Base de données'!$A74,'Base de données'!$H74)," ") -> - | H81: =IF($AB$9='Base de données'!$A74,LOOKUP($AB$9,'Base de données'!$A74,'Base de données'!$I74)," ") -> 123 | I81: =IF($AB$9='Base de données'!$A74,LOOKUP($AB$9,'Base de données'!$A74,'Base de données'!$J74)," ") -> D | J81: =IF($AB$9='Base de données'!$A74,LOOKUP($AB$9,'Base de données'!$A74,'Base de données'!$K74)," ") -> TOUS | K81: =IF($AB$9='Base de données'!$A74,LOOKUP($AB$9,'Base de données'!$A74,'Base de données'!$L74)," ") -> 93 | L81: =IF($AB$9='Base de données'!$A74,LOOKUP($AB$9,'Base de données'!$A74,'Base de données'!$M74)," ") -> 3 | M81: =IF($AB$9='Base de données'!$A74,LOOKUP($AB$9,'Base de données'!$A74,'Base de données'!$N74)," ") -> 368 | N81: =IF($AB$9='Base de données'!$A74,LOOKUP($AB$9,'Base de données'!$A74,'Base de données'!$O74)," ") -> AG | W81: ='Base de données'!AE74 -> 0 | X81: =IF($W81=Visualisateur!$U$60,'Base de données'!$U$63,'Base de données'!$U$64) -> NUL
A82: =IF($AB$9='Base de données'!$A75,LOOKUP($AB$9,'Base de données'!$A75,'Base de données'!$B75)," ") -> 26-30/01/05 | B82: =IF($AB$9='Base de données'!$A75,LOOKUP($AB$9,'Base de données'!$A75,'Base de données'!$C75)," ") -> 2005 | C82: =IF($AB$9='Base de données'!$A75,LOOKUP($AB$9,'Base de données'!$A75,'Base de données'!$D75)," ") -> D37 | D82: =IF($AB$9='Base de données'!$A75,LOOKUP($AB$9,'Base de données'!$A75,'Base de données'!$E75)," ") -> STAM | E82: =IF($AB$9='Base de données'!$A75,LOOKUP($AB$9,'Base de données'!$A75,'Base de données'!$F75)," ") -> 6354B | F82: =IF($AB$9='Base de données'!$A75,LOOKUP($AB$9,'Base de données'!$A75,'Base de données'!$G75)," ") -> KREHER Willi | G82: =IF($AB$9='Base de données'!$A75,LOOKUP($AB$9,'Base de données'!$A75,'Base de données'!$H75)," ") -> - | H82: =IF($AB$9='Base de données'!$A75,LOOKUP($AB$9,'Base de données'!$A75,'Base de données'!$I75)," ") -> 122 | I82: =IF($AB$9='Base de données'!$A75,LOOKUP($AB$9,'Base de données'!$A75,'Base de données'!$J75)," ") -> D | J82: =IF($AB$9='Base de données'!$A75,LOOKUP($AB$9,'Base de données'!$A75,'Base de données'!$K75)," ") -> TOUS | K82: =IF($AB$9='Base de données'!$A75,LOOKUP($AB$9,'Base de données'!$A75,'Base de données'!$L75)," ") -> 91 | L82: =IF($AB$9='Base de données'!$A75,LOOKUP($AB$9,'Base de données'!$A75,'Base de données'!$M75)," ") -> 3 | M82: =IF($AB$9='Base de données'!$A75,LOOKUP($AB$9,'Base de données'!$A75,'Base de données'!$N75)," ") -> 368 | N82: =IF($AB$9='Base de données'!$A75,LOOKUP($AB$9,'Base de données'!$A75,'Base de données'!$O75)," ") -> AG | W82: ='Base de données'!AE75 -> 0 | X82: =IF($W82=Visualisateur!$U$60,'Base de données'!$U$63,'Base de données'!$U$64) -> NUL
A83: =IF($AB$9='Base de données'!$A76,LOOKUP($AB$9,'Base de données'!$A76,'Base de données'!$B76)," ") -> 26-30/01/05 | B83: =IF($AB$9='Base de données'!$A76,LOOKUP($AB$9,'Base de données'!$A76,'Base de données'!$C76)," ") -> 2005 | C83: =IF($AB$9='Base de données'!$A76,LOOKUP($AB$9,'Base de données'!$A76,'Base de données'!$D76)," ") -> D37 | D83: =IF($AB$9='Base de données'!$A76,LOOKUP($AB$9,'Base de données'!$A76,'Base de données'!$E76)," ") -> STAM | E83: =IF($AB$9='Base de données'!$A76,LOOKUP($AB$9,'Base de données'!$A76,'Base de données'!$F76)," ") -> 6354C | F83: =IF($AB$9='Base de données'!$A76,LOOKUP($AB$9,'Base de données'!$A76,'Base de données'!$G76)," ") -> KREHER Willi | G83: =IF($AB$9='Base de données'!$A76,LOOKUP($AB$9,'Base de données'!$A76,'Base de données'!$H76)," ") -> - | H83: =IF($AB$9='Base de données'!$A76,LOOKUP($AB$9,'Base de données'!$A76,'Base de données'!$I76)," ") -> 109 | I83: =IF($AB$9='Base de données'!$A76,LOOKUP($AB$9,'Base de données'!$A76,'Base de données'!$J76)," ") -> D | J83: =IF($AB$9='Base de données'!$A76,LOOKUP($AB$9,'Base de données'!$A76,'Base de données'!$K76)," ") -> TOUS | K83: =IF($AB$9='Base de données'!$A76,LOOKUP($AB$9,'Base de données'!$A76,'Base de données'!$L76)," ") -> 91 | L83: =IF($AB$9='Base de données'!$A76,LOOKUP($AB$9,'Base de données'!$A76,'Base de données'!$M76)," ") -> 3 | M83: =IF($AB$9='Base de données'!$A76,LOOKUP($AB$9,'Base de données'!$A76,'Base de données'!$N76)," ") -> 368 | N83: =IF($AB$9='Base de données'!$A76,LOOKUP($AB$9,'Base de données'!$A76,'Base de données'!$O76)," ") -> AG | W83: ='Base de données'!AE76 -> 0 | X83: =IF($W83=Visualisateur!$U$60,'Base de données'!$U$63,'Base de données'!$U$64) -> NUL
A84: =IF($AB$9='Base de données'!$A77,LOOKUP($AB$9,'Base de données'!$A77,'Base de données'!$B77)," ") -> 26-30/01/05 | B84: =IF($AB$9='Base de données'!$A77,LOOKUP($AB$9,'Base de données'!$A77,'Base de données'!$C77)," ") -> 2005 | C84: =IF($AB$9='Base de données'!$A77,LOOKUP($AB$9,'Base de données'!$A77,'Base de données'!$D77)," ") -> D37 | D84: =IF($AB$9='Base de données'!$A77,LOOKUP($AB$9,'Base de données'!$A77,'Base de données'!$E77)," ") -> STAM | E84: =IF($AB$9='Base de données'!$A77,LOOKUP($AB$9,'Base de données'!$A77,'Base de données'!$F77)," ") -> 6354D | F84: =IF($AB$9='Base de données'!$A77,LOOKUP($AB$9,'Base de données'!$A77,'Base de données'!$G77)," ") -> KREHER Willi | G84: =IF($AB$9='Base de données'!$A77,LOOKUP($AB$9,'Base de données'!$A77,'Base de données'!$H77)," ") -> - | H84: =IF($AB$9='Base de données'!$A77,LOOKUP($AB$9,'Base de données'!$A77,'Base de données'!$I77)," ") -> 102 | I84: =IF($AB$9='Base de données'!$A77,LOOKUP($AB$9,'Base de données'!$A77,'Base de données'!$J77)," ") -> D | J84: =IF($AB$9='Base de données'!$A77,LOOKUP($AB$9,'Base de données'!$A77,'Base de données'!$K77)," ") -> TOUS | K84: =IF($AB$9='Base de données'!$A77,LOOKUP($AB$9,'Base de données'!$A77,'Base de données'!$L77)," ") -> 90 | L84: =IF($AB$9='Base de données'!$A77,LOOKUP($AB$9,'Base de données'!$A77,'Base de données'!$M77)," ") -> 3 | M84: =IF($AB$9='Base de données'!$A77,LOOKUP($AB$9,'Base de données'!$A77,'Base de données'!$N77)," ") -> 368 | N84: =IF($AB$9='Base de données'!$A77,LOOKUP($AB$9,'Base de données'!$A77,'Base de données'!$O77)," ") -> AG | W84: ='Base de données'!AE77 -> 0 | X84: =IF($W84=Visualisateur!$U$60,'Base de données'!$U$63,'Base de données'!$U$64) -> NUL
A85: =IF($AB$9='Base de données'!$A78,LOOKUP($AB$9,'Base de données'!$A78,'Base de données'!$B78)," ") -> 26-30/01/05 | B85: =IF($AB$9='Base de données'!$A78,LOOKUP($AB$9,'Base de données'!$A78,'Base de données'!$C78)," ") -> 2005 | C85: =IF($AB$9='Base de données'!$A78,LOOKUP($AB$9,'Base de données'!$A78,'Base de données'!$D78)," ") -> D37 | D85: =IF($AB$9='Base de données'!$A78,LOOKUP($AB$9,'Base de données'!$A78,'Base de données'!$E78)," ") -> STAM | E85: =IF($AB$9='Base de données'!$A78,LOOKUP($AB$9,'Base de données'!$A78,'Base de données'!$F78)," ") -> 6355A | F85: =IF($AB$9='Base de données'!$A78,LOOKUP($AB$9,'Base de données'!$A78,'Base de données'!$G78)," ") -> KREHER Willi | G85: =IF($AB$9='Base de données'!$A78,LOOKUP($AB$9,'Base de données'!$A78,'Base de données'!$H78)," ") -> - | H85: =IF($AB$9='Base de données'!$A78,LOOKUP($AB$9,'Base de données'!$A78,'Base de données'!$I78)," ") -> 126 | I85: =IF($AB$9='Base de données'!$A78,LOOKUP($AB$9,'Base de données'!$A78,'Base de données'!$J78)," ") -> D | J85: =IF($AB$9='Base de données'!$A78,LOOKUP($AB$9,'Base de données'!$A78,'Base de données'!$K78)," ") -> TOUS | K85: =IF($AB$9='Base de données'!$A78,LOOKUP($AB$9,'Base de données'!$A78,'Base de données'!$L78)," ") -> 89 | L85: =IF($AB$9='Base de données'!$A78,LOOKUP($AB$9,'Base de données'!$A78,'Base de données'!$M78)," ") -> 4 | M85: =IF($AB$9='Base de données'!$A78,LOOKUP($AB$9,'Base de données'!$A78,'Base de données'!$N78)," ") -> 360 | N85: =IF($AB$9='Base de données'!$A78,LOOKUP($AB$9,'Base de données'!$A78,'Base de données'!$O78)," ") -> - | W85: ='Base de données'!AE78 -> 0 | X85: =IF($W85=Visualisateur!$U$60,'Base de données'!$U$63,'Base de données'!$U$64) -> NUL
A86: =IF($AB$9='Base de données'!$A79,LOOKUP($AB$9,'Base de données'!$A79,'Base de données'!$B79)," ") -> 26-30/01/05 | B86: =IF($AB$9='Base de données'!$A79,LOOKUP($AB$9,'Base de données'!$A79,'Base de données'!$C79)," ") -> 2005 | C86: =IF($AB$9='Base de données'!$A79,LOOKUP($AB$9,'Base de données'!$A79,'Base de données'!$D79)," ") -> D37 | D86: =IF($AB$9='Base de données'!$A79,LOOKUP($AB$9,'Base de données'!$A79,'Base de données'!$E79)," ") -> STAM | E86: =IF($AB$9='Base de données'!$A79,LOOKUP($AB$9,'Base de données'!$A79,'Base de données'!$F79)," ") -> 6355B | F86: =IF($AB$9='Base de données'!$A79,LOOKUP($AB$9,'Base de données'!$A79,'Base de données'!$G79)," ") -> KREHER Willi | G86: =IF($AB$9='Base de données'!$A79,LOOKUP($AB$9,'Base de données'!$A79,'Base de données'!$H79)," ") -> - | H86: =IF($AB$9='Base de données'!$A79,LOOKUP($AB$9,'Base de données'!$A79,'Base de données'!$I79)," ") -> 121 | I86: =IF($AB$9='Base de données'!$A79,LOOKUP($AB$9,'Base de données'!$A79,'Base de données'!$J79)," ") -> D | J86: =IF($AB$9='Base de données'!$A79,LOOKUP($AB$9,'Base de données'!$A79,'Base de données'!$K79)," ") -> TOUS | K86: =IF($AB$9='Base de données'!$A79,LOOKUP($AB$9,'Base de données'!$A79,'Base de données'!$L79)," ") -> 89 | L86: =IF($AB$9='Base de données'!$A79,LOOKUP($AB$9,'Base de données'!$A79,'Base de données'!$M79)," ") -> 4 | M86: =IF($AB$9='Base de données'!$A79,LOOKUP($AB$9,'Base de données'!$A79,'Base de données'!$N79)," ") -> 360 | N86: =IF($AB$9='Base de données'!$A79,LOOKUP($AB$9,'Base de données'!$A79,'Base de données'!$O79)," ") -> - | W86: ='Base de données'!AE79 -> 0 | X86: =IF($W86=Visualisateur!$U$60,'Base de données'!$U$63,'Base de données'!$U$64) -> NUL
A87: =IF($AB$9='Base de données'!$A80,LOOKUP($AB$9,'Base de données'!$A80,'Base de données'!$B80)," ") -> 26-30/01/05 | B87: =IF($AB$9='Base de données'!$A80,LOOKUP($AB$9,'Base de données'!$A80,'Base de données'!$C80)," ") -> 2005 | C87: =IF($AB$9='Base de données'!$A80,LOOKUP($AB$9,'Base de données'!$A80,'Base de données'!$D80)," ") -> D37 | D87: =IF($AB$9='Base de données'!$A80,LOOKUP($AB$9,'Base de données'!$A80,'Base de données'!$E80)," ") -> STAM | E87: =IF($AB$9='Base de données'!$A80,LOOKUP($AB$9,'Base de données'!$A80,'Base de données'!$F80)," ") -> 6355C | F87: =IF($AB$9='Base de données'!$A80,LOOKUP($AB$9,'Base de données'!$A80,'Base de données'!$G80)," ") -> KREHER Willi | G87: =IF($AB$9='Base de données'!$A80,LOOKUP($AB$9,'Base de données'!$A80,'Base de données'!$H80)," ") -> - | H87: =IF($AB$9='Base de données'!$A80,LOOKUP($AB$9,'Base de données'!$A80,'Base de données'!$I80)," ") -> 109 | I87: =IF($AB$9='Base de données'!$A80,LOOKUP($AB$9,'Base de données'!$A80,'Base de données'!$J80)," ") -> D | J87: =IF($AB$9='Base de données'!$A80,LOOKUP($AB$9,'Base de données'!$A80,'Base de données'!$K80)," ") -> TOUS | K87: =IF($AB$9='Base de données'!$A80,LOOKUP($AB$9,'Base de données'!$A80,'Base de données'!$L80)," ") -> 88 | L87: =IF($AB$9='Base de données'!$A80,LOOKUP($AB$9,'Base de données'!$A80,'Base de données'!$M80)," ") -> 4 | M87: =IF($AB$9='Base de données'!$A80,LOOKUP($AB$9,'Base de données'!$A80,'Base de données'!$N80)," ") -> 360 | N87: =IF($AB$9='Base de données'!$A80,LOOKUP($AB$9,'Base de données'!$A80,'Base de données'!$O80)," ") -> - | W87: ='Base de données'!AE80 -> 0 | X87: =IF($W87=Visualisateur!$U$60,'Base de données'!$U$63,'Base de données'!$U$64) -> NUL
A88: =IF($AB$9='Base de données'!$A81,LOOKUP($AB$9,'Base de données'!$A81,'Base de données'!$B81)," ") -> 26-30/01/05 | B88: =IF($AB$9='Base de données'!$A81,LOOKUP($AB$9,'Base de données'!$A81,'Base de données'!$C81)," ") -> 2005 | C88: =IF($AB$9='Base de données'!$A81,LOOKUP($AB$9,'Base de données'!$A81,'Base de données'!$D81)," ") -> D37 | D88: =IF($AB$9='Base de données'!$A81,LOOKUP($AB$9,'Base de données'!$A81,'Base de données'!$E81)," ") -> STAM | E88: =IF($AB$9='Base de données'!$A81,LOOKUP($AB$9,'Base de données'!$A81,'Base de données'!$F81)," ") -> 6355D | F88: =IF($AB$9='Base de données'!$A81,LOOKUP($AB$9,'Base de données'!$A81,'Base de données'!$G81)," ") -> KREHER Willi | G88: =IF($AB$9='Base de données'!$A81,LOOKUP($AB$9,'Base de données'!$A81,'Base de données'!$H81)," ") -> - | H88: =IF($AB$9='Base de données'!$A81,LOOKUP($AB$9,'Base de données'!$A81,'Base de données'!$I81)," ") -> 125 | I88: =IF($AB$9='Base de données'!$A81,LOOKUP($AB$9,'Base de données'!$A81,'Base de données'!$J81)," ") -> D | J88: =IF($AB$9='Base de données'!$A81,LOOKUP($AB$9,'Base de données'!$A81,'Base de données'!$K81)," ") -> TOUS | K88: =IF($AB$9='Base de données'!$A81,LOOKUP($AB$9,'Base de données'!$A81,'Base de données'!$L81)," ") -> 90 | L88: =IF($AB$9='Base de données'!$A81,LOOKUP($AB$9,'Base de données'!$A81,'Base de données'!$M81)," ") -> 4 | M88: =IF($AB$9='Base de données'!$A81,LOOKUP($AB$9,'Base de données'!$A81,'Base de données'!$N81)," ") -> 360 | N88: =IF($AB$9='Base de données'!$A81,LOOKUP($AB$9,'Base de données'!$A81,'Base de données'!$O81)," ") -> - | W88: ='Base de données'!AE81 -> 0 | X88: =IF($W88=Visualisateur!$U$60,'Base de données'!$U$63,'Base de données'!$U$64) -> NUL
A89: =IF($AB$9='Base de données'!$A82,LOOKUP($AB$9,'Base de données'!$A82,'Base de données'!$B82)," ") -> 26-30/01/05 | B89: =IF($AB$9='Base de données'!$A82,LOOKUP($AB$9,'Base de données'!$A82,'Base de données'!$C82)," ") -> 2005 | C89: =IF($AB$9='Base de données'!$A82,LOOKUP($AB$9,'Base de données'!$A82,'Base de données'!$D82)," ") -> D37 | D89: =IF($AB$9='Base de données'!$A82,LOOKUP($AB$9,'Base de données'!$A82,'Base de données'!$E82)," ") -> STAM | E89: =IF($AB$9='Base de données'!$A82,LOOKUP($AB$9,'Base de données'!$A82,'Base de données'!$F82)," ") -> 6356A | F89: =IF($AB$9='Base de données'!$A82,LOOKUP($AB$9,'Base de données'!$A82,'Base de données'!$G82)," ") -> KULLMANN Robert | G89: =IF($AB$9='Base de données'!$A82,LOOKUP($AB$9,'Base de données'!$A82,'Base de données'!$H82)," ") -> - | H89: =IF($AB$9='Base de données'!$A82,LOOKUP($AB$9,'Base de données'!$A82,'Base de données'!$I82)," ") -> 004 | I89: =IF($AB$9='Base de données'!$A82,LOOKUP($AB$9,'Base de données'!$A82,'Base de données'!$J82)," ") -> D | J89: =IF($AB$9='Base de données'!$A82,LOOKUP($AB$9,'Base de données'!$A82,'Base de données'!$K82)," ") -> TOUS | K89: =IF($AB$9='Base de données'!$A82,LOOKUP($AB$9,'Base de données'!$A82,'Base de données'!$L82)," ") -> - | L89: =IF($AB$9='Base de données'!$A82,LOOKUP($AB$9,'Base de données'!$A82,'Base de données'!$M82)," ") -> - | M89: =IF($AB$9='Base de données'!$A82,LOOKUP($AB$9,'Base de données'!$A82,'Base de données'!$N82)," ") -> - | N89: =IF($AB$9='Base de données'!$A82,LOOKUP($AB$9,'Base de données'!$A82,'Base de données'!$O82)," ") -> NJ | W89: ='Base de données'!AE82 -> 0 | X89: =IF($W89=Visualisateur!$U$60,'Base de données'!$U$63,'Base de données'!$U$64) -> NUL
A90: =IF($AB$9='Base de données'!$A83,LOOKUP($AB$9,'Base de données'!$A83,'Base de données'!$B83)," ") -> 26-30/01/05 | B90: =IF($AB$9='Base de données'!$A83,LOOKUP($AB$9,'Base de données'!$A83,'Base de données'!$C83)," ") -> 2005 | C90: =IF($AB$9='Base de données'!$A83,LOOKUP($AB$9,'Base de données'!$A83,'Base de données'!$D83)," ") -> D37 | D90: =IF($AB$9='Base de données'!$A83,LOOKUP($AB$9,'Base de données'!$A83,'Base de données'!$E83)," ") -> STAM | E90: =IF($AB$9='Base de données'!$A83,LOOKUP($AB$9,'Base de données'!$A83,'Base de données'!$F83)," ") -> 6356B | F90: =IF($AB$9='Base de données'!$A83,LOOKUP($AB$9,'Base de données'!$A83,'Base de données'!$G83)," ") -> KULLMANN Robert | G90: =IF($AB$9='Base de données'!$A83,LOOKUP($AB$9,'Base de données'!$A83,'Base de données'!$H83)," ") -> - | H90: =IF($AB$9='Base de données'!$A83,LOOKUP($AB$9,'Base de données'!$A83,'Base de données'!$I83)," ") -> 013 | I90: =IF($AB$9='Base de données'!$A83,LOOKUP($AB$9,'Base de données'!$A83,'Base de données'!$J83)," ") -> D | J90: =IF($AB$9='Base de données'!$A83,LOOKUP($AB$9,'Base de données'!$A83,'Base de données'!$K83)," ") -> TOUS | K90: =IF($AB$9='Base de données'!$A83,LOOKUP($AB$9,'Base de données'!$A83,'Base de données'!$L83)," ") -> - | L90: =IF($AB$9='Base de données'!$A83,LOOKUP($AB$9,'Base de données'!$A83,'Base de données'!$M83)," ") -> - | M90: =IF($AB$9='Base de données'!$A83,LOOKUP($AB$9,'Base de données'!$A83,'Base de données'!$N83)," ") -> - | N90: =IF($AB$9='Base de données'!$A83,LOOKUP($AB$9,'Base de données'!$A83,'Base de données'!$O83)," ") -> NJ | W90: ='Base de données'!AE83 -> 0 | X90: =IF($W90=Visualisateur!$U$60,'Base de données'!$U$63,'Base de données'!$U$64) -> NUL
A91: =IF($AB$9='Base de données'!$A84,LOOKUP($AB$9,'Base de données'!$A84,'Base de données'!$B84)," ") -> 26-30/01/05 | B91: =IF($AB$9='Base de données'!$A84,LOOKUP($AB$9,'Base de données'!$A84,'Base de données'!$C84)," ") -> 2005 | C91: =IF($AB$9='Base de données'!$A84,LOOKUP($AB$9,'Base de données'!$A84,'Base de données'!$D84)," ") -> D37 | D91: =IF($AB$9='Base de données'!$A84,LOOKUP($AB$9,'Base de données'!$A84,'Base de données'!$E84)," ") -> STAM | E91: =IF($AB$9='Base de données'!$A84,LOOKUP($AB$9,'Base de données'!$A84,'Base de données'!$F84)," ") -> 6356C | F91: =IF($AB$9='Base de données'!$A84,LOOKUP($AB$9,'Base de données'!$A84,'Base de données'!$G84)," ") -> KULLMANN Robert | G91: =IF($AB$9='Base de données'!$A84,LOOKUP($AB$9,'Base de données'!$A84,'Base de données'!$H84)," ") -> - | H91: =IF($AB$9='Base de données'!$A84,LOOKUP($AB$9,'Base de données'!$A84,'Base de données'!$I84)," ") -> 017 | I91: =IF($AB$9='Base de données'!$A84,LOOKUP($AB$9,'Base de données'!$A84,'Base de données'!$J84)," ") -> D | J91: =IF($AB$9='Base de données'!$A84,LOOKUP($AB$9,'Base de données'!$A84,'Base de données'!$K84)," ") -> TOUS | K91: =IF($AB$9='Base de données'!$A84,LOOKUP($AB$9,'Base de données'!$A84,'Base de données'!$L84)," ") -> - | L91: =IF($AB$9='Base de données'!$A84,LOOKUP($AB$9,'Base de données'!$A84,'Base de données'!$M84)," ") -> - | M91: =IF($AB$9='Base de données'!$A84,LOOKUP($AB$9,'Base de données'!$A84,'Base de données'!$N84)," ") -> - | N91: =IF($AB$9='Base de données'!$A84,LOOKUP($AB$9,'Base de données'!$A84,'Base de données'!$O84)," ") -> NJ | W91: ='Base de données'!AE84 -> 0 | X91: =IF($W91=Visualisateur!$U$60,'Base de données'!$U$63,'Base de données'!$U$64) -> NUL
A92: =IF($AB$9='Base de données'!$A85,LOOKUP($AB$9,'Base de données'!$A85,'Base de données'!$B85)," ") -> 26-30/01/05 | B92: =IF($AB$9='Base de données'!$A85,LOOKUP($AB$9,'Base de données'!$A85,'Base de données'!$C85)," ") -> 2005 | C92: =IF($AB$9='Base de données'!$A85,LOOKUP($AB$9,'Base de données'!$A85,'Base de données'!$D85)," ") -> D37 | D92: =IF($AB$9='Base de données'!$A85,LOOKUP($AB$9,'Base de données'!$A85,'Base de données'!$E85)," ") -> STAM | E92: =IF($AB$9='Base de données'!$A85,LOOKUP($AB$9,'Base de données'!$A85,'Base de données'!$F85)," ") -> 6356D | F92: =IF($AB$9='Base de données'!$A85,LOOKUP($AB$9,'Base de données'!$A85,'Base de données'!$G85)," ") -> KULLMANN Robert | G92: =IF($AB$9='Base de données'!$A85,LOOKUP($AB$9,'Base de données'!$A85,'Base de données'!$H85)," ") -> - | H92: =IF($AB$9='Base de données'!$A85,LOOKUP($AB$9,'Base de données'!$A85,'Base de données'!$I85)," ") -> 001 | I92: =IF($AB$9='Base de données'!$A85,LOOKUP($AB$9,'Base de données'!$A85,'Base de données'!$J85)," ") -> D | J92: =IF($AB$9='Base de données'!$A85,LOOKUP($AB$9,'Base de données'!$A85,'Base de données'!$K85)," ") -> TOUS | K92: =IF($AB$9='Base de données'!$A85,LOOKUP($AB$9,'Base de données'!$A85,'Base de données'!$L85)," ") -> - | L92: =IF($AB$9='Base de données'!$A85,LOOKUP($AB$9,'Base de données'!$A85,'Base de données'!$M85)," ") -> - | M92: =IF($AB$9='Base de données'!$A85,LOOKUP($AB$9,'Base de données'!$A85,'Base de données'!$N85)," ") -> - | N92: =IF($AB$9='Base de données'!$A85,LOOKUP($AB$9,'Base de données'!$A85,'Base de données'!$O85)," ") -> NJ | W92: ='Base de données'!AE85 -> 0 | X92: =IF($W92=Visualisateur!$U$60,'Base de données'!$U$63,'Base de données'!$U$64) -> NUL
A93: =IF($AB$9='Base de données'!$A86,LOOKUP($AB$9,'Base de données'!$A86,'Base de données'!$B86)," ") -> 26-30/01/05 | B93: =IF($AB$9='Base de données'!$A86,LOOKUP($AB$9,'Base de données'!$A86,'Base de données'!$C86)," ") -> 2005 | C93: =IF($AB$9='Base de données'!$A86,LOOKUP($AB$9,'Base de données'!$A86,'Base de données'!$D86)," ") -> D37 | D93: =IF($AB$9='Base de données'!$A86,LOOKUP($AB$9,'Base de données'!$A86,'Base de données'!$E86)," ") -> STAM | E93: =IF($AB$9='Base de données'!$A86,LOOKUP($AB$9,'Base de données'!$A86,'Base de données'!$F86)," ") -> 6357A | F93: =IF($AB$9='Base de données'!$A86,LOOKUP($AB$9,'Base de données'!$A86,'Base de données'!$G86)," ") -> MÖHLMANN Gerhard | G93: =IF($AB$9='Base de données'!$A86,LOOKUP($AB$9,'Base de données'!$A86,'Base de données'!$H86)," ") -> - | H93: =IF($AB$9='Base de données'!$A86,LOOKUP($AB$9,'Base de données'!$A86,'Base de données'!$I86)," ") -> - | I93: =IF($AB$9='Base de données'!$A86,LOOKUP($AB$9,'Base de données'!$A86,'Base de données'!$J86)," ") -> D | J93: =IF($AB$9='Base de données'!$A86,LOOKUP($AB$9,'Base de données'!$A86,'Base de données'!$K86)," ") -> TOUS | K93: =IF($AB$9='Base de données'!$A86,LOOKUP($AB$9,'Base de données'!$A86,'Base de données'!$L86)," ") -> - | L93: =IF($AB$9='Base de données'!$A86,LOOKUP($AB$9,'Base de données'!$A86,'Base de données'!$M86)," ") -> - | M93: =IF($AB$9='Base de données'!$A86,LOOKUP($AB$9,'Base de données'!$A86,'Base de données'!$N86)," ") -> - | N93: =IF($AB$9='Base de données'!$A86,LOOKUP($AB$9,'Base de données'!$A86,'Base de données'!$O86)," ") -> ABS | W93: ='Base de données'!AE86 -> 0 | X93: =IF($W93=Visualisateur!$U$60,'Base de données'!$U$63,'Base de données'!$U$64) -> NUL
A94: =IF($AB$9='Base de données'!$A87,LOOKUP($AB$9,'Base de données'!$A87,'Base de données'!$B87)," ") -> 26-30/01/05 | B94: =IF($AB$9='Base de données'!$A87,LOOKUP($AB$9,'Base de données'!$A87,'Base de données'!$C87)," ") -> 2005 | C94: =IF($AB$9='Base de données'!$A87,LOOKUP($AB$9,'Base de données'!$A87,'Base de données'!$D87)," ") -> D37 | D94: =IF($AB$9='Base de données'!$A87,LOOKUP($AB$9,'Base de données'!$A87,'Base de données'!$E87)," ") -> STAM | E94: =IF($AB$9='Base de données'!$A87,LOOKUP($AB$9,'Base de données'!$A87,'Base de données'!$F87)," ") -> 6357B | F94: =IF($AB$9='Base de données'!$A87,LOOKUP($AB$9,'Base de données'!$A87,'Base de données'!$G87)," ") -> MÖHLMANN Gerhard | G94: =IF($AB$9='Base de données'!$A87,LOOKUP($AB$9,'Base de données'!$A87,'Base de données'!$H87)," ") -> - | H94: =IF($AB$9='Base de données'!$A87,LOOKUP($AB$9,'Base de données'!$A87,'Base de données'!$I87)," ") -> - | I94: =IF($AB$9='Base de données'!$A87,LOOKUP($AB$9,'Base de données'!$A87,'Base de données'!$J87)," ") -> D | J94: =IF($AB$9='Base de données'!$A87,LOOKUP($AB$9,'Base de données'!$A87,'Base de données'!$K87)," ") -> TOUS | K94: =IF($AB$9='Base de données'!$A87,LOOKUP($AB$9,'Base de données'!$A87,'Base de données'!$L87)," ") -> - | L94: =IF($AB$9='Base de données'!$A87,LOOKUP($AB$9,'Base de données'!$A87,'Base de données'!$M87)," ") -> - | M94: =IF($AB$9='Base de données'!$A87,LOOKUP($AB$9,'Base de données'!$A87,'Base de données'!$N87)," ") -> - | N94: =IF($AB$9='Base de données'!$A87,LOOKUP($AB$9,'Base de données'!$A87,'Base de données'!$O87)," ") -> ABS | W94: ='Base de données'!AE87 -> 0 | X94: =IF($W94=Visualisateur!$U$60,'Base de données'!$U$63,'Base de données'!$U$64) -> NUL
A95: =IF($AB$9='Base de données'!$A88,LOOKUP($AB$9,'Base de données'!$A88,'Base de données'!$B88)," ") -> 26-30/01/05 | B95: =IF($AB$9='Base de données'!$A88,LOOKUP($AB$9,'Base de données'!$A88,'Base de données'!$C88)," ") -> 2005 | C95: =IF($AB$9='Base de données'!$A88,LOOKUP($AB$9,'Base de données'!$A88,'Base de données'!$D88)," ") -> D37 | D95: =IF($AB$9='Base de données'!$A88,LOOKUP($AB$9,'Base de données'!$A88,'Base de données'!$E88)," ") -> STAM | E95: =IF($AB$9='Base de données'!$A88,LOOKUP($AB$9,'Base de données'!$A88,'Base de données'!$F88)," ") -> 6357C | F95: =IF($AB$9='Base de données'!$A88,LOOKUP($AB$9,'Base de données'!$A88,'Base de données'!$G88)," ") -> MÖHLMANN Gerhard | G95: =IF($AB$9='Base de données'!$A88,LOOKUP($AB$9,'Base de données'!$A88,'Base de données'!$H88)," ") -> - | H95: =IF($AB$9='Base de données'!$A88,LOOKUP($AB$9,'Base de données'!$A88,'Base de données'!$I88)," ") -> - | I95: =IF($AB$9='Base de données'!$A88,LOOKUP($AB$9,'Base de données'!$A88,'Base de données'!$J88)," ") -> D | J95: =IF($AB$9='Base de données'!$A88,LOOKUP($AB$9,'Base de données'!$A88,'Base de données'!$K88)," ") -> TOUS | K95: =IF($AB$9='Base de données'!$A88,LOOKUP($AB$9,'Base de données'!$A88,'Base de données'!$L88)," ") -> - | L95: =IF($AB$9='Base de données'!$A88,LOOKUP($AB$9,'Base de données'!$A88,'Base de données'!$M88)," ") -> - | M95: =IF($AB$9='Base de données'!$A88,LOOKUP($AB$9,'Base de données'!$A88,'Base de données'!$N88)," ") -> - | N95: =IF($AB$9='Base de données'!$A88,LOOKUP($AB$9,'Base de données'!$A88,'Base de données'!$O88)," ") -> ABS | W95: ='Base de données'!AE88 -> 0 | X95: =IF($W95=Visualisateur!$U$60,'Base de données'!$U$63,'Base de données'!$U$64) -> NUL
A96: =IF($AB$9='Base de données'!$A89,LOOKUP($AB$9,'Base de données'!$A89,'Base de données'!$B89)," ") -> 26-30/01/05 | B96: =IF($AB$9='Base de données'!$A89,LOOKUP($AB$9,'Base de données'!$A89,'Base de données'!$C89)," ") -> 2005 | C96: =IF($AB$9='Base de données'!$A89,LOOKUP($AB$9,'Base de données'!$A89,'Base de données'!$D89)," ") -> D37 | D96: =IF($AB$9='Base de données'!$A89,LOOKUP($AB$9,'Base de données'!$A89,'Base de données'!$E89)," ") -> STAM | E96: =IF($AB$9='Base de données'!$A89,LOOKUP($AB$9,'Base de données'!$A89,'Base de données'!$F89)," ") -> 6357D | F96: =IF($AB$9='Base de données'!$A89,LOOKUP($AB$9,'Base de données'!$A89,'Base de données'!$G89)," ") -> MÖHLMANN Gerhard | G96: =IF($AB$9='Base de données'!$A89,LOOKUP($AB$9,'Base de données'!$A89,'Base de données'!$H89)," ") -> - | H96: =IF($AB$9='Base de données'!$A89,LOOKUP($AB$9,'Base de données'!$A89,'Base de données'!$I89)," ") -> - | I96: =IF($AB$9='Base de données'!$A89,LOOKUP($AB$9,'Base de données'!$A89,'Base de données'!$J89)," ") -> D | J96: =IF($AB$9='Base de données'!$A89,LOOKUP($AB$9,'Base de données'!$A89,'Base de données'!$K89)," ") -> TOUS | K96: =IF($AB$9='Base de données'!$A89,LOOKUP($AB$9,'Base de données'!$A89,'Base de données'!$L89)," ") -> - | L96: =IF($AB$9='Base de données'!$A89,LOOKUP($AB$9,'Base de données'!$A89,'Base de données'!$M89)," ") -> - | M96: =IF($AB$9='Base de données'!$A89,LOOKUP($AB$9,'Base de données'!$A89,'Base de données'!$N89)," ") -> - | N96: =IF($AB$9='Base de données'!$A89,LOOKUP($AB$9,'Base de données'!$A89,'Base de données'!$O89)," ") -> ABS | W96: ='Base de données'!AE89 -> 0 | X96: =IF($W96=Visualisateur!$U$60,'Base de données'!$U$63,'Base de données'!$U$64) -> NUL
A97: =IF($AB$9='Base de données'!$A90,LOOKUP($AB$9,'Base de données'!$A90,'Base de données'!$B90)," ") -> 26-30/01/05 | B97: =IF($AB$9='Base de données'!$A90,LOOKUP($AB$9,'Base de données'!$A90,'Base de données'!$C90)," ") -> 2005 | C97: =IF($AB$9='Base de données'!$A90,LOOKUP($AB$9,'Base de données'!$A90,'Base de données'!$D90)," ") -> D37 | D97: =IF($AB$9='Base de données'!$A90,LOOKUP($AB$9,'Base de données'!$A90,'Base de données'!$E90)," ") -> STAM | E97: =IF($AB$9='Base de données'!$A90,LOOKUP($AB$9,'Base de données'!$A90,'Base de données'!$F90)," ") -> 6358A | F97: =IF($AB$9='Base de données'!$A90,LOOKUP($AB$9,'Base de données'!$A90,'Base de données'!$G90)," ") -> MONTAGNER Lino | G97: =IF($AB$9='Base de données'!$A90,LOOKUP($AB$9,'Base de données'!$A90,'Base de données'!$H90)," ") -> - | H97: =IF($AB$9='Base de données'!$A90,LOOKUP($AB$9,'Base de données'!$A90,'Base de données'!$I90)," ") -> 003 | I97: =IF($AB$9='Base de données'!$A90,LOOKUP($AB$9,'Base de données'!$A90,'Base de données'!$J90)," ") -> CH | J97: =IF($AB$9='Base de données'!$A90,LOOKUP($AB$9,'Base de données'!$A90,'Base de données'!$K90)," ") -> TOUS | K97: =IF($AB$9='Base de données'!$A90,LOOKUP($AB$9,'Base de données'!$A90,'Base de données'!$L90)," ") -> 89 | L97: =IF($AB$9='Base de données'!$A90,LOOKUP($AB$9,'Base de données'!$A90,'Base de données'!$M90)," ") -> 5 | M97: =IF($AB$9='Base de données'!$A90,LOOKUP($AB$9,'Base de données'!$A90,'Base de données'!$N90)," ") -> 364 | N97: =IF($AB$9='Base de données'!$A90,LOOKUP($AB$9,'Base de données'!$A90,'Base de données'!$O90)," ") -> - | W97: ='Base de données'!AE90 -> 0 | X97: =IF($W97=Visualisateur!$U$60,'Base de données'!$U$63,'Base de données'!$U$64) -> NUL
A98: =IF($AB$9='Base de données'!$A91,LOOKUP($AB$9,'Base de données'!$A91,'Base de données'!$B91)," ") -> 26-30/01/05 | B98: =IF($AB$9='Base de données'!$A91,LOOKUP($AB$9,'Base de données'!$A91,'Base de données'!$C91)," ") -> 2005 | C98: =IF($AB$9='Base de données'!$A91,LOOKUP($AB$9,'Base de données'!$A91,'Base de données'!$D91)," ") -> D37 | D98: =IF($AB$9='Base de données'!$A91,LOOKUP($AB$9,'Base de données'!$A91,'Base de données'!$E91)," ") -> STAM | E98: =IF($AB$9='Base de données'!$A91,LOOKUP($AB$9,'Base de données'!$A91,'Base de données'!$F91)," ") -> 6358B | F98: =IF($AB$9='Base de données'!$A91,LOOKUP($AB$9,'Base de données'!$A91,'Base de données'!$G91)," ") -> MONTAGNER Lino | G98: =IF($AB$9='Base de données'!$A91,LOOKUP($AB$9,'Base de données'!$A91,'Base de données'!$H91)," ") -> - | H98: =IF($AB$9='Base de données'!$A91,LOOKUP($AB$9,'Base de données'!$A91,'Base de données'!$I91)," ") -> 007 | I98: =IF($AB$9='Base de données'!$A91,LOOKUP($AB$9,'Base de données'!$A91,'Base de données'!$J91)," ") -> CH | J98: =IF($AB$9='Base de données'!$A91,LOOKUP($AB$9,'Base de données'!$A91,'Base de données'!$K91)," ") -> TOUS | K98: =IF($AB$9='Base de données'!$A91,LOOKUP($AB$9,'Base de données'!$A91,'Base de données'!$L91)," ") -> 90 | L98: =IF($AB$9='Base de données'!$A91,LOOKUP($AB$9,'Base de données'!$A91,'Base de données'!$M91)," ") -> 5 | M98: =IF($AB$9='Base de données'!$A91,LOOKUP($AB$9,'Base de données'!$A91,'Base de données'!$N91)," ") -> 364 | N98: =IF($AB$9='Base de données'!$A91,LOOKUP($AB$9,'Base de données'!$A91,'Base de données'!$O91)," ") -> - | W98: ='Base de données'!AE91 -> 0 | X98: =IF($W98=Visualisateur!$U$60,'Base de données'!$U$63,'Base de données'!$U$64) -> NUL
A99: =IF($AB$9='Base de données'!$A92,LOOKUP($AB$9,'Base de données'!$A92,'Base de données'!$B92)," ") -> 26-30/01/05 | B99: =IF($AB$9='Base de données'!$A92,LOOKUP($AB$9,'Base de données'!$A92,'Base de données'!$C92)," ") -> 2005 | C99: =IF($AB$9='Base de données'!$A92,LOOKUP($AB$9,'Base de données'!$A92,'Base de données'!$D92)," ") -> D37 | D99: =IF($AB$9='Base de données'!$A92,LOOKUP($AB$9,'Base de données'!$A92,'Base de données'!$E92)," ") -> STAM | E99: =IF($AB$9='Base de données'!$A92,LOOKUP($AB$9,'Base de données'!$A92,'Base de données'!$F92)," ") -> 6358C | F99: =IF($AB$9='Base de données'!$A92,LOOKUP($AB$9,'Base de données'!$A92,'Base de données'!$G92)," ") -> MONTAGNER Lino | G99: =IF($AB$9='Base de données'!$A92,LOOKUP($AB$9,'Base de données'!$A92,'Base de données'!$H92)," ") -> - | H99: =IF($AB$9='Base de données'!$A92,LOOKUP($AB$9,'Base de données'!$A92,'Base de données'!$I92)," ") -> 021 | I99: =IF($AB$9='Base de données'!$A92,LOOKUP($AB$9,'Base de données'!$A92,'Base de données'!$J92)," ") -> CH | J99: =IF($AB$9='Base de données'!$A92,LOOKUP($AB$9,'Base de données'!$A92,'Base de données'!$K92)," ") -> TOUS | K99: =IF($AB$9='Base de données'!$A92,LOOKUP($AB$9,'Base de données'!$A92,'Base de données'!$L92)," ") -> 90 | L99: =IF($AB$9='Base de données'!$A92,LOOKUP($AB$9,'Base de données'!$A92,'Base de données'!$M92)," ") -> 5 | M99: =IF($AB$9='Base de données'!$A92,LOOKUP($AB$9,'Base de données'!$A92,'Base de données'!$N92)," ") -> 364 | N99: =IF($AB$9='Base de données'!$A92,LOOKUP($AB$9,'Base de données'!$A92,'Base de données'!$O92)," ") -> - | W99: ='Base de données'!AE92 -> 0 | X99: =IF($W99=Visualisateur!$U$60,'Base de données'!$U$63,'Base de données'!$U$64) -> NUL
A100: =IF($AB$9='Base de données'!$A93,LOOKUP($AB$9,'Base de données'!$A93,'Base de données'!$B93)," ") -> 26-30/01/05 | B100: =IF($AB$9='Base de données'!$A93,LOOKUP($AB$9,'Base de données'!$A93,'Base de données'!$C93)," ") -> 2005 | C100: =IF($AB$9='Base de données'!$A93,LOOKUP($AB$9,'Base de données'!$A93,'Base de données'!$D93)," ") -> D37 | D100: =IF($AB$9='Base de données'!$A93,LOOKUP($AB$9,'Base de données'!$A93,'Base de données'!$E93)," ") -> STAM | E100: =IF($AB$9='Base de données'!$A93,LOOKUP($AB$9,'Base de données'!$A93,'Base de données'!$F93)," ") -> 6358D | F100: =IF($AB$9='Base de données'!$A93,LOOKUP($AB$9,'Base de données'!$A93,'Base de données'!$G93)," ") -> MONTAGNER Lino | G100: =IF($AB$9='Base de données'!$A93,LOOKUP($AB$9,'Base de données'!$A93,'Base de données'!$H93)," ") -> - | H100: =IF($AB$9='Base de données'!$A93,LOOKUP($AB$9,'Base de données'!$A93,'Base de données'!$I93)," ") -> 014 | I100: =IF($AB$9='Base de données'!$A93,LOOKUP($AB$9,'Base de données'!$A93,'Base de données'!$J93)," ") -> CH | J100: =IF($AB$9='Base de données'!$A93,LOOKUP($AB$9,'Base de données'!$A93,'Base de données'!$K93)," ") -> TOUS | K100: =IF($AB$9='Base de données'!$A93,LOOKUP($AB$9,'Base de données'!$A93,'Base de données'!$L93)," ") -> 90 | L100: =IF($AB$9='Base de données'!$A93,LOOKUP($AB$9,'Base de données'!$A93,'Base de données'!$M93)," ") -> 5 | M100: =IF($AB$9='Base de données'!$A93,LOOKUP($AB$9,'Base de données'!$A93,'Base de données'!$N93)," ") -> 364 | N100: =IF($AB$9='Base de données'!$A93,LOOKUP($AB$9,'Base de données'!$A93,'Base de données'!$O93)," ") -> - | W100: ='Base de données'!AE93 -> 0 | X100: =IF($W100=Visualisateur!$U$60,'Base de données'!$U$63,'Base de données'!$U$64) -> NUL
A101: =IF($AB$9='Base de données'!$A94,LOOKUP($AB$9,'Base de données'!$A94,'Base de données'!$B94)," ") -> 26-30/01/05 | B101: =IF($AB$9='Base de données'!$A94,LOOKUP($AB$9,'Base de données'!$A94,'Base de données'!$C94)," ") -> 2005 | C101: =IF($AB$9='Base de données'!$A94,LOOKUP($AB$9,'Base de données'!$A94,'Base de données'!$D94)," ") -> D37 | D101: =IF($AB$9='Base de données'!$A94,LOOKUP($AB$9,'Base de données'!$A94,'Base de données'!$E94)," ") -> STAM | E101: =IF($AB$9='Base de données'!$A94,LOOKUP($AB$9,'Base de données'!$A94,'Base de données'!$F94)," ") -> 6359A | F101: =IF($AB$9='Base de données'!$A94,LOOKUP($AB$9,'Base de données'!$A94,'Base de données'!$G94)," ") -> TUR SANTANDREU Joan | G101: =IF($AB$9='Base de données'!$A94,LOOKUP($AB$9,'Base de données'!$A94,'Base de données'!$H94)," ") -> - | H101: =IF($AB$9='Base de données'!$A94,LOOKUP($AB$9,'Base de données'!$A94,'Base de données'!$I94)," ") -> 176 | I101: =IF($AB$9='Base de données'!$A94,LOOKUP($AB$9,'Base de données'!$A94,'Base de données'!$J94)," ") -> E | J101: =IF($AB$9='Base de données'!$A94,LOOKUP($AB$9,'Base de données'!$A94,'Base de données'!$K94)," ") -> TOUS | K101: =IF($AB$9='Base de données'!$A94,LOOKUP($AB$9,'Base de données'!$A94,'Base de données'!$L94)," ") -> 92 | L101: =IF($AB$9='Base de données'!$A94,LOOKUP($AB$9,'Base de données'!$A94,'Base de données'!$M94)," ") -> 3 | M101: =IF($AB$9='Base de données'!$A94,LOOKUP($AB$9,'Base de données'!$A94,'Base de données'!$N94)," ") -> 366 | N101: =IF($AB$9='Base de données'!$A94,LOOKUP($AB$9,'Base de données'!$A94,'Base de données'!$O94)," ") -> - | W101: ='Base de données'!AE94 -> 0 | X101: =IF($W101=Visualisateur!$U$60,'Base de données'!$U$63,'Base de données'!$U$64) -> NUL
A102: =IF($AB$9='Base de données'!$A95,LOOKUP($AB$9,'Base de données'!$A95,'Base de données'!$B95)," ") -> 26-30/01/05 | B102: =IF($AB$9='Base de données'!$A95,LOOKUP($AB$9,'Base de données'!$A95,'Base de données'!$C95)," ") -> 2005 | C102: =IF($AB$9='Base de données'!$A95,LOOKUP($AB$9,'Base de données'!$A95,'Base de données'!$D95)," ") -> D37 | D102: =IF($AB$9='Base de données'!$A95,LOOKUP($AB$9,'Base de données'!$A95,'Base de données'!$E95)," ") -> STAM | E102: =IF($AB$9='Base de données'!$A95,LOOKUP($AB$9,'Base de données'!$A95,'Base de données'!$F95)," ") -> 6359B | F102: =IF($AB$9='Base de données'!$A95,LOOKUP($AB$9,'Base de données'!$A95,'Base de données'!$G95)," ") -> TUR SANTANDREU Joan | G102: =IF($AB$9='Base de données'!$A95,LOOKUP($AB$9,'Base de données'!$A95,'Base de données'!$H95)," ") -> - | H102: =IF($AB$9='Base de données'!$A95,LOOKUP($AB$9,'Base de données'!$A95,'Base de données'!$I95)," ") -> 177 | I102: =IF($AB$9='Base de données'!$A95,LOOKUP($AB$9,'Base de données'!$A95,'Base de données'!$J95)," ") -> E | J102: =IF($AB$9='Base de données'!$A95,LOOKUP($AB$9,'Base de données'!$A95,'Base de données'!$K95)," ") -> TOUS | K102: =IF($AB$9='Base de données'!$A95,LOOKUP($AB$9,'Base de données'!$A95,'Base de données'!$L95)," ") -> 92 | L102: =IF($AB$9='Base de données'!$A95,LOOKUP($AB$9,'Base de données'!$A95,'Base de données'!$M95)," ") -> 3 | M102: =IF($AB$9='Base de données'!$A95,LOOKUP($AB$9,'Base de données'!$A95,'Base de données'!$N95)," ") -> 366 | N102: =IF($AB$9='Base de données'!$A95,LOOKUP($AB$9,'Base de données'!$A95,'Base de données'!$O95)," ") -> - | W102: ='Base de données'!AE95 -> 0 | X102: =IF($W102=Visualisateur!$U$60,'Base de données'!$U$63,'Base de données'!$U$64) -> NUL
A103: =IF($AB$9='Base de données'!$A96,LOOKUP($AB$9,'Base de données'!$A96,'Base de données'!$B96)," ") -> 26-30/01/05 | B103: =IF($AB$9='Base de données'!$A96,LOOKUP($AB$9,'Base de données'!$A96,'Base de données'!$C96)," ") -> 2005 | C103: =IF($AB$9='Base de données'!$A96,LOOKUP($AB$9,'Base de données'!$A96,'Base de données'!$D96)," ") -> D37 | D103: =IF($AB$9='Base de données'!$A96,LOOKUP($AB$9,'Base de données'!$A96,'Base de données'!$E96)," ") -> STAM | E103: =IF($AB$9='Base de données'!$A96,LOOKUP($AB$9,'Base de données'!$A96,'Base de données'!$F96)," ") -> 6359C | F103: =IF($AB$9='Base de données'!$A96,LOOKUP($AB$9,'Base de données'!$A96,'Base de données'!$G96)," ") -> TUR SANTANDREU Joan | G103: =IF($AB$9='Base de données'!$A96,LOOKUP($AB$9,'Base de données'!$A96,'Base de données'!$H96)," ") -> - | H103: =IF($AB$9='Base de données'!$A96,LOOKUP($AB$9,'Base de données'!$A96,'Base de données'!$I96)," ") -> 154 | I103: =IF($AB$9='Base de données'!$A96,LOOKUP($AB$9,'Base de données'!$A96,'Base de données'!$J96)," ") -> E | J103: =IF($AB$9='Base de données'!$A96,LOOKUP($AB$9,'Base de données'!$A96,'Base de données'!$K96)," ") -> TOUS | K103: =IF($AB$9='Base de données'!$A96,LOOKUP($AB$9,'Base de données'!$A96,'Base de données'!$L96)," ") -> 90 | L103: =IF($AB$9='Base de données'!$A96,LOOKUP($AB$9,'Base de données'!$A96,'Base de données'!$M96)," ") -> 3 | M103: =IF($AB$9='Base de données'!$A96,LOOKUP($AB$9,'Base de données'!$A96,'Base de données'!$N96)," ") -> 366 | N103: =IF($AB$9='Base de données'!$A96,LOOKUP($AB$9,'Base de données'!$A96,'Base de données'!$O96)," ") -> - | W103: ='Base de données'!AE96 -> 0 | X103: =IF($W103=Visualisateur!$U$60,'Base de données'!$U$63,'Base de données'!$U$64) -> NUL
A104: =IF($AB$9='Base de données'!$A97,LOOKUP($AB$9,'Base de données'!$A97,'Base de données'!$B97)," ") -> 26-30/01/05 | B104: =IF($AB$9='Base de données'!$A97,LOOKUP($AB$9,'Base de données'!$A97,'Base de données'!$C97)," ") -> 2005 | C104: =IF($AB$9='Base de données'!$A97,LOOKUP($AB$9,'Base de données'!$A97,'Base de données'!$D97)," ") -> D37 | D104: =IF($AB$9='Base de données'!$A97,LOOKUP($AB$9,'Base de données'!$A97,'Base de données'!$E97)," ") -> STAM | E104: =IF($AB$9='Base de données'!$A97,LOOKUP($AB$9,'Base de données'!$A97,'Base de données'!$F97)," ") -> 6359D | F104: =IF($AB$9='Base de données'!$A97,LOOKUP($AB$9,'Base de données'!$A97,'Base de données'!$G97)," ") -> TUR SANTANDREU Joan | G104: =IF($AB$9='Base de données'!$A97,LOOKUP($AB$9,'Base de données'!$A97,'Base de données'!$H97)," ") -> - | H104: =IF($AB$9='Base de données'!$A97,LOOKUP($AB$9,'Base de données'!$A97,'Base de données'!$I97)," ") -> 084 | I104: =IF($AB$9='Base de données'!$A97,LOOKUP($AB$9,'Base de données'!$A97,'Base de données'!$J97)," ") -> E | J104: =IF($AB$9='Base de données'!$A97,LOOKUP($AB$9,'Base de données'!$A97,'Base de données'!$K97)," ") -> TOUS | K104: =IF($AB$9='Base de données'!$A97,LOOKUP($AB$9,'Base de données'!$A97,'Base de données'!$L97)," ") -> 89 | L104: =IF($AB$9='Base de données'!$A97,LOOKUP($AB$9,'Base de données'!$A97,'Base de données'!$M97)," ") -> 3 | M104: =IF($AB$9='Base de données'!$A97,LOOKUP($AB$9,'Base de données'!$A97,'Base de données'!$N97)," ") -> 366 | N104: =IF($AB$9='Base de données'!$A97,LOOKUP($AB$9,'Base de données'!$A97,'Base de données'!$O97)," ") -> - | W104: ='Base de données'!AE97 -> 0 | X104: =IF($W104=Visualisateur!$U$60,'Base de données'!$U$63,'Base de données'!$U$64) -> NUL
A105: =IF($AB$9='Base de données'!$A98,LOOKUP($AB$9,'Base de données'!$A98,'Base de données'!$B98)," ") -> 26-30/01/05 | B105: =IF($AB$9='Base de données'!$A98,LOOKUP($AB$9,'Base de données'!$A98,'Base de données'!$C98)," ") -> 2005 | C105: =IF($AB$9='Base de données'!$A98,LOOKUP($AB$9,'Base de données'!$A98,'Base de données'!$D98)," ") -> D37 | D105: =IF($AB$9='Base de données'!$A98,LOOKUP($AB$9,'Base de données'!$A98,'Base de données'!$E98)," ") -> STAM | E105: =IF($AB$9='Base de données'!$A98,LOOKUP($AB$9,'Base de données'!$A98,'Base de données'!$F98)," ") -> 6360A | F105: =IF($AB$9='Base de données'!$A98,LOOKUP($AB$9,'Base de données'!$A98,'Base de données'!$G98)," ") -> TUR SANTANDREU Joan | G105: =IF($AB$9='Base de données'!$A98,LOOKUP($AB$9,'Base de données'!$A98,'Base de données'!$H98)," ") -> - | H105: =IF($AB$9='Base de données'!$A98,LOOKUP($AB$9,'Base de données'!$A98,'Base de données'!$I98)," ") -> 172 | I105: =IF($AB$9='Base de données'!$A98,LOOKUP($AB$9,'Base de données'!$A98,'Base de données'!$J98)," ") -> E | J105: =IF($AB$9='Base de données'!$A98,LOOKUP($AB$9,'Base de données'!$A98,'Base de données'!$K98)," ") -> TOUS | K105: =IF($AB$9='Base de données'!$A98,LOOKUP($AB$9,'Base de données'!$A98,'Base de données'!$L98)," ") -> 89 | L105: =IF($AB$9='Base de données'!$A98,LOOKUP($AB$9,'Base de données'!$A98,'Base de données'!$M98)," ") -> 4 | M105: =IF($AB$9='Base de données'!$A98,LOOKUP($AB$9,'Base de données'!$A98,'Base de données'!$N98)," ") -> 361 | N105: =IF($AB$9='Base de données'!$A98,LOOKUP($AB$9,'Base de données'!$A98,'Base de données'!$O98)," ") -> - | W105: ='Base de données'!AE98 -> 0 | X105: =IF($W105=Visualisateur!$U$60,'Base de données'!$U$63,'Base de données'!$U$64) -> NUL
A106: =IF($AB$9='Base de données'!$A99,LOOKUP($AB$9,'Base de données'!$A99,'Base de données'!$B99)," ") -> 26-30/01/05 | B106: =IF($AB$9='Base de données'!$A99,LOOKUP($AB$9,'Base de données'!$A99,'Base de données'!$C99)," ") -> 2005 | C106: =IF($AB$9='Base de données'!$A99,LOOKUP($AB$9,'Base de données'!$A99,'Base de données'!$D99)," ") -> D37 | D106: =IF($AB$9='Base de données'!$A99,LOOKUP($AB$9,'Base de données'!$A99,'Base de données'!$E99)," ") -> STAM | E106: =IF($AB$9='Base de données'!$A99,LOOKUP($AB$9,'Base de données'!$A99,'Base de données'!$F99)," ") -> 6360B | F106: =IF($AB$9='Base de données'!$A99,LOOKUP($AB$9,'Base de données'!$A99,'Base de données'!$G99)," ") -> TUR SANTANDREU Joan | G106: =IF($AB$9='Base de données'!$A99,LOOKUP($AB$9,'Base de données'!$A99,'Base de données'!$H99)," ") -> - | H106: =IF($AB$9='Base de données'!$A99,LOOKUP($AB$9,'Base de données'!$A99,'Base de données'!$I99)," ") -> 169 | I106: =IF($AB$9='Base de données'!$A99,LOOKUP($AB$9,'Base de données'!$A99,'Base de données'!$J99)," ") -> E | J106: =IF($AB$9='Base de données'!$A99,LOOKUP($AB$9,'Base de données'!$A99,'Base de données'!$K99)," ") -> TOUS | K106: =IF($AB$9='Base de données'!$A99,LOOKUP($AB$9,'Base de données'!$A99,'Base de données'!$L99)," ") -> 90 | L106: =IF($AB$9='Base de données'!$A99,LOOKUP($AB$9,'Base de données'!$A99,'Base de données'!$M99)," ") -> 4 | M106: =IF($AB$9='Base de données'!$A99,LOOKUP($AB$9,'Base de données'!$A99,'Base de données'!$N99)," ") -> 361 | N106: =IF($AB$9='Base de données'!$A99,LOOKUP($AB$9,'Base de données'!$A99,'Base de données'!$O99)," ") -> - | W106: ='Base de données'!AE99 -> 0 | X106: =IF($W106=Visualisateur!$U$60,'Base de données'!$U$63,'Base de données'!$U$64) -> NUL
A107: =IF($AB$9='Base de données'!$A100,LOOKUP($AB$9,'Base de données'!$A100,'Base de données'!$B100)," ") -> 26-30/01/05 | B107: =IF($AB$9='Base de données'!$A100,LOOKUP($AB$9,'Base de données'!$A100,'Base de données'!$C100)," ") -> 2005 | C107: =IF($AB$9='Base de données'!$A100,LOOKUP($AB$9,'Base de données'!$A100,'Base de données'!$D100)," ") -> D37 | D107: =IF($AB$9='Base de données'!$A100,LOOKUP($AB$9,'Base de données'!$A100,'Base de données'!$E100)," ") -> STAM | E107: =IF($AB$9='Base de données'!$A100,LOOKUP($AB$9,'Base de données'!$A100,'Base de données'!$F100)," ") -> 6360C | F107: =IF($AB$9='Base de données'!$A100,LOOKUP($AB$9,'Base de données'!$A100,'Base de données'!$G100)," ") -> TUR SANTANDREU Joan | G107: =IF($AB$9='Base de données'!$A100,LOOKUP($AB$9,'Base de données'!$A100,'Base de données'!$H100)," ") -> - | H107: =IF($AB$9='Base de données'!$A100,LOOKUP($AB$9,'Base de données'!$A100,'Base de données'!$I100)," ") -> 110 | I107: =IF($AB$9='Base de données'!$A100,LOOKUP($AB$9,'Base de données'!$A100,'Base de données'!$J100)," ") -> E | J107: =IF($AB$9='Base de données'!$A100,LOOKUP($AB$9,'Base de données'!$A100,'Base de données'!$K100)," ") -> TOUS | K107: =IF($AB$9='Base de données'!$A100,LOOKUP($AB$9,'Base de données'!$A100,'Base de données'!$L100)," ") -> 88 | L107: =IF($AB$9='Base de données'!$A100,LOOKUP($AB$9,'Base de données'!$A100,'Base de données'!$M100)," ") -> 4 | M107: =IF($AB$9='Base de données'!$A100,LOOKUP($AB$9,'Base de données'!$A100,'Base de données'!$N100)," ") -> 361 | N107: =IF($AB$9='Base de données'!$A100,LOOKUP($AB$9,'Base de données'!$A100,'Base de données'!$O100)," ") -> - | W107: ='Base de données'!AE100 -> 0 | X107: =IF($W107=Visualisateur!$U$60,'Base de données'!$U$63,'Base de données'!$U$64) -> NUL
A108: =IF($AB$9='Base de données'!$A101,LOOKUP($AB$9,'Base de données'!$A101,'Base de données'!$B101)," ") -> 26-30/01/05 | B108: =IF($AB$9='Base de données'!$A101,LOOKUP($AB$9,'Base de données'!$A101,'Base de données'!$C101)," ") -> 2005 | C108: =IF($AB$9='Base de données'!$A101,LOOKUP($AB$9,'Base de données'!$A101,'Base de données'!$D101)," ") -> D37 | D108: =IF($AB$9='Base de données'!$A101,LOOKUP($AB$9,'Base de données'!$A101,'Base de données'!$E101)," ") -> STAM | E108: =IF($AB$9='Base de données'!$A101,LOOKUP($AB$9,'Base de données'!$A101,'Base de données'!$F101)," ") -> 6360D | F108: =IF($AB$9='Base de données'!$A101,LOOKUP($AB$9,'Base de données'!$A101,'Base de données'!$G101)," ") -> TUR SANTANDREU Joan | G108: =IF($AB$9='Base de données'!$A101,LOOKUP($AB$9,'Base de données'!$A101,'Base de données'!$H101)," ") -> - | H108: =IF($AB$9='Base de données'!$A101,LOOKUP($AB$9,'Base de données'!$A101,'Base de données'!$I101)," ") -> 088 | I108: =IF($AB$9='Base de données'!$A101,LOOKUP($AB$9,'Base de données'!$A101,'Base de données'!$J101)," ") -> E | J108: =IF($AB$9='Base de données'!$A101,LOOKUP($AB$9,'Base de données'!$A101,'Base de données'!$K101)," ") -> TOUS | K108: =IF($AB$9='Base de données'!$A101,LOOKUP($AB$9,'Base de données'!$A101,'Base de données'!$L101)," ") -> 90 | L108: =IF($AB$9='Base de données'!$A101,LOOKUP($AB$9,'Base de données'!$A101,'Base de données'!$M101)," ") -> 4 | M108: =IF($AB$9='Base de données'!$A101,LOOKUP($AB$9,'Base de données'!$A101,'Base de données'!$N101)," ") -> 361 | N108: =IF($AB$9='Base de données'!$A101,LOOKUP($AB$9,'Base de données'!$A101,'Base de données'!$O101)," ") -> - | W108: ='Base de données'!AE101 -> 0 | X108: =IF($W108=Visualisateur!$U$60,'Base de données'!$U$63,'Base de données'!$U$64) -> NUL
A109: =IF($AB$9='Base de données'!$A102,LOOKUP($AB$9,'Base de données'!$A102,'Base de données'!$B102)," ") -> 26-30/01/05 | B109: =IF($AB$9='Base de données'!$A102,LOOKUP($AB$9,'Base de données'!$A102,'Base de données'!$C102)," ") -> 2005 | C109: =IF($AB$9='Base de données'!$A102,LOOKUP($AB$9,'Base de données'!$A102,'Base de données'!$D102)," ") -> D37 | D109: =IF($AB$9='Base de données'!$A102,LOOKUP($AB$9,'Base de données'!$A102,'Base de données'!$E102)," ") -> STAM | E109: =IF($AB$9='Base de données'!$A102,LOOKUP($AB$9,'Base de données'!$A102,'Base de données'!$F102)," ") -> 6361A | F109: =IF($AB$9='Base de données'!$A102,LOOKUP($AB$9,'Base de données'!$A102,'Base de données'!$G102)," ") -> WISER Michel | G109: =IF($AB$9='Base de données'!$A102,LOOKUP($AB$9,'Base de données'!$A102,'Base de données'!$H102)," ") -> - | H109: =IF($AB$9='Base de données'!$A102,LOOKUP($AB$9,'Base de données'!$A102,'Base de données'!$I102)," ") -> 016 | I109: =IF($AB$9='Base de données'!$A102,LOOKUP($AB$9,'Base de données'!$A102,'Base de données'!$J102)," ") -> CH | J109: =IF($AB$9='Base de données'!$A102,LOOKUP($AB$9,'Base de données'!$A102,'Base de données'!$K102)," ") -> TOUS | K109: =IF($AB$9='Base de données'!$A102,LOOKUP($AB$9,'Base de données'!$A102,'Base de données'!$L102)," ") -> 89 | L109: =IF($AB$9='Base de données'!$A102,LOOKUP($AB$9,'Base de données'!$A102,'Base de données'!$M102)," ") -> 4 | M109: =IF($AB$9='Base de données'!$A102,LOOKUP($AB$9,'Base de données'!$A102,'Base de données'!$N102)," ") -> 362 | N109: =IF($AB$9='Base de données'!$A102,LOOKUP($AB$9,'Base de données'!$A102,'Base de données'!$O102)," ") -> - | W109: ='Base de données'!AE102 -> 0 | X109: =IF($W109=Visualisateur!$U$60,'Base de données'!$U$63,'Base de données'!$U$64) -> NUL
A110: =IF($AB$9='Base de données'!$A103,LOOKUP($AB$9,'Base de données'!$A103,'Base de données'!$B103)," ") -> 26-30/01/05 | B110: =IF($AB$9='Base de données'!$A103,LOOKUP($AB$9,'Base de données'!$A103,'Base de données'!$C103)," ") -> 2005 | C110: =IF($AB$9='Base de données'!$A103,LOOKUP($AB$9,'Base de données'!$A103,'Base de données'!$D103)," ") -> D37 | D110: =IF($AB$9='Base de données'!$A103,LOOKUP($AB$9,'Base de données'!$A103,'Base de données'!$E103)," ") -> STAM | E110: =IF($AB$9='Base de données'!$A103,LOOKUP($AB$9,'Base de données'!$A103,'Base de données'!$F103)," ") -> 6361B | F110: =IF($AB$9='Base de données'!$A103,LOOKUP($AB$9,'Base de données'!$A103,'Base de données'!$G103)," ") -> WISER Michel | G110: =IF($AB$9='Base de données'!$A103,LOOKUP($AB$9,'Base de données'!$A103,'Base de données'!$H103)," ") -> - | H110: =IF($AB$9='Base de données'!$A103,LOOKUP($AB$9,'Base de données'!$A103,'Base de données'!$I103)," ") -> 012 | I110: =IF($AB$9='Base de données'!$A103,LOOKUP($AB$9,'Base de données'!$A103,'Base de données'!$J103)," ") -> CH | J110: =IF($AB$9='Base de données'!$A103,LOOKUP($AB$9,'Base de données'!$A103,'Base de données'!$K103)," ") -> TOUS | K110: =IF($AB$9='Base de données'!$A103,LOOKUP($AB$9,'Base de données'!$A103,'Base de données'!$L103)," ") -> 89 | L110: =IF($AB$9='Base de données'!$A103,LOOKUP($AB$9,'Base de données'!$A103,'Base de données'!$M103)," ") -> 4 | M110: =IF($AB$9='Base de données'!$A103,LOOKUP($AB$9,'Base de données'!$A103,'Base de données'!$N103)," ") -> 362 | N110: =IF($AB$9='Base de données'!$A103,LOOKUP($AB$9,'Base de données'!$A103,'Base de données'!$O103)," ") -> - | W110: ='Base de données'!AE103 -> 0 | X110: =IF($W110=Visualisateur!$U$60,'Base de données'!$U$63,'Base de données'!$U$64) -> NUL
A111: =IF($AB$9='Base de données'!$A104,LOOKUP($AB$9,'Base de données'!$A104,'Base de données'!$B104)," ") -> 26-30/01/05 | B111: =IF($AB$9='Base de données'!$A104,LOOKUP($AB$9,'Base de données'!$A104,'Base de données'!$C104)," ") -> 2005 | C111: =IF($AB$9='Base de données'!$A104,LOOKUP($AB$9,'Base de données'!$A104,'Base de données'!$D104)," ") -> D37 | D111: =IF($AB$9='Base de données'!$A104,LOOKUP($AB$9,'Base de données'!$A104,'Base de données'!$E104)," ") -> STAM | E111: =IF($AB$9='Base de données'!$A104,LOOKUP($AB$9,'Base de données'!$A104,'Base de données'!$F104)," ") -> 6361C | F111: =IF($AB$9='Base de données'!$A104,LOOKUP($AB$9,'Base de données'!$A104,'Base de données'!$G104)," ") -> WISER Michel | G111: =IF($AB$9='Base de données'!$A104,LOOKUP($AB$9,'Base de données'!$A104,'Base de données'!$H104)," ") -> - | H111: =IF($AB$9='Base de données'!$A104,LOOKUP($AB$9,'Base de données'!$A104,'Base de données'!$I104)," ") -> 002 | I111: =IF($AB$9='Base de données'!$A104,LOOKUP($AB$9,'Base de données'!$A104,'Base de données'!$J104)," ") -> CH | J111: =IF($AB$9='Base de données'!$A104,LOOKUP($AB$9,'Base de données'!$A104,'Base de données'!$K104)," ") -> TOUS | K111: =IF($AB$9='Base de données'!$A104,LOOKUP($AB$9,'Base de données'!$A104,'Base de données'!$L104)," ") -> 91 | L111: =IF($AB$9='Base de données'!$A104,LOOKUP($AB$9,'Base de données'!$A104,'Base de données'!$M104)," ") -> 4 | M111: =IF($AB$9='Base de données'!$A104,LOOKUP($AB$9,'Base de données'!$A104,'Base de données'!$N104)," ") -> 362 | N111: =IF($AB$9='Base de données'!$A104,LOOKUP($AB$9,'Base de données'!$A104,'Base de données'!$O104)," ") -> - | W111: ='Base de données'!AE104 -> 0 | X111: =IF($W111=Visualisateur!$U$60,'Base de données'!$U$63,'Base de données'!$U$64) -> NUL
A112: =IF($AB$9='Base de données'!$A105,LOOKUP($AB$9,'Base de données'!$A105,'Base de données'!$B105)," ") -> 26-30/01/05 | B112: =IF($AB$9='Base de données'!$A105,LOOKUP($AB$9,'Base de données'!$A105,'Base de données'!$C105)," ") -> 2005 | C112: =IF($AB$9='Base de données'!$A105,LOOKUP($AB$9,'Base de données'!$A105,'Base de données'!$D105)," ") -> D37 | D112: =IF($AB$9='Base de données'!$A105,LOOKUP($AB$9,'Base de données'!$A105,'Base de données'!$E105)," ") -> STAM | E112: =IF($AB$9='Base de données'!$A105,LOOKUP($AB$9,'Base de données'!$A105,'Base de données'!$F105)," ") -> 6361D | F112: =IF($AB$9='Base de données'!$A105,LOOKUP($AB$9,'Base de données'!$A105,'Base de données'!$G105)," ") -> WISER Michel | G112: =IF($AB$9='Base de données'!$A105,LOOKUP($AB$9,'Base de données'!$A105,'Base de données'!$H105)," ") -> - | H112: =IF($AB$9='Base de données'!$A105,LOOKUP($AB$9,'Base de données'!$A105,'Base de données'!$I105)," ") -> 013 | I112: =IF($AB$9='Base de données'!$A105,LOOKUP($AB$9,'Base de données'!$A105,'Base de données'!$J105)," ") -> CH | J112: =IF($AB$9='Base de données'!$A105,LOOKUP($AB$9,'Base de données'!$A105,'Base de données'!$K105)," ") -> TOUS | K112: =IF($AB$9='Base de données'!$A105,LOOKUP($AB$9,'Base de données'!$A105,'Base de données'!$L105)," ") -> 89 | L112: =IF($AB$9='Base de données'!$A105,LOOKUP($AB$9,'Base de données'!$A105,'Base de données'!$M105)," ") -> 4 | M112: =IF($AB$9='Base de données'!$A105,LOOKUP($AB$9,'Base de données'!$A105,'Base de données'!$N105)," ") -> 362 | N112: =IF($AB$9='Base de données'!$A105,LOOKUP($AB$9,'Base de données'!$A105,'Base de données'!$O105)," ") -> - | W112: ='Base de données'!AE105 -> 0 | X112: =IF($W112=Visualisateur!$U$60,'Base de données'!$U$63,'Base de données'!$U$64) -> NUL
A113: =IF($AB$9='Base de données'!$A106,LOOKUP($AB$9,'Base de données'!$A106,'Base de données'!$B106)," ") -> 26-30/01/05 | B113: =IF($AB$9='Base de données'!$A106,LOOKUP($AB$9,'Base de données'!$A106,'Base de données'!$C106)," ") -> 2005 | C113: =IF($AB$9='Base de données'!$A106,LOOKUP($AB$9,'Base de données'!$A106,'Base de données'!$D106)," ") -> A38 | D113: =IF($AB$9='Base de données'!$A106,LOOKUP($AB$9,'Base de données'!$A106,'Base de données'!$E106)," ") -> INDIV | E113: =IF($AB$9='Base de données'!$A106,LOOKUP($AB$9,'Base de données'!$A106,'Base de données'!$F106)," ") -> 6362 | F113: =IF($AB$9='Base de données'!$A106,LOOKUP($AB$9,'Base de données'!$A106,'Base de données'!$G106)," ") -> ANDRE Hans | G113: =IF($AB$9='Base de données'!$A106,LOOKUP($AB$9,'Base de données'!$A106,'Base de données'!$H106)," ") -> - | H113: =IF($AB$9='Base de données'!$A106,LOOKUP($AB$9,'Base de données'!$A106,'Base de données'!$I106)," ") -> 075 | I113: =IF($AB$9='Base de données'!$A106,LOOKUP($AB$9,'Base de données'!$A106,'Base de données'!$J106)," ") -> D | J113: =IF($AB$9='Base de données'!$A106,LOOKUP($AB$9,'Base de données'!$A106,'Base de données'!$K106)," ") -> TOUS | K113: =IF($AB$9='Base de données'!$A106,LOOKUP($AB$9,'Base de données'!$A106,'Base de données'!$L106)," ") -> 90 | L113: =IF($AB$9='Base de données'!$A106,LOOKUP($AB$9,'Base de données'!$A106,'Base de données'!$M106)," ") -> - | M113: =IF($AB$9='Base de données'!$A106,LOOKUP($AB$9,'Base de données'!$A106,'Base de données'!$N106)," ") -> - | N113: =IF($AB$9='Base de données'!$A106,LOOKUP($AB$9,'Base de données'!$A106,'Base de données'!$O106)," ") -> - | W113: ='Base de données'!AE106 -> 0 | X113: =IF($W113=Visualisateur!$U$60,'Base de données'!$U$63,'Base de données'!$U$64) -> NUL
A114: =IF($AB$9='Base de données'!$A107,LOOKUP($AB$9,'Base de données'!$A107,'Base de données'!$B107)," ") -> 26-30/01/05 | B114: =IF($AB$9='Base de données'!$A107,LOOKUP($AB$9,'Base de données'!$A107,'Base de données'!$C107)," ") -> 2005 | C114: =IF($AB$9='Base de données'!$A107,LOOKUP($AB$9,'Base de données'!$A107,'Base de données'!$D107)," ") -> A38 | D114: =IF($AB$9='Base de données'!$A107,LOOKUP($AB$9,'Base de données'!$A107,'Base de données'!$E107)," ") -> INDIV | E114: =IF($AB$9='Base de données'!$A107,LOOKUP($AB$9,'Base de données'!$A107,'Base de données'!$F107)," ") -> 6363 | F114: =IF($AB$9='Base de données'!$A107,LOOKUP($AB$9,'Base de données'!$A107,'Base de données'!$G107)," ") -> DELFINI Arturo | G114: =IF($AB$9='Base de données'!$A107,LOOKUP($AB$9,'Base de données'!$A107,'Base de données'!$H107)," ") -> - | H114: =IF($AB$9='Base de données'!$A107,LOOKUP($AB$9,'Base de données'!$A107,'Base de données'!$I107)," ") -> 012 | I114: =IF($AB$9='Base de données'!$A107,LOOKUP($AB$9,'Base de données'!$A107,'Base de données'!$J107)," ") -> CH | J114: =IF($AB$9='Base de données'!$A107,LOOKUP($AB$9,'Base de données'!$A107,'Base de données'!$K107)," ") -> TOUS | K114: =IF($AB$9='Base de données'!$A107,LOOKUP($AB$9,'Base de données'!$A107,'Base de données'!$L107)," ") -> 89 | L114: =IF($AB$9='Base de données'!$A107,LOOKUP($AB$9,'Base de données'!$A107,'Base de données'!$M107)," ") -> - | M114: =IF($AB$9='Base de données'!$A107,LOOKUP($AB$9,'Base de données'!$A107,'Base de données'!$N107)," ") -> - | N114: =IF($AB$9='Base de données'!$A107,LOOKUP($AB$9,'Base de données'!$A107,'Base de données'!$O107)," ") -> - | W114: ='Base de données'!AE107 -> 0 | X114: =IF($W114=Visualisateur!$U$60,'Base de données'!$U$63,'Base de données'!$U$64) -> NUL
A115: =IF($AB$9='Base de données'!$A108,LOOKUP($AB$9,'Base de données'!$A108,'Base de données'!$B108)," ") -> 26-30/01/05 | B115: =IF($AB$9='Base de données'!$A108,LOOKUP($AB$9,'Base de données'!$A108,'Base de données'!$C108)," ") -> 2005 | C115: =IF($AB$9='Base de données'!$A108,LOOKUP($AB$9,'Base de données'!$A108,'Base de données'!$D108)," ") -> A38 | D115: =IF($AB$9='Base de données'!$A108,LOOKUP($AB$9,'Base de données'!$A108,'Base de données'!$E108)," ") -> INDIV | E115: =IF($AB$9='Base de données'!$A108,LOOKUP($AB$9,'Base de données'!$A108,'Base de données'!$F108)," ") -> 6364 | F115: =IF($AB$9='Base de données'!$A108,LOOKUP($AB$9,'Base de données'!$A108,'Base de données'!$G108)," ") -> DELFINI Arturo | G115: =IF($AB$9='Base de données'!$A108,LOOKUP($AB$9,'Base de données'!$A108,'Base de données'!$H108)," ") -> - | H115: =IF($AB$9='Base de données'!$A108,LOOKUP($AB$9,'Base de données'!$A108,'Base de données'!$I108)," ") -> 002 | I115: =IF($AB$9='Base de données'!$A108,LOOKUP($AB$9,'Base de données'!$A108,'Base de données'!$J108)," ") -> CH | J115: =IF($AB$9='Base de données'!$A108,LOOKUP($AB$9,'Base de données'!$A108,'Base de données'!$K108)," ") -> TOUS | K115: =IF($AB$9='Base de données'!$A108,LOOKUP($AB$9,'Base de données'!$A108,'Base de données'!$L108)," ") -> 84 | L115: =IF($AB$9='Base de données'!$A108,LOOKUP($AB$9,'Base de données'!$A108,'Base de données'!$M108)," ") -> - | M115: =IF($AB$9='Base de données'!$A108,LOOKUP($AB$9,'Base de données'!$A108,'Base de données'!$N108)," ") -> - | N115: =IF($AB$9='Base de données'!$A108,LOOKUP($AB$9,'Base de données'!$A108,'Base de données'!$O108)," ") -> - | W115: ='Base de données'!AE108 -> 0 | X115: =IF($W115=Visualisateur!$U$60,'Base de données'!$U$63,'Base de données'!$U$64) -> NUL
A116: =IF($AB$9='Base de données'!$A109,LOOKUP($AB$9,'Base de données'!$A109,'Base de données'!$B109)," ") -> 26-30/01/05 | B116: =IF($AB$9='Base de données'!$A109,LOOKUP($AB$9,'Base de données'!$A109,'Base de données'!$C109)," ") -> 2005 | C116: =IF($AB$9='Base de données'!$A109,LOOKUP($AB$9,'Base de données'!$A109,'Base de données'!$D109)," ") -> A38 | D116: =IF($AB$9='Base de données'!$A109,LOOKUP($AB$9,'Base de données'!$A109,'Base de données'!$E109)," ") -> INDIV | E116: =IF($AB$9='Base de données'!$A109,LOOKUP($AB$9,'Base de données'!$A109,'Base de données'!$F109)," ") -> 6365 | F116: =IF($AB$9='Base de données'!$A109,LOOKUP($AB$9,'Base de données'!$A109,'Base de données'!$G109)," ") -> ESPADA LOPEZ Manuel | G116: =IF($AB$9='Base de données'!$A109,LOOKUP($AB$9,'Base de données'!$A109,'Base de données'!$H109)," ") -> - | H116: =IF($AB$9='Base de données'!$A109,LOOKUP($AB$9,'Base de données'!$A109,'Base de données'!$I109)," ") -> - | I116: =IF($AB$9='Base de données'!$A109,LOOKUP($AB$9,'Base de données'!$A109,'Base de données'!$J109)," ") -> E | J116: =IF($AB$9='Base de données'!$A109,LOOKUP($AB$9,'Base de données'!$A109,'Base de données'!$K109)," ") -> TOUS | K116: =IF($AB$9='Base de données'!$A109,LOOKUP($AB$9,'Base de données'!$A109,'Base de données'!$L109)," ") -> - | L116: =IF($AB$9='Base de données'!$A109,LOOKUP($AB$9,'Base de données'!$A109,'Base de données'!$M109)," ") -> - | M116: =IF($AB$9='Base de données'!$A109,LOOKUP($AB$9,'Base de données'!$A109,'Base de données'!$N109)," ") -> - | N116: =IF($AB$9='Base de données'!$A109,LOOKUP($AB$9,'Base de données'!$A109,'Base de données'!$O109)," ") -> ABS | W116: ='Base de données'!AE109 -> 0 | X116: =IF($W116=Visualisateur!$U$60,'Base de données'!$U$63,'Base de données'!$U$64) -> NUL
A117: =IF($AB$9='Base de données'!$A110,LOOKUP($AB$9,'Base de données'!$A110,'Base de données'!$B110)," ") -> 26-30/01/05 | B117: =IF($AB$9='Base de données'!$A110,LOOKUP($AB$9,'Base de données'!$A110,'Base de données'!$C110)," ") -> 2005 | C117: =IF($AB$9='Base de données'!$A110,LOOKUP($AB$9,'Base de données'!$A110,'Base de données'!$D110)," ") -> A38 | D117: =IF($AB$9='Base de données'!$A110,LOOKUP($AB$9,'Base de données'!$A110,'Base de données'!$E110)," ") -> INDIV | E117: =IF($AB$9='Base de données'!$A110,LOOKUP($AB$9,'Base de données'!$A110,'Base de données'!$F110)," ") -> 6366 | F117: =IF($AB$9='Base de données'!$A110,LOOKUP($AB$9,'Base de données'!$A110,'Base de données'!$G110)," ") -> GRIMM Roland | G117: =IF($AB$9='Base de données'!$A110,LOOKUP($AB$9,'Base de données'!$A110,'Base de données'!$H110)," ") -> - | H117: =IF($AB$9='Base de données'!$A110,LOOKUP($AB$9,'Base de données'!$A110,'Base de données'!$I110)," ") -> 031 | I117: =IF($AB$9='Base de données'!$A110,LOOKUP($AB$9,'Base de données'!$A110,'Base de données'!$J110)," ") -> D | J117: =IF($AB$9='Base de données'!$A110,LOOKUP($AB$9,'Base de données'!$A110,'Base de données'!$K110)," ") -> TOUS | K117: =IF($AB$9='Base de données'!$A110,LOOKUP($AB$9,'Base de données'!$A110,'Base de données'!$L110)," ") -> 89 | L117: =IF($AB$9='Base de données'!$A110,LOOKUP($AB$9,'Base de données'!$A110,'Base de données'!$M110)," ") -> - | M117: =IF($AB$9='Base de données'!$A110,LOOKUP($AB$9,'Base de données'!$A110,'Base de données'!$N110)," ") -> - | N117: =IF($AB$9='Base de données'!$A110,LOOKUP($AB$9,'Base de données'!$A110,'Base de données'!$O110)," ") -> - | W117: ='Base de données'!AE110 -> 0 | X117: =IF($W117=Visualisateur!$U$60,'Base de données'!$U$63,'Base de données'!$U$64) -> NUL
A118: =IF($AB$9='Base de données'!$A111,LOOKUP($AB$9,'Base de données'!$A111,'Base de données'!$B111)," ") -> 26-30/01/05 | B118: =IF($AB$9='Base de données'!$A111,LOOKUP($AB$9,'Base de données'!$A111,'Base de données'!$C111)," ") -> 2005 | C118: =IF($AB$9='Base de données'!$A111,LOOKUP($AB$9,'Base de données'!$A111,'Base de données'!$D111)," ") -> A38 | D118: =IF($AB$9='Base de données'!$A111,LOOKUP($AB$9,'Base de données'!$A111,'Base de données'!$E111)," ") -> INDIV | E118: =IF($AB$9='Base de données'!$A111,LOOKUP($AB$9,'Base de données'!$A111,'Base de données'!$F111)," ") -> 6367 | F118: =IF($AB$9='Base de données'!$A111,LOOKUP($AB$9,'Base de données'!$A111,'Base de données'!$G111)," ") -> GRIMM Roland | G118: =IF($AB$9='Base de données'!$A111,LOOKUP($AB$9,'Base de données'!$A111,'Base de données'!$H111)," ") -> - | H118: =IF($AB$9='Base de données'!$A111,LOOKUP($AB$9,'Base de données'!$A111,'Base de données'!$I111)," ") -> 007 | I118: =IF($AB$9='Base de données'!$A111,LOOKUP($AB$9,'Base de données'!$A111,'Base de données'!$J111)," ") -> D | J118: =IF($AB$9='Base de données'!$A111,LOOKUP($AB$9,'Base de données'!$A111,'Base de données'!$K111)," ") -> TOUS | K118: =IF($AB$9='Base de données'!$A111,LOOKUP($AB$9,'Base de données'!$A111,'Base de données'!$L111)," ") -> 89 | L118: =IF($AB$9='Base de données'!$A111,LOOKUP($AB$9,'Base de données'!$A111,'Base de données'!$M111)," ") -> - | M118: =IF($AB$9='Base de données'!$A111,LOOKUP($AB$9,'Base de données'!$A111,'Base de données'!$N111)," ") -> - | N118: =IF($AB$9='Base de données'!$A111,LOOKUP($AB$9,'Base de données'!$A111,'Base de données'!$O111)," ") -> - | W118: ='Base de données'!AE111 -> 0 | X118: =IF($W118=Visualisateur!$U$60,'Base de données'!$U$63,'Base de données'!$U$64) -> NUL
A119: =IF($AB$9='Base de données'!$A112,LOOKUP($AB$9,'Base de données'!$A112,'Base de données'!$B112)," ") -> 26-30/01/05 | B119: =IF($AB$9='Base de données'!$A112,LOOKUP($AB$9,'Base de données'!$A112,'Base de données'!$C112)," ") -> 2005 | C119: =IF($AB$9='Base de données'!$A112,LOOKUP($AB$9,'Base de données'!$A112,'Base de données'!$D112)," ") -> A38 | D119: =IF($AB$9='Base de données'!$A112,LOOKUP($AB$9,'Base de données'!$A112,'Base de données'!$E112)," ") -> INDIV | E119: =IF($AB$9='Base de données'!$A112,LOOKUP($AB$9,'Base de données'!$A112,'Base de données'!$F112)," ") -> 6368 | F119: =IF($AB$9='Base de données'!$A112,LOOKUP($AB$9,'Base de données'!$A112,'Base de données'!$G112)," ") -> GRIMM Roland | G119: =IF($AB$9='Base de données'!$A112,LOOKUP($AB$9,'Base de données'!$A112,'Base de données'!$H112)," ") -> - | H119: =IF($AB$9='Base de données'!$A112,LOOKUP($AB$9,'Base de données'!$A112,'Base de données'!$I112)," ") -> 006 | I119: =IF($AB$9='Base de données'!$A112,LOOKUP($AB$9,'Base de données'!$A112,'Base de données'!$J112)," ") -> D | J119: =IF($AB$9='Base de données'!$A112,LOOKUP($AB$9,'Base de données'!$A112,'Base de données'!$K112)," ") -> TOUS | K119: =IF($AB$9='Base de données'!$A112,LOOKUP($AB$9,'Base de données'!$A112,'Base de données'!$L112)," ") -> 89 | L119: =IF($AB$9='Base de données'!$A112,LOOKUP($AB$9,'Base de données'!$A112,'Base de données'!$M112)," ") -> - | M119: =IF($AB$9='Base de données'!$A112,LOOKUP($AB$9,'Base de données'!$A112,'Base de données'!$N112)," ") -> - | N119: =IF($AB$9='Base de données'!$A112,LOOKUP($AB$9,'Base de données'!$A112,'Base de données'!$O112)," ") -> - | W119: ='Base de données'!AE112 -> 0 | X119: =IF($W119=Visualisateur!$U$60,'Base de données'!$U$63,'Base de données'!$U$64) -> NUL
A120: =IF($AB$9='Base de données'!$A113,LOOKUP($AB$9,'Base de données'!$A113,'Base de données'!$B113)," ") -> 26-30/01/05 | B120: =IF($AB$9='Base de données'!$A113,LOOKUP($AB$9,'Base de données'!$A113,'Base de données'!$C113)," ") -> 2005 | C120: =IF($AB$9='Base de données'!$A113,LOOKUP($AB$9,'Base de données'!$A113,'Base de données'!$D113)," ") -> A38 | D120: =IF($AB$9='Base de données'!$A113,LOOKUP($AB$9,'Base de données'!$A113,'Base de données'!$E113)," ") -> INDIV | E120: =IF($AB$9='Base de données'!$A113,LOOKUP($AB$9,'Base de données'!$A113,'Base de données'!$F113)," ") -> 6369 | F120: =IF($AB$9='Base de données'!$A113,LOOKUP($AB$9,'Base de données'!$A113,'Base de données'!$G113)," ") -> IBI SERRANO Francisco | G120: =IF($AB$9='Base de données'!$A113,LOOKUP($AB$9,'Base de données'!$A113,'Base de données'!$H113)," ") -> - | H120: =IF($AB$9='Base de données'!$A113,LOOKUP($AB$9,'Base de données'!$A113,'Base de données'!$I113)," ") -> 105 | I120: =IF($AB$9='Base de données'!$A113,LOOKUP($AB$9,'Base de données'!$A113,'Base de données'!$J113)," ") -> E | J120: =IF($AB$9='Base de données'!$A113,LOOKUP($AB$9,'Base de données'!$A113,'Base de données'!$K113)," ") -> TOUS | K120: =IF($AB$9='Base de données'!$A113,LOOKUP($AB$9,'Base de données'!$A113,'Base de données'!$L113)," ") -> 89 | L120: =IF($AB$9='Base de données'!$A113,LOOKUP($AB$9,'Base de données'!$A113,'Base de données'!$M113)," ") -> - | M120: =IF($AB$9='Base de données'!$A113,LOOKUP($AB$9,'Base de données'!$A113,'Base de données'!$N113)," ") -> - | N120: =IF($AB$9='Base de données'!$A113,LOOKUP($AB$9,'Base de données'!$A113,'Base de données'!$O113)," ") -> - | W120: ='Base de données'!AE113 -> 0 | X120: =IF($W120=Visualisateur!$U$60,'Base de données'!$U$63,'Base de données'!$U$64) -> NUL
A121: =IF($AB$9='Base de données'!$A114,LOOKUP($AB$9,'Base de données'!$A114,'Base de données'!$B114)," ") -> 26-30/01/05 | B121: =IF($AB$9='Base de données'!$A114,LOOKUP($AB$9,'Base de données'!$A114,'Base de données'!$C114)," ") -> 2005 | C121: =IF($AB$9='Base de données'!$A114,LOOKUP($AB$9,'Base de données'!$A114,'Base de données'!$D114)," ") -> A38 | D121: =IF($AB$9='Base de données'!$A114,LOOKUP($AB$9,'Base de données'!$A114,'Base de données'!$E114)," ") -> INDIV | E121: =IF($AB$9='Base de données'!$A114,LOOKUP($AB$9,'Base de données'!$A114,'Base de données'!$F114)," ") -> 6370 | F121: =IF($AB$9='Base de données'!$A114,LOOKUP($AB$9,'Base de données'!$A114,'Base de données'!$G114)," ") -> IBI SERRANO Francisco | G121: =IF($AB$9='Base de données'!$A114,LOOKUP($AB$9,'Base de données'!$A114,'Base de données'!$H114)," ") -> - | H121: =IF($AB$9='Base de données'!$A114,LOOKUP($AB$9,'Base de données'!$A114,'Base de données'!$I114)," ") -> 106 | I121: =IF($AB$9='Base de données'!$A114,LOOKUP($AB$9,'Base de données'!$A114,'Base de données'!$J114)," ") -> E | J121: =IF($AB$9='Base de données'!$A114,LOOKUP($AB$9,'Base de données'!$A114,'Base de données'!$K114)," ") -> TOUS | K121: =IF($AB$9='Base de données'!$A114,LOOKUP($AB$9,'Base de données'!$A114,'Base de données'!$L114)," ") -> 91 | L121: =IF($AB$9='Base de données'!$A114,LOOKUP($AB$9,'Base de données'!$A114,'Base de données'!$M114)," ") -> - | M121: =IF($AB$9='Base de données'!$A114,LOOKUP($AB$9,'Base de données'!$A114,'Base de données'!$N114)," ") -> - | N121: =IF($AB$9='Base de données'!$A114,LOOKUP($AB$9,'Base de données'!$A114,'Base de données'!$O114)," ") -> BZ | W121: ='Base de données'!AE114 -> 0 | X121: =IF($W121=Visualisateur!$U$60,'Base de données'!$U$63,'Base de données'!$U$64) -> NUL
A122: =IF($AB$9='Base de données'!$A115,LOOKUP($AB$9,'Base de données'!$A115,'Base de données'!$B115)," ") -> 26-30/01/05 | B122: =IF($AB$9='Base de données'!$A115,LOOKUP($AB$9,'Base de données'!$A115,'Base de données'!$C115)," ") -> 2005 | C122: =IF($AB$9='Base de données'!$A115,LOOKUP($AB$9,'Base de données'!$A115,'Base de données'!$D115)," ") -> A38 | D122: =IF($AB$9='Base de données'!$A115,LOOKUP($AB$9,'Base de données'!$A115,'Base de données'!$E115)," ") -> INDIV | E122: =IF($AB$9='Base de données'!$A115,LOOKUP($AB$9,'Base de données'!$A115,'Base de données'!$F115)," ") -> 6371 | F122: =IF($AB$9='Base de données'!$A115,LOOKUP($AB$9,'Base de données'!$A115,'Base de données'!$G115)," ") -> IBI SERRANO Francisco | G122: =IF($AB$9='Base de données'!$A115,LOOKUP($AB$9,'Base de données'!$A115,'Base de données'!$H115)," ") -> - | H122: =IF($AB$9='Base de données'!$A115,LOOKUP($AB$9,'Base de données'!$A115,'Base de données'!$I115)," ") -> 131 | I122: =IF($AB$9='Base de données'!$A115,LOOKUP($AB$9,'Base de données'!$A115,'Base de données'!$J115)," ") -> E | J122: =IF($AB$9='Base de données'!$A115,LOOKUP($AB$9,'Base de données'!$A115,'Base de données'!$K115)," ") -> TOUS | K122: =IF($AB$9='Base de données'!$A115,LOOKUP($AB$9,'Base de données'!$A115,'Base de données'!$L115)," ") -> 89 | L122: =IF($AB$9='Base de données'!$A115,LOOKUP($AB$9,'Base de données'!$A115,'Base de données'!$M115)," ") -> - | M122: =IF($AB$9='Base de données'!$A115,LOOKUP($AB$9,'Base de données'!$A115,'Base de données'!$N115)," ") -> - | N122: =IF($AB$9='Base de données'!$A115,LOOKUP($AB$9,'Base de données'!$A115,'Base de données'!$O115)," ") -> - | W122: ='Base de données'!AE115 -> 0 | X122: =IF($W122=Visualisateur!$U$60,'Base de données'!$U$63,'Base de données'!$U$64) -> NUL
A123: =IF($AB$9='Base de données'!$A116,LOOKUP($AB$9,'Base de données'!$A116,'Base de données'!$B116)," ") -> 26-30/01/05 | B123: =IF($AB$9='Base de données'!$A116,LOOKUP($AB$9,'Base de données'!$A116,'Base de données'!$C116)," ") -> 2005 | C123: =IF($AB$9='Base de données'!$A116,LOOKUP($AB$9,'Base de données'!$A116,'Base de données'!$D116)," ") -> A38 | D123: =IF($AB$9='Base de données'!$A116,LOOKUP($AB$9,'Base de données'!$A116,'Base de données'!$E116)," ") -> INDIV | E123: =IF($AB$9='Base de données'!$A116,LOOKUP($AB$9,'Base de données'!$A116,'Base de données'!$F116)," ") -> 6372 | F123: =IF($AB$9='Base de données'!$A116,LOOKUP($AB$9,'Base de données'!$A116,'Base de données'!$G116)," ") -> KREHER Willi | G123: =IF($AB$9='Base de données'!$A116,LOOKUP($AB$9,'Base de données'!$A116,'Base de données'!$H116)," ") -> - | H123: =IF($AB$9='Base de données'!$A116,LOOKUP($AB$9,'Base de données'!$A116,'Base de données'!$I116)," ") -> 101 | I123: =IF($AB$9='Base de données'!$A116,LOOKUP($AB$9,'Base de données'!$A116,'Base de données'!$J116)," ") -> D | J123: =IF($AB$9='Base de données'!$A116,LOOKUP($AB$9,'Base de données'!$A116,'Base de données'!$K116)," ") -> TOUS | K123: =IF($AB$9='Base de données'!$A116,LOOKUP($AB$9,'Base de données'!$A116,'Base de données'!$L116)," ") -> 89 | L123: =IF($AB$9='Base de données'!$A116,LOOKUP($AB$9,'Base de données'!$A116,'Base de données'!$M116)," ") -> - | M123: =IF($AB$9='Base de données'!$A116,LOOKUP($AB$9,'Base de données'!$A116,'Base de données'!$N116)," ") -> - | N123: =IF($AB$9='Base de données'!$A116,LOOKUP($AB$9,'Base de données'!$A116,'Base de données'!$O116)," ") -> - | W123: ='Base de données'!AE116 -> 0 | X123: =IF($W123=Visualisateur!$U$60,'Base de données'!$U$63,'Base de données'!$U$64) -> NUL
A124: =IF($AB$9='Base de données'!$A117,LOOKUP($AB$9,'Base de données'!$A117,'Base de données'!$B117)," ") -> 26-30/01/05 | B124: =IF($AB$9='Base de données'!$A117,LOOKUP($AB$9,'Base de données'!$A117,'Base de données'!$C117)," ") -> 2005 | C124: =IF($AB$9='Base de données'!$A117,LOOKUP($AB$9,'Base de données'!$A117,'Base de données'!$D117)," ") -> A38 | D124: =IF($AB$9='Base de données'!$A117,LOOKUP($AB$9,'Base de données'!$A117,'Base de données'!$E117)," ") -> INDIV | E124: =IF($AB$9='Base de données'!$A117,LOOKUP($AB$9,'Base de données'!$A117,'Base de données'!$F117)," ") -> 6373 | F124: =IF($AB$9='Base de données'!$A117,LOOKUP($AB$9,'Base de données'!$A117,'Base de données'!$G117)," ") -> KULLMANN Robert | G124: =IF($AB$9='Base de données'!$A117,LOOKUP($AB$9,'Base de données'!$A117,'Base de données'!$H117)," ") -> - | H124: =IF($AB$9='Base de données'!$A117,LOOKUP($AB$9,'Base de données'!$A117,'Base de données'!$I117)," ") -> 007 | I124: =IF($AB$9='Base de données'!$A117,LOOKUP($AB$9,'Base de données'!$A117,'Base de données'!$J117)," ") -> D | J124: =IF($AB$9='Base de données'!$A117,LOOKUP($AB$9,'Base de données'!$A117,'Base de données'!$K117)," ") -> TOUS | K124: =IF($AB$9='Base de données'!$A117,LOOKUP($AB$9,'Base de données'!$A117,'Base de données'!$L117)," ") -> 87 | L124: =IF($AB$9='Base de données'!$A117,LOOKUP($AB$9,'Base de données'!$A117,'Base de données'!$M117)," ") -> - | M124: =IF($AB$9='Base de données'!$A117,LOOKUP($AB$9,'Base de données'!$A117,'Base de données'!$N117)," ") -> - | N124: =IF($AB$9='Base de données'!$A117,LOOKUP($AB$9,'Base de données'!$A117,'Base de données'!$O117)," ") -> - | W124: ='Base de données'!AE117 -> 0 | X124: =IF($W124=Visualisateur!$U$60,'Base de données'!$U$63,'Base de données'!$U$64) -> NUL
A125: =IF($AB$9='Base de données'!$A118,LOOKUP($AB$9,'Base de données'!$A118,'Base de données'!$B118)," ") -> 26-30/01/05 | B125: =IF($AB$9='Base de données'!$A118,LOOKUP($AB$9,'Base de données'!$A118,'Base de données'!$C118)," ") -> 2005 | C125: =IF($AB$9='Base de données'!$A118,LOOKUP($AB$9,'Base de données'!$A118,'Base de données'!$D118)," ") -> A38 | D125: =IF($AB$9='Base de données'!$A118,LOOKUP($AB$9,'Base de données'!$A118,'Base de données'!$E118)," ") -> INDIV | E125: =IF($AB$9='Base de données'!$A118,LOOKUP($AB$9,'Base de données'!$A118,'Base de données'!$F118)," ") -> 6374 | F125: =IF($AB$9='Base de données'!$A118,LOOKUP($AB$9,'Base de données'!$A118,'Base de données'!$G118)," ") -> KULLMANN Robert | G125: =IF($AB$9='Base de données'!$A118,LOOKUP($AB$9,'Base de données'!$A118,'Base de données'!$H118)," ") -> - | H125: =IF($AB$9='Base de données'!$A118,LOOKUP($AB$9,'Base de données'!$A118,'Base de données'!$I118)," ") -> 020 | I125: =IF($AB$9='Base de données'!$A118,LOOKUP($AB$9,'Base de données'!$A118,'Base de données'!$J118)," ") -> D | J125: =IF($AB$9='Base de données'!$A118,LOOKUP($AB$9,'Base de données'!$A118,'Base de données'!$K118)," ") -> TOUS | K125: =IF($AB$9='Base de données'!$A118,LOOKUP($AB$9,'Base de données'!$A118,'Base de données'!$L118)," ") -> 89 | L125: =IF($AB$9='Base de données'!$A118,LOOKUP($AB$9,'Base de données'!$A118,'Base de données'!$M118)," ") -> - | M125: =IF($AB$9='Base de données'!$A118,LOOKUP($AB$9,'Base de données'!$A118,'Base de données'!$N118)," ") -> - | N125: =IF($AB$9='Base de données'!$A118,LOOKUP($AB$9,'Base de données'!$A118,'Base de données'!$O118)," ") -> - | W125: ='Base de données'!AE118 -> 0 | X125: =IF($W125=Visualisateur!$U$60,'Base de données'!$U$63,'Base de données'!$U$64) -> NUL
A126: =IF($AB$9='Base de données'!$A119,LOOKUP($AB$9,'Base de données'!$A119,'Base de données'!$B119)," ") -> 26-30/01/05 | B126: =IF($AB$9='Base de données'!$A119,LOOKUP($AB$9,'Base de données'!$A119,'Base de données'!$C119)," ") -> 2005 | C126: =IF($AB$9='Base de données'!$A119,LOOKUP($AB$9,'Base de données'!$A119,'Base de données'!$D119)," ") -> A38 | D126: =IF($AB$9='Base de données'!$A119,LOOKUP($AB$9,'Base de données'!$A119,'Base de données'!$E119)," ") -> INDIV | E126: =IF($AB$9='Base de données'!$A119,LOOKUP($AB$9,'Base de données'!$A119,'Base de données'!$F119)," ") -> 6375 | F126: =IF($AB$9='Base de données'!$A119,LOOKUP($AB$9,'Base de données'!$A119,'Base de données'!$G119)," ") -> MONTAGNER Lino | G126: =IF($AB$9='Base de données'!$A119,LOOKUP($AB$9,'Base de données'!$A119,'Base de données'!$H119)," ") -> - | H126: =IF($AB$9='Base de données'!$A119,LOOKUP($AB$9,'Base de données'!$A119,'Base de données'!$I119)," ") -> 007 | I126: =IF($AB$9='Base de données'!$A119,LOOKUP($AB$9,'Base de données'!$A119,'Base de données'!$J119)," ") -> CH | J126: =IF($AB$9='Base de données'!$A119,LOOKUP($AB$9,'Base de données'!$A119,'Base de données'!$K119)," ") -> TOUS | K126: =IF($AB$9='Base de données'!$A119,LOOKUP($AB$9,'Base de données'!$A119,'Base de données'!$L119)," ") -> 89 | L126: =IF($AB$9='Base de données'!$A119,LOOKUP($AB$9,'Base de données'!$A119,'Base de données'!$M119)," ") -> - | M126: =IF($AB$9='Base de données'!$A119,LOOKUP($AB$9,'Base de données'!$A119,'Base de données'!$N119)," ") -> - | N126: =IF($AB$9='Base de données'!$A119,LOOKUP($AB$9,'Base de données'!$A119,'Base de données'!$O119)," ") -> - | W126: ='Base de données'!AE119 -> 0 | X126: =IF($W126=Visualisateur!$U$60,'Base de données'!$U$63,'Base de données'!$U$64) -> NUL
A127: =IF($AB$9='Base de données'!$A120,LOOKUP($AB$9,'Base de données'!$A120,'Base de données'!$B120)," ") -> 26-30/01/05 | B127: =IF($AB$9='Base de données'!$A120,LOOKUP($AB$9,'Base de données'!$A120,'Base de données'!$C120)," ") -> 2005 | C127: =IF($AB$9='Base de données'!$A120,LOOKUP($AB$9,'Base de données'!$A120,'Base de données'!$D120)," ") -> A38 | D127: =IF($AB$9='Base de données'!$A120,LOOKUP($AB$9,'Base de données'!$A120,'Base de données'!$E120)," ") -> INDIV | E127: =IF($AB$9='Base de données'!$A120,LOOKUP($AB$9,'Base de données'!$A120,'Base de données'!$F120)," ") -> 6376 | F127: =IF($AB$9='Base de données'!$A120,LOOKUP($AB$9,'Base de données'!$A120,'Base de données'!$G120)," ") -> MONTAGNER Lino | G127: =IF($AB$9='Base de données'!$A120,LOOKUP($AB$9,'Base de données'!$A120,'Base de données'!$H120)," ") -> - | H127: =IF($AB$9='Base de données'!$A120,LOOKUP($AB$9,'Base de données'!$A120,'Base de données'!$I120)," ") -> 019 | I127: =IF($AB$9='Base de données'!$A120,LOOKUP($AB$9,'Base de données'!$A120,'Base de données'!$J120)," ") -> CH | J127: =IF($AB$9='Base de données'!$A120,LOOKUP($AB$9,'Base de données'!$A120,'Base de données'!$K120)," ") -> TOUS | K127: =IF($AB$9='Base de données'!$A120,LOOKUP($AB$9,'Base de données'!$A120,'Base de données'!$L120)," ") -> 88 | L127: =IF($AB$9='Base de données'!$A120,LOOKUP($AB$9,'Base de données'!$A120,'Base de données'!$M120)," ") -> - | M127: =IF($AB$9='Base de données'!$A120,LOOKUP($AB$9,'Base de données'!$A120,'Base de données'!$N120)," ") -> - | N127: =IF($AB$9='Base de données'!$A120,LOOKUP($AB$9,'Base de données'!$A120,'Base de données'!$O120)," ") -> - | W127: ='Base de données'!AE120 -> 0 | X127: =IF($W127=Visualisateur!$U$60,'Base de données'!$U$63,'Base de données'!$U$64) -> NUL
A128: =IF($AB$9='Base de données'!$A121,LOOKUP($AB$9,'Base de données'!$A121,'Base de données'!$B121)," ") -> 26-30/01/05 | B128: =IF($AB$9='Base de données'!$A121,LOOKUP($AB$9,'Base de données'!$A121,'Base de données'!$C121)," ") -> 2005 | C128: =IF($AB$9='Base de données'!$A121,LOOKUP($AB$9,'Base de données'!$A121,'Base de données'!$D121)," ") -> A38 | D128: =IF($AB$9='Base de données'!$A121,LOOKUP($AB$9,'Base de données'!$A121,'Base de données'!$E121)," ") -> INDIV | E128: =IF($AB$9='Base de données'!$A121,LOOKUP($AB$9,'Base de données'!$A121,'Base de données'!$F121)," ") -> 6377 | F128: =IF($AB$9='Base de données'!$A121,LOOKUP($AB$9,'Base de données'!$A121,'Base de données'!$G121)," ") -> MOUTON Pascal | G128: =IF($AB$9='Base de données'!$A121,LOOKUP($AB$9,'Base de données'!$A121,'Base de données'!$H121)," ") -> - | H128: =IF($AB$9='Base de données'!$A121,LOOKUP($AB$9,'Base de données'!$A121,'Base de données'!$I121)," ") -> 116 | I128: =IF($AB$9='Base de données'!$A121,LOOKUP($AB$9,'Base de données'!$A121,'Base de données'!$J121)," ") -> F | J128: =IF($AB$9='Base de données'!$A121,LOOKUP($AB$9,'Base de données'!$A121,'Base de données'!$K121)," ") -> TOUS | K128: =IF($AB$9='Base de données'!$A121,LOOKUP($AB$9,'Base de données'!$A121,'Base de données'!$L121)," ") -> - | L128: =IF($AB$9='Base de données'!$A121,LOOKUP($AB$9,'Base de données'!$A121,'Base de données'!$M121)," ") -> - | M128: =IF($AB$9='Base de données'!$A121,LOOKUP($AB$9,'Base de données'!$A121,'Base de données'!$N121)," ") -> - | N128: =IF($AB$9='Base de données'!$A121,LOOKUP($AB$9,'Base de données'!$A121,'Base de données'!$O121)," ") -> NJ | W128: ='Base de données'!AE121 -> 0 | X128: =IF($W128=Visualisateur!$U$60,'Base de données'!$U$63,'Base de données'!$U$64) -> NUL
A129: =IF($AB$9='Base de données'!$A122,LOOKUP($AB$9,'Base de données'!$A122,'Base de données'!$B122)," ") -> 26-30/01/05 | B129: =IF($AB$9='Base de données'!$A122,LOOKUP($AB$9,'Base de données'!$A122,'Base de données'!$C122)," ") -> 2005 | C129: =IF($AB$9='Base de données'!$A122,LOOKUP($AB$9,'Base de données'!$A122,'Base de données'!$D122)," ") -> A38 | D129: =IF($AB$9='Base de données'!$A122,LOOKUP($AB$9,'Base de données'!$A122,'Base de données'!$E122)," ") -> INDIV | E129: =IF($AB$9='Base de données'!$A122,LOOKUP($AB$9,'Base de données'!$A122,'Base de données'!$F122)," ") -> 6378 | F129: =IF($AB$9='Base de données'!$A122,LOOKUP($AB$9,'Base de données'!$A122,'Base de données'!$G122)," ") -> MOUTON Pascal | G129: =IF($AB$9='Base de données'!$A122,LOOKUP($AB$9,'Base de données'!$A122,'Base de données'!$H122)," ") -> - | H129: =IF($AB$9='Base de données'!$A122,LOOKUP($AB$9,'Base de données'!$A122,'Base de données'!$I122)," ") -> 080 | I129: =IF($AB$9='Base de données'!$A122,LOOKUP($AB$9,'Base de données'!$A122,'Base de données'!$J122)," ") -> F | J129: =IF($AB$9='Base de données'!$A122,LOOKUP($AB$9,'Base de données'!$A122,'Base de données'!$K122)," ") -> TOUS | K129: =IF($AB$9='Base de données'!$A122,LOOKUP($AB$9,'Base de données'!$A122,'Base de données'!$L122)," ") -> 86 | L129: =IF($AB$9='Base de données'!$A122,LOOKUP($AB$9,'Base de données'!$A122,'Base de données'!$M122)," ") -> - | M129: =IF($AB$9='Base de données'!$A122,LOOKUP($AB$9,'Base de données'!$A122,'Base de données'!$N122)," ") -> - | N129: =IF($AB$9='Base de données'!$A122,LOOKUP($AB$9,'Base de données'!$A122,'Base de données'!$O122)," ") -> - | W129: ='Base de données'!AE122 -> 0 | X129: =IF($W129=Visualisateur!$U$60,'Base de données'!$U$63,'Base de données'!$U$64) -> NUL
A130: =IF($AB$9='Base de données'!$A123,LOOKUP($AB$9,'Base de données'!$A123,'Base de données'!$B123)," ") -> 26-30/01/05 | B130: =IF($AB$9='Base de données'!$A123,LOOKUP($AB$9,'Base de données'!$A123,'Base de données'!$C123)," ") -> 2005 | C130: =IF($AB$9='Base de données'!$A123,LOOKUP($AB$9,'Base de données'!$A123,'Base de données'!$D123)," ") -> A38 | D130: =IF($AB$9='Base de données'!$A123,LOOKUP($AB$9,'Base de données'!$A123,'Base de données'!$E123)," ") -> INDIV | E130: =IF($AB$9='Base de données'!$A123,LOOKUP($AB$9,'Base de données'!$A123,'Base de données'!$F123)," ") -> 6379 | F130: =IF($AB$9='Base de données'!$A123,LOOKUP($AB$9,'Base de données'!$A123,'Base de données'!$G123)," ") -> MOUTON Pascal | G130: =IF($AB$9='Base de données'!$A123,LOOKUP($AB$9,'Base de données'!$A123,'Base de données'!$H123)," ") -> - | H130: =IF($AB$9='Base de données'!$A123,LOOKUP($AB$9,'Base de données'!$A123,'Base de données'!$I123)," ") -> 119 | I130: =IF($AB$9='Base de données'!$A123,LOOKUP($AB$9,'Base de données'!$A123,'Base de données'!$J123)," ") -> F | J130: =IF($AB$9='Base de données'!$A123,LOOKUP($AB$9,'Base de données'!$A123,'Base de données'!$K123)," ") -> TOUS | K130: =IF($AB$9='Base de données'!$A123,LOOKUP($AB$9,'Base de données'!$A123,'Base de données'!$L123)," ") -> 93 | L130: =IF($AB$9='Base de données'!$A123,LOOKUP($AB$9,'Base de données'!$A123,'Base de données'!$M123)," ") -> - | M130: =IF($AB$9='Base de données'!$A123,LOOKUP($AB$9,'Base de données'!$A123,'Base de données'!$N123)," ") -> - | N130: =IF($AB$9='Base de données'!$A123,LOOKUP($AB$9,'Base de données'!$A123,'Base de données'!$O123)," ") -> OR | W130: ='Base de données'!AE123 -> 0 | X130: =IF($W130=Visualisateur!$U$60,'Base de données'!$U$63,'Base de données'!$U$64) -> NUL
A131: =IF($AB$9='Base de données'!$A124,LOOKUP($AB$9,'Base de données'!$A124,'Base de données'!$B124)," ") -> 26-30/01/05 | B131: =IF($AB$9='Base de données'!$A124,LOOKUP($AB$9,'Base de données'!$A124,'Base de données'!$C124)," ") -> 2005 | C131: =IF($AB$9='Base de données'!$A124,LOOKUP($AB$9,'Base de données'!$A124,'Base de données'!$D124)," ") -> A38 | D131: =IF($AB$9='Base de données'!$A124,LOOKUP($AB$9,'Base de données'!$A124,'Base de données'!$E124)," ") -> INDIV | E131: =IF($AB$9='Base de données'!$A124,LOOKUP($AB$9,'Base de données'!$A124,'Base de données'!$F124)," ") -> 6380 | F131: =IF($AB$9='Base de données'!$A124,LOOKUP($AB$9,'Base de données'!$A124,'Base de données'!$G124)," ") -> SCHEERS René | G131: =IF($AB$9='Base de données'!$A124,LOOKUP($AB$9,'Base de données'!$A124,'Base de données'!$H124)," ") -> - | H131: =IF($AB$9='Base de données'!$A124,LOOKUP($AB$9,'Base de données'!$A124,'Base de données'!$I124)," ") -> 026 | I131: =IF($AB$9='Base de données'!$A124,LOOKUP($AB$9,'Base de données'!$A124,'Base de données'!$J124)," ") -> B | J131: =IF($AB$9='Base de données'!$A124,LOOKUP($AB$9,'Base de données'!$A124,'Base de données'!$K124)," ") -> TOUS | K131: =IF($AB$9='Base de données'!$A124,LOOKUP($AB$9,'Base de données'!$A124,'Base de données'!$L124)," ") -> 89 | L131: =IF($AB$9='Base de données'!$A124,LOOKUP($AB$9,'Base de données'!$A124,'Base de données'!$M124)," ") -> - | M131: =IF($AB$9='Base de données'!$A124,LOOKUP($AB$9,'Base de données'!$A124,'Base de données'!$N124)," ") -> - | N131: =IF($AB$9='Base de données'!$A124,LOOKUP($AB$9,'Base de données'!$A124,'Base de données'!$O124)," ") -> - | W131: ='Base de données'!AE124 -> 0 | X131: =IF($W131=Visualisateur!$U$60,'Base de données'!$U$63,'Base de données'!$U$64) -> NUL
A132: =IF($AB$9='Base de données'!$A125,LOOKUP($AB$9,'Base de données'!$A125,'Base de données'!$B125)," ") -> 26-30/01/05 | B132: =IF($AB$9='Base de données'!$A125,LOOKUP($AB$9,'Base de données'!$A125,'Base de données'!$C125)," ") -> 2005 | C132: =IF($AB$9='Base de données'!$A125,LOOKUP($AB$9,'Base de données'!$A125,'Base de données'!$D125)," ") -> A38 | D132: =IF($AB$9='Base de données'!$A125,LOOKUP($AB$9,'Base de données'!$A125,'Base de données'!$E125)," ") -> INDIV | E132: =IF($AB$9='Base de données'!$A125,LOOKUP($AB$9,'Base de données'!$A125,'Base de données'!$F125)," ") -> 6381 | F132: =IF($AB$9='Base de données'!$A125,LOOKUP($AB$9,'Base de données'!$A125,'Base de données'!$G125)," ") -> SCHEERS René | G132: =IF($AB$9='Base de données'!$A125,LOOKUP($AB$9,'Base de données'!$A125,'Base de données'!$H125)," ") -> - | H132: =IF($AB$9='Base de données'!$A125,LOOKUP($AB$9,'Base de données'!$A125,'Base de données'!$I125)," ") -> 043 | I132: =IF($AB$9='Base de données'!$A125,LOOKUP($AB$9,'Base de données'!$A125,'Base de données'!$J125)," ") -> B | J132: =IF($AB$9='Base de données'!$A125,LOOKUP($AB$9,'Base de données'!$A125,'Base de données'!$K125)," ") -> TOUS | K132: =IF($AB$9='Base de données'!$A125,LOOKUP($AB$9,'Base de données'!$A125,'Base de données'!$L125)," ") -> 89 | L132: =IF($AB$9='Base de données'!$A125,LOOKUP($AB$9,'Base de données'!$A125,'Base de données'!$M125)," ") -> - | M132: =IF($AB$9='Base de données'!$A125,LOOKUP($AB$9,'Base de données'!$A125,'Base de données'!$N125)," ") -> - | N132: =IF($AB$9='Base de données'!$A125,LOOKUP($AB$9,'Base de données'!$A125,'Base de données'!$O125)," ") -> - | W132: ='Base de données'!AE125 -> 0 | X132: =IF($W132=Visualisateur!$U$60,'Base de données'!$U$63,'Base de données'!$U$64) -> NUL
A133: =IF($AB$9='Base de données'!$A126,LOOKUP($AB$9,'Base de données'!$A126,'Base de données'!$B126)," ") -> 26-30/01/05 | B133: =IF($AB$9='Base de données'!$A126,LOOKUP($AB$9,'Base de données'!$A126,'Base de données'!$C126)," ") -> 2005 | C133: =IF($AB$9='Base de données'!$A126,LOOKUP($AB$9,'Base de données'!$A126,'Base de données'!$D126)," ") -> A38 | D133: =IF($AB$9='Base de données'!$A126,LOOKUP($AB$9,'Base de données'!$A126,'Base de données'!$E126)," ") -> INDIV | E133: =IF($AB$9='Base de données'!$A126,LOOKUP($AB$9,'Base de données'!$A126,'Base de données'!$F126)," ") -> 6382 | F133: =IF($AB$9='Base de données'!$A126,LOOKUP($AB$9,'Base de données'!$A126,'Base de données'!$G126)," ") -> STEFFEN Kurt | G133: =IF($AB$9='Base de données'!$A126,LOOKUP($AB$9,'Base de données'!$A126,'Base de données'!$H126)," ") -> - | H133: =IF($AB$9='Base de données'!$A126,LOOKUP($AB$9,'Base de données'!$A126,'Base de données'!$I126)," ") -> 008 | I133: =IF($AB$9='Base de données'!$A126,LOOKUP($AB$9,'Base de données'!$A126,'Base de données'!$J126)," ") -> CH | J133: =IF($AB$9='Base de données'!$A126,LOOKUP($AB$9,'Base de données'!$A126,'Base de données'!$K126)," ") -> TOUS | K133: =IF($AB$9='Base de données'!$A126,LOOKUP($AB$9,'Base de données'!$A126,'Base de données'!$L126)," ") -> 84 | L133: =IF($AB$9='Base de données'!$A126,LOOKUP($AB$9,'Base de données'!$A126,'Base de données'!$M126)," ") -> - | M133: =IF($AB$9='Base de données'!$A126,LOOKUP($AB$9,'Base de données'!$A126,'Base de données'!$N126)," ") -> - | N133: =IF($AB$9='Base de données'!$A126,LOOKUP($AB$9,'Base de données'!$A126,'Base de données'!$O126)," ") -> - | W133: ='Base de données'!AE126 -> 0 | X133: =IF($W133=Visualisateur!$U$60,'Base de données'!$U$63,'Base de données'!$U$64) -> NUL
A134: =IF($AB$9='Base de données'!$A127,LOOKUP($AB$9,'Base de données'!$A127,'Base de données'!$B127)," ") -> 26-30/01/05 | B134: =IF($AB$9='Base de données'!$A127,LOOKUP($AB$9,'Base de données'!$A127,'Base de données'!$C127)," ") -> 2005 | C134: =IF($AB$9='Base de données'!$A127,LOOKUP($AB$9,'Base de données'!$A127,'Base de données'!$D127)," ") -> A38 | D134: =IF($AB$9='Base de données'!$A127,LOOKUP($AB$9,'Base de données'!$A127,'Base de données'!$E127)," ") -> INDIV | E134: =IF($AB$9='Base de données'!$A127,LOOKUP($AB$9,'Base de données'!$A127,'Base de données'!$F127)," ") -> 6383 | F134: =IF($AB$9='Base de données'!$A127,LOOKUP($AB$9,'Base de données'!$A127,'Base de données'!$G127)," ") -> STEFFEN Kurt | G134: =IF($AB$9='Base de données'!$A127,LOOKUP($AB$9,'Base de données'!$A127,'Base de données'!$H127)," ") -> - | H134: =IF($AB$9='Base de données'!$A127,LOOKUP($AB$9,'Base de données'!$A127,'Base de données'!$I127)," ") -> 004 | I134: =IF($AB$9='Base de données'!$A127,LOOKUP($AB$9,'Base de données'!$A127,'Base de données'!$J127)," ") -> CH | J134: =IF($AB$9='Base de données'!$A127,LOOKUP($AB$9,'Base de données'!$A127,'Base de données'!$K127)," ") -> TOUS | K134: =IF($AB$9='Base de données'!$A127,LOOKUP($AB$9,'Base de données'!$A127,'Base de données'!$L127)," ") -> 88 | L134: =IF($AB$9='Base de données'!$A127,LOOKUP($AB$9,'Base de données'!$A127,'Base de données'!$M127)," ") -> - | M134: =IF($AB$9='Base de données'!$A127,LOOKUP($AB$9,'Base de données'!$A127,'Base de données'!$N127)," ") -> - | N134: =IF($AB$9='Base de données'!$A127,LOOKUP($AB$9,'Base de données'!$A127,'Base de données'!$O127)," ") -> - | W134: ='Base de données'!AE127 -> 0 | X134: =IF($W134=Visualisateur!$U$60,'Base de données'!$U$63,'Base de données'!$U$64) -> NUL
A135: =IF($AB$9='Base de données'!$A128,LOOKUP($AB$9,'Base de données'!$A128,'Base de données'!$B128)," ") -> 26-30/01/05 | B135: =IF($AB$9='Base de données'!$A128,LOOKUP($AB$9,'Base de données'!$A128,'Base de données'!$C128)," ") -> 2005 | C135: =IF($AB$9='Base de données'!$A128,LOOKUP($AB$9,'Base de données'!$A128,'Base de données'!$D128)," ") -> A38 | D135: =IF($AB$9='Base de données'!$A128,LOOKUP($AB$9,'Base de données'!$A128,'Base de données'!$E128)," ") -> INDIV | E135: =IF($AB$9='Base de données'!$A128,LOOKUP($AB$9,'Base de données'!$A128,'Base de données'!$F128)," ") -> 6384 | F135: =IF($AB$9='Base de données'!$A128,LOOKUP($AB$9,'Base de données'!$A128,'Base de données'!$G128)," ") -> STEFFEN Kurt | G135: =IF($AB$9='Base de données'!$A128,LOOKUP($AB$9,'Base de données'!$A128,'Base de données'!$H128)," ") -> - | H135: =IF($AB$9='Base de données'!$A128,LOOKUP($AB$9,'Base de données'!$A128,'Base de données'!$I128)," ") -> 002 | I135: =IF($AB$9='Base de données'!$A128,LOOKUP($AB$9,'Base de données'!$A128,'Base de données'!$J128)," ") -> CH | J135: =IF($AB$9='Base de données'!$A128,LOOKUP($AB$9,'Base de données'!$A128,'Base de données'!$K128)," ") -> TOUS | K135: =IF($AB$9='Base de données'!$A128,LOOKUP($AB$9,'Base de données'!$A128,'Base de données'!$L128)," ") -> 89 | L135: =IF($AB$9='Base de données'!$A128,LOOKUP($AB$9,'Base de données'!$A128,'Base de données'!$M128)," ") -> - | M135: =IF($AB$9='Base de données'!$A128,LOOKUP($AB$9,'Base de données'!$A128,'Base de données'!$N128)," ") -> - | N135: =IF($AB$9='Base de données'!$A128,LOOKUP($AB$9,'Base de données'!$A128,'Base de données'!$O128)," ") -> - | W135: ='Base de données'!AE128 -> 0 | X135: =IF($W135=Visualisateur!$U$60,'Base de données'!$U$63,'Base de données'!$U$64) -> NUL
A136: =IF($AB$9='Base de données'!$A129,LOOKUP($AB$9,'Base de données'!$A129,'Base de données'!$B129)," ") -> 26-30/01/05 | B136: =IF($AB$9='Base de données'!$A129,LOOKUP($AB$9,'Base de données'!$A129,'Base de données'!$C129)," ") -> 2005 | C136: =IF($AB$9='Base de données'!$A129,LOOKUP($AB$9,'Base de données'!$A129,'Base de données'!$D129)," ") -> A38 | D136: =IF($AB$9='Base de données'!$A129,LOOKUP($AB$9,'Base de données'!$A129,'Base de données'!$E129)," ") -> INDIV | E136: =IF($AB$9='Base de données'!$A129,LOOKUP($AB$9,'Base de données'!$A129,'Base de données'!$F129)," ") -> 6385 | F136: =IF($AB$9='Base de données'!$A129,LOOKUP($AB$9,'Base de données'!$A129,'Base de données'!$G129)," ") -> TUR SANTANDREU Joan | G136: =IF($AB$9='Base de données'!$A129,LOOKUP($AB$9,'Base de données'!$A129,'Base de données'!$H129)," ") -> - | H136: =IF($AB$9='Base de données'!$A129,LOOKUP($AB$9,'Base de données'!$A129,'Base de données'!$I129)," ") -> 083 | I136: =IF($AB$9='Base de données'!$A129,LOOKUP($AB$9,'Base de données'!$A129,'Base de données'!$J129)," ") -> E | J136: =IF($AB$9='Base de données'!$A129,LOOKUP($AB$9,'Base de données'!$A129,'Base de données'!$K129)," ") -> TOUS | K136: =IF($AB$9='Base de données'!$A129,LOOKUP($AB$9,'Base de données'!$A129,'Base de données'!$L129)," ") -> 89 | L136: =IF($AB$9='Base de données'!$A129,LOOKUP($AB$9,'Base de données'!$A129,'Base de données'!$M129)," ") -> - | M136: =IF($AB$9='Base de données'!$A129,LOOKUP($AB$9,'Base de données'!$A129,'Base de données'!$N129)," ") -> - | N136: =IF($AB$9='Base de données'!$A129,LOOKUP($AB$9,'Base de données'!$A129,'Base de données'!$O129)," ") -> - | W136: ='Base de données'!AE129 -> 0 | X136: =IF($W136=Visualisateur!$U$60,'Base de données'!$U$63,'Base de données'!$U$64) -> NUL
A137: =IF($AB$9='Base de données'!$A130,LOOKUP($AB$9,'Base de données'!$A130,'Base de données'!$B130)," ") -> 26-30/01/05 | B137: =IF($AB$9='Base de données'!$A130,LOOKUP($AB$9,'Base de données'!$A130,'Base de données'!$C130)," ") -> 2005 | C137: =IF($AB$9='Base de données'!$A130,LOOKUP($AB$9,'Base de données'!$A130,'Base de données'!$D130)," ") -> A38 | D137: =IF($AB$9='Base de données'!$A130,LOOKUP($AB$9,'Base de données'!$A130,'Base de données'!$E130)," ") -> INDIV | E137: =IF($AB$9='Base de données'!$A130,LOOKUP($AB$9,'Base de données'!$A130,'Base de données'!$F130)," ") -> 6386 | F137: =IF($AB$9='Base de données'!$A130,LOOKUP($AB$9,'Base de données'!$A130,'Base de données'!$G130)," ") -> TUR SANTANDREU Joan | G137: =IF($AB$9='Base de données'!$A130,LOOKUP($AB$9,'Base de données'!$A130,'Base de données'!$H130)," ") -> - | H137: =IF($AB$9='Base de données'!$A130,LOOKUP($AB$9,'Base de données'!$A130,'Base de données'!$I130)," ") -> 108 | I137: =IF($AB$9='Base de données'!$A130,LOOKUP($AB$9,'Base de données'!$A130,'Base de données'!$J130)," ") -> E | J137: =IF($AB$9='Base de données'!$A130,LOOKUP($AB$9,'Base de données'!$A130,'Base de données'!$K130)," ") -> TOUS | K137: =IF($AB$9='Base de données'!$A130,LOOKUP($AB$9,'Base de données'!$A130,'Base de données'!$L130)," ") -> 89 | L137: =IF($AB$9='Base de données'!$A130,LOOKUP($AB$9,'Base de données'!$A130,'Base de données'!$M130)," ") -> - | M137: =IF($AB$9='Base de données'!$A130,LOOKUP($AB$9,'Base de données'!$A130,'Base de données'!$N130)," ") -> - | N137: =IF($AB$9='Base de données'!$A130,LOOKUP($AB$9,'Base de données'!$A130,'Base de données'!$O130)," ") -> - | W137: ='Base de données'!AE130 -> 0 | X137: =IF($W137=Visualisateur!$U$60,'Base de données'!$U$63,'Base de données'!$U$64) -> NUL
A138: =IF($AB$9='Base de données'!$A131,LOOKUP($AB$9,'Base de données'!$A131,'Base de données'!$B131)," ") -> 26-30/01/05 | B138: =IF($AB$9='Base de données'!$A131,LOOKUP($AB$9,'Base de données'!$A131,'Base de données'!$C131)," ") -> 2005 | C138: =IF($AB$9='Base de données'!$A131,LOOKUP($AB$9,'Base de données'!$A131,'Base de données'!$D131)," ") -> A38 | D138: =IF($AB$9='Base de données'!$A131,LOOKUP($AB$9,'Base de données'!$A131,'Base de données'!$E131)," ") -> INDIV | E138: =IF($AB$9='Base de données'!$A131,LOOKUP($AB$9,'Base de données'!$A131,'Base de données'!$F131)," ") -> 6387 | F138: =IF($AB$9='Base de données'!$A131,LOOKUP($AB$9,'Base de données'!$A131,'Base de données'!$G131)," ") -> TUR SANTANDREU Joan | G138: =IF($AB$9='Base de données'!$A131,LOOKUP($AB$9,'Base de données'!$A131,'Base de données'!$H131)," ") -> - | H138: =IF($AB$9='Base de données'!$A131,LOOKUP($AB$9,'Base de données'!$A131,'Base de données'!$I131)," ") -> 170 | I138: =IF($AB$9='Base de données'!$A131,LOOKUP($AB$9,'Base de données'!$A131,'Base de données'!$J131)," ") -> E | J138: =IF($AB$9='Base de données'!$A131,LOOKUP($AB$9,'Base de données'!$A131,'Base de données'!$K131)," ") -> TOUS | K138: =IF($AB$9='Base de données'!$A131,LOOKUP($AB$9,'Base de données'!$A131,'Base de données'!$L131)," ") -> 88 | L138: =IF($AB$9='Base de données'!$A131,LOOKUP($AB$9,'Base de données'!$A131,'Base de données'!$M131)," ") -> - | M138: =IF($AB$9='Base de données'!$A131,LOOKUP($AB$9,'Base de données'!$A131,'Base de données'!$N131)," ") -> - | N138: =IF($AB$9='Base de données'!$A131,LOOKUP($AB$9,'Base de données'!$A131,'Base de données'!$O131)," ") -> - | W138: ='Base de données'!AE131 -> 0 | X138: =IF($W138=Visualisateur!$U$60,'Base de données'!$U$63,'Base de données'!$U$64) -> NUL
A139: =IF($AB$9='Base de données'!$A132,LOOKUP($AB$9,'Base de données'!$A132,'Base de données'!$B132)," ") -> 26-30/01/05 | B139: =IF($AB$9='Base de données'!$A132,LOOKUP($AB$9,'Base de données'!$A132,'Base de données'!$C132)," ") -> 2005 | C139: =IF($AB$9='Base de données'!$A132,LOOKUP($AB$9,'Base de données'!$A132,'Base de données'!$D132)," ") -> A38 | D139: =IF($AB$9='Base de données'!$A132,LOOKUP($AB$9,'Base de données'!$A132,'Base de données'!$E132)," ") -> INDIV | E139: =IF($AB$9='Base de données'!$A132,LOOKUP($AB$9,'Base de données'!$A132,'Base de données'!$F132)," ") -> 6388 | F139: =IF($AB$9='Base de données'!$A132,LOOKUP($AB$9,'Base de données'!$A132,'Base de données'!$G132)," ") -> WISER Michel | G139: =IF($AB$9='Base de données'!$A132,LOOKUP($AB$9,'Base de données'!$A132,'Base de données'!$H132)," ") -> - | H139: =IF($AB$9='Base de données'!$A132,LOOKUP($AB$9,'Base de données'!$A132,'Base de données'!$I132)," ") -> 003 | I139: =IF($AB$9='Base de données'!$A132,LOOKUP($AB$9,'Base de données'!$A132,'Base de données'!$J132)," ") -> CH | J139: =IF($AB$9='Base de données'!$A132,LOOKUP($AB$9,'Base de données'!$A132,'Base de données'!$K132)," ") -> TOUS | K139: =IF($AB$9='Base de données'!$A132,LOOKUP($AB$9,'Base de données'!$A132,'Base de données'!$L132)," ") -> 92 | L139: =IF($AB$9='Base de données'!$A132,LOOKUP($AB$9,'Base de données'!$A132,'Base de données'!$M132)," ") -> - | M139: =IF($AB$9='Base de données'!$A132,LOOKUP($AB$9,'Base de données'!$A132,'Base de données'!$N132)," ") -> - | N139: =IF($AB$9='Base de données'!$A132,LOOKUP($AB$9,'Base de données'!$A132,'Base de données'!$O132)," ") -> AG | W139: ='Base de données'!AE132 -> 0 | X139: =IF($W139=Visualisateur!$U$60,'Base de données'!$U$63,'Base de données'!$U$64) -> NUL
A140: =IF($AB$9='Base de données'!$A133,LOOKUP($AB$9,'Base de données'!$A133,'Base de données'!$B133)," ") -> 26-30/01/05 | B140: =IF($AB$9='Base de données'!$A133,LOOKUP($AB$9,'Base de données'!$A133,'Base de données'!$C133)," ") -> 2005 | C140: =IF($AB$9='Base de données'!$A133,LOOKUP($AB$9,'Base de données'!$A133,'Base de données'!$D133)," ") -> A38 | D140: =IF($AB$9='Base de données'!$A133,LOOKUP($AB$9,'Base de données'!$A133,'Base de données'!$E133)," ") -> INDIV | E140: =IF($AB$9='Base de données'!$A133,LOOKUP($AB$9,'Base de données'!$A133,'Base de données'!$F133)," ") -> 6389 | F140: =IF($AB$9='Base de données'!$A133,LOOKUP($AB$9,'Base de données'!$A133,'Base de données'!$G133)," ") -> WISER Michel | G140: =IF($AB$9='Base de données'!$A133,LOOKUP($AB$9,'Base de données'!$A133,'Base de données'!$H133)," ") -> - | H140: =IF($AB$9='Base de données'!$A133,LOOKUP($AB$9,'Base de données'!$A133,'Base de données'!$I133)," ") -> 021 | I140: =IF($AB$9='Base de données'!$A133,LOOKUP($AB$9,'Base de données'!$A133,'Base de données'!$J133)," ") -> CH | J140: =IF($AB$9='Base de données'!$A133,LOOKUP($AB$9,'Base de données'!$A133,'Base de données'!$K133)," ") -> TOUS | K140: =IF($AB$9='Base de données'!$A133,LOOKUP($AB$9,'Base de données'!$A133,'Base de données'!$L133)," ") -> 88 | L140: =IF($AB$9='Base de données'!$A133,LOOKUP($AB$9,'Base de données'!$A133,'Base de données'!$M133)," ") -> - | M140: =IF($AB$9='Base de données'!$A133,LOOKUP($AB$9,'Base de données'!$A133,'Base de données'!$N133)," ") -> - | N140: =IF($AB$9='Base de données'!$A133,LOOKUP($AB$9,'Base de données'!$A133,'Base de données'!$O133)," ") -> - | W140: ='Base de données'!AE133 -> 0 | X140: =IF($W140=Visualisateur!$U$60,'Base de données'!$U$63,'Base de données'!$U$64) -> NUL | Z140: =IF($X140=$AB$14,$W140," ") -> 
A141: =IF($AB$9='Base de données'!$A134,LOOKUP($AB$9,'Base de données'!$A134,'Base de données'!$B134)," ") -> 26-30/01/05 | B141: =IF($AB$9='Base de données'!$A134,LOOKUP($AB$9,'Base de données'!$A134,'Base de données'!$C134)," ") -> 2005 | C141: =IF($AB$9='Base de données'!$A134,LOOKUP($AB$9,'Base de données'!$A134,'Base de données'!$D134)," ") -> A38 | D141: =IF($AB$9='Base de données'!$A134,LOOKUP($AB$9,'Base de données'!$A134,'Base de données'!$E134)," ") -> INDIV | E141: =IF($AB$9='Base de données'!$A134,LOOKUP($AB$9,'Base de données'!$A134,'Base de données'!$F134)," ") -> 6390 | F141: =IF($AB$9='Base de données'!$A134,LOOKUP($AB$9,'Base de données'!$A134,'Base de données'!$G134)," ") -> WISER Michel | G141: =IF($AB$9='Base de données'!$A134,LOOKUP($AB$9,'Base de données'!$A134,'Base de données'!$H134)," ") -> - | H141: =IF($AB$9='Base de données'!$A134,LOOKUP($AB$9,'Base de données'!$A134,'Base de données'!$I134)," ") -> 022 | I141: =IF($AB$9='Base de données'!$A134,LOOKUP($AB$9,'Base de données'!$A134,'Base de données'!$J134)," ") -> CH | J141: =IF($AB$9='Base de données'!$A134,LOOKUP($AB$9,'Base de données'!$A134,'Base de données'!$K134)," ") -> TOUS | K141: =IF($AB$9='Base de données'!$A134,LOOKUP($AB$9,'Base de données'!$A134,'Base de données'!$L134)," ") -> 90 | L141: =IF($AB$9='Base de données'!$A134,LOOKUP($AB$9,'Base de données'!$A134,'Base de données'!$M134)," ") -> - | M141: =IF($AB$9='Base de données'!$A134,LOOKUP($AB$9,'Base de données'!$A134,'Base de données'!$N134)," ") -> - | N141: =IF($AB$9='Base de données'!$A134,LOOKUP($AB$9,'Base de données'!$A134,'Base de données'!$O134)," ") -> - | W141: ='Base de données'!AE134 -> 0 | X141: =IF($W141=Visualisateur!$U$60,'Base de données'!$U$63,'Base de données'!$U$64) -> NUL
A142: =IF($AB$9='Base de données'!$A135,LOOKUP($AB$9,'Base de données'!$A135,'Base de données'!$B135)," ") ->  | B142: =IF($AB$9='Base de données'!$A135,LOOKUP($AB$9,'Base de données'!$A135,'Base de données'!$C135)," ") ->  | C142: =IF($AB$9='Base de données'!$A135,LOOKUP($AB$9,'Base de données'!$A135,'Base de données'!$D135)," ") ->  | D142: =IF($AB$9='Base de données'!$A135,LOOKUP($AB$9,'Base de données'!$A135,'Base de données'!$E135)," ") ->  | E142: =IF($AB$9='Base de données'!$A135,LOOKUP($AB$9,'Base de données'!$A135,'Base de données'!$H135)," ") ->  | F142: =IF($AB$9='Base de données'!$A135,LOOKUP($AB$9,'Base de données'!$A135,'Base de données'!$G135)," ") ->  | G142: =IF($AB$9='Base de données'!$A135,LOOKUP($AB$9,'Base de données'!$A135,'Base de données'!#REF!)," ") ->  | H142: =IF($AB$9='Base de données'!$A135,LOOKUP($AB$9,'Base de données'!$A135,'Base de données'!$I135)," ") ->  | I142: =IF($AB$9='Base de données'!$A135,LOOKUP($AB$9,'Base de données'!$A135,'Base de données'!$J135)," ") ->  | J142: =IF($AB$9='Base de données'!$A135,LOOKUP($AB$9,'Base de données'!$A135,'Base de données'!$K135)," ") ->  | K142: =IF($AB$9='Base de données'!$A135,LOOKUP($AB$9,'Base de données'!$A135,'Base de données'!$L135)," ") ->  | L142: =IF($AB$9='Base de données'!$A135,LOOKUP($AB$9,'Base de données'!$A135,'Base de données'!$M135)," ") ->  | M142: =IF($AB$9='Base de données'!$A135,LOOKUP($AB$9,'Base de données'!$A135,'Base de données'!$N135)," ") ->  | N142: =IF($AB$9='Base de données'!$A135,LOOKUP($AB$9,'Base de données'!$A135,'Base de données'!$O135)," ") ->  | W142: ='Base de données'!AE135 -> 0 | X142: =IF($W142=Visualisateur!$U$60,'Base de données'!$U$63,'Base de données'!$U$64) -> NUL
A143: =IF($AB$9='Base de données'!$A136,LOOKUP($AB$9,'Base de données'!$A136,'Base de données'!$B136)," ") ->  | B143: =IF($AB$9='Base de données'!$A136,LOOKUP($AB$9,'Base de données'!$A136,'Base de données'!$C136)," ") ->  | C143: =IF($AB$9='Base de données'!$A136,LOOKUP($AB$9,'Base de données'!$A136,'Base de données'!$D136)," ") ->  | D143: =IF($AB$9='Base de données'!$A136,LOOKUP($AB$9,'Base de données'!$A136,'Base de données'!$E136)," ") ->  | E143: =IF($AB$9='Base de données'!$A136,LOOKUP($AB$9,'Base de données'!$A136,'Base de données'!$H136)," ") ->  | F143: =IF($AB$9='Base de données'!$A136,LOOKUP($AB$9,'Base de données'!$A136,'Base de données'!$G136)," ") ->  | G143: =IF($AB$9='Base de données'!$A136,LOOKUP($AB$9,'Base de données'!$A136,'Base de données'!#REF!)," ") ->  | H143: =IF($AB$9='Base de données'!$A136,LOOKUP($AB$9,'Base de données'!$A136,'Base de données'!$I136)," ") ->  | I143: =IF($AB$9='Base de données'!$A136,LOOKUP($AB$9,'Base de données'!$A136,'Base de données'!$J136)," ") ->  | J143: =IF($AB$9='Base de données'!$A136,LOOKUP($AB$9,'Base de données'!$A136,'Base de données'!$K136)," ") ->  | K143: =IF($AB$9='Base de données'!$A136,LOOKUP($AB$9,'Base de données'!$A136,'Base de données'!$L136)," ") ->  | L143: =IF($AB$9='Base de données'!$A136,LOOKUP($AB$9,'Base de données'!$A136,'Base de données'!$M136)," ") ->  | M143: =IF($AB$9='Base de données'!$A136,LOOKUP($AB$9,'Base de données'!$A136,'Base de données'!$N136)," ") ->  | N143: =IF($AB$9='Base de données'!$A136,LOOKUP($AB$9,'Base de données'!$A136,'Base de données'!$O136)," ") ->  | W143: ='Base de données'!AE136 -> 0 | X143: =IF($W143=Visualisateur!$U$60,'Base de données'!$U$63,'Base de données'!$U$64) -> NUL
A144: =IF($AB$9='Base de données'!$A137,LOOKUP($AB$9,'Base de données'!$A137,'Base de données'!$B137)," ") ->  | B144: =IF($AB$9='Base de données'!$A137,LOOKUP($AB$9,'Base de données'!$A137,'Base de données'!$C137)," ") ->  | C144: =IF($AB$9='Base de données'!$A137,LOOKUP($AB$9,'Base de données'!$A137,'Base de données'!$D137)," ") ->  | D144: =IF($AB$9='Base de données'!$A137,LOOKUP($AB$9,'Base de données'!$A137,'Base de données'!$E137)," ") ->  | E144: =IF($AB$9='Base de données'!$A137,LOOKUP($AB$9,'Base de données'!$A137,'Base de données'!$H137)," ") ->  | F144: =IF($AB$9='Base de données'!$A137,LOOKUP($AB$9,'Base de données'!$A137,'Base de données'!$G137)," ") ->  | G144: =IF($AB$9='Base de données'!$A137,LOOKUP($AB$9,'Base de données'!$A137,'Base de données'!#REF!)," ") ->  | H144: =IF($AB$9='Base de données'!$A137,LOOKUP($AB$9,'Base de données'!$A137,'Base de données'!$I137)," ") ->  | I144: =IF($AB$9='Base de données'!$A137,LOOKUP($AB$9,'Base de données'!$A137,'Base de données'!$J137)," ") ->  | J144: =IF($AB$9='Base de données'!$A137,LOOKUP($AB$9,'Base de données'!$A137,'Base de données'!$K137)," ") ->  | K144: =IF($AB$9='Base de données'!$A137,LOOKUP($AB$9,'Base de données'!$A137,'Base de données'!$L137)," ") ->  | L144: =IF($AB$9='Base de données'!$A137,LOOKUP($AB$9,'Base de données'!$A137,'Base de données'!$M137)," ") ->  | M144: =IF($AB$9='Base de données'!$A137,LOOKUP($AB$9,'Base de données'!$A137,'Base de données'!$N137)," ") ->  | N144: =IF($AB$9='Base de données'!$A137,LOOKUP($AB$9,'Base de données'!$A137,'Base de données'!$O137)," ") ->  | W144: ='Base de données'!AE137 -> 0 | X144: =IF($W144=Visualisateur!$U$60,'Base de données'!$U$63,'Base de données'!$U$64) -> NUL
A145: =IF($AB$9='Base de données'!$A138,LOOKUP($AB$9,'Base de données'!$A138,'Base de données'!$B138)," ") ->  | B145: =IF($AB$9='Base de données'!$A138,LOOKUP($AB$9,'Base de données'!$A138,'Base de données'!$C138)," ") ->  | C145: =IF($AB$9='Base de données'!$A138,LOOKUP($AB$9,'Base de données'!$A138,'Base de données'!$D138)," ") ->  | D145: =IF($AB$9='Base de données'!$A138,LOOKUP($AB$9,'Base de données'!$A138,'Base de données'!$E138)," ") ->  | E145: =IF($AB$9='Base de données'!$A138,LOOKUP($AB$9,'Base de données'!$A138,'Base de données'!$H138)," ") ->  | F145: =IF($AB$9='Base de données'!$A138,LOOKUP($AB$9,'Base de données'!$A138,'Base de données'!$G138)," ") ->  | G145: =IF($AB$9='Base de données'!$A138,LOOKUP($AB$9,'Base de données'!$A138,'Base de données'!#REF!)," ") ->  | H145: =IF($AB$9='Base de données'!$A138,LOOKUP($AB$9,'Base de données'!$A138,'Base de données'!$I138)," ") ->  | I145: =IF($AB$9='Base de données'!$A138,LOOKUP($AB$9,'Base de données'!$A138,'Base de données'!$J138)," ") ->  | J145: =IF($AB$9='Base de données'!$A138,LOOKUP($AB$9,'Base de données'!$A138,'Base de données'!$K138)," ") ->  | K145: =IF($AB$9='Base de données'!$A138,LOOKUP($AB$9,'Base de données'!$A138,'Base de données'!$L138)," ") ->  | L145: =IF($AB$9='Base de données'!$A138,LOOKUP($AB$9,'Base de données'!$A138,'Base de données'!$M138)," ") ->  | M145: =IF($AB$9='Base de données'!$A138,LOOKUP($AB$9,'Base de données'!$A138,'Base de données'!$N138)," ") ->  | N145: =IF($AB$9='Base de données'!$A138,LOOKUP($AB$9,'Base de données'!$A138,'Base de données'!$O138)," ") ->  | W145: ='Base de données'!AE138 -> 0 | X145: =IF($W145=Visualisateur!$U$60,'Base de données'!$U$63,'Base de données'!$U$64) -> NUL
A146: =IF($AB$9='Base de données'!$A139,LOOKUP($AB$9,'Base de données'!$A139,'Base de données'!$B139)," ") ->  | B146: =IF($AB$9='Base de données'!$A139,LOOKUP($AB$9,'Base de données'!$A139,'Base de données'!$C139)," ") ->  | C146: =IF($AB$9='Base de données'!$A139,LOOKUP($AB$9,'Base de données'!$A139,'Base de données'!$D139)," ") ->  | D146: =IF($AB$9='Base de données'!$A139,LOOKUP($AB$9,'Base de données'!$A139,'Base de données'!$E139)," ") ->  | E146: =IF($AB$9='Base de données'!$A139,LOOKUP($AB$9,'Base de données'!$A139,'Base de données'!$H139)," ") ->  | F146: =IF($AB$9='Base de données'!$A139,LOOKUP($AB$9,'Base de données'!$A139,'Base de données'!$G139)," ") ->  | G146: =IF($AB$9='Base de données'!$A139,LOOKUP($AB$9,'Base de données'!$A139,'Base de données'!#REF!)," ") ->  | H146: =IF($AB$9='Base de données'!$A139,LOOKUP($AB$9,'Base de données'!$A139,'Base de données'!$I139)," ") ->  | I146: =IF($AB$9='Base de données'!$A139,LOOKUP($AB$9,'Base de données'!$A139,'Base de données'!$J139)," ") ->  | J146: =IF($AB$9='Base de données'!$A139,LOOKUP($AB$9,'Base de données'!$A139,'Base de données'!$K139)," ") ->  | K146: =IF($AB$9='Base de données'!$A139,LOOKUP($AB$9,'Base de données'!$A139,'Base de données'!$L139)," ") ->  | L146: =IF($AB$9='Base de données'!$A139,LOOKUP($AB$9,'Base de données'!$A139,'Base de données'!$M139)," ") ->  | M146: =IF($AB$9='Base de données'!$A139,LOOKUP($AB$9,'Base de données'!$A139,'Base de données'!$N139)," ") ->  | N146: =IF($AB$9='Base de données'!$A139,LOOKUP($AB$9,'Base de données'!$A139,'Base de données'!$O139)," ") ->  | W146: ='Base de données'!AE139 -> 0 | X146: =IF($W146=Visualisateur!$U$60,'Base de données'!$U$63,'Base de données'!$U$64) -> NUL
A147: =IF($AB$9='Base de données'!$A140,LOOKUP($AB$9,'Base de données'!$A140,'Base de données'!$B140)," ") ->  | B147: =IF($AB$9='Base de données'!$A140,LOOKUP($AB$9,'Base de données'!$A140,'Base de données'!$C140)," ") ->  | C147: =IF($AB$9='Base de données'!$A140,LOOKUP($AB$9,'Base de données'!$A140,'Base de données'!$D140)," ") ->  | D147: =IF($AB$9='Base de données'!$A140,LOOKUP($AB$9,'Base de données'!$A140,'Base de données'!$E140)," ") ->  | E147: =IF($AB$9='Base de données'!$A140,LOOKUP($AB$9,'Base de données'!$A140,'Base de données'!$H140)," ") ->  | F147: =IF($AB$9='Base de données'!$A140,LOOKUP($AB$9,'Base de données'!$A140,'Base de données'!$G140)," ") ->  | G147: =IF($AB$9='Base de données'!$A140,LOOKUP($AB$9,'Base de données'!$A140,'Base de données'!#REF!)," ") ->  | H147: =IF($AB$9='Base de données'!$A140,LOOKUP($AB$9,'Base de données'!$A140,'Base de données'!$I140)," ") ->  | I147: =IF($AB$9='Base de données'!$A140,LOOKUP($AB$9,'Base de données'!$A140,'Base de données'!$J140)," ") ->  | J147: =IF($AB$9='Base de données'!$A140,LOOKUP($AB$9,'Base de données'!$A140,'Base de données'!$K140)," ") ->  | K147: =IF($AB$9='Base de données'!$A140,LOOKUP($AB$9,'Base de données'!$A140,'Base de données'!$L140)," ") ->  | L147: =IF($AB$9='Base de données'!$A140,LOOKUP($AB$9,'Base de données'!$A140,'Base de données'!$M140)," ") ->  | M147: =IF($AB$9='Base de données'!$A140,LOOKUP($AB$9,'Base de données'!$A140,'Base de données'!$N140)," ") ->  | N147: =IF($AB$9='Base de données'!$A140,LOOKUP($AB$9,'Base de données'!$A140,'Base de données'!$O140)," ") ->  | W147: ='Base de données'!AE140 -> 0 | X147: =IF($W147=Visualisateur!$U$60,'Base de données'!$U$63,'Base de données'!$U$64) -> NUL
A148: =IF($AB$9='Base de données'!$A141,LOOKUP($AB$9,'Base de données'!$A141,'Base de données'!$B141)," ") ->  | B148: =IF($AB$9='Base de données'!$A141,LOOKUP($AB$9,'Base de données'!$A141,'Base de données'!$C141)," ") ->  | C148: =IF($AB$9='Base de données'!$A141,LOOKUP($AB$9,'Base de données'!$A141,'Base de données'!$D141)," ") ->  | D148: =IF($AB$9='Base de données'!$A141,LOOKUP($AB$9,'Base de données'!$A141,'Base de données'!$E141)," ") ->  | E148: =IF($AB$9='Base de données'!$A141,LOOKUP($AB$9,'Base de données'!$A141,'Base de données'!$H141)," ") ->  | F148: =IF($AB$9='Base de données'!$A141,LOOKUP($AB$9,'Base de données'!$A141,'Base de données'!$G141)," ") ->  | G148: =IF($AB$9='Base de données'!$A141,LOOKUP($AB$9,'Base de données'!$A141,'Base de données'!#REF!)," ") ->  | H148: =IF($AB$9='Base de données'!$A141,LOOKUP($AB$9,'Base de données'!$A141,'Base de données'!$I141)," ") ->  | I148: =IF($AB$9='Base de données'!$A141,LOOKUP($AB$9,'Base de données'!$A141,'Base de données'!$J141)," ") ->  | J148: =IF($AB$9='Base de données'!$A141,LOOKUP($AB$9,'Base de données'!$A141,'Base de données'!$K141)," ") ->  | K148: =IF($AB$9='Base de données'!$A141,LOOKUP($AB$9,'Base de données'!$A141,'Base de données'!$L141)," ") ->  | L148: =IF($AB$9='Base de données'!$A141,LOOKUP($AB$9,'Base de données'!$A141,'Base de données'!$M141)," ") ->  | M148: =IF($AB$9='Base de données'!$A141,LOOKUP($AB$9,'Base de données'!$A141,'Base de données'!$N141)," ") ->  | N148: =IF($AB$9='Base de données'!$A141,LOOKUP($AB$9,'Base de données'!$A141,'Base de données'!$O141)," ") ->  | W148: ='Base de données'!AE141 -> 0 | X148: =IF($W148=Visualisateur!$U$60,'Base de données'!$U$63,'Base de données'!$U$64) -> NUL
A149: =IF($AB$9='Base de données'!$A142,LOOKUP($AB$9,'Base de données'!$A142,'Base de données'!$B142)," ") ->  | B149: =IF($AB$9='Base de données'!$A142,LOOKUP($AB$9,'Base de données'!$A142,'Base de données'!$C142)," ") ->  | C149: =IF($AB$9='Base de données'!$A142,LOOKUP($AB$9,'Base de données'!$A142,'Base de données'!$D142)," ") ->  | D149: =IF($AB$9='Base de données'!$A142,LOOKUP($AB$9,'Base de données'!$A142,'Base de données'!$E142)," ") ->  | E149: =IF($AB$9='Base de données'!$A142,LOOKUP($AB$9,'Base de données'!$A142,'Base de données'!$H142)," ") ->  | F149: =IF($AB$9='Base de données'!$A142,LOOKUP($AB$9,'Base de données'!$A142,'Base de données'!$G142)," ") ->  | G149: =IF($AB$9='Base de données'!$A142,LOOKUP($AB$9,'Base de données'!$A142,'Base de données'!#REF!)," ") ->  | H149: =IF($AB$9='Base de données'!$A142,LOOKUP($AB$9,'Base de données'!$A142,'Base de données'!$I142)," ") ->  | I149: =IF($AB$9='Base de données'!$A142,LOOKUP($AB$9,'Base de données'!$A142,'Base de données'!$J142)," ") ->  | J149: =IF($AB$9='Base de données'!$A142,LOOKUP($AB$9,'Base de données'!$A142,'Base de données'!$K142)," ") ->  | K149: =IF($AB$9='Base de données'!$A142,LOOKUP($AB$9,'Base de données'!$A142,'Base de données'!$L142)," ") ->  | L149: =IF($AB$9='Base de données'!$A142,LOOKUP($AB$9,'Base de données'!$A142,'Base de données'!$M142)," ") ->  | M149: =IF($AB$9='Base de données'!$A142,LOOKUP($AB$9,'Base de données'!$A142,'Base de données'!$N142)," ") ->  | N149: =IF($AB$9='Base de données'!$A142,LOOKUP($AB$9,'Base de données'!$A142,'Base de données'!$O142)," ") ->  | W149: ='Base de données'!AE142 -> 0 | X149: =IF($W149=Visualisateur!$U$60,'Base de données'!$U$63,'Base de données'!$U$64) -> NUL
A150: =IF($AB$9='Base de données'!$A143,LOOKUP($AB$9,'Base de données'!$A143,'Base de données'!$B143)," ") ->  | B150: =IF($AB$9='Base de données'!$A143,LOOKUP($AB$9,'Base de données'!$A143,'Base de données'!$C143)," ") ->  | C150: =IF($AB$9='Base de données'!$A143,LOOKUP($AB$9,'Base de données'!$A143,'Base de données'!$D143)," ") ->  | D150: =IF($AB$9='Base de données'!$A143,LOOKUP($AB$9,'Base de données'!$A143,'Base de données'!$E143)," ") ->  | E150: =IF($AB$9='Base de données'!$A143,LOOKUP($AB$9,'Base de données'!$A143,'Base de données'!$H143)," ") ->  | F150: =IF($AB$9='Base de données'!$A143,LOOKUP($AB$9,'Base de données'!$A143,'Base de données'!$G143)," ") ->  | G150: =IF($AB$9='Base de données'!$A143,LOOKUP($AB$9,'Base de données'!$A143,'Base de données'!#REF!)," ") ->  | H150: =IF($AB$9='Base de données'!$A143,LOOKUP($AB$9,'Base de données'!$A143,'Base de données'!$I143)," ") ->  | I150: =IF($AB$9='Base de données'!$A143,LOOKUP($AB$9,'Base de données'!$A143,'Base de données'!$J143)," ") ->  | J150: =IF($AB$9='Base de données'!$A143,LOOKUP($AB$9,'Base de données'!$A143,'Base de données'!$K143)," ") ->  | K150: =IF($AB$9='Base de données'!$A143,LOOKUP($AB$9,'Base de données'!$A143,'Base de données'!$L143)," ") ->  | L150: =IF($AB$9='Base de données'!$A143,LOOKUP($AB$9,'Base de données'!$A143,'Base de données'!$M143)," ") ->  | M150: =IF($AB$9='Base de données'!$A143,LOOKUP($AB$9,'Base de données'!$A143,'Base de données'!$N143)," ") ->  | N150: =IF($AB$9='Base de données'!$A143,LOOKUP($AB$9,'Base de données'!$A143,'Base de données'!$O143)," ") ->  | W150: ='Base de données'!AE143 -> 0 | X150: =IF($W150=Visualisateur!$U$60,'Base de données'!$U$63,'Base de données'!$U$64) -> NUL
A151: =IF($AB$9='Base de données'!$A144,LOOKUP($AB$9,'Base de données'!$A144,'Base de données'!$B144)," ") ->  | B151: =IF($AB$9='Base de données'!$A144,LOOKUP($AB$9,'Base de données'!$A144,'Base de données'!$C144)," ") ->  | C151: =IF($AB$9='Base de données'!$A144,LOOKUP($AB$9,'Base de données'!$A144,'Base de données'!$D144)," ") ->  | D151: =IF($AB$9='Base de données'!$A144,LOOKUP($AB$9,'Base de données'!$A144,'Base de données'!$E144)," ") ->  | E151: =IF($AB$9='Base de données'!$A144,LOOKUP($AB$9,'Base de données'!$A144,'Base de données'!$H144)," ") ->  | F151: =IF($AB$9='Base de données'!$A144,LOOKUP($AB$9,'Base de données'!$A144,'Base de données'!$G144)," ") ->  | G151: =IF($AB$9='Base de données'!$A144,LOOKUP($AB$9,'Base de données'!$A144,'Base de données'!#REF!)," ") ->  | H151: =IF($AB$9='Base de données'!$A144,LOOKUP($AB$9,'Base de données'!$A144,'Base de données'!$I144)," ") ->  | I151: =IF($AB$9='Base de données'!$A144,LOOKUP($AB$9,'Base de données'!$A144,'Base de données'!$J144)," ") ->  | J151: =IF($AB$9='Base de données'!$A144,LOOKUP($AB$9,'Base de données'!$A144,'Base de données'!$K144)," ") ->  | K151: =IF($AB$9='Base de données'!$A144,LOOKUP($AB$9,'Base de données'!$A144,'Base de données'!$L144)," ") ->  | L151: =IF($AB$9='Base de données'!$A144,LOOKUP($AB$9,'Base de données'!$A144,'Base de données'!$M144)," ") ->  | M151: =IF($AB$9='Base de données'!$A144,LOOKUP($AB$9,'Base de données'!$A144,'Base de données'!$N144)," ") ->  | N151: =IF($AB$9='Base de données'!$A144,LOOKUP($AB$9,'Base de données'!$A144,'Base de données'!$O144)," ") ->  | W151: ='Base de données'!AE144 -> 0 | X151: =IF($W151=Visualisateur!$U$60,'Base de données'!$U$63,'Base de données'!$U$64) -> NUL
A152: =IF($AB$9='Base de données'!$A145,LOOKUP($AB$9,'Base de données'!$A145,'Base de données'!$B145)," ") ->  | B152: =IF($AB$9='Base de données'!$A145,LOOKUP($AB$9,'Base de données'!$A145,'Base de données'!$C145)," ") ->  | C152: =IF($AB$9='Base de données'!$A145,LOOKUP($AB$9,'Base de données'!$A145,'Base de données'!$D145)," ") ->  | D152: =IF($AB$9='Base de données'!$A145,LOOKUP($AB$9,'Base de données'!$A145,'Base de données'!$E145)," ") ->  | E152: =IF($AB$9='Base de données'!$A145,LOOKUP($AB$9,'Base de données'!$A145,'Base de données'!$F145)," ") ->  | F152: =IF($AB$9='Base de données'!$A145,LOOKUP($AB$9,'Base de données'!$A145,'Base de données'!$G145)," ") ->  | G152: =IF($AB$9='Base de données'!$A145,LOOKUP($AB$9,'Base de données'!$A145,'Base de données'!$H145)," ") ->  | H152: =IF($AB$9='Base de données'!$A145,LOOKUP($AB$9,'Base de données'!$A145,'Base de données'!$I145)," ") ->  | I152: =IF($AB$9='Base de données'!$A145,LOOKUP($AB$9,'Base de données'!$A145,'Base de données'!$J145)," ") ->  | J152: =IF($AB$9='Base de données'!$A145,LOOKUP($AB$9,'Base de données'!$A145,'Base de données'!$K145)," ") ->  | K152: =IF($AB$9='Base de données'!$A145,LOOKUP($AB$9,'Base de données'!$A145,'Base de données'!$L145)," ") ->  | L152: =IF($AB$9='Base de données'!$A145,LOOKUP($AB$9,'Base de données'!$A145,'Base de données'!$M145)," ") ->  | M152: =IF($AB$9='Base de données'!$A145,LOOKUP($AB$9,'Base de données'!$A145,'Base de données'!$N145)," ") ->  | N152: =IF($AB$9='Base de données'!$A145,LOOKUP($AB$9,'Base de données'!$A145,'Base de données'!$O145)," ") ->  | W152: ='Base de données'!AE145 -> 0 | X152: =IF($W152=Visualisateur!$U$60,'Base de données'!$U$63,'Base de données'!$U$64) -> NUL
A153: =IF($AB$9='Base de données'!$A146,LOOKUP($AB$9,'Base de données'!$A146,'Base de données'!$B146)," ") ->  | B153: =IF($AB$9='Base de données'!$A146,LOOKUP($AB$9,'Base de données'!$A146,'Base de données'!$C146)," ") ->  | C153: =IF($AB$9='Base de données'!$A146,LOOKUP($AB$9,'Base de données'!$A146,'Base de données'!$D146)," ") ->  | D153: =IF($AB$9='Base de données'!$A146,LOOKUP($AB$9,'Base de données'!$A146,'Base de données'!$E146)," ") ->  | E153: =IF($AB$9='Base de données'!$A146,LOOKUP($AB$9,'Base de données'!$A146,'Base de données'!$F146)," ") ->  | F153: =IF($AB$9='Base de données'!$A146,LOOKUP($AB$9,'Base de données'!$A146,'Base de données'!$G146)," ") ->  | G153: =IF($AB$9='Base de données'!$A146,LOOKUP($AB$9,'Base de données'!$A146,'Base de données'!$H146)," ") ->  | H153: =IF($AB$9='Base de données'!$A146,LOOKUP($AB$9,'Base de données'!$A146,'Base de données'!$I146)," ") ->  | I153: =IF($AB$9='Base de données'!$A146,LOOKUP($AB$9,'Base de données'!$A146,'Base de données'!$J146)," ") ->  | J153: =IF($AB$9='Base de données'!$A146,LOOKUP($AB$9,'Base de données'!$A146,'Base de données'!$K146)," ") ->  | K153: =IF($AB$9='Base de données'!$A146,LOOKUP($AB$9,'Base de données'!$A146,'Base de données'!$L146)," ") ->  | L153: =IF($AB$9='Base de données'!$A146,LOOKUP($AB$9,'Base de données'!$A146,'Base de données'!$M146)," ") ->  | M153: =IF($AB$9='Base de données'!$A146,LOOKUP($AB$9,'Base de données'!$A146,'Base de données'!$N146)," ") ->  | N153: =IF($AB$9='Base de données'!$A146,LOOKUP($AB$9,'Base de données'!$A146,'Base de données'!$O146)," ") ->  | W153: ='Base de données'!AE146 -> 0 | X153: =IF($W153=Visualisateur!$U$60,'Base de données'!$U$63,'Base de données'!$U$64) -> NUL
A154: =IF($AB$9='Base de données'!$A147,LOOKUP($AB$9,'Base de données'!$A147,'Base de données'!$B147)," ") ->  | B154: =IF($AB$9='Base de données'!$A147,LOOKUP($AB$9,'Base de données'!$A147,'Base de données'!$C147)," ") ->  | C154: =IF($AB$9='Base de données'!$A147,LOOKUP($AB$9,'Base de données'!$A147,'Base de données'!$D147)," ") ->  | D154: =IF($AB$9='Base de données'!$A147,LOOKUP($AB$9,'Base de données'!$A147,'Base de données'!$E147)," ") ->  | E154: =IF($AB$9='Base de données'!$A147,LOOKUP($AB$9,'Base de données'!$A147,'Base de données'!$F147)," ") ->  | F154: =IF($AB$9='Base de données'!$A147,LOOKUP($AB$9,'Base de données'!$A147,'Base de données'!$G147)," ") ->  | G154: =IF($AB$9='Base de données'!$A147,LOOKUP($AB$9,'Base de données'!$A147,'Base de données'!$H147)," ") ->  | H154: =IF($AB$9='Base de données'!$A147,LOOKUP($AB$9,'Base de données'!$A147,'Base de données'!$I147)," ") ->  | I154: =IF($AB$9='Base de données'!$A147,LOOKUP($AB$9,'Base de données'!$A147,'Base de données'!$J147)," ") ->  | J154: =IF($AB$9='Base de données'!$A147,LOOKUP($AB$9,'Base de données'!$A147,'Base de données'!$K147)," ") ->  | K154: =IF($AB$9='Base de données'!$A147,LOOKUP($AB$9,'Base de données'!$A147,'Base de données'!$L147)," ") ->  | L154: =IF($AB$9='Base de données'!$A147,LOOKUP($AB$9,'Base de données'!$A147,'Base de données'!$M147)," ") ->  | M154: =IF($AB$9='Base de données'!$A147,LOOKUP($AB$9,'Base de données'!$A147,'Base de données'!$N147)," ") ->  | N154: =IF($AB$9='Base de données'!$A147,LOOKUP($AB$9,'Base de données'!$A147,'Base de données'!$O147)," ") ->  | W154: ='Base de données'!AE147 -> 0 | X154: =IF($W154=Visualisateur!$U$60,'Base de données'!$U$63,'Base de données'!$U$64) -> NUL
A155: =IF($AB$9='Base de données'!$A148,LOOKUP($AB$9,'Base de données'!$A148,'Base de données'!$B148)," ") ->  | B155: =IF($AB$9='Base de données'!$A148,LOOKUP($AB$9,'Base de données'!$A148,'Base de données'!$C148)," ") ->  | C155: =IF($AB$9='Base de données'!$A148,LOOKUP($AB$9,'Base de données'!$A148,'Base de données'!$D148)," ") ->  | D155: =IF($AB$9='Base de données'!$A148,LOOKUP($AB$9,'Base de données'!$A148,'Base de données'!$E148)," ") ->  | E155: =IF($AB$9='Base de données'!$A148,LOOKUP($AB$9,'Base de données'!$A148,'Base de données'!$F148)," ") ->  | F155: =IF($AB$9='Base de données'!$A148,LOOKUP($AB$9,'Base de données'!$A148,'Base de données'!$G148)," ") ->  | G155: =IF($AB$9='Base de données'!$A148,LOOKUP($AB$9,'Base de données'!$A148,'Base de données'!$H148)," ") ->  | H155: =IF($AB$9='Base de données'!$A148,LOOKUP($AB$9,'Base de données'!$A148,'Base de données'!$I148)," ") ->  | I155: =IF($AB$9='Base de données'!$A148,LOOKUP($AB$9,'Base de données'!$A148,'Base de données'!$J148)," ") ->  | J155: =IF($AB$9='Base de données'!$A148,LOOKUP($AB$9,'Base de données'!$A148,'Base de données'!$K148)," ") ->  | K155: =IF($AB$9='Base de données'!$A148,LOOKUP($AB$9,'Base de données'!$A148,'Base de données'!$L148)," ") ->  | L155: =IF($AB$9='Base de données'!$A148,LOOKUP($AB$9,'Base de données'!$A148,'Base de données'!$M148)," ") ->  | M155: =IF($AB$9='Base de données'!$A148,LOOKUP($AB$9,'Base de données'!$A148,'Base de données'!$N148)," ") ->  | N155: =IF($AB$9='Base de données'!$A148,LOOKUP($AB$9,'Base de données'!$A148,'Base de données'!$O148)," ") ->  | W155: ='Base de données'!AE148 -> 0 | X155: =IF($W155=Visualisateur!$U$60,'Base de données'!$U$63,'Base de données'!$U$64) -> NUL
A156: =IF($AB$9='Base de données'!$A149,LOOKUP($AB$9,'Base de données'!$A149,'Base de données'!$B149)," ") ->  | B156: =IF($AB$9='Base de données'!$A149,LOOKUP($AB$9,'Base de données'!$A149,'Base de données'!$C149)," ") ->  | C156: =IF($AB$9='Base de données'!$A149,LOOKUP($AB$9,'Base de données'!$A149,'Base de données'!$D149)," ") ->  | D156: =IF($AB$9='Base de données'!$A149,LOOKUP($AB$9,'Base de données'!$A149,'Base de données'!$E149)," ") ->  | E156: =IF($AB$9='Base de données'!$A149,LOOKUP($AB$9,'Base de données'!$A149,'Base de données'!$F149)," ") ->  | F156: =IF($AB$9='Base de données'!$A149,LOOKUP($AB$9,'Base de données'!$A149,'Base de données'!$G149)," ") ->  | G156: =IF($AB$9='Base de données'!$A149,LOOKUP($AB$9,'Base de données'!$A149,'Base de données'!$H149)," ") ->  | H156: =IF($AB$9='Base de données'!$A149,LOOKUP($AB$9,'Base de données'!$A149,'Base de données'!$I149)," ") ->  | I156: =IF($AB$9='Base de données'!$A149,LOOKUP($AB$9,'Base de données'!$A149,'Base de données'!$J149)," ") ->  | J156: =IF($AB$9='Base de données'!$A149,LOOKUP($AB$9,'Base de données'!$A149,'Base de données'!$K149)," ") ->  | K156: =IF($AB$9='Base de données'!$A149,LOOKUP($AB$9,'Base de données'!$A149,'Base de données'!$L149)," ") ->  | L156: =IF($AB$9='Base de données'!$A149,LOOKUP($AB$9,'Base de données'!$A149,'Base de données'!$M149)," ") ->  | M156: =IF($AB$9='Base de données'!$A149,LOOKUP($AB$9,'Base de données'!$A149,'Base de données'!$N149)," ") ->  | N156: =IF($AB$9='Base de données'!$A149,LOOKUP($AB$9,'Base de données'!$A149,'Base de données'!$O149)," ") ->  | W156: ='Base de données'!AE149 -> 0 | X156: =IF($W156=Visualisateur!$U$60,'Base de données'!$U$63,'Base de données'!$U$64) -> NUL
A157: =IF($AB$9='Base de données'!$A150,LOOKUP($AB$9,'Base de données'!$A150,'Base de données'!$B150)," ") ->  | B157: =IF($AB$9='Base de données'!$A150,LOOKUP($AB$9,'Base de données'!$A150,'Base de données'!$C150)," ") ->  | C157: =IF($AB$9='Base de données'!$A150,LOOKUP($AB$9,'Base de données'!$A150,'Base de données'!$D150)," ") ->  | D157: =IF($AB$9='Base de données'!$A150,LOOKUP($AB$9,'Base de données'!$A150,'Base de données'!$E150)," ") ->  | E157: =IF($AB$9='Base de données'!$A150,LOOKUP($AB$9,'Base de données'!$A150,'Base de données'!$F150)," ") ->  | F157: =IF($AB$9='Base de données'!$A150,LOOKUP($AB$9,'Base de données'!$A150,'Base de données'!$G150)," ") ->  | G157: =IF($AB$9='Base de données'!$A150,LOOKUP($AB$9,'Base de données'!$A150,'Base de données'!$H150)," ") ->  | H157: =IF($AB$9='Base de données'!$A150,LOOKUP($AB$9,'Base de données'!$A150,'Base de données'!$I150)," ") ->  | I157: =IF($AB$9='Base de données'!$A150,LOOKUP($AB$9,'Base de données'!$A150,'Base de données'!$J150)," ") ->  | J157: =IF($AB$9='Base de données'!$A150,LOOKUP($AB$9,'Base de données'!$A150,'Base de données'!$K150)," ") ->  | K157: =IF($AB$9='Base de données'!$A150,LOOKUP($AB$9,'Base de données'!$A150,'Base de données'!$L150)," ") ->  | L157: =IF($AB$9='Base de données'!$A150,LOOKUP($AB$9,'Base de données'!$A150,'Base de données'!$M150)," ") ->  | M157: =IF($AB$9='Base de données'!$A150,LOOKUP($AB$9,'Base de données'!$A150,'Base de données'!$N150)," ") ->  | N157: =IF($AB$9='Base de données'!$A150,LOOKUP($AB$9,'Base de données'!$A150,'Base de données'!$O150)," ") ->  | W157: ='Base de données'!AE150 -> 0 | X157: =IF($W157=Visualisateur!$U$60,'Base de données'!$U$63,'Base de données'!$U$64) -> NUL
A158: =IF($AB$9='Base de données'!$A151,LOOKUP($AB$9,'Base de données'!$A151,'Base de données'!$B151)," ") ->  | B158: =IF($AB$9='Base de données'!$A151,LOOKUP($AB$9,'Base de données'!$A151,'Base de données'!$C151)," ") ->  | C158: =IF($AB$9='Base de données'!$A151,LOOKUP($AB$9,'Base de données'!$A151,'Base de données'!$D151)," ") ->  | D158: =IF($AB$9='Base de données'!$A151,LOOKUP($AB$9,'Base de données'!$A151,'Base de données'!$E151)," ") ->  | E158: =IF($AB$9='Base de données'!$A151,LOOKUP($AB$9,'Base de données'!$A151,'Base de données'!$F151)," ") ->  | F158: =IF($AB$9='Base de données'!$A151,LOOKUP($AB$9,'Base de données'!$A151,'Base de données'!$G151)," ") ->  | G158: =IF($AB$9='Base de données'!$A151,LOOKUP($AB$9,'Base de données'!$A151,'Base de données'!$H151)," ") ->  | H158: =IF($AB$9='Base de données'!$A151,LOOKUP($AB$9,'Base de données'!$A151,'Base de données'!$I151)," ") ->  | I158: =IF($AB$9='Base de données'!$A151,LOOKUP($AB$9,'Base de données'!$A151,'Base de données'!$J151)," ") ->  | J158: =IF($AB$9='Base de données'!$A151,LOOKUP($AB$9,'Base de données'!$A151,'Base de données'!$K151)," ") ->  | K158: =IF($AB$9='Base de données'!$A151,LOOKUP($AB$9,'Base de données'!$A151,'Base de données'!$L151)," ") ->  | L158: =IF($AB$9='Base de données'!$A151,LOOKUP($AB$9,'Base de données'!$A151,'Base de données'!$M151)," ") ->  | M158: =IF($AB$9='Base de données'!$A151,LOOKUP($AB$9,'Base de données'!$A151,'Base de données'!$N151)," ") ->  | N158: =IF($AB$9='Base de données'!$A151,LOOKUP($AB$9,'Base de données'!$A151,'Base de données'!$O151)," ") ->  | W158: ='Base de données'!AE151 -> 0 | X158: =IF($W158=Visualisateur!$U$60,'Base de données'!$U$63,'Base de données'!$U$64) -> NUL
A159: =IF($AB$9='Base de données'!$A152,LOOKUP($AB$9,'Base de données'!$A152,'Base de données'!$B152)," ") ->  | B159: =IF($AB$9='Base de données'!$A152,LOOKUP($AB$9,'Base de données'!$A152,'Base de données'!$C152)," ") ->  | C159: =IF($AB$9='Base de données'!$A152,LOOKUP($AB$9,'Base de données'!$A152,'Base de données'!$D152)," ") ->  | D159: =IF($AB$9='Base de données'!$A152,LOOKUP($AB$9,'Base de données'!$A152,'Base de données'!$E152)," ") ->  | E159: =IF($AB$9='Base de données'!$A152,LOOKUP($AB$9,'Base de données'!$A152,'Base de données'!$F152)," ") ->  | F159: =IF($AB$9='Base de données'!$A152,LOOKUP($AB$9,'Base de données'!$A152,'Base de données'!$G152)," ") ->  | G159: =IF($AB$9='Base de données'!$A152,LOOKUP($AB$9,'Base de données'!$A152,'Base de données'!$H152)," ") ->  | H159: =IF($AB$9='Base de données'!$A152,LOOKUP($AB$9,'Base de données'!$A152,'Base de données'!$I152)," ") ->  | I159: =IF($AB$9='Base de données'!$A152,LOOKUP($AB$9,'Base de données'!$A152,'Base de données'!$J152)," ") ->  | J159: =IF($AB$9='Base de données'!$A152,LOOKUP($AB$9,'Base de données'!$A152,'Base de données'!$K152)," ") ->  | K159: =IF($AB$9='Base de données'!$A152,LOOKUP($AB$9,'Base de données'!$A152,'Base de données'!$L152)," ") ->  | L159: =IF($AB$9='Base de données'!$A152,LOOKUP($AB$9,'Base de données'!$A152,'Base de données'!$M152)," ") ->  | M159: =IF($AB$9='Base de données'!$A152,LOOKUP($AB$9,'Base de données'!$A152,'Base de données'!$N152)," ") ->  | N159: =IF($AB$9='Base de données'!$A152,LOOKUP($AB$9,'Base de données'!$A152,'Base de données'!$O152)," ") ->  | W159: ='Base de données'!AE152 -> 0 | X159: =IF($W159=Visualisateur!$U$60,'Base de données'!$U$63,'Base de données'!$U$64) -> NUL
A160: =IF($AB$9='Base de données'!$A153,LOOKUP($AB$9,'Base de données'!$A153,'Base de données'!$B153)," ") ->  | B160: =IF($AB$9='Base de données'!$A153,LOOKUP($AB$9,'Base de données'!$A153,'Base de données'!$C153)," ") ->  | C160: =IF($AB$9='Base de données'!$A153,LOOKUP($AB$9,'Base de données'!$A153,'Base de données'!$D153)," ") ->  | D160: =IF($AB$9='Base de données'!$A153,LOOKUP($AB$9,'Base de données'!$A153,'Base de données'!$E153)," ") ->  | E160: =IF($AB$9='Base de données'!$A153,LOOKUP($AB$9,'Base de données'!$A153,'Base de données'!$F153)," ") ->  | F160: =IF($AB$9='Base de données'!$A153,LOOKUP($AB$9,'Base de données'!$A153,'Base de données'!$G153)," ") ->  | G160: =IF($AB$9='Base de données'!$A153,LOOKUP($AB$9,'Base de données'!$A153,'Base de données'!$H153)," ") ->  | H160: =IF($AB$9='Base de données'!$A153,LOOKUP($AB$9,'Base de données'!$A153,'Base de données'!$I153)," ") ->  | I160: =IF($AB$9='Base de données'!$A153,LOOKUP($AB$9,'Base de données'!$A153,'Base de données'!$J153)," ") ->  | J160: =IF($AB$9='Base de données'!$A153,LOOKUP($AB$9,'Base de données'!$A153,'Base de données'!$K153)," ") ->  | K160: =IF($AB$9='Base de données'!$A153,LOOKUP($AB$9,'Base de données'!$A153,'Base de données'!$L153)," ") ->  | L160: =IF($AB$9='Base de données'!$A153,LOOKUP($AB$9,'Base de données'!$A153,'Base de données'!$M153)," ") ->  | M160: =IF($AB$9='Base de données'!$A153,LOOKUP($AB$9,'Base de données'!$A153,'Base de données'!$N153)," ") ->  | N160: =IF($AB$9='Base de données'!$A153,LOOKUP($AB$9,'Base de données'!$A153,'Base de données'!$O153)," ") ->  | W160: ='Base de données'!AE153 -> 0 | X160: =IF($W160=Visualisateur!$U$60,'Base de données'!$U$63,'Base de données'!$U$64) -> NUL
A161: =IF($AB$9='Base de données'!$A154,LOOKUP($AB$9,'Base de données'!$A154,'Base de données'!$B154)," ") ->  | B161: =IF($AB$9='Base de données'!$A154,LOOKUP($AB$9,'Base de données'!$A154,'Base de données'!$C154)," ") ->  | C161: =IF($AB$9='Base de données'!$A154,LOOKUP($AB$9,'Base de données'!$A154,'Base de données'!$D154)," ") ->  | D161: =IF($AB$9='Base de données'!$A154,LOOKUP($AB$9,'Base de données'!$A154,'Base de données'!$E154)," ") ->  | E161: =IF($AB$9='Base de données'!$A154,LOOKUP($AB$9,'Base de données'!$A154,'Base de données'!$F154)," ") ->  | F161: =IF($AB$9='Base de données'!$A154,LOOKUP($AB$9,'Base de données'!$A154,'Base de données'!$G154)," ") ->  | G161: =IF($AB$9='Base de données'!$A154,LOOKUP($AB$9,'Base de données'!$A154,'Base de données'!$H154)," ") ->  | H161: =IF($AB$9='Base de données'!$A154,LOOKUP($AB$9,'Base de données'!$A154,'Base de données'!$I154)," ") ->  | I161: =IF($AB$9='Base de données'!$A154,LOOKUP($AB$9,'Base de données'!$A154,'Base de données'!$J154)," ") ->  | J161: =IF($AB$9='Base de données'!$A154,LOOKUP($AB$9,'Base de données'!$A154,'Base de données'!$K154)," ") ->  | K161: =IF($AB$9='Base de données'!$A154,LOOKUP($AB$9,'Base de données'!$A154,'Base de données'!$L154)," ") ->  | L161: =IF($AB$9='Base de données'!$A154,LOOKUP($AB$9,'Base de données'!$A154,'Base de données'!$M154)," ") ->  | M161: =IF($AB$9='Base de données'!$A154,LOOKUP($AB$9,'Base de données'!$A154,'Base de données'!$N154)," ") ->  | N161: =IF($AB$9='Base de données'!$A154,LOOKUP($AB$9,'Base de données'!$A154,'Base de données'!$O154)," ") ->  | W161: ='Base de données'!AE154 -> 0 | X161: =IF($W161=Visualisateur!$U$60,'Base de données'!$U$63,'Base de données'!$U$64) -> NUL
A162: =IF($AB$9='Base de données'!$A155,LOOKUP($AB$9,'Base de données'!$A155,'Base de données'!$B155)," ") ->  | B162: =IF($AB$9='Base de données'!$A155,LOOKUP($AB$9,'Base de données'!$A155,'Base de données'!$C155)," ") ->  | C162: =IF($AB$9='Base de données'!$A155,LOOKUP($AB$9,'Base de données'!$A155,'Base de données'!$D155)," ") ->  | D162: =IF($AB$9='Base de données'!$A155,LOOKUP($AB$9,'Base de données'!$A155,'Base de données'!$E155)," ") ->  | E162: =IF($AB$9='Base de données'!$A155,LOOKUP($AB$9,'Base de données'!$A155,'Base de données'!$F155)," ") ->  | F162: =IF($AB$9='Base de données'!$A155,LOOKUP($AB$9,'Base de données'!$A155,'Base de données'!$G155)," ") ->  | G162: =IF($AB$9='Base de données'!$A155,LOOKUP($AB$9,'Base de données'!$A155,'Base de données'!$H155)," ") ->  | H162: =IF($AB$9='Base de données'!$A155,LOOKUP($AB$9,'Base de données'!$A155,'Base de données'!$I155)," ") ->  | I162: =IF($AB$9='Base de données'!$A155,LOOKUP($AB$9,'Base de données'!$A155,'Base de données'!$J155)," ") ->  | J162: =IF($AB$9='Base de données'!$A155,LOOKUP($AB$9,'Base de données'!$A155,'Base de données'!$K155)," ") ->  | K162: =IF($AB$9='Base de données'!$A155,LOOKUP($AB$9,'Base de données'!$A155,'Base de données'!$L155)," ") ->  | L162: =IF($AB$9='Base de données'!$A155,LOOKUP($AB$9,'Base de données'!$A155,'Base de données'!$M155)," ") ->  | M162: =IF($AB$9='Base de données'!$A155,LOOKUP($AB$9,'Base de données'!$A155,'Base de données'!$N155)," ") ->  | N162: =IF($AB$9='Base de données'!$A155,LOOKUP($AB$9,'Base de données'!$A155,'Base de données'!$O155)," ") ->  | W162: ='Base de données'!AE155 -> 0 | X162: =IF($W162=Visualisateur!$U$60,'Base de données'!$U$63,'Base de données'!$U$64) -> NUL
A163: =IF($AB$9='Base de données'!$A156,LOOKUP($AB$9,'Base de données'!$A156,'Base de données'!$B156)," ") ->  | B163: =IF($AB$9='Base de données'!$A156,LOOKUP($AB$9,'Base de données'!$A156,'Base de données'!$C156)," ") ->  | C163: =IF($AB$9='Base de données'!$A156,LOOKUP($AB$9,'Base de données'!$A156,'Base de données'!$D156)," ") ->  | D163: =IF($AB$9='Base de données'!$A156,LOOKUP($AB$9,'Base de données'!$A156,'Base de données'!$E156)," ") ->  | E163: =IF($AB$9='Base de données'!$A156,LOOKUP($AB$9,'Base de données'!$A156,'Base de données'!$F156)," ") ->  | F163: =IF($AB$9='Base de données'!$A156,LOOKUP($AB$9,'Base de données'!$A156,'Base de données'!$G156)," ") ->  | G163: =IF($AB$9='Base de données'!$A156,LOOKUP($AB$9,'Base de données'!$A156,'Base de données'!$H156)," ") ->  | H163: =IF($AB$9='Base de données'!$A156,LOOKUP($AB$9,'Base de données'!$A156,'Base de données'!$I156)," ") ->  | I163: =IF($AB$9='Base de données'!$A156,LOOKUP($AB$9,'Base de données'!$A156,'Base de données'!$J156)," ") ->  | J163: =IF($AB$9='Base de données'!$A156,LOOKUP($AB$9,'Base de données'!$A156,'Base de données'!$K156)," ") ->  | K163: =IF($AB$9='Base de données'!$A156,LOOKUP($AB$9,'Base de données'!$A156,'Base de données'!$L156)," ") ->  | L163: =IF($AB$9='Base de données'!$A156,LOOKUP($AB$9,'Base de données'!$A156,'Base de données'!$M156)," ") ->  | M163: =IF($AB$9='Base de données'!$A156,LOOKUP($AB$9,'Base de données'!$A156,'Base de données'!$N156)," ") ->  | N163: =IF($AB$9='Base de données'!$A156,LOOKUP($AB$9,'Base de données'!$A156,'Base de données'!$O156)," ") ->  | W163: ='Base de données'!AE156 -> 0 | X163: =IF($W163=Visualisateur!$U$60,'Base de données'!$U$63,'Base de données'!$U$64) -> NUL
A164: =IF($AB$9='Base de données'!$A157,LOOKUP($AB$9,'Base de données'!$A157,'Base de données'!$B157)," ") ->  | B164: =IF($AB$9='Base de données'!$A157,LOOKUP($AB$9,'Base de données'!$A157,'Base de données'!$C157)," ") ->  | C164: =IF($AB$9='Base de données'!$A157,LOOKUP($AB$9,'Base de données'!$A157,'Base de données'!$D157)," ") ->  | D164: =IF($AB$9='Base de données'!$A157,LOOKUP($AB$9,'Base de données'!$A157,'Base de données'!$E157)," ") ->  | E164: =IF($AB$9='Base de données'!$A157,LOOKUP($AB$9,'Base de données'!$A157,'Base de données'!$F157)," ") ->  | F164: =IF($AB$9='Base de données'!$A157,LOOKUP($AB$9,'Base de données'!$A157,'Base de données'!$G157)," ") ->  | G164: =IF($AB$9='Base de données'!$A157,LOOKUP($AB$9,'Base de données'!$A157,'Base de données'!$H157)," ") ->  | H164: =IF($AB$9='Base de données'!$A157,LOOKUP($AB$9,'Base de données'!$A157,'Base de données'!$I157)," ") ->  | I164: =IF($AB$9='Base de données'!$A157,LOOKUP($AB$9,'Base de données'!$A157,'Base de données'!$J157)," ") ->  | J164: =IF($AB$9='Base de données'!$A157,LOOKUP($AB$9,'Base de données'!$A157,'Base de données'!$K157)," ") ->  | K164: =IF($AB$9='Base de données'!$A157,LOOKUP($AB$9,'Base de données'!$A157,'Base de données'!$L157)," ") ->  | L164: =IF($AB$9='Base de données'!$A157,LOOKUP($AB$9,'Base de données'!$A157,'Base de données'!$M157)," ") ->  | M164: =IF($AB$9='Base de données'!$A157,LOOKUP($AB$9,'Base de données'!$A157,'Base de données'!$N157)," ") ->  | N164: =IF($AB$9='Base de données'!$A157,LOOKUP($AB$9,'Base de données'!$A157,'Base de données'!$O157)," ") ->  | W164: ='Base de données'!AE157 -> 0 | X164: =IF($W164=Visualisateur!$U$60,'Base de données'!$U$63,'Base de données'!$U$64) -> NUL
A165: =IF($AB$9='Base de données'!$A158,LOOKUP($AB$9,'Base de données'!$A158,'Base de données'!$B158)," ") ->  | B165: =IF($AB$9='Base de données'!$A158,LOOKUP($AB$9,'Base de données'!$A158,'Base de données'!$C158)," ") ->  | C165: =IF($AB$9='Base de données'!$A158,LOOKUP($AB$9,'Base de données'!$A158,'Base de données'!$D158)," ") ->  | D165: =IF($AB$9='Base de données'!$A158,LOOKUP($AB$9,'Base de données'!$A158,'Base de données'!$E158)," ") ->  | E165: =IF($AB$9='Base de données'!$A158,LOOKUP($AB$9,'Base de données'!$A158,'Base de données'!$F158)," ") ->  | F165: =IF($AB$9='Base de données'!$A158,LOOKUP($AB$9,'Base de données'!$A158,'Base de données'!$G158)," ") ->  | G165: =IF($AB$9='Base de données'!$A158,LOOKUP($AB$9,'Base de données'!$A158,'Base de données'!$H158)," ") ->  | H165: =IF($AB$9='Base de données'!$A158,LOOKUP($AB$9,'Base de données'!$A158,'Base de données'!$I158)," ") ->  | I165: =IF($AB$9='Base de données'!$A158,LOOKUP($AB$9,'Base de données'!$A158,'Base de données'!$J158)," ") ->  | J165: =IF($AB$9='Base de données'!$A158,LOOKUP($AB$9,'Base de données'!$A158,'Base de données'!$K158)," ") ->  | K165: =IF($AB$9='Base de données'!$A158,LOOKUP($AB$9,'Base de données'!$A158,'Base de données'!$L158)," ") ->  | L165: =IF($AB$9='Base de données'!$A158,LOOKUP($AB$9,'Base de données'!$A158,'Base de données'!$M158)," ") ->  | M165: =IF($AB$9='Base de données'!$A158,LOOKUP($AB$9,'Base de données'!$A158,'Base de données'!$N158)," ") ->  | N165: =IF($AB$9='Base de données'!$A158,LOOKUP($AB$9,'Base de données'!$A158,'Base de données'!$O158)," ") ->  | W165: ='Base de données'!AE158 -> 0 | X165: =IF($W165=Visualisateur!$U$60,'Base de données'!$U$63,'Base de données'!$U$64) -> NUL
A166: =IF($AB$9='Base de données'!$A159,LOOKUP($AB$9,'Base de données'!$A159,'Base de données'!$B159)," ") ->  | B166: =IF($AB$9='Base de données'!$A159,LOOKUP($AB$9,'Base de données'!$A159,'Base de données'!$C159)," ") ->  | C166: =IF($AB$9='Base de données'!$A159,LOOKUP($AB$9,'Base de données'!$A159,'Base de données'!$D159)," ") ->  | D166: =IF($AB$9='Base de données'!$A159,LOOKUP($AB$9,'Base de données'!$A159,'Base de données'!$E159)," ") ->  | E166: =IF($AB$9='Base de données'!$A159,LOOKUP($AB$9,'Base de données'!$A159,'Base de données'!$F159)," ") ->  | F166: =IF($AB$9='Base de données'!$A159,LOOKUP($AB$9,'Base de données'!$A159,'Base de données'!$G159)," ") ->  | G166: =IF($AB$9='Base de données'!$A159,LOOKUP($AB$9,'Base de données'!$A159,'Base de données'!$H159)," ") ->  | H166: =IF($AB$9='Base de données'!$A159,LOOKUP($AB$9,'Base de données'!$A159,'Base de données'!$I159)," ") ->  | I166: =IF($AB$9='Base de données'!$A159,LOOKUP($AB$9,'Base de données'!$A159,'Base de données'!$J159)," ") ->  | J166: =IF($AB$9='Base de données'!$A159,LOOKUP($AB$9,'Base de données'!$A159,'Base de données'!$K159)," ") ->  | K166: =IF($AB$9='Base de données'!$A159,LOOKUP($AB$9,'Base de données'!$A159,'Base de données'!$L159)," ") ->  | L166: =IF($AB$9='Base de données'!$A159,LOOKUP($AB$9,'Base de données'!$A159,'Base de données'!$M159)," ") ->  | M166: =IF($AB$9='Base de données'!$A159,LOOKUP($AB$9,'Base de données'!$A159,'Base de données'!$N159)," ") ->  | N166: =IF($AB$9='Base de données'!$A159,LOOKUP($AB$9,'Base de données'!$A159,'Base de données'!$O159)," ") ->  | W166: ='Base de données'!AE159 -> 0 | X166: =IF($W166=Visualisateur!$U$60,'Base de données'!$U$63,'Base de données'!$U$64) -> NUL
A167: =IF($AB$9='Base de données'!$A160,LOOKUP($AB$9,'Base de données'!$A160,'Base de données'!$B160)," ") ->  | B167: =IF($AB$9='Base de données'!$A160,LOOKUP($AB$9,'Base de données'!$A160,'Base de données'!$C160)," ") ->  | C167: =IF($AB$9='Base de données'!$A160,LOOKUP($AB$9,'Base de données'!$A160,'Base de données'!$D160)," ") ->  | D167: =IF($AB$9='Base de données'!$A160,LOOKUP($AB$9,'Base de données'!$A160,'Base de données'!$E160)," ") ->  | E167: =IF($AB$9='Base de données'!$A160,LOOKUP($AB$9,'Base de données'!$A160,'Base de données'!$F160)," ") ->  | F167: =IF($AB$9='Base de données'!$A160,LOOKUP($AB$9,'Base de données'!$A160,'Base de données'!$G160)," ") ->  | G167: =IF($AB$9='Base de données'!$A160,LOOKUP($AB$9,'Base de données'!$A160,'Base de données'!$H160)," ") ->  | H167: =IF($AB$9='Base de données'!$A160,LOOKUP($AB$9,'Base de données'!$A160,'Base de données'!$I160)," ") ->  | I167: =IF($AB$9='Base de données'!$A160,LOOKUP($AB$9,'Base de données'!$A160,'Base de données'!$J160)," ") ->  | J167: =IF($AB$9='Base de données'!$A160,LOOKUP($AB$9,'Base de données'!$A160,'Base de données'!$K160)," ") ->  | K167: =IF($AB$9='Base de données'!$A160,LOOKUP($AB$9,'Base de données'!$A160,'Base de données'!$L160)," ") ->  | L167: =IF($AB$9='Base de données'!$A160,LOOKUP($AB$9,'Base de données'!$A160,'Base de données'!$M160)," ") ->  | M167: =IF($AB$9='Base de données'!$A160,LOOKUP($AB$9,'Base de données'!$A160,'Base de données'!$N160)," ") ->  | N167: =IF($AB$9='Base de données'!$A160,LOOKUP($AB$9,'Base de données'!$A160,'Base de données'!$O160)," ") ->  | W167: ='Base de données'!AE160 -> 0 | X167: =IF($W167=Visualisateur!$U$60,'Base de données'!$U$63,'Base de données'!$U$64) -> NUL
A168: =IF($AB$9='Base de données'!$A161,LOOKUP($AB$9,'Base de données'!$A161,'Base de données'!$B161)," ") ->  | B168: =IF($AB$9='Base de données'!$A161,LOOKUP($AB$9,'Base de données'!$A161,'Base de données'!$C161)," ") ->  | C168: =IF($AB$9='Base de données'!$A161,LOOKUP($AB$9,'Base de données'!$A161,'Base de données'!$D161)," ") ->  | D168: =IF($AB$9='Base de données'!$A161,LOOKUP($AB$9,'Base de données'!$A161,'Base de données'!$E161)," ") ->  | E168: =IF($AB$9='Base de données'!$A161,LOOKUP($AB$9,'Base de données'!$A161,'Base de données'!$F161)," ") ->  | F168: =IF($AB$9='Base de données'!$A161,LOOKUP($AB$9,'Base de données'!$A161,'Base de données'!$G161)," ") ->  | G168: =IF($AB$9='Base de données'!$A161,LOOKUP($AB$9,'Base de données'!$A161,'Base de données'!$H161)," ") ->  | H168: =IF($AB$9='Base de données'!$A161,LOOKUP($AB$9,'Base de données'!$A161,'Base de données'!$I161)," ") ->  | I168: =IF($AB$9='Base de données'!$A161,LOOKUP($AB$9,'Base de données'!$A161,'Base de données'!$J161)," ") ->  | J168: =IF($AB$9='Base de données'!$A161,LOOKUP($AB$9,'Base de données'!$A161,'Base de données'!$K161)," ") ->  | K168: =IF($AB$9='Base de données'!$A161,LOOKUP($AB$9,'Base de données'!$A161,'Base de données'!$L161)," ") ->  | L168: =IF($AB$9='Base de données'!$A161,LOOKUP($AB$9,'Base de données'!$A161,'Base de données'!$M161)," ") ->  | M168: =IF($AB$9='Base de données'!$A161,LOOKUP($AB$9,'Base de données'!$A161,'Base de données'!$N161)," ") ->  | N168: =IF($AB$9='Base de données'!$A161,LOOKUP($AB$9,'Base de données'!$A161,'Base de données'!$O161)," ") ->  | W168: ='Base de données'!AE161 -> 0 | X168: =IF($W168=Visualisateur!$U$60,'Base de données'!$U$63,'Base de données'!$U$64) -> NUL
A169: =IF($AB$9='Base de données'!$A162,LOOKUP($AB$9,'Base de données'!$A162,'Base de données'!$B162)," ") ->  | B169: =IF($AB$9='Base de données'!$A162,LOOKUP($AB$9,'Base de données'!$A162,'Base de données'!$C162)," ") ->  | C169: =IF($AB$9='Base de données'!$A162,LOOKUP($AB$9,'Base de données'!$A162,'Base de données'!$D162)," ") ->  | D169: =IF($AB$9='Base de données'!$A162,LOOKUP($AB$9,'Base de données'!$A162,'Base de données'!$E162)," ") ->  | E169: =IF($AB$9='Base de données'!$A162,LOOKUP($AB$9,'Base de données'!$A162,'Base de données'!$F162)," ") ->  | F169: =IF($AB$9='Base de données'!$A162,LOOKUP($AB$9,'Base de données'!$A162,'Base de données'!$G162)," ") ->  | G169: =IF($AB$9='Base de données'!$A162,LOOKUP($AB$9,'Base de données'!$A162,'Base de données'!$H162)," ") ->  | H169: =IF($AB$9='Base de données'!$A162,LOOKUP($AB$9,'Base de données'!$A162,'Base de données'!$I162)," ") ->  | I169: =IF($AB$9='Base de données'!$A162,LOOKUP($AB$9,'Base de données'!$A162,'Base de données'!$J162)," ") ->  | J169: =IF($AB$9='Base de données'!$A162,LOOKUP($AB$9,'Base de données'!$A162,'Base de données'!$K162)," ") ->  | K169: =IF($AB$9='Base de données'!$A162,LOOKUP($AB$9,'Base de données'!$A162,'Base de données'!$L162)," ") ->  | L169: =IF($AB$9='Base de données'!$A162,LOOKUP($AB$9,'Base de données'!$A162,'Base de données'!$M162)," ") ->  | M169: =IF($AB$9='Base de données'!$A162,LOOKUP($AB$9,'Base de données'!$A162,'Base de données'!$N162)," ") ->  | N169: =IF($AB$9='Base de données'!$A162,LOOKUP($AB$9,'Base de données'!$A162,'Base de données'!$O162)," ") ->  | W169: ='Base de données'!AE162 -> 0 | X169: =IF($W169=Visualisateur!$U$60,'Base de données'!$U$63,'Base de données'!$U$64) -> NUL
A170: =IF($AB$9='Base de données'!$A163,LOOKUP($AB$9,'Base de données'!$A163,'Base de données'!$B163)," ") ->  | B170: =IF($AB$9='Base de données'!$A163,LOOKUP($AB$9,'Base de données'!$A163,'Base de données'!$C163)," ") ->  | C170: =IF($AB$9='Base de données'!$A163,LOOKUP($AB$9,'Base de données'!$A163,'Base de données'!$D163)," ") ->  | D170: =IF($AB$9='Base de données'!$A163,LOOKUP($AB$9,'Base de données'!$A163,'Base de données'!$E163)," ") ->  | E170: =IF($AB$9='Base de données'!$A163,LOOKUP($AB$9,'Base de données'!$A163,'Base de données'!$F163)," ") ->  | F170: =IF($AB$9='Base de données'!$A163,LOOKUP($AB$9,'Base de données'!$A163,'Base de données'!$G163)," ") ->  | G170: =IF($AB$9='Base de données'!$A163,LOOKUP($AB$9,'Base de données'!$A163,'Base de données'!$H163)," ") ->  | H170: =IF($AB$9='Base de données'!$A163,LOOKUP($AB$9,'Base de données'!$A163,'Base de données'!$I163)," ") ->  | I170: =IF($AB$9='Base de données'!$A163,LOOKUP($AB$9,'Base de données'!$A163,'Base de données'!$J163)," ") ->  | J170: =IF($AB$9='Base de données'!$A163,LOOKUP($AB$9,'Base de données'!$A163,'Base de données'!$K163)," ") ->  | K170: =IF($AB$9='Base de données'!$A163,LOOKUP($AB$9,'Base de données'!$A163,'Base de données'!$L163)," ") ->  | L170: =IF($AB$9='Base de données'!$A163,LOOKUP($AB$9,'Base de données'!$A163,'Base de données'!$M163)," ") ->  | M170: =IF($AB$9='Base de données'!$A163,LOOKUP($AB$9,'Base de données'!$A163,'Base de données'!$N163)," ") ->  | N170: =IF($AB$9='Base de données'!$A163,LOOKUP($AB$9,'Base de données'!$A163,'Base de données'!$O163)," ") ->  | W170: ='Base de données'!AE163 -> 0 | X170: =IF($W170=Visualisateur!$U$60,'Base de données'!$U$63,'Base de données'!$U$64) -> NUL
A171: =IF($AB$9='Base de données'!$A164,LOOKUP($AB$9,'Base de données'!$A164,'Base de données'!$B164)," ") ->  | B171: =IF($AB$9='Base de données'!$A164,LOOKUP($AB$9,'Base de données'!$A164,'Base de données'!$C164)," ") ->  | C171: =IF($AB$9='Base de données'!$A164,LOOKUP($AB$9,'Base de données'!$A164,'Base de données'!$D164)," ") ->  | D171: =IF($AB$9='Base de données'!$A164,LOOKUP($AB$9,'Base de données'!$A164,'Base de données'!$E164)," ") ->  | E171: =IF($AB$9='Base de données'!$A164,LOOKUP($AB$9,'Base de données'!$A164,'Base de données'!$F164)," ") ->  | F171: =IF($AB$9='Base de données'!$A164,LOOKUP($AB$9,'Base de données'!$A164,'Base de données'!$G164)," ") ->  | G171: =IF($AB$9='Base de données'!$A164,LOOKUP($AB$9,'Base de données'!$A164,'Base de données'!$H164)," ") ->  | H171: =IF($AB$9='Base de données'!$A164,LOOKUP($AB$9,'Base de données'!$A164,'Base de données'!$I164)," ") ->  | I171: =IF($AB$9='Base de données'!$A164,LOOKUP($AB$9,'Base de données'!$A164,'Base de données'!$J164)," ") ->  | J171: =IF($AB$9='Base de données'!$A164,LOOKUP($AB$9,'Base de données'!$A164,'Base de données'!$K164)," ") ->  | K171: =IF($AB$9='Base de données'!$A164,LOOKUP($AB$9,'Base de données'!$A164,'Base de données'!$L164)," ") ->  | L171: =IF($AB$9='Base de données'!$A164,LOOKUP($AB$9,'Base de données'!$A164,'Base de données'!$M164)," ") ->  | M171: =IF($AB$9='Base de données'!$A164,LOOKUP($AB$9,'Base de données'!$A164,'Base de données'!$N164)," ") ->  | N171: =IF($AB$9='Base de données'!$A164,LOOKUP($AB$9,'Base de données'!$A164,'Base de données'!$O164)," ") ->  | W171: ='Base de données'!AE164 -> 0 | X171: =IF($W171=Visualisateur!$U$60,'Base de données'!$U$63,'Base de données'!$U$64) -> NUL
A172: =IF($AB$9='Base de données'!$A165,LOOKUP($AB$9,'Base de données'!$A165,'Base de données'!$B165)," ") ->  | B172: =IF($AB$9='Base de données'!$A165,LOOKUP($AB$9,'Base de données'!$A165,'Base de données'!$C165)," ") ->  | C172: =IF($AB$9='Base de données'!$A165,LOOKUP($AB$9,'Base de données'!$A165,'Base de données'!$D165)," ") ->  | D172: =IF($AB$9='Base de données'!$A165,LOOKUP($AB$9,'Base de données'!$A165,'Base de données'!$E165)," ") ->  | E172: =IF($AB$9='Base de données'!$A165,LOOKUP($AB$9,'Base de données'!$A165,'Base de données'!$F165)," ") ->  | F172: =IF($AB$9='Base de données'!$A165,LOOKUP($AB$9,'Base de données'!$A165,'Base de données'!$G165)," ") ->  | G172: =IF($AB$9='Base de données'!$A165,LOOKUP($AB$9,'Base de données'!$A165,'Base de données'!$H165)," ") ->  | H172: =IF($AB$9='Base de données'!$A165,LOOKUP($AB$9,'Base de données'!$A165,'Base de données'!$I165)," ") ->  | I172: =IF($AB$9='Base de données'!$A165,LOOKUP($AB$9,'Base de données'!$A165,'Base de données'!$J165)," ") ->  | J172: =IF($AB$9='Base de données'!$A165,LOOKUP($AB$9,'Base de données'!$A165,'Base de données'!$K165)," ") ->  | K172: =IF($AB$9='Base de données'!$A165,LOOKUP($AB$9,'Base de données'!$A165,'Base de données'!$L165)," ") ->  | L172: =IF($AB$9='Base de données'!$A165,LOOKUP($AB$9,'Base de données'!$A165,'Base de données'!$M165)," ") ->  | M172: =IF($AB$9='Base de données'!$A165,LOOKUP($AB$9,'Base de données'!$A165,'Base de données'!$N165)," ") ->  | N172: =IF($AB$9='Base de données'!$A165,LOOKUP($AB$9,'Base de données'!$A165,'Base de données'!$O165)," ") ->  | W172: ='Base de données'!AE165 -> 0 | X172: =IF($W172=Visualisateur!$U$60,'Base de données'!$U$63,'Base de données'!$U$64) -> NUL
A173: =IF($AB$9='Base de données'!$A166,LOOKUP($AB$9,'Base de données'!$A166,'Base de données'!$B166)," ") ->  | B173: =IF($AB$9='Base de données'!$A166,LOOKUP($AB$9,'Base de données'!$A166,'Base de données'!$C166)," ") ->  | C173: =IF($AB$9='Base de données'!$A166,LOOKUP($AB$9,'Base de données'!$A166,'Base de données'!$D166)," ") ->  | D173: =IF($AB$9='Base de données'!$A166,LOOKUP($AB$9,'Base de données'!$A166,'Base de données'!$E166)," ") ->  | E173: =IF($AB$9='Base de données'!$A166,LOOKUP($AB$9,'Base de données'!$A166,'Base de données'!$F166)," ") ->  | F173: =IF($AB$9='Base de données'!$A166,LOOKUP($AB$9,'Base de données'!$A166,'Base de données'!$G166)," ") ->  | G173: =IF($AB$9='Base de données'!$A166,LOOKUP($AB$9,'Base de données'!$A166,'Base de données'!$H166)," ") ->  | H173: =IF($AB$9='Base de données'!$A166,LOOKUP($AB$9,'Base de données'!$A166,'Base de données'!$I166)," ") ->  | I173: =IF($AB$9='Base de données'!$A166,LOOKUP($AB$9,'Base de données'!$A166,'Base de données'!$J166)," ") ->  | J173: =IF($AB$9='Base de données'!$A166,LOOKUP($AB$9,'Base de données'!$A166,'Base de données'!$K166)," ") ->  | K173: =IF($AB$9='Base de données'!$A166,LOOKUP($AB$9,'Base de données'!$A166,'Base de données'!$L166)," ") ->  | L173: =IF($AB$9='Base de données'!$A166,LOOKUP($AB$9,'Base de données'!$A166,'Base de données'!$M166)," ") ->  | M173: =IF($AB$9='Base de données'!$A166,LOOKUP($AB$9,'Base de données'!$A166,'Base de données'!$N166)," ") ->  | N173: =IF($AB$9='Base de données'!$A166,LOOKUP($AB$9,'Base de données'!$A166,'Base de données'!$O166)," ") ->  | W173: ='Base de données'!AE166 -> 0 | X173: =IF($W173=Visualisateur!$U$60,'Base de données'!$U$63,'Base de données'!$U$64) -> NUL
A174: =IF($AB$9='Base de données'!$A167,LOOKUP($AB$9,'Base de données'!$A167,'Base de données'!$B167)," ") ->  | B174: =IF($AB$9='Base de données'!$A167,LOOKUP($AB$9,'Base de données'!$A167,'Base de données'!$C167)," ") ->  | C174: =IF($AB$9='Base de données'!$A167,LOOKUP($AB$9,'Base de données'!$A167,'Base de données'!$D167)," ") ->  | D174: =IF($AB$9='Base de données'!$A167,LOOKUP($AB$9,'Base de données'!$A167,'Base de données'!$E167)," ") ->  | E174: =IF($AB$9='Base de données'!$A167,LOOKUP($AB$9,'Base de données'!$A167,'Base de données'!$F167)," ") ->  | F174: =IF($AB$9='Base de données'!$A167,LOOKUP($AB$9,'Base de données'!$A167,'Base de données'!$G167)," ") ->  | G174: =IF($AB$9='Base de données'!$A167,LOOKUP($AB$9,'Base de données'!$A167,'Base de données'!$H167)," ") ->  | H174: =IF($AB$9='Base de données'!$A167,LOOKUP($AB$9,'Base de données'!$A167,'Base de données'!$I167)," ") ->  | I174: =IF($AB$9='Base de données'!$A167,LOOKUP($AB$9,'Base de données'!$A167,'Base de données'!$J167)," ") ->  | J174: =IF($AB$9='Base de données'!$A167,LOOKUP($AB$9,'Base de données'!$A167,'Base de données'!$K167)," ") ->  | K174: =IF($AB$9='Base de données'!$A167,LOOKUP($AB$9,'Base de données'!$A167,'Base de données'!$L167)," ") ->  | L174: =IF($AB$9='Base de données'!$A167,LOOKUP($AB$9,'Base de données'!$A167,'Base de données'!$M167)," ") ->  | M174: =IF($AB$9='Base de données'!$A167,LOOKUP($AB$9,'Base de données'!$A167,'Base de données'!$N167)," ") ->  | N174: =IF($AB$9='Base de données'!$A167,LOOKUP($AB$9,'Base de données'!$A167,'Base de données'!$O167)," ") ->  | W174: ='Base de données'!AE167 -> 0 | X174: =IF($W174=Visualisateur!$U$60,'Base de données'!$U$63,'Base de données'!$U$64) -> NUL
A175: =IF($AB$9='Base de données'!$A168,LOOKUP($AB$9,'Base de données'!$A168,'Base de données'!$B168)," ") ->  | B175: =IF($AB$9='Base de données'!$A168,LOOKUP($AB$9,'Base de données'!$A168,'Base de données'!$C168)," ") ->  | C175: =IF($AB$9='Base de données'!$A168,LOOKUP($AB$9,'Base de données'!$A168,'Base de données'!$D168)," ") ->  | D175: =IF($AB$9='Base de données'!$A168,LOOKUP($AB$9,'Base de données'!$A168,'Base de données'!$E168)," ") ->  | E175: =IF($AB$9='Base de données'!$A168,LOOKUP($AB$9,'Base de données'!$A168,'Base de données'!$F168)," ") ->  | F175: =IF($AB$9='Base de données'!$A168,LOOKUP($AB$9,'Base de données'!$A168,'Base de données'!$G168)," ") ->  | G175: =IF($AB$9='Base de données'!$A168,LOOKUP($AB$9,'Base de données'!$A168,'Base de données'!$H168)," ") ->  | H175: =IF($AB$9='Base de données'!$A168,LOOKUP($AB$9,'Base de données'!$A168,'Base de données'!$I168)," ") ->  | I175: =IF($AB$9='Base de données'!$A168,LOOKUP($AB$9,'Base de données'!$A168,'Base de données'!$J168)," ") ->  | J175: =IF($AB$9='Base de données'!$A168,LOOKUP($AB$9,'Base de données'!$A168,'Base de données'!$K168)," ") ->  | K175: =IF($AB$9='Base de données'!$A168,LOOKUP($AB$9,'Base de données'!$A168,'Base de données'!$L168)," ") ->  | L175: =IF($AB$9='Base de données'!$A168,LOOKUP($AB$9,'Base de données'!$A168,'Base de données'!$M168)," ") ->  | M175: =IF($AB$9='Base de données'!$A168,LOOKUP($AB$9,'Base de données'!$A168,'Base de données'!$N168)," ") ->  | N175: =IF($AB$9='Base de données'!$A168,LOOKUP($AB$9,'Base de données'!$A168,'Base de données'!$O168)," ") ->  | W175: ='Base de données'!AE168 -> 0 | X175: =IF($W175=Visualisateur!$U$60,'Base de données'!$U$63,'Base de données'!$U$64) -> NUL
A176: =IF($AB$9='Base de données'!$A169,LOOKUP($AB$9,'Base de données'!$A169,'Base de données'!$B169)," ") ->  | B176: =IF($AB$9='Base de données'!$A169,LOOKUP($AB$9,'Base de données'!$A169,'Base de données'!$C169)," ") ->  | C176: =IF($AB$9='Base de données'!$A169,LOOKUP($AB$9,'Base de données'!$A169,'Base de données'!$D169)," ") ->  | D176: =IF($AB$9='Base de données'!$A169,LOOKUP($AB$9,'Base de données'!$A169,'Base de données'!$E169)," ") ->  | E176: =IF($AB$9='Base de données'!$A169,LOOKUP($AB$9,'Base de données'!$A169,'Base de données'!$F169)," ") ->  | F176: =IF($AB$9='Base de données'!$A169,LOOKUP($AB$9,'Base de données'!$A169,'Base de données'!$G169)," ") ->  | G176: =IF($AB$9='Base de données'!$A169,LOOKUP($AB$9,'Base de données'!$A169,'Base de données'!$H169)," ") ->  | H176: =IF($AB$9='Base de données'!$A169,LOOKUP($AB$9,'Base de données'!$A169,'Base de données'!$I169)," ") ->  | I176: =IF($AB$9='Base de données'!$A169,LOOKUP($AB$9,'Base de données'!$A169,'Base de données'!$J169)," ") ->  | J176: =IF($AB$9='Base de données'!$A169,LOOKUP($AB$9,'Base de données'!$A169,'Base de données'!$K169)," ") ->  | K176: =IF($AB$9='Base de données'!$A169,LOOKUP($AB$9,'Base de données'!$A169,'Base de données'!$L169)," ") ->  | L176: =IF($AB$9='Base de données'!$A169,LOOKUP($AB$9,'Base de données'!$A169,'Base de données'!$M169)," ") ->  | M176: =IF($AB$9='Base de données'!$A169,LOOKUP($AB$9,'Base de données'!$A169,'Base de données'!$N169)," ") ->  | N176: =IF($AB$9='Base de données'!$A169,LOOKUP($AB$9,'Base de données'!$A169,'Base de données'!$O169)," ") ->  | W176: ='Base de données'!AE169 -> 0 | X176: =IF($W176=Visualisateur!$U$60,'Base de données'!$U$63,'Base de données'!$U$64) -> NUL
A177: =IF($AB$9='Base de données'!$A170,LOOKUP($AB$9,'Base de données'!$A170,'Base de données'!$B170)," ") ->  | B177: =IF($AB$9='Base de données'!$A170,LOOKUP($AB$9,'Base de données'!$A170,'Base de données'!$C170)," ") ->  | C177: =IF($AB$9='Base de données'!$A170,LOOKUP($AB$9,'Base de données'!$A170,'Base de données'!$D170)," ") ->  | D177: =IF($AB$9='Base de données'!$A170,LOOKUP($AB$9,'Base de données'!$A170,'Base de données'!$E170)," ") ->  | E177: =IF($AB$9='Base de données'!$A170,LOOKUP($AB$9,'Base de données'!$A170,'Base de données'!$F170)," ") ->  | F177: =IF($AB$9='Base de données'!$A170,LOOKUP($AB$9,'Base de données'!$A170,'Base de données'!$G170)," ") ->  | G177: =IF($AB$9='Base de données'!$A170,LOOKUP($AB$9,'Base de données'!$A170,'Base de données'!$H170)," ") ->  | H177: =IF($AB$9='Base de données'!$A170,LOOKUP($AB$9,'Base de données'!$A170,'Base de données'!$I170)," ") ->  | I177: =IF($AB$9='Base de données'!$A170,LOOKUP($AB$9,'Base de données'!$A170,'Base de données'!$J170)," ") ->  | J177: =IF($AB$9='Base de données'!$A170,LOOKUP($AB$9,'Base de données'!$A170,'Base de données'!$K170)," ") ->  | K177: =IF($AB$9='Base de données'!$A170,LOOKUP($AB$9,'Base de données'!$A170,'Base de données'!$L170)," ") ->  | L177: =IF($AB$9='Base de données'!$A170,LOOKUP($AB$9,'Base de données'!$A170,'Base de données'!$M170)," ") ->  | M177: =IF($AB$9='Base de données'!$A170,LOOKUP($AB$9,'Base de données'!$A170,'Base de données'!$N170)," ") ->  | N177: =IF($AB$9='Base de données'!$A170,LOOKUP($AB$9,'Base de données'!$A170,'Base de données'!$O170)," ") ->  | W177: ='Base de données'!AE170 -> 0 | X177: =IF($W177=Visualisateur!$U$60,'Base de données'!$U$63,'Base de données'!$U$64) -> NUL
A178: =IF($AB$9='Base de données'!$A171,LOOKUP($AB$9,'Base de données'!$A171,'Base de données'!$B171)," ") ->  | B178: =IF($AB$9='Base de données'!$A171,LOOKUP($AB$9,'Base de données'!$A171,'Base de données'!$C171)," ") ->  | C178: =IF($AB$9='Base de données'!$A171,LOOKUP($AB$9,'Base de données'!$A171,'Base de données'!$D171)," ") ->  | D178: =IF($AB$9='Base de données'!$A171,LOOKUP($AB$9,'Base de données'!$A171,'Base de données'!$E171)," ") ->  | E178: =IF($AB$9='Base de données'!$A171,LOOKUP($AB$9,'Base de données'!$A171,'Base de données'!$F171)," ") ->  | F178: =IF($AB$9='Base de données'!$A171,LOOKUP($AB$9,'Base de données'!$A171,'Base de données'!$G171)," ") ->  | G178: =IF($AB$9='Base de données'!$A171,LOOKUP($AB$9,'Base de données'!$A171,'Base de données'!$H171)," ") ->  | H178: =IF($AB$9='Base de données'!$A171,LOOKUP($AB$9,'Base de données'!$A171,'Base de données'!$I171)," ") ->  | I178: =IF($AB$9='Base de données'!$A171,LOOKUP($AB$9,'Base de données'!$A171,'Base de données'!$J171)," ") ->  | J178: =IF($AB$9='Base de données'!$A171,LOOKUP($AB$9,'Base de données'!$A171,'Base de données'!$K171)," ") ->  | K178: =IF($AB$9='Base de données'!$A171,LOOKUP($AB$9,'Base de données'!$A171,'Base de données'!$L171)," ") ->  | L178: =IF($AB$9='Base de données'!$A171,LOOKUP($AB$9,'Base de données'!$A171,'Base de données'!$M171)," ") ->  | M178: =IF($AB$9='Base de données'!$A171,LOOKUP($AB$9,'Base de données'!$A171,'Base de données'!$N171)," ") ->  | N178: =IF($AB$9='Base de données'!$A171,LOOKUP($AB$9,'Base de données'!$A171,'Base de données'!$O171)," ") ->  | W178: ='Base de données'!AE171 -> 0 | X178: =IF($W178=Visualisateur!$U$60,'Base de données'!$U$63,'Base de données'!$U$64) -> NUL
A179: =IF($AB$9='Base de données'!$A172,LOOKUP($AB$9,'Base de données'!$A172,'Base de données'!$B172)," ") ->  | B179: =IF($AB$9='Base de données'!$A172,LOOKUP($AB$9,'Base de données'!$A172,'Base de données'!$C172)," ") ->  | C179: =IF($AB$9='Base de données'!$A172,LOOKUP($AB$9,'Base de données'!$A172,'Base de données'!$D172)," ") ->  | D179: =IF($AB$9='Base de données'!$A172,LOOKUP($AB$9,'Base de données'!$A172,'Base de données'!$E172)," ") ->  | E179: =IF($AB$9='Base de données'!$A172,LOOKUP($AB$9,'Base de données'!$A172,'Base de données'!$F172)," ") ->  | F179: =IF($AB$9='Base de données'!$A172,LOOKUP($AB$9,'Base de données'!$A172,'Base de données'!$G172)," ") ->  | G179: =IF($AB$9='Base de données'!$A172,LOOKUP($AB$9,'Base de données'!$A172,'Base de données'!$H172)," ") ->  | H179: =IF($AB$9='Base de données'!$A172,LOOKUP($AB$9,'Base de données'!$A172,'Base de données'!$I172)," ") ->  | I179: =IF($AB$9='Base de données'!$A172,LOOKUP($AB$9,'Base de données'!$A172,'Base de données'!$J172)," ") ->  | J179: =IF($AB$9='Base de données'!$A172,LOOKUP($AB$9,'Base de données'!$A172,'Base de données'!$K172)," ") ->  | K179: =IF($AB$9='Base de données'!$A172,LOOKUP($AB$9,'Base de données'!$A172,'Base de données'!$L172)," ") ->  | L179: =IF($AB$9='Base de données'!$A172,LOOKUP($AB$9,'Base de données'!$A172,'Base de données'!$M172)," ") ->  | M179: =IF($AB$9='Base de données'!$A172,LOOKUP($AB$9,'Base de données'!$A172,'Base de données'!$N172)," ") ->  | N179: =IF($AB$9='Base de données'!$A172,LOOKUP($AB$9,'Base de données'!$A172,'Base de données'!$O172)," ") ->  | W179: ='Base de données'!AE172 -> 0 | X179: =IF($W179=Visualisateur!$U$60,'Base de données'!$U$63,'Base de données'!$U$64) -> NUL
A180: =IF($AB$9='Base de données'!$A173,LOOKUP($AB$9,'Base de données'!$A173,'Base de données'!$B173)," ") ->  | B180: =IF($AB$9='Base de données'!$A173,LOOKUP($AB$9,'Base de données'!$A173,'Base de données'!$C173)," ") ->  | C180: =IF($AB$9='Base de données'!$A173,LOOKUP($AB$9,'Base de données'!$A173,'Base de données'!$D173)," ") ->  | D180: =IF($AB$9='Base de données'!$A173,LOOKUP($AB$9,'Base de données'!$A173,'Base de données'!$E173)," ") ->  | E180: =IF($AB$9='Base de données'!$A173,LOOKUP($AB$9,'Base de données'!$A173,'Base de données'!$F173)," ") ->  | F180: =IF($AB$9='Base de données'!$A173,LOOKUP($AB$9,'Base de données'!$A173,'Base de données'!$G173)," ") ->  | G180: =IF($AB$9='Base de données'!$A173,LOOKUP($AB$9,'Base de données'!$A173,'Base de données'!$H173)," ") ->  | H180: =IF($AB$9='Base de données'!$A173,LOOKUP($AB$9,'Base de données'!$A173,'Base de données'!$I173)," ") ->  | I180: =IF($AB$9='Base de données'!$A173,LOOKUP($AB$9,'Base de données'!$A173,'Base de données'!$J173)," ") ->  | J180: =IF($AB$9='Base de données'!$A173,LOOKUP($AB$9,'Base de données'!$A173,'Base de données'!$K173)," ") ->  | K180: =IF($AB$9='Base de données'!$A173,LOOKUP($AB$9,'Base de données'!$A173,'Base de données'!$L173)," ") ->  | L180: =IF($AB$9='Base de données'!$A173,LOOKUP($AB$9,'Base de données'!$A173,'Base de données'!$M173)," ") ->  | M180: =IF($AB$9='Base de données'!$A173,LOOKUP($AB$9,'Base de données'!$A173,'Base de données'!$N173)," ") ->  | N180: =IF($AB$9='Base de données'!$A173,LOOKUP($AB$9,'Base de données'!$A173,'Base de données'!$O173)," ") ->  | W180: ='Base de données'!AE173 -> 0 | X180: =IF($W180=Visualisateur!$U$60,'Base de données'!$U$63,'Base de données'!$U$64) -> NUL
